Workbook

Sheet Instructions
A1: Green Mountain Power Community Energy and Efficiency Development NSB Calculator
A3: Purpose
A4: The purpose of this calculator is to project the Net Societal Benefits (NSB) from the proposed CEED program and to provide the documentation for the source of the costs and benefits. The information provided will be used in selecting from the proposals which programs to include in GMP's CEED program.
A6: Inputs
A7: Throughout this calculator the inputs needed from the proposer are in yellow shaded cells. All other cells should be left unchanged. There are currently 15 measure rows shown, but 15 more are available if needed and can be accessed by simply unhiding rows 24-38, and 58-72 on the "Program Inputs" tab.
A9: The program inputs are located in the "Program Inputs" tab and include the names and quantity of measures included in the program. The other program inputs include the measure incentive costs, program non-incentive costs (administrative), the customer sector served (Residential, Commercial, Industrial), the number of participants, and whether the measures save electricity or another fuel. The program non-incentive costs may be shown on the same row as a measure if it is associated with that particular measure or if not specific to any particular measure then one of the measure rows can be dedicated to only program non-incentive costs that apply to program-wide costs.
A11: The measure inputs provide the inputs necessary for characterizing the measure and determining its cost-effectiveness. The measure inputs begin in the "Program Inputs" tab with the installed cost. The remainder of the detailed measure inputs reside in the "Measure Inputs" tab. These include the measure life (Analysis Period), kWh savings, kW savings, electricity load profile (required if electricity savings), fuel savings, water savings, and O&M costs. For retrofit measures replacing fuctioning equipment with a remaining useful life there is a special section that will account for avoided future equipment replacement costs and to reflect the possible change in savings due to the baseline shift. The "Measure Inputs" tab comes from the most current version of the Vermont State Screening Tool.
A13: Outputs
A14: Shown on the "Program Inputs" tab in grey cells are the societal benefits for each measure using the Vermont State Screening Tool calculations and avoided costs. These are combined with the measure and program costs to produce the Net Societal Benefits (NSB) for each measure and the program total. The NSB is then divided by the GMP investment to produce the GMP NSB ratio that is a primary CEED program metric. The participant and third party investments will be used as indicators of the leveraging from the GMP CEED investments, but don't affect the GMP NSB ratio calculation.

Sheet Program Inputs
A1: Green Mountain Power Community Energy and Efficiency Development NSB Calculator
A2: (Enter your program's values in the yellow cells below)
A3: (Do not alter the grey cells)
A5: Name of Proposer | B5: BPPA
A6: Proposed Program Name | B6: Zero Energy Now 2017
A8: Efficiency Measure | B8: Thermal, Electric, or Both (T, E, B) | C8: Residential, Commercial or Industrial (R, C, I) | D8: # of Participants | E8: # Units Installed | F8: ="Program (Non-Incentive) Costs ("&progyear&"$)" -> Program (Non-Incentive) Costs (2017$) | G8: Risk Adjustment Factor | H8: ="PV of Societal Non-Incentive (Program) Costs ("&progyear&"$)" -> PV of Societal Non-Incentive (Program) Costs (2017$) | I8: ="PV of Societal (Measure) Costs ("&progyear&"$)" -> PV of Societal (Measure) Costs (2017$) | J8: ="PV of Societal (Program & Measure) Costs ("&progyear&"$)" -> PV of Societal (Program & Measure) Costs (2017$) | K8: ="PV of Societal (Measure) Benefits ("&progyear&"$)" -> PV of Societal (Measure) Benefits (2017$) | L8: ="Net Societal Benefits ("&progyear&"$)" -> Net Societal Benefits (2017$) | M8: ="GMP Investment ("&progyear&"$)" -> GMP Investment (2017$) | N8: GMP NSB Ratio | O8: ="Participant "&progyear&" Investment ("&progyear&"$)" -> Participant 2017 Investment (2017$) | P8: ="Third Party "&progyear&" Investment ("&progyear&"$)" -> Third Party 2017 Investment (2017$)
A9: Calfee PV | B9: E | C9: R | D9: 20 | E9: 20 | F9: 40000 | G9: 0.1 | H9: =F9*(1-G9) -> 36000 | I9: =G43*E9 -> 350208 | J9: =I9+H9 -> 386208 | K9: =E9*H43 -> 685628.9952 | L9: =K9-J9 -> 299420.9952 | M9: =E9*C43+F9 -> 60000 | N9: =IF(M9=0,0,L9/M9) -> 4.990349921 | O9: =$E9*E43 -> 252384 | P9: =$E9*D43 -> 116736
A10: Ward PV | B10: E | C10: R | D10: 20 | E10: 20 | F10: 40000 | G10: 0.1 | H10: =F10*(1-G10) -> 36000 | I10: 310788 | J10: =I10+H10 -> 346788 | K10: 591909.9239 | L10: =K10-J10 -> 245121.9239 | M10: 58020.56085 | N10: =IF(M10=0,0,L10/M10) -> 4.224742408 | O10: 223703.4392 | P10: 103596
A11: Measure 3 | F11: 0 | G11: 0.1 | H11: 0 | I11: 0 | J11: =I11+H11 -> 0 | K11: 0 | L11: 0 | M11: 0 | N11: =IF(M11=0,0,L11/M11) -> 0 | O11: 0 | P11: 0
A12: Measure 4 | F12: 0 | G12: 0.1 | H12: 0 | I12: 0 | J12: =I12+H12 -> 0 | K12: 0 | L12: 0 | M12: 0 | N12: 0 | O12: 0 | P12: 0
A13: Measure 5 | F13: 0 | G13: 0.1 | H13: 0 | I13: 0 | J13: 0 | K13: 0 | L13: 0 | M13: 0 | N13: 0 | O13: 0 | P13: 0
A14: Measure 6 | F14: 0 | G14: 0.1 | H14: 0 | I14: 0 | J14: 0 | K14: 0 | L14: 0 | M14: 0 | N14: 0 | O14: 0 | P14: 0
A15: Measure 7 | F15: 0 | G15: 0.1 | H15: 0 | I15: 0 | J15: 0 | K15: 0 | L15: 0 | M15: 0 | N15: 0 | O15: 0 | P15: 0
A16: Measure 8 | F16: 0 | G16: 0.1 | H16: 0 | I16: 0 | J16: 0 | K16: 0 | L16: 0 | M16: 0 | N16: 0 | O16: 0 | P16: 0
A17: Measure 9 | F17: 0 | G17: 0.1 | H17: 0 | I17: 0 | J17: 0 | K17: 0 | L17: 0 | M17: 0 | N17: 0 | O17: 0 | P17: 0
A18: Measure 10 | F18: 0 | G18: 0.1 | H18: 0 | I18: 0 | J18: 0 | K18: 0 | L18: 0 | M18: 0 | N18: 0 | O18: 0 | P18: 0
A19: Measure 11 | F19: 0 | G19: 0.1 | H19: 0 | I19: 0 | J19: 0 | K19: 0 | L19: 0 | M19: 0 | N19: 0 | O19: 0 | P19: 0
A20: Measure 12 | F20: 0 | G20: 0.1 | H20: 0 | I20: 0 | J20: 0 | K20: 0 | L20: 0 | M20: 0 | N20: 0 | O20: 0 | P20: 0
A21: Measure 13 | F21: 0 | G21: 0.1 | H21: 0 | I21: 0 | J21: 0 | K21: 0 | L21: 0 | M21: 0 | N21: 0 | O21: 0 | P21: 0
A22: Measure 14 | F22: 0 | G22: 0.1 | H22: 0 | I22: 0 | J22: 0 | K22: 0 | L22: 0 | M22: 0 | N22: 0 | O22: 0 | P22: 0
A23: Measure 15 | F23: 0 | G23: 0.1 | H23: 0 | I23: 0 | J23: 0 | K23: 0 | L23: 0 | M23: 0 | N23: 0 | O23: 0 | P23: 0
A24: Measure 16 | F24: 0 | G24: 0.1 | H24: 0 | I24: 0 | J24: 0 | K24: 0 | L24: 0 | M24: 0 | N24: 0 | O24: =G24*D58+H24 -> 0 | P24: =H24*I58+I24 -> 0
A25: Measure 17 | F25: 0 | G25: 0.1 | H25: 0 | I25: 0 | J25: 0 | K25: 0 | L25: 0 | M25: 0 | N25: 0 | O25: 0 | P25: 0
A26: Measure 18 | F26: 0 | G26: 0.1 | H26: 0 | I26: 0 | J26: 0 | K26: 0 | L26: 0 | M26: 0 | N26: 0 | O26: 0 | P26: 0
A27: Measure 19 | F27: 0 | G27: 0.1 | H27: 0 | I27: 0 | J27: 0 | K27: 0 | L27: 0 | M27: 0 | N27: 0 | O27: 0 | P27: 0
A28: Measure 20 | F28: 0 | G28: 0.1 | H28: 0 | I28: 0 | J28: 0 | K28: 0 | L28: 0 | M28: 0 | N28: 0 | O28: 0 | P28: 0
A29: Measure 21 | F29: 0 | G29: 0.1 | H29: 0 | I29: 0 | J29: 0 | K29: 0 | L29: 0 | M29: 0 | N29: 0 | O29: 0 | P29: 0
A30: Measure 22 | F30: 0 | G30: 0.1 | H30: 0 | I30: 0 | J30: 0 | K30: 0 | L30: 0 | M30: 0 | N30: 0 | O30: 0 | P30: 0
A31: Measure 23 | F31: 0 | G31: 0.1 | H31: 0 | I31: 0 | J31: 0 | K31: 0 | L31: 0 | M31: 0 | N31: 0 | O31: 0 | P31: 0
A32: Measure 24 | F32: 0 | G32: 0.1 | H32: 0 | I32: 0 | J32: 0 | K32: 0 | L32: 0 | M32: 0 | N32: 0 | O32: 0 | P32: 0
A33: Measure 25 | F33: 0 | G33: 0.1 | H33: 0 | I33: 0 | J33: 0 | K33: 0 | L33: 0 | M33: 0 | N33: 0 | O33: 0 | P33: 0
A34: Measure 26 | F34: 0 | G34: 0.1 | H34: 0 | I34: 0 | J34: 0 | K34: 0 | L34: 0 | M34: 0 | N34: 0 | O34: 0 | P34: 0
A35: Measure 27 | F35: 0 | G35: 0.1 | H35: 0 | I35: 0 | J35: 0 | K35: 0 | L35: 0 | M35: 0 | N35: 0 | O35: 0 | P35: 0
A36: Measure 28 | F36: 0 | G36: 0.1 | H36: 0 | I36: 0 | J36: 0 | K36: 0 | L36: 0 | M36: 0 | N36: 0 | O36: 0 | P36: 0
A37: Measure 29 | F37: 0 | G37: 0.1 | H37: 0 | I37: 0 | J37: 0 | K37: 0 | L37: 0 | M37: 0 | N37: 0 | O37: 0 | P37: 0
A38: Measure 30 | G38: 0.1 | H38: 0 | I38: 0 | J38: =I38+H38 -> 0 | K38: 0 | L38: 0 | M38: =E38*C45+F38 -> 0 | N38: 0 | O38: =G38*D45+H38 -> 0 | P38: =H38*I45+I38 -> 0
A39: Totals | D39: =SUM(D9:D38) -> 40 | E39: =SUM(E9:E38) -> 40 | F39: =SUM(F9:F38) -> 80000 | H39: =SUM(H9:H38) -> 72000 | I39: 660996 | J39: 732996 | K39: 1277538.919 | L39: 544542.9192 | M39: 118020.5608 | N39: 4.613966543 | O39: =SUM(O9:O38) -> 476087.4392 | P39: =SUM(P9:P38) -> 220332
A42: Efficiency Measure | B42: ="Installed Cost per Unit ("&progyear&"$)" -> Installed Cost per Unit (2017$) | C42: ="GMP Customer Incentive per Unit ("&progyear&"$)" -> GMP Customer Incentive per Unit (2017$) | D42: ="Third Party Investment per Unit ("&progyear&"$)" -> Third Party Investment per Unit (2017$) | E42: ="Participant Investment per Unit ("&progyear&"$)" -> Participant Investment per Unit (2017$) | F42: Risk Adjustment Factor | G42: ="PV of Societal (Measure) Costs per Unit ("&progyear&"$)" -> PV of Societal (Measure) Costs per Unit (2017$) | H42: ="PV of Societal (Measure) Benefits per Unit ("&progyear&"$)" -> PV of Societal (Measure) Benefits per Unit (2017$)
A43: =A9 -> Calfee PV | B43: =Calcs!B29 -> 19456 | C43: 1000 | D43: =B43*0.3 -> 5836.8 | E43: =B43-C43-D43 -> 12619.2 | F43: 0.1 | G43: =B43*(1-F43) -> 17510.4 | H43: =('Measure Inputs'!E12-'Measure Inputs'!F12)*(1+RDR)^(progyear-BASEYR-0.5)*(1+future_inflation)^(progyear-BASEYR)+IF('Measure Inputs'!K12=0,0,G43) -> 34281.44976
A44: =A10 -> Ward PV | B44: =Calcs!C29 -> 17266 | C44: =Calcs!C40 -> 901.0280424 | D44: =B44*0.3 -> 5179.8 | E44: =B44-C44-D44 -> 11185.17196 | F44: 0.1 | G44: 15539.4 | H44: =('Measure Inputs'!E13-'Measure Inputs'!F13)*(1+RDR)^(progyear-BASEYR-0.5)*(1+future_inflation)^(progyear-BASEYR)+IF('Measure Inputs'!K13=0,0,G44) -> 29595.4962
A45: =A11 -> Measure 3 | E45: 0 | F45: 0.1 | G45: 0 | H45: =('Measure Inputs'!E14-'Measure Inputs'!F14)*(1+RDR)^(progyear-BASEYR-0.5)*(1+future_inflation)^(progyear-BASEYR)+IF('Measure Inputs'!K14=0,0,G45) -> 0
A46: =A12 -> Measure 4 | E46: 0 | F46: 0.1 | G46: 0 | H46: =('Measure Inputs'!E15-'Measure Inputs'!F15)*(1+RDR)^(progyear-BASEYR-0.5)*(1+future_inflation)^(progyear-BASEYR)+IF('Measure Inputs'!K15=0,0,G46) -> 0
A47: Measure 5 | E47: 0 | F47: 0.1 | G47: 0 | H47: =('Measure Inputs'!E16-'Measure Inputs'!F16)*(1+RDR)^(progyear-BASEYR-0.5)*(1+future_inflation)^(progyear-BASEYR)+IF('Measure Inputs'!K16=0,0,G47) -> 0
A48: Measure 6 | E48: 0 | F48: 0.1 | G48: 0 | H48: =('Measure Inputs'!E17-'Measure Inputs'!F17)*(1+RDR)^(progyear-BASEYR-0.5)*(1+future_inflation)^(progyear-BASEYR)+IF('Measure Inputs'!K17=0,0,G48) -> 0
A49: Measure 7 | E49: 0 | F49: 0.1 | G49: 0 | H49: =('Measure Inputs'!E18-'Measure Inputs'!F18)*(1+RDR)^(progyear-BASEYR-0.5)*(1+future_inflation)^(progyear-BASEYR)+IF('Measure Inputs'!K18=0,0,G49) -> 0
A50: Measure 8 | E50: 0 | F50: 0.1 | G50: 0 | H50: =('Measure Inputs'!E19-'Measure Inputs'!F19)*(1+RDR)^(progyear-BASEYR-0.5)*(1+future_inflation)^(progyear-BASEYR)+IF('Measure Inputs'!K19=0,0,G50) -> 0
A51: Measure 9 | E51: 0 | F51: 0.1 | G51: 0 | H51: =('Measure Inputs'!E20-'Measure Inputs'!F20)*(1+RDR)^(progyear-BASEYR-0.5)*(1+future_inflation)^(progyear-BASEYR)+IF('Measure Inputs'!K20=0,0,G51) -> 0
A52: Measure 10 | E52: 0 | F52: 0.1 | G52: 0 | H52: =('Measure Inputs'!E21-'Measure Inputs'!F21)*(1+RDR)^(progyear-BASEYR-0.5)*(1+future_inflation)^(progyear-BASEYR)+IF('Measure Inputs'!K21=0,0,G52) -> 0
A53: Measure 11 | E53: 0 | F53: 0.1 | G53: 0 | H53: =('Measure Inputs'!E22-'Measure Inputs'!F22)*(1+RDR)^(progyear-BASEYR-0.5)*(1+future_inflation)^(progyear-BASEYR)+IF('Measure Inputs'!K22=0,0,G53) -> 0
A54: Measure 12 | E54: 0 | F54: 0.1 | G54: 0 | H54: =('Measure Inputs'!E23-'Measure Inputs'!F23)*(1+RDR)^(progyear-BASEYR-0.5)*(1+future_inflation)^(progyear-BASEYR)+IF('Measure Inputs'!K23=0,0,G54) -> 0
A55: Measure 13 | E55: 0 | F55: 0.1 | G55: 0 | H55: =('Measure Inputs'!E24-'Measure Inputs'!F24)*(1+RDR)^(progyear-BASEYR-0.5)*(1+future_inflation)^(progyear-BASEYR)+IF('Measure Inputs'!K24=0,0,G55) -> 0
A56: Measure 14 | E56: 0 | F56: 0.1 | G56: 0 | H56: =('Measure Inputs'!E25-'Measure Inputs'!F25)*(1+RDR)^(progyear-BASEYR-0.5)*(1+future_inflation)^(progyear-BASEYR)+IF('Measure Inputs'!K25=0,0,G56) -> 0
A57: Measure 15 | E57: 0 | F57: 0.1 | G57: 0 | H57: =('Measure Inputs'!E26-'Measure Inputs'!F26)*(1+RDR)^(progyear-BASEYR-0.5)*(1+future_inflation)^(progyear-BASEYR)+IF('Measure Inputs'!K26=0,0,G57) -> 0
A58: Measure 16 | E58: 0 | F58: 0.1 | G58: 0 | H58: =('Measure Inputs'!E27-'Measure Inputs'!F27)*(1+RDR)^(progyear-BASEYR-0.5)*(1+future_inflation)^(progyear-BASEYR)+IF('Measure Inputs'!K27=0,0,G58) -> 0
A59: Measure 17 | E59: 0 | F59: 0.1 | G59: 0 | H59: =('Measure Inputs'!E28-'Measure Inputs'!F28)*(1+RDR)^(progyear-BASEYR-0.5)*(1+future_inflation)^(progyear-BASEYR)+IF('Measure Inputs'!K28=0,0,G59) -> 0
A60: Measure 18 | E60: 0 | F60: 0.1 | G60: 0 | H60: =('Measure Inputs'!E29-'Measure Inputs'!F29)*(1+RDR)^(progyear-BASEYR-0.5)*(1+future_inflation)^(progyear-BASEYR)+IF('Measure Inputs'!K29=0,0,G60) -> 0
A61: Measure 19 | E61: 0 | F61: 0.1 | G61: 0 | H61: =('Measure Inputs'!E30-'Measure Inputs'!F30)*(1+RDR)^(progyear-BASEYR-0.5)*(1+future_inflation)^(progyear-BASEYR)+IF('Measure Inputs'!K30=0,0,G61) -> 0
A62: Measure 20 | E62: 0 | F62: 0.1 | G62: 0 | H62: =('Measure Inputs'!E31-'Measure Inputs'!F31)*(1+RDR)^(progyear-BASEYR-0.5)*(1+future_inflation)^(progyear-BASEYR)+IF('Measure Inputs'!K31=0,0,G62) -> 0
A63: Measure 21 | E63: 0 | F63: 0.1 | G63: 0 | H63: =('Measure Inputs'!E32-'Measure Inputs'!F32)*(1+RDR)^(progyear-BASEYR-0.5)*(1+future_inflation)^(progyear-BASEYR)+IF('Measure Inputs'!K32=0,0,G63) -> 0
A64: Measure 22 | E64: 0 | F64: 0.1 | G64: 0 | H64: =('Measure Inputs'!E33-'Measure Inputs'!F33)*(1+RDR)^(progyear-BASEYR-0.5)*(1+future_inflation)^(progyear-BASEYR)+IF('Measure Inputs'!K33=0,0,G64) -> 0
A65: Measure 23 | E65: 0 | F65: 0.1 | G65: 0 | H65: =('Measure Inputs'!E34-'Measure Inputs'!F34)*(1+RDR)^(progyear-BASEYR-0.5)*(1+future_inflation)^(progyear-BASEYR)+IF('Measure Inputs'!K34=0,0,G65) -> 0
A66: Measure 24 | E66: 0 | F66: 0.1 | G66: 0 | H66: =('Measure Inputs'!E35-'Measure Inputs'!F35)*(1+RDR)^(progyear-BASEYR-0.5)*(1+future_inflation)^(progyear-BASEYR)+IF('Measure Inputs'!K35=0,0,G66) -> 0
A67: Measure 25 | E67: 0 | F67: 0.1 | G67: 0 | H67: =('Measure Inputs'!E36-'Measure Inputs'!F36)*(1+RDR)^(progyear-BASEYR-0.5)*(1+future_inflation)^(progyear-BASEYR)+IF('Measure Inputs'!K36=0,0,G67) -> 0
A68: Measure 26 | E68: 0 | F68: 0.1 | G68: 0 | H68: =('Measure Inputs'!E37-'Measure Inputs'!F37)*(1+RDR)^(progyear-BASEYR-0.5)*(1+future_inflation)^(progyear-BASEYR)+IF('Measure Inputs'!K37=0,0,G68) -> 0
A69: Measure 27 | E69: 0 | F69: 0.1 | G69: 0 | H69: =('Measure Inputs'!E38-'Measure Inputs'!F38)*(1+RDR)^(progyear-BASEYR-0.5)*(1+future_inflation)^(progyear-BASEYR)+IF('Measure Inputs'!K38=0,0,G69) -> 0
A70: Measure 28 | E70: 0 | F70: 0.1 | G70: 0 | H70: =('Measure Inputs'!E39-'Measure Inputs'!F39)*(1+RDR)^(progyear-BASEYR-0.5)*(1+future_inflation)^(progyear-BASEYR)+IF('Measure Inputs'!K39=0,0,G70) -> 0
A71: Measure 29 | E71: 0 | F71: 0.1 | G71: 0 | H71: =('Measure Inputs'!E40-'Measure Inputs'!F40)*(1+RDR)^(progyear-BASEYR-0.5)*(1+future_inflation)^(progyear-BASEYR)+IF('Measure Inputs'!K40=0,0,G71) -> 0
A72: Measure 30 | E72: 0 | F72: 0.1 | G72: 0 | H72: =('Measure Inputs'!E41-'Measure Inputs'!F41)*(1+RDR)^(progyear-BASEYR-0.5)*(1+future_inflation)^(progyear-BASEYR)+IF('Measure Inputs'!K41=0,0,G72) -> 0
A75: Inflation Assumption | B75: =future_inflation -> 0.0188

Sheet Single FS Input (hidden)
A1: Only add inputs into gray cells and selection boxes
A2: Required Inputs | D2: Optional Inputs | I2: Intermediate calculations for measure screening inputs
A3: Customer Name | B3: =B39 -> 0 | D3: Date | E3: =NOW() -> 2016-10-05T09:02:55.940
A4: Account # | B4: =B40 -> 0 | D4: Measure ID
A5: Measure Name | B5: =VLOOKUP($B$44,FSTable,2) ->  | D5: Year Installed | E5: =B42 -> 2017 | I5: =IF(E5=0,E6,E5) -> 2017
A6: Analysis Period | B6: =VLOOKUP($B$44,FSTable,8) ->  | D6: Year Installed (default if no input) | E6: =progyear -> 2017 | O6: Input into screening
A7: ="Installed Cost ("&progyear&"$)" -> Installed Cost (2017$) | B7: =B46 -> 0 | D7: Custom Load Profile Data Inputs (Overrides standard profile, if input) | J7: Definition of Energy Periods | O7: Energy | S7: kWh
A8: First Year Savings | D8: Input into custom rows if standard profile is not available or inadequate | E8: Wntr Pk | F8: Wntr Off Peak | G8: Smr Pk | H8: Smr Off Peak | I8: Total | J8: Winter Peak | K8: Winter Off-Peak | L8: Summer Peak | M8: Summer Off-Peak | N8: Total Custom | O8: Winter Peak | P8: Winter Off-Peak | Q8: Summer Peak | R8: Summer Off-Peak | S8: Winter Peak | T8: Winter Off-Peak | U8: Summer Peak | V8: Summer Off-Peak
A9: kWh (annual) or | B9: =B43 -> 0 | D9: % of annual kWh (custom) | I9: =IF(SUM(E9:H9)=1, "100%", "does not total 100%") -> does not total 100% | J9: 6pm-10pm M-F Oct-May | K9: 10pm-6am M-F, all day weekends Oct-May | L9: 6pm-10pm M-F Jun-Sep | M9: 10pm-6am M-F, all day weekends Jun-Sep | N9: =SUM(E9:H9) -> 0 | O9: =IF(N9=0,E10,E9) ->  | P9: =IF(N9=0,F10,F9) ->  | Q9: =IF(N9=0,G10,G9) ->  | R9: =IF(N9=0,H10,H9) ->  | S9: =O9*$B12 ->  | T9: =P9*$B12 ->  | U9: =Q9*$B12 ->  | V9: =R9*$B12 -> 
A10: kW connected load | D10: % of annual kWh (standard, if available) | E10: =VLOOKUP($B$15,Loadprof,2,FALSE) ->  | F10: =VLOOKUP($B$15,Loadprof,3,FALSE) ->  | G10: =VLOOKUP($B$15,Loadprof,4,FALSE) ->  | H10: =VLOOKUP($B$15,Loadprof,5,FALSE) ->  | J10: Definition of Peak Hours | O10: Capacity
A11: Calculated from above inputs and FLH: | E11: Winter | F11: Summer | G11: Fall/Spring | J11: Winter | K11: Summer | L11: Fall/Spring | O11: Winter | P11: Summer | Q11: Fall/Spring | R11: Generic T&D
A12: kWh (annual) | B12: =IF(B9=0,B10*I14,B9) ->  | D12: % of connected load kW (custom) | J12: 5pm-7pm M-F, non-holiday, Dec-Jan | K12: 1pm-5pm M-F, non-holiday, Jun-Aug | N12: =SUM(E12:G12) -> 0 | O12: =IF($N12=0,E13*$N14,E12) ->  | P12: =IF($N12=0,F13*$N14,F12) ->  | Q12: =IF($N12=0,G13*$N14,G12) ->  | R12: =B13*(O12*TD_Winter_Weight+P12*TD_Summer_Weight) -> 
A13: kW connected load | B13: =IF(B10=0,B9/I14,B10) ->  | D13: % of connected load kW (standard, if available) | E13: =VLOOKUP($B$15,Loadprof,6,FALSE) ->  | F13: =VLOOKUP($B$15,Loadprof,7,FALSE) ->  | G13: =VLOOKUP($B$15,Loadprof,8,FALSE) ->  | N13: Diversity adjustment factor
A14: Customer class: | B14: 1 | D14: Full load hours (custom) | I14: =IF(E14=0,E15,E14) ->  | N14: =IF(ISNA(E15),1,I14/E15) -> 1
A15: End-use (determines load profile): | B15: =VLOOKUP($B$44,FSTable,5) ->  | D15: Full load hours (standard) | E15: =VLOOKUP($B$15,Loadprof,9,FALSE) -> 
D16: Add Data Only if Retrofit Measure
A17: Measure Screening Outputs (Societal Test) | D17: Full Baseline Equipment Life | E17: =VLOOKUP($B$44,FSTable,12) -> 
A18: PV of Net Benefits | B18: ='Measure Screening'!H208 -> 15457.04737 | D18: Existing Equipment Age | E18: =MIN(B48,E17) -> 
A19: Benefit-Cost Ratio | B19: ='Measure Screening'!G208 -> 1.89887043 | D19: New Baseline Inst. Cost | E19: =B50 -> 0
A20: Measure Benefits | B20: ='Measure Screening'!C208 -> 32653.12687 | D20: Savings Adjustment (future saved kWh/1st year kWh) | E20: 1 | F20: e.g., If baseline effic. equals existing effic., then 100%.
A21: Measure Costs | B21: ='Measure Screening'!E208 -> 17196.0795 | D21: Impact on Non-electric Fuels
A22: Gross Electric Benefits | B22: ='Measure Screening'!K144 -> 23989.9665 | D22: Fuel Type: | E22: =VLOOKUP(B44,FSTable,4) -> 
A23: Fossil Fuel Benefits | B23: ='Measure Screening'!S144-'Measure Screening'!E81 -> 0 | D23: Fossil Fuel Increase (MMBtu/yr) | E23: =B43*B49*3413/VLOOKUP($B$44,FSTable,7)/1000000 ->  | F23: Input negative # if fuel consumption is reduced.
A24: Water Benefits | B24: ='Measure Screening'!U144 -> 0 | D24: Water Savings (CCF/yr) | F24: 1CCF = 748 gallons water
A25: Total Resource Benefits | B25: =SUM(B22:B24) -> 23989.9665 | D25: Maintenance and Component Costs
D26: Efficient measure components | F26: Use these inputs to account | I26: PV of Replacement
D27: Component 1 Life (years) | E27: =VLOOKUP($B$44,FSTable,9) ->  | F27: for recurring costs over the life | I27: Costs
D28: Component 1 Replacement Cost | E28: =B47 -> 0 | F28: of the measure. Maintenance | I28: =IF(E27>$B$6,0,IF(E27>0,-PV(RDR,B$6-E27,-PMT(RDR,E27,E28))/(1+RDR)^E27,0)) -> 
D29: Component 2 Life (years) | E29: 1 | F29: costs can be input instead of
D30: Component 2 Replacement Cost | E30: =VLOOKUP($B$44,FSTable,6) ->  | F30: replacement costs and the | I30: =IF(E29>$B$6,0,IF(E29>0,-PV(RDR,B$6-E29,-PMT(RDR,E29,E30))/(1+RDR)^E29,0)) -> 
D31: Baseline measure components | F31: period between maintenance
D32: Component 1 Life (years) | F32: visits in place of component
D33: Component 1 Replacement Cost | F33: life. | I33: =IF(E32>$B$6,0,IF(E32>0,-PV(RDR,B$6-E32,-PMT(RDR,E32,E33))/(1+RDR)^E32,0)) -> 
D34: Component 2 Life (years)
D35: Component 2 Replacement Cost | I35: =IF(E34>$B$6,0,IF(E34>0,-PV(RDR,B$6-E34,-PMT(RDR,E34,E35))/(1+RDR)^E34,0)) -> 
D36: Real Levelized Net Annual Maintenance or Component Costs | G36: =-PMT(RDR,B6,I36)/(1+RDR) ->  | I36: =(SUM(I28:I30)-SUM(I33:I35))*(1+RDR)^0.5 -> 
A38: Only add inputs into yellow cells and selection boxes
A39: Customer Name | D39: Customer Economics | E39: Annual
A40: Account # | D40: Existing Electricity Cost | E40: =F40*B43 ->  | F40: =VLOOKUP($B$44,FSTable,10) ->  | G40: per kWh
A41: Utility | B41: 5 | D41: Alternate Fuel Cost | E41: =F41*B45 ->  | F41: =E23*1000000/VLOOKUP($B$44,FSTable,11) ->  | G41: =IF(OR($E$22=3,$E$22=6),"therm", "gal") -> 
A42: Year Installed | B42: =progyear -> 2017 | D42: Net Energy Cost Savings | E42: =E40-E41 -> 
A43: Annual kWh | D43: Alternate Maintenance Cost | E43: =E30 -> 
A44: Measure Type | D44: Total Alternate Operating Cost | E44: =E43+E41 -> 
D45: Net Operating Cost Savings | E45: =E40-E44 -> 
A46: ="Total Installed Measure Cost ("&progyear&"$)" -> Total Installed Measure Cost (2017$)
A47: ="Replaceable Component Cost " &"("&IF($B$44=0,"", VLOOKUP($B$44,FSTable,14))&")" -> Replaceable Component Cost ()
A48: Existing Equipment Age | C48: yrs
A49: Efficiency of Existing Equipment
A50: Electric Replacement Cost
A51: =IF(inputform=1,"","Outputs not valid, change setting in Title sheet") -> Outputs not valid, change setting in Title sheet
A52: ="Measure Screening Outputs (Societal Test "&BASEYR&"$)" -> Measure Screening Outputs (Societal Test 2015$)
A53: PV of Net Benefits | B53: =B18 -> 15457.04737
A54: Benefit-Cost Ratio | B54: 1.89887043
A55: Measure Benefits | B55: 32653.12687
A56: Measure Costs | B56: 17196.0795 | D56: ="Version "&Title!$B$7 -> Version 2016a
A57: Gross Electric Benefits | B57: 23989.9665
A58: Fossil Fuel Benefits | B58: 0
A59: Water Benefits | B59: 0
A60: Total Resource Benefits | B60: 23989.9665

Sheet Single Custom Input (hidden)
A1: Only add inputs into yellow cells and selection boxes
A2: Required Inputs | D2: Optional Inputs | I2: Intermediate calculations for measure screening inputs
A3: Customer Name | D3: Date | E3: =NOW() -> 2016-10-05T09:02:55.940
A4: Account # | D4: Measure ID
A5: Measure Name | D5: Year Installed | I5: =IF(E5=0,E6,E5) -> 2017
A6: Analysis Period | D6: Year Installed (default if no input) | E6: =progyear -> 2017 | O6: Input into screening
A7: ="Installed Cost ("&progyear&"$)" -> Installed Cost (2017$) | D7: Custom Load Profile Data Inputs (Overrides standard profile, if input) | J7: Definition of Energy Periods | O7: Energy | S7: kWh
A8: First Year Savings | D8: Input into custom rows if standard profile is not available or inadequate | E8: Wntr Pk | F8: Wntr Off Peak | G8: Smr Pk | H8: Smr Off Peak | I8: Total | J8: Winter Peak | K8: Winter Off-Peak | L8: Summer Peak | M8: Summer Off-Peak | N8: Total Custom | O8: Winter Peak | P8: Winter Off-Peak | Q8: Summer Peak | R8: Summer Off-Peak | S8: Winter Peak | T8: Winter Off-Peak | U8: Summer Peak | V8: Summer Off-Peak
A9: kWh (annual) or | D9: % of annual kWh (custom) | I9: =IF(SUM(E9:H9)=1, "100%", "does not total 100%") -> does not total 100% | J9: 6am-10pm M-F Oct-May | K9: 10pm-6am M-F, all day weekends Oct-May | L9: 6am-10pm M-F Jun-Sep | M9: 10pm-6am M-F, all day weekends Jun-Sep | N9: =SUM(E9:H9) -> 0 | O9: =IF(N9=0,E10,E9) ->  | P9: =IF(N9=0,F10,F9) ->  | Q9: =IF(N9=0,G10,G9) ->  | R9: =IF(N9=0,H10,H9) ->  | S9: =O9*$B12 ->  | T9: =P9*$B12 ->  | U9: =Q9*$B12 ->  | V9: =R9*$B12 -> 
A10: kW calculated load | D10: % of annual kWh (standard, if available) | E10: =VLOOKUP($B$15,Loadprof,2,FALSE) ->  | F10: =VLOOKUP($B$15,Loadprof,3,FALSE) ->  | G10: =VLOOKUP($B$15,Loadprof,4,FALSE) ->  | H10: =VLOOKUP($B$15,Loadprof,5,FALSE) ->  | J10: Definition of Peak Hours | O10: Capacity
A11: Calculated from above inputs and FLH: | E11: Winter | F11: Summer | G11: Fall/Spring | J11: Winter | K11: Summer | L11: Fall/Spring | O11: Winter | P11: Summer | Q11: Fall/Spring | R11: Generic T&D
A12: kWh (annual) | B12: =IF(ISBLANK(B9),B10*I14,B9) ->  | D12: % of calculated kW savings (custom) | J12: 5pm-7pm M-F, non-holiday, Dec-Jan | K12: 1pm-5pm M-F, non-holiday, Jun-Aug | O12: =IF(ISBLANK(E12),E13,E12) ->  | P12: =IF(ISBLANK(F12),F13,F12) ->  | Q12: =IF(ISBLANK(G12),G13,G12) ->  | R12: =B13*(O12*TD_Winter_Weight+P12*TD_Summer_Weight) -> 
A13: kW calculated load | B13: =IF(ISBLANK(B10),B9/I14,B10) ->  | D13: % of calculated kW savings (standard, if available) | E13: =VLOOKUP($B$15,Loadprof,6,FALSE) ->  | F13: =VLOOKUP($B$15,Loadprof,7,FALSE) ->  | G13: =VLOOKUP($B$15,Loadprof,8,FALSE) -> 
A14: Customer class: | D14: Full load hours (custom) | I14: =IF(ISBLANK(E14),E15,E14) -> 
A15: End-use (determines load profile): | D15: Full load hours (standard) | E15: =VLOOKUP($B$15,Loadprof,9,FALSE) -> 
A16: =IF(inputform=2,"","Outputs not valid, change setting in Title sheet") -> Outputs not valid, change setting in Title sheet | D16: Add Data Only if Early Replacement Retrofit Measure
A17: ="Measure Screening Outputs (Societal Test "&BASEYR&"$)" -> Measure Screening Outputs (Societal Test 2015$) | D17: Full Baseline Equipment Life
A18: PV of Net Benefits | B18: ='Measure Screening'!H208 -> 15457.04737 | D18: Existing Equipment Age
A19: Benefit-Cost Ratio | B19: ='Measure Screening'!G208 -> 1.89887043 | D19: New Baseline Inst. Cost
A20: Measure Benefits | B20: ='Measure Screening'!C208 -> 32653.12687 | D20: Savings Adjustment (ultimate saved kWh/1st year kWh) | F20: 100% if baseline effic. = existing effic.
A21: Measure Costs | B21: ='Measure Screening'!E208 -> 17196.0795 | D21: Impact on Non-electric Fuels
A22: Gross Electric Benefits | B22: ='Measure Screening'!K144 -> 23989.9665 | D22: Fuel Type:
A23: Fossil Fuel Benefits | B23: ='Measure Screening'!S144-'Measure Screening'!E81 -> 0 | D23: Fossil Fuel Consumption Change(MMBtu/yr) | F23: Positive # if increase, negative # if decrease
A24: Water Benefits | B24: ='Measure Screening'!U144 -> 0 | D24: Water Savings (CCF/yr) | F24: 1CCF = 748 gallons water
A25: Total Resource Benefits | B25: =SUM(B22:B24) -> 23989.9665 | D25: ="Maintenance and Component Costs ("&progyear&"$)" -> Maintenance and Component Costs (2017$)
D26: Efficient measure components | F26: Use these inputs to account | I26: PV of Replacement
D27: Component 1 Life (years) | F27: for recurring costs over the life | I27: Costs
D28: Component 1 Replacement Cost | F28: of the measure. Maintenance | I28: =IF(E27>$B$6,0,IF(E27>0,-PV(RDR,B$6-E27,-PMT(RDR,E27,E28))/(1+RDR)^E27,0)) -> 0
D29: Component 2 Life (years) | F29: costs can be input instead of
D30: Component 2 Replacement Cost | F30: replacement costs and the | I30: =IF(E29>$B$6,0,IF(E29>0,-PV(RDR,B$6-E29,-PMT(RDR,E29,E30))/(1+RDR)^E29,0)) -> 0
D31: Baseline measure components | F31: period between maintenance
D32: Component 1 Life (years) | F32: visits in place of component
D33: Component 1 Replacement Cost | F33: life. | I33: =IF(E32>$B$6,0,IF(E32>0,-PV(RDR,B$6-E32,-PMT(RDR,E32,E33))/(1+RDR)^E32,0)) -> 0
D34: Component 2 Life (years)
D35: Component 2 Replacement Cost | I35: =IF(E34>$B$6,0,IF(E34>0,-PV(RDR,B$6-E34,-PMT(RDR,E34,E35))/(1+RDR)^E34,0)) -> 0
D36: Real Levelized Net Annual Maintenance or Component Costs | G36: =-PMT(RDR,B6,I36)/(1+RDR) ->  | I36: =(SUM(I28:I30)-SUM(I33:I35))*(1+RDR)^0.5 -> 0
H38: ="Version "&Title!$B$7 -> Version 2016a

Sheet Measure Inputs
E1: 1
M5: NEB Flag | N5: 1 | U5: ="Version "&Title!$B$7 -> Version 2016a | AO5: ="Version "&Title!$B$7 -> Version 2016a
I6: Only add inputs into yellow cells and selection boxes
I7: Multiple Measure Screening Inputs | L7: =IF(inputform=3,"","Outputs not valid, change setting in Title sheet") ->  | AH7: Input into custom profile if standard profile is not available or inadequate | AQ7: Intermediate calculations for measure screening inputs
I8: Customer Name | L8: Date | M8: =NOW() -> 2016-10-05T09:02:55.940 | N8: First Year Savings | Z8: ="Maintenance and Component Costs ("&progyear&"$)" -> Maintenance and Component Costs (2017$) | AH8: Custom Load Profile Data Inputs (Overrides standard profile, if input) | AS8: Calculated from kWh | BC8: ="PV of Replacement Costs ("&progyear&"$)" -> PV of Replacement Costs (2017$) | BK8: Input into screening
A9: ="Resource Benefits ("&BASEYR&"$)" -> Resource Benefits (2015$) | E9: ="Screening Outputs (Societal Test "&BASEYR&"$)" -> Screening Outputs (Societal Test 2015$) | I9: Account # | N9: Only need kWh or kW | R9: Add Data Only if Early Replacement Retrofit | W9: Impact on Non-electric Fuels | Z9: Efficient measure components | AD9: Baseline measure components | AH9: % of annual kWh (custom) | AL9: % of calculated kW savings (custom) | AS9: or kW input and FLH: | AU9: % of annual kWh (standard, if available) | AY9: % of calculated kW savings | BC9: Efficient measure components | BE9: Baseline measure components | BG9: Net Costs | BH9: ="("&progyear&"$)" -> (2017$) | BK9: Energy | BP9: kWh | BT9: Capacity
A10: PV of Fossil Fuel Benefits | B10: PV of Water Benefits | C10: PV of Gross Electric Benefits | D10: PV of Total Resource Benefits (TRB) | E10: PV of Measure Benefits | F10: PV of Measure Costs | G10: Benefit-Cost Ratio | H10: PV of Net Benefits | I10: Measure Name | J10: Measure ID | K10: Analysis Period | L10: Year Installed | M10: ="Installed Cost ("&progyear&"$)" -> Installed Cost (2017$) | N10: kWh (annual) or | O10: kW calculated load | P10: Customer class: | Q10: End-use (determines load profile): | R10: Full Baseline Equipment Life | S10: Existing Equipment Age | T10: New Baseline Inst. Cost | U10: Electric Savings Adjustment (ultimate saved kWh / 1st year kWh) | V10: Fossil Savings Adjustment (ultimate saved BTU / 1st year BTU) | W10: Fuel Type: | X10: Fossil Fuel Consumption Change (MMBtu/yr) | Y10: Water Savings (CCF) | Z10: Component 1 Life (years) | AA10: Component 1 Replacement Cost | AB10: Component 2 Life (years) | AC10: Component 2 Replacement Cost | AD10: Component 1 Life (years) | AE10: Component 1 Replacement Cost | AF10: Component 2 Life (years) | AG10: Component 2 Replacement Cost | AH10: Wntr Pk 6am-10pm M-F Oct-May | AI10: Wntr Off Peak 10pm-6am M-F, all day weekends Oct-May | AJ10: Smr Pk 6am-10pm M-F Jun-Sep | AK10: Smr Off Peak 10pm-6am M-F, all day weekends Jun-Sep | AL10: Winter 5pm-7pm M-F, non-holiday, Dec-Jan | AM10: Summer 1pm-5pm M-F, non-holiday, Jun-Aug | AN10: Fall/Spring | AO10: Full load hours (custom) | AQ10: Year Installed (default if no input) | AR10: Install Year Used for Input | AS10: kWh (annual) | AT10: kW calculated load | AU10: Wntr Pk | AV10: Wntr Off Peak | AW10: Smr Pk | AX10: Smr Off Peak | AY10: Winter | AZ10: Summer | BA10: Fall/Spring | BB10: Full load hours (standard) | BC10: Efficient Component 1 | BD10: Efficient Component 2 | BE10: Baseline Component 1 | BF10: Baseline Component 2 | BG10: PV of O&M | BH10: Real Levelized Net Annual Maintenance or Component Costs | BI10: FLH used in screening | BK10: Winter Peak | BL10: Winter Off-Peak | BM10: Summer Peak | BN10: Summer Off-Peak | BO10: Total Custom | BP10: Winter Peak | BQ10: Winter Off-Peak | BR10: Summer Peak | BS10: Summer Off-Peak | BT10: Winter CF (%) | BU10: Summer CF (%) | BV10: Fall/Spring CF (%) | BW10: Generic T&D (kW) | BY10: Lifetime kWh Savings | BZ10: PV of Gross Electric Energy Benefits | CA10: PV of Gross Electric Peak Benefits
A11: xPVFsslFuelChg | B11: xPVWaterSav | C11: xGrossElectricPV | D11: xTRB | E11: xSavingsPV | F11: xCostsPV | H11: xNPV | I11: xDescMeasureTechnology | J11: xModMeasureID | K11: xAnalysisPeriod | L11: xInstallYear | M11: xInstCost | N11: xEnergySav | O11: xKW | P11: xCustomerClass | Q11: xLoadShape | R11: xFullBaseEquipLife | S11: xExistEqpAge | T11: xNewBaseInstCost | U11: xSvgsAdj | V11: xFuelSvngsAdj | W11: xFuelType | X11: xFsslFuelChg | Y11: xWaterSav | Z11: xEffMeasComp1Life | AA11: xEffMeasComp1Cost | AB11: xEffMeasComp2Life | AC11: xEffMeasComp2Cost | AD11: xBaseMeasComp1Life | AE11: xBaseMeasComp1Cost | AF11: xBaseMeasComp2Life | AG11: xBaseMeasComp2Cost | AH11: xCustWntrPkHrPctScr | AI11: xCustWntrOffPkHrPctScr | AJ11: xCustSmrPkHrPctScr | AK11: xCustSmrOffPkHrPctScr | AL11: xCustWntrKWScr | AM11: xCustSmrKWScr | AN11: xCustFallSprKWScr | AO11: xHours | AS11: xKWHTotal | AT11: xKWLoad | BK11: xKWHPeakWinterPct | BL11: xKWHOPWinterPct | BM11: xKWHPeakSummerPct | BN11: xKWHOPSummerPct | BP11: xWntrPkKWH | BQ11: xWntrOffPkKWH | BR11: xSmrPkKWH | BS11: xSmrOffPkKWH | BT11: xKWRedWinterPct | BU11: xKWRedSummerPct | BV11: xKWRedShoulderPct | BY11: xLifekWhSave | BZ11: xPVElecEnergy | CA11: xPVElecCapacity
A12: ='Measure Screening'!S144-IF(ISERROR('Measure Screening'!AJ81),0,'Measure Screening'!AJ81) -> 0 | B12: ='Measure Screening'!U144 -> 0 | C12: ='Measure Screening'!K144 -> 23989.9665 | D12: =C12+B12+A12 -> 23989.9665 | E12: ='Measure Screening'!C208 -> 32653.12687 | F12: =IF(ISERROR('Measure Screening'!E208),0,'Measure Screening'!E208) -> 17196.0795 | G12: ='Measure Screening'!G208 -> 1.89887043 | H12: ='Measure Screening'!H208 -> 15457.04737 | I12: ='Program Inputs'!A9 -> Calfee PV | K12: 25 | L12: =progyear -> 2017 | M12: ='Program Inputs'!B43 -> 19456 | O12: =Calcs!B15/1000*0.74 -> 4.1144 | Q12: 117 | Z12: 15 | AA12: =Calcs!B33 -> 2780 | AP12: =IF(OR(BO12=1,BO12=0),"","Profile error") ->  | AQ12: =progyear -> 2017 | AR12: =IF(L12=0,AQ12,L12) -> 2017 | AS12: =IF(ISBLANK(N12),O12*BI12,N12) -> 7051.124811 | AT12: =IF(ISBLANK(O12),N12/BI12,O12) -> 4.1144 | AU12: =VLOOKUP($Q12,Loadprof,2,FALSE) -> 0.4125244525 | AV12: =VLOOKUP($Q12,Loadprof,3,FALSE) -> 0.1517303425 | AW12: =VLOOKUP($Q12,Loadprof,4,FALSE) -> 0.3044388391 | AX12: =VLOOKUP($Q12,Loadprof,5,FALSE) -> 0.1313063658 | AY12: =VLOOKUP($Q12,Loadprof,6,FALSE) -> -7.439731224e-05 | AZ12: =VLOOKUP($Q12,Loadprof,7,FALSE) -> 0.7786860634 | BA12: =VLOOKUP($Q12,Loadprof,8,FALSE) -> 0 | BB12: =VLOOKUP($Q12,Loadprof,9,FALSE) -> 1713.767454 | BC12: =IF(Z12>K12,0,IF(Z12>0,-PV(RDR,K12-Z12,-PMT(RDR,Z12,AA12))/(1+RDR)^Z12,0)) -> 1275.018747 | BD12: =IF(AB12>K12,0,IF(AB12>0,-PV(RDR,K12-AB12,-PMT(RDR,AB12,AC12))/(1+RDR)^AB12,0)) -> 0 | BE12: =IF(AD12>K12,0,IF(AD12>0,-PV(RDR,K12-AD12,-PMT(RDR,AD12,AE12))/(1+RDR)^AD12,0)) -> 0 | BF12: =IF(AF12>K12,0,IF(AF12>0,-PV(RDR,K12-AF12,-PMT(RDR,AF12,AG12))/(1+RDR)^AF12,0)) -> 0 | BG12: =(SUM(BC12:BD12)-SUM(BE12:BF12))*(1+RDR)^0.5 -> 1294.002701 | BH12: =-PMT(RDR,K12,BG12)/(1+RDR) -> 72.14739829 | BI12: =IF(ISBLANK(AO12),BB12,AO12) -> 1713.767454 | BK12: =IF(BO12=0,AU12,AH12) -> 0.4125244525 | BL12: =IF(BO12=0,AV12,AI12) -> 0.1517303425 | BM12: =IF(BO12=0,AW12,AJ12) -> 0.3044388391 | BN12: =IF(BO12=0,AX12,AK12) -> 0.1313063658 | BO12: =SUM(AH12:AK12) -> 0 | BP12: =BK12*$AS12 -> 2908.761402 | BQ12: 1069.869583 | BR12: 2146.636252 | BS12: 925.8575739 | BT12: =IF(ISBLANK(AL12),AY12,AL12) -> -7.439731224e-05 | BU12: =IF(ISBLANK(AM12),AZ12,AM12) -> 0.7786860634 | BV12: =IF(ISBLANK(AN12),BA12,AN12) -> 0 | BW12: =AT12*(TD_Winter_Weight*BT12+TD_Summer_Weight*BU12) -> 1.922173123 | BY12: ='Measure Screening'!AA144 -> 176278.1203 | BZ12: ='Measure Screening'!X144 -> 10196.21833 | CA12: ='Measure Screening'!Y144 -> 13793.74817
A13: ='Measure Screening'!S145-IF(ISERROR('Measure Screening'!AJ82),0,'Measure Screening'!AJ82) -> 0 | B13: ='Measure Screening'!U145 -> 0 | C13: ='Measure Screening'!K145 -> 20710.76245 | D13: 20710.76245 | E13: ='Measure Screening'!C209 -> 28189.74981 | F13: =IF(ISERROR('Measure Screening'!E209),0,'Measure Screening'!E209) -> 15234.94091 | G13: ='Measure Screening'!G209 -> 1.850335356 | H13: ='Measure Screening'!H209 -> 12954.8089 | I13: ='Program Inputs'!A10 -> Ward PV | K13: 25 | L13: 2017 | M13: ='Program Inputs'!B44 -> 17266 | O13: =Calcs!C15/1000*0.74 -> 3.552 | Q13: 117 | Z13: 15 | AA13: =Calcs!C33 -> 2400 | AP13: =IF(OR(BO13=1,BO13=0),"","Profile error") ->  | AQ13: =progyear -> 2017 | AR13: 2017 | AS13: =IF(ISBLANK(N13),O13*BI13,N13) -> 6087.301995 | AT13: =IF(ISBLANK(O13),N13/BI13,O13) -> 3.552 | AU13: =VLOOKUP($Q13,Loadprof,2,FALSE) -> 0.4125244525 | AV13: =VLOOKUP($Q13,Loadprof,3,FALSE) -> 0.1517303425 | AW13: =VLOOKUP($Q13,Loadprof,4,FALSE) -> 0.3044388391 | AX13: =VLOOKUP($Q13,Loadprof,5,FALSE) -> 0.1313063658 | AY13: =VLOOKUP($Q13,Loadprof,6,FALSE) -> -7.439731224e-05 | AZ13: =VLOOKUP($Q13,Loadprof,7,FALSE) -> 0.7786860634 | BA13: =VLOOKUP($Q13,Loadprof,8,FALSE) -> 0 | BB13: =VLOOKUP($Q13,Loadprof,9,FALSE) -> 1713.767454 | BC13: =IF(Z13>K13,0,IF(Z13>0,-PV(RDR,K13-Z13,-PMT(RDR,Z13,AA13))/(1+RDR)^Z13,0)) -> 1100.735609 | BD13: =IF(AB13>K13,0,IF(AB13>0,-PV(RDR,K13-AB13,-PMT(RDR,AB13,AC13))/(1+RDR)^AB13,0)) -> 0 | BE13: =IF(AD13>K13,0,IF(AD13>0,-PV(RDR,K13-AD13,-PMT(RDR,AD13,AE13))/(1+RDR)^AD13,0)) -> 0 | BF13: =IF(AF13>K13,0,IF(AF13>0,-PV(RDR,K13-AF13,-PMT(RDR,AF13,AG13))/(1+RDR)^AF13,0)) -> 0 | BG13: =(SUM(BC13:BD13)-SUM(BE13:BF13))*(1+RDR)^0.5 -> 1117.124634 | BH13: 62.2855237 | BI13: =IF(ISBLANK(AO13),BB13,AO13) -> 1713.767454 | BK13: 0.4125244525 | BL13: 0.1517303425 | BM13: 0.3044388391 | BN13: 0.1313063658 | BO13: =SUM(AH13:AK13) -> 0 | BP13: 2511.160923 | BQ13: 923.6284168 | BR13: 1853.211153 | BS13: 799.3015027 | BT13: =IF(ISBLANK(AL13),AY13,AL13) -> -7.439731224e-05 | BU13: =IF(ISBLANK(AM13),AZ13,AM13) -> 0.7786860634 | BV13: =IF(ISBLANK(AN13),BA13,AN13) -> 0 | BW13: 1.659430035 | BY13: ='Measure Screening'!AA145 -> 152182.5499 | BZ13: ='Measure Screening'!X145 -> 8802.49064 | CA13: ='Measure Screening'!Y145 -> 11908.27181
A14: ='Measure Screening'!S146-IF(ISERROR('Measure Screening'!AJ83),0,'Measure Screening'!AJ83) -> 0 | B14: ='Measure Screening'!U146 -> 0 | C14: ='Measure Screening'!K146 -> 0 | D14: 0 | E14: ='Measure Screening'!C210 -> 0 | F14: =IF(ISERROR('Measure Screening'!E210),0,'Measure Screening'!E210) -> 0 | G14: ='Measure Screening'!G210 ->  | H14: ='Measure Screening'!H210 ->  | I14: ='Program Inputs'!A11 -> Measure 3 | L14: 2017 | M14: ='Program Inputs'!B45 -> 0 | AQ14: 2017 | AR14: 2017 | AS14: =IF(ISBLANK(N14),O14*BI14,N14) ->  | AT14: =IF(ISBLANK(O14),N14/BI14,O14) ->  | BC14: 0 | BD14: 0 | BE14: 0 | BF14: 0 | BG14: =(SUM(BC14:BD14)-SUM(BE14:BF14))*(1+RDR)^0.5 -> 0 | BO14: 0 | BP14: =BK14*$AS14 ->  | BQ14: =BL14*$AS14 ->  | BR14: =BM14*$AS14 ->  | BS14: =BN14*$AS14 ->  | BY14: ='Measure Screening'!AA146 ->  | BZ14: ='Measure Screening'!X146 -> 0 | CA14: ='Measure Screening'!Y146 -> 0
A15: ='Measure Screening'!S147-IF(ISERROR('Measure Screening'!AJ84),0,'Measure Screening'!AJ84) -> 0 | B15: ='Measure Screening'!U147 -> 0 | C15: ='Measure Screening'!K147 -> 0 | D15: 0 | E15: ='Measure Screening'!C211 -> 0 | F15: =IF(ISERROR('Measure Screening'!E211),0,'Measure Screening'!E211) -> 0 | G15: ='Measure Screening'!G211 ->  | H15: ='Measure Screening'!H211 ->  | I15: ='Program Inputs'!A12 -> Measure 4 | L15: 2017 | M15: ='Program Inputs'!B46 -> 0 | AQ15: 2017 | AR15: 2017 | BC15: 0 | BD15: 0 | BE15: 0 | BF15: 0 | BG15: 0 | BO15: 0 | BY15: ='Measure Screening'!AA147 ->  | BZ15: ='Measure Screening'!X147 -> 0 | CA15: ='Measure Screening'!Y147 -> 0
A16: ='Measure Screening'!S148-IF(ISERROR('Measure Screening'!AJ85),0,'Measure Screening'!AJ85) -> 0 | B16: ='Measure Screening'!U148 -> 0 | C16: ='Measure Screening'!K148 -> 0 | D16: 0 | E16: ='Measure Screening'!C212 -> 0 | F16: =IF(ISERROR('Measure Screening'!E212),0,'Measure Screening'!E212) -> 0 | G16: ='Measure Screening'!G212 ->  | H16: ='Measure Screening'!H212 ->  | I16: ='Program Inputs'!A13 -> Measure 5 | L16: 2017 | M16: ='Program Inputs'!B47 -> 0 | AQ16: 2017 | AR16: 2017 | BC16: 0 | BD16: 0 | BE16: 0 | BF16: 0 | BG16: 0 | BO16: 0 | BY16: ='Measure Screening'!AA148 ->  | BZ16: ='Measure Screening'!X148 -> 0 | CA16: ='Measure Screening'!Y148 -> 0
A17: ='Measure Screening'!S149-IF(ISERROR('Measure Screening'!AJ86),0,'Measure Screening'!AJ86) -> 0 | B17: ='Measure Screening'!U149 -> 0 | C17: ='Measure Screening'!K149 -> 0 | D17: 0 | E17: ='Measure Screening'!C213 -> 0 | F17: =IF(ISERROR('Measure Screening'!E213),0,'Measure Screening'!E213) -> 0 | G17: ='Measure Screening'!G213 ->  | H17: ='Measure Screening'!H213 ->  | I17: ='Program Inputs'!A14 -> Measure 6 | L17: 2017 | M17: ='Program Inputs'!B48 -> 0 | AQ17: 2017 | AR17: 2017 | BC17: 0 | BD17: 0 | BE17: 0 | BF17: 0 | BG17: 0 | BO17: 0 | BY17: ='Measure Screening'!AA149 ->  | BZ17: ='Measure Screening'!X149 -> 0 | CA17: ='Measure Screening'!Y149 -> 0
A18: ='Measure Screening'!S150-IF(ISERROR('Measure Screening'!AJ87),0,'Measure Screening'!AJ87) -> 0 | B18: ='Measure Screening'!U150 -> 0 | C18: ='Measure Screening'!K150 -> 0 | D18: 0 | E18: ='Measure Screening'!C214 -> 0 | F18: =IF(ISERROR('Measure Screening'!E214),0,'Measure Screening'!E214) -> 0 | G18: ='Measure Screening'!G214 ->  | H18: ='Measure Screening'!H214 ->  | I18: ='Program Inputs'!A15 -> Measure 7 | L18: 2017 | M18: ='Program Inputs'!B49 -> 0 | AQ18: 2017 | AR18: 2017 | BC18: 0 | BD18: 0 | BE18: 0 | BF18: 0 | BG18: 0 | BO18: 0 | BY18: ='Measure Screening'!AA150 ->  | BZ18: ='Measure Screening'!X150 -> 0 | CA18: ='Measure Screening'!Y150 -> 0
A19: ='Measure Screening'!S151-IF(ISERROR('Measure Screening'!AJ88),0,'Measure Screening'!AJ88) -> 0 | B19: ='Measure Screening'!U151 -> 0 | C19: ='Measure Screening'!K151 -> 0 | D19: 0 | E19: ='Measure Screening'!C215 -> 0 | F19: =IF(ISERROR('Measure Screening'!E215),0,'Measure Screening'!E215) -> 0 | G19: ='Measure Screening'!G215 ->  | H19: ='Measure Screening'!H215 ->  | I19: ='Program Inputs'!A16 -> Measure 8 | L19: 2017 | M19: ='Program Inputs'!B50 -> 0 | AQ19: 2017 | AR19: 2017 | BC19: 0 | BD19: 0 | BE19: 0 | BF19: 0 | BG19: 0 | BO19: 0 | BY19: ='Measure Screening'!AA151 ->  | BZ19: ='Measure Screening'!X151 -> 0 | CA19: ='Measure Screening'!Y151 -> 0
A20: ='Measure Screening'!S152-IF(ISERROR('Measure Screening'!AJ89),0,'Measure Screening'!AJ89) -> 0 | B20: ='Measure Screening'!U152 -> 0 | C20: ='Measure Screening'!K152 -> 0 | D20: 0 | E20: ='Measure Screening'!C216 -> 0 | F20: =IF(ISERROR('Measure Screening'!E216),0,'Measure Screening'!E216) -> 0 | G20: ='Measure Screening'!G216 ->  | H20: ='Measure Screening'!H216 ->  | I20: ='Program Inputs'!A17 -> Measure 9 | L20: 2017 | M20: ='Program Inputs'!B51 -> 0 | AQ20: 2017 | AR20: 2017 | BC20: 0 | BD20: 0 | BE20: 0 | BF20: 0 | BG20: 0 | BO20: 0 | BY20: ='Measure Screening'!AA152 ->  | BZ20: ='Measure Screening'!X152 -> 0 | CA20: ='Measure Screening'!Y152 -> 0
A21: ='Measure Screening'!S153-IF(ISERROR('Measure Screening'!AJ90),0,'Measure Screening'!AJ90) -> 0 | B21: ='Measure Screening'!U153 -> 0 | C21: ='Measure Screening'!K153 -> 0 | D21: 0 | E21: ='Measure Screening'!C217 -> 0 | F21: =IF(ISERROR('Measure Screening'!E217),0,'Measure Screening'!E217) -> 0 | G21: ='Measure Screening'!G217 ->  | H21: ='Measure Screening'!H217 ->  | I21: ='Program Inputs'!A18 -> Measure 10 | L21: 2017 | M21: ='Program Inputs'!B52 -> 0 | AQ21: 2017 | AR21: 2017 | BC21: 0 | BD21: 0 | BE21: 0 | BF21: 0 | BG21: 0 | BO21: 0 | BY21: ='Measure Screening'!AA153 ->  | BZ21: ='Measure Screening'!X153 -> 0 | CA21: ='Measure Screening'!Y153 -> 0
A22: ='Measure Screening'!S154-IF(ISERROR('Measure Screening'!AJ91),0,'Measure Screening'!AJ91) -> 0 | B22: ='Measure Screening'!U154 -> 0 | C22: ='Measure Screening'!K154 -> 0 | D22: 0 | E22: ='Measure Screening'!C218 -> 0 | F22: =IF(ISERROR('Measure Screening'!E218),0,'Measure Screening'!E218) -> 0 | G22: ='Measure Screening'!G218 ->  | H22: ='Measure Screening'!H218 ->  | I22: ='Program Inputs'!A19 -> Measure 11 | L22: 2017 | M22: ='Program Inputs'!B53 -> 0 | AQ22: 2017 | AR22: 2017 | BC22: 0 | BD22: 0 | BE22: 0 | BF22: 0 | BG22: 0 | BO22: 0 | BY22: ='Measure Screening'!AA154 ->  | BZ22: ='Measure Screening'!X154 -> 0 | CA22: ='Measure Screening'!Y154 -> 0
A23: ='Measure Screening'!S155-IF(ISERROR('Measure Screening'!AJ92),0,'Measure Screening'!AJ92) -> 0 | B23: ='Measure Screening'!U155 -> 0 | C23: ='Measure Screening'!K155 -> 0 | D23: 0 | E23: ='Measure Screening'!C219 -> 0 | F23: =IF(ISERROR('Measure Screening'!E219),0,'Measure Screening'!E219) -> 0 | G23: ='Measure Screening'!G219 ->  | H23: ='Measure Screening'!H219 ->  | I23: ='Program Inputs'!A20 -> Measure 12 | L23: 2017 | M23: ='Program Inputs'!B54 -> 0 | AQ23: 2017 | AR23: 2017 | BC23: 0 | BD23: 0 | BE23: 0 | BF23: 0 | BG23: 0 | BO23: 0 | BY23: ='Measure Screening'!AA155 ->  | BZ23: ='Measure Screening'!X155 -> 0 | CA23: ='Measure Screening'!Y155 -> 0
A24: ='Measure Screening'!S156-IF(ISERROR('Measure Screening'!AJ93),0,'Measure Screening'!AJ93) -> 0 | B24: ='Measure Screening'!U156 -> 0 | C24: ='Measure Screening'!K156 -> 0 | D24: 0 | E24: ='Measure Screening'!C220 -> 0 | F24: =IF(ISERROR('Measure Screening'!E220),0,'Measure Screening'!E220) -> 0 | G24: ='Measure Screening'!G220 ->  | H24: ='Measure Screening'!H220 ->  | I24: ='Program Inputs'!A21 -> Measure 13 | L24: 2017 | M24: ='Program Inputs'!B55 -> 0 | AQ24: 2017 | AR24: 2017 | BC24: 0 | BD24: 0 | BE24: 0 | BF24: 0 | BG24: 0 | BO24: 0 | BY24: ='Measure Screening'!AA156 ->  | BZ24: ='Measure Screening'!X156 -> 0 | CA24: ='Measure Screening'!Y156 -> 0
A25: ='Measure Screening'!S157-IF(ISERROR('Measure Screening'!AJ94),0,'Measure Screening'!AJ94) -> 0 | B25: ='Measure Screening'!U157 -> 0 | C25: ='Measure Screening'!K157 -> 0 | D25: 0 | E25: ='Measure Screening'!C221 -> 0 | F25: =IF(ISERROR('Measure Screening'!E221),0,'Measure Screening'!E221) -> 0 | G25: ='Measure Screening'!G221 ->  | H25: ='Measure Screening'!H221 ->  | I25: ='Program Inputs'!A22 -> Measure 14 | L25: 2017 | M25: ='Program Inputs'!B56 -> 0 | AQ25: 2017 | AR25: 2017 | BC25: 0 | BD25: 0 | BE25: 0 | BF25: 0 | BG25: 0 | BO25: 0 | BY25: ='Measure Screening'!AA157 ->  | BZ25: ='Measure Screening'!X157 -> 0 | CA25: ='Measure Screening'!Y157 -> 0
A26: ='Measure Screening'!S158-IF(ISERROR('Measure Screening'!AJ95),0,'Measure Screening'!AJ95) -> 0 | B26: ='Measure Screening'!U158 -> 0 | C26: ='Measure Screening'!K158 -> 0 | D26: 0 | E26: ='Measure Screening'!C222 -> 0 | F26: =IF(ISERROR('Measure Screening'!E222),0,'Measure Screening'!E222) -> 0 | G26: ='Measure Screening'!G222 ->  | H26: ='Measure Screening'!H222 ->  | I26: ='Program Inputs'!A23 -> Measure 15 | L26: 2017 | M26: ='Program Inputs'!B57 -> 0 | AQ26: 2017 | AR26: 2017 | BC26: 0 | BD26: 0 | BE26: 0 | BF26: 0 | BG26: 0 | BO26: 0 | BY26: ='Measure Screening'!AA158 ->  | BZ26: ='Measure Screening'!X158 -> 0 | CA26: ='Measure Screening'!Y158 -> 0
A27: ='Measure Screening'!S159-IF(ISERROR('Measure Screening'!AJ96),0,'Measure Screening'!AJ96) -> 0 | B27: ='Measure Screening'!U159 -> 0 | C27: ='Measure Screening'!K159 -> 0 | D27: 0 | E27: ='Measure Screening'!C223 -> 0 | F27: =IF(ISERROR('Measure Screening'!E223),0,'Measure Screening'!E223) -> 0 | G27: ='Measure Screening'!G223 ->  | H27: ='Measure Screening'!H223 ->  | I27: ='Program Inputs'!A24 -> Measure 16 | L27: 2017 | M27: ='Program Inputs'!B58 -> 0 | AQ27: 2017 | AR27: 2017 | BC27: 0 | BD27: 0 | BE27: 0 | BF27: 0 | BG27: 0 | BO27: 0 | BY27: ='Measure Screening'!AA159 ->  | BZ27: ='Measure Screening'!X159 -> 0 | CA27: ='Measure Screening'!Y159 -> 0
A28: ='Measure Screening'!S160-IF(ISERROR('Measure Screening'!AJ97),0,'Measure Screening'!AJ97) -> 0 | B28: ='Measure Screening'!U160 -> 0 | C28: ='Measure Screening'!K160 -> 0 | D28: 0 | E28: ='Measure Screening'!C224 -> 0 | F28: =IF(ISERROR('Measure Screening'!E224),0,'Measure Screening'!E224) -> 0 | G28: ='Measure Screening'!G224 ->  | H28: ='Measure Screening'!H224 ->  | I28: ='Program Inputs'!A25 -> Measure 17 | L28: 2017 | M28: ='Program Inputs'!B59 -> 0 | AQ28: 2017 | AR28: 2017 | BC28: 0 | BD28: 0 | BE28: 0 | BF28: 0 | BG28: 0 | BO28: 0 | BY28: ='Measure Screening'!AA160 ->  | BZ28: ='Measure Screening'!X160 -> 0 | CA28: ='Measure Screening'!Y160 -> 0
A29: ='Measure Screening'!S161-IF(ISERROR('Measure Screening'!AJ98),0,'Measure Screening'!AJ98) -> 0 | B29: ='Measure Screening'!U161 -> 0 | C29: ='Measure Screening'!K161 -> 0 | D29: 0 | E29: ='Measure Screening'!C225 -> 0 | F29: =IF(ISERROR('Measure Screening'!E225),0,'Measure Screening'!E225) -> 0 | G29: ='Measure Screening'!G225 ->  | H29: ='Measure Screening'!H225 ->  | I29: ='Program Inputs'!A26 -> Measure 18 | L29: 2017 | M29: ='Program Inputs'!B60 -> 0 | AQ29: 2017 | AR29: 2017 | BC29: 0 | BD29: 0 | BE29: 0 | BF29: 0 | BG29: 0 | BO29: =SUM(AH29:AK29) -> 0 | BY29: ='Measure Screening'!AA161 ->  | BZ29: ='Measure Screening'!X161 -> 0 | CA29: ='Measure Screening'!Y161 -> 0
A30: ='Measure Screening'!S162-IF(ISERROR('Measure Screening'!AJ99),0,'Measure Screening'!AJ99) -> 0 | B30: ='Measure Screening'!U162 -> 0 | C30: ='Measure Screening'!K162 -> 0 | D30: 0 | E30: ='Measure Screening'!C226 -> 0 | F30: =IF(ISERROR('Measure Screening'!E226),0,'Measure Screening'!E226) -> 0 | G30: ='Measure Screening'!G226 ->  | H30: ='Measure Screening'!H226 ->  | I30: ='Program Inputs'!A27 -> Measure 19 | L30: 2017 | M30: ='Program Inputs'!B61 -> 0 | AQ30: 2017 | AR30: 2017 | BC30: 0 | BD30: 0 | BE30: 0 | BF30: 0 | BG30: 0 | BO30: 0 | BY30: ='Measure Screening'!AA162 ->  | BZ30: ='Measure Screening'!X162 -> 0 | CA30: ='Measure Screening'!Y162 -> 0
A31: ='Measure Screening'!S163-IF(ISERROR('Measure Screening'!AJ100),0,'Measure Screening'!AJ100) -> 0 | B31: ='Measure Screening'!U163 -> 0 | C31: ='Measure Screening'!K163 -> 0 | D31: 0 | E31: ='Measure Screening'!C227 -> 0 | F31: =IF(ISERROR('Measure Screening'!E227),0,'Measure Screening'!E227) -> 0 | G31: ='Measure Screening'!G227 ->  | H31: ='Measure Screening'!H227 ->  | I31: ='Program Inputs'!A28 -> Measure 20 | L31: 2017 | M31: ='Program Inputs'!B62 -> 0 | AQ31: 2017 | AR31: 2017 | BC31: 0 | BD31: 0 | BE31: 0 | BF31: 0 | BG31: 0 | BO31: 0 | BY31: ='Measure Screening'!AA163 ->  | BZ31: ='Measure Screening'!X163 -> 0 | CA31: ='Measure Screening'!Y163 -> 0
A32: ='Measure Screening'!S164-IF(ISERROR('Measure Screening'!AJ101),0,'Measure Screening'!AJ101) -> 0 | B32: ='Measure Screening'!U164 -> 0 | C32: ='Measure Screening'!K164 -> 0 | D32: 0 | E32: ='Measure Screening'!C228 -> 0 | F32: =IF(ISERROR('Measure Screening'!E228),0,'Measure Screening'!E228) -> 0 | G32: ='Measure Screening'!G228 ->  | H32: ='Measure Screening'!H228 ->  | I32: ='Program Inputs'!A29 -> Measure 21 | L32: 2017 | M32: ='Program Inputs'!B63 -> 0 | AQ32: 2017 | AR32: 2017 | BC32: 0 | BD32: 0 | BE32: 0 | BF32: 0 | BG32: 0 | BO32: 0 | BY32: ='Measure Screening'!AA164 ->  | BZ32: ='Measure Screening'!X164 -> 0 | CA32: ='Measure Screening'!Y164 -> 0
A33: ='Measure Screening'!S165-IF(ISERROR('Measure Screening'!AJ102),0,'Measure Screening'!AJ102) -> 0 | B33: ='Measure Screening'!U165 -> 0 | C33: ='Measure Screening'!K165 -> 0 | D33: 0 | E33: ='Measure Screening'!C229 -> 0 | F33: =IF(ISERROR('Measure Screening'!E229),0,'Measure Screening'!E229) -> 0 | G33: ='Measure Screening'!G229 ->  | H33: ='Measure Screening'!H229 ->  | I33: ='Program Inputs'!A30 -> Measure 22 | L33: 2017 | M33: ='Program Inputs'!B64 -> 0 | AQ33: 2017 | AR33: 2017 | BC33: 0 | BD33: 0 | BE33: 0 | BF33: 0 | BG33: 0 | BO33: 0 | BY33: ='Measure Screening'!AA165 ->  | BZ33: ='Measure Screening'!X165 -> 0 | CA33: ='Measure Screening'!Y165 -> 0
A34: ='Measure Screening'!S166-IF(ISERROR('Measure Screening'!AJ103),0,'Measure Screening'!AJ103) -> 0 | B34: ='Measure Screening'!U166 -> 0 | C34: ='Measure Screening'!K166 -> 0 | D34: 0 | E34: ='Measure Screening'!C230 -> 0 | F34: =IF(ISERROR('Measure Screening'!E230),0,'Measure Screening'!E230) -> 0 | G34: ='Measure Screening'!G230 ->  | H34: ='Measure Screening'!H230 ->  | I34: ='Program Inputs'!A31 -> Measure 23 | L34: 2017 | M34: ='Program Inputs'!B65 -> 0 | AQ34: 2017 | AR34: 2017 | BC34: 0 | BD34: 0 | BE34: 0 | BF34: 0 | BG34: 0 | BO34: 0 | BY34: ='Measure Screening'!AA166 ->  | BZ34: ='Measure Screening'!X166 -> 0 | CA34: ='Measure Screening'!Y166 -> 0
A35: ='Measure Screening'!S167-IF(ISERROR('Measure Screening'!AJ104),0,'Measure Screening'!AJ104) -> 0 | B35: ='Measure Screening'!U167 -> 0 | C35: ='Measure Screening'!K167 -> 0 | D35: 0 | E35: ='Measure Screening'!C231 -> 0 | F35: =IF(ISERROR('Measure Screening'!E231),0,'Measure Screening'!E231) -> 0 | G35: ='Measure Screening'!G231 ->  | H35: ='Measure Screening'!H231 ->  | I35: ='Program Inputs'!A32 -> Measure 24 | L35: 2017 | M35: ='Program Inputs'!B66 -> 0 | AQ35: 2017 | AR35: 2017 | BC35: 0 | BD35: 0 | BE35: 0 | BF35: 0 | BG35: 0 | BO35: 0 | BY35: ='Measure Screening'!AA167 ->  | BZ35: ='Measure Screening'!X167 -> 0 | CA35: ='Measure Screening'!Y167 -> 0
A36: ='Measure Screening'!S168-IF(ISERROR('Measure Screening'!AJ105),0,'Measure Screening'!AJ105) -> 0 | B36: ='Measure Screening'!U168 -> 0 | C36: ='Measure Screening'!K168 -> 0 | D36: 0 | E36: ='Measure Screening'!C232 -> 0 | F36: =IF(ISERROR('Measure Screening'!E232),0,'Measure Screening'!E232) -> 0 | G36: ='Measure Screening'!G232 ->  | H36: ='Measure Screening'!H232 ->  | I36: ='Program Inputs'!A33 -> Measure 25 | L36: 2017 | M36: ='Program Inputs'!B67 -> 0 | AQ36: 2017 | AR36: 2017 | BC36: 0 | BD36: 0 | BE36: 0 | BF36: 0 | BG36: 0 | BO36: 0 | BY36: ='Measure Screening'!AA168 ->  | BZ36: ='Measure Screening'!X168 -> 0 | CA36: ='Measure Screening'!Y168 -> 0
A37: ='Measure Screening'!S169-IF(ISERROR('Measure Screening'!AJ106),0,'Measure Screening'!AJ106) -> 0 | B37: ='Measure Screening'!U169 -> 0 | C37: ='Measure Screening'!K169 -> 0 | D37: 0 | E37: ='Measure Screening'!C233 -> 0 | F37: =IF(ISERROR('Measure Screening'!E233),0,'Measure Screening'!E233) -> 0 | G37: ='Measure Screening'!G233 ->  | H37: ='Measure Screening'!H233 ->  | I37: ='Program Inputs'!A34 -> Measure 26 | L37: 2017 | M37: ='Program Inputs'!B68 -> 0 | AQ37: 2017 | AR37: 2017 | BC37: 0 | BD37: 0 | BE37: 0 | BF37: 0 | BG37: 0 | BO37: 0 | BY37: ='Measure Screening'!AA169 ->  | BZ37: ='Measure Screening'!X169 -> 0 | CA37: ='Measure Screening'!Y169 -> 0
A38: ='Measure Screening'!S170-IF(ISERROR('Measure Screening'!AJ107),0,'Measure Screening'!AJ107) -> 0 | B38: ='Measure Screening'!U170 -> 0 | C38: ='Measure Screening'!K170 -> 0 | D38: 0 | E38: ='Measure Screening'!C234 -> 0 | F38: =IF(ISERROR('Measure Screening'!E234),0,'Measure Screening'!E234) -> 0 | G38: ='Measure Screening'!G234 ->  | H38: ='Measure Screening'!H234 ->  | I38: ='Program Inputs'!A35 -> Measure 27 | L38: 2017 | M38: ='Program Inputs'!B69 -> 0 | AQ38: 2017 | AR38: 2017 | BC38: 0 | BD38: 0 | BE38: 0 | BF38: 0 | BG38: 0 | BO38: 0 | BY38: ='Measure Screening'!AA170 ->  | BZ38: ='Measure Screening'!X170 -> 0 | CA38: ='Measure Screening'!Y170 -> 0
A39: ='Measure Screening'!S171-IF(ISERROR('Measure Screening'!AJ108),0,'Measure Screening'!AJ108) -> 0 | B39: ='Measure Screening'!U171 -> 0 | C39: ='Measure Screening'!K171 -> 0 | D39: 0 | E39: ='Measure Screening'!C235 -> 0 | F39: =IF(ISERROR('Measure Screening'!E235),0,'Measure Screening'!E235) -> 0 | G39: ='Measure Screening'!G235 ->  | H39: ='Measure Screening'!H235 ->  | I39: ='Program Inputs'!A36 -> Measure 28 | L39: 2017 | M39: ='Program Inputs'!B70 -> 0 | AQ39: 2017 | AR39: 2017 | BC39: 0 | BD39: 0 | BE39: 0 | BF39: 0 | BG39: 0 | BO39: 0 | BY39: ='Measure Screening'!AA171 ->  | BZ39: ='Measure Screening'!X171 -> 0 | CA39: ='Measure Screening'!Y171 -> 0
A40: ='Measure Screening'!S172-IF(ISERROR('Measure Screening'!AJ109),0,'Measure Screening'!AJ109) -> 0 | B40: ='Measure Screening'!U172 -> 0 | C40: ='Measure Screening'!K172 -> 0 | D40: 0 | E40: ='Measure Screening'!C236 -> 0 | F40: =IF(ISERROR('Measure Screening'!E236),0,'Measure Screening'!E236) -> 0 | G40: ='Measure Screening'!G236 ->  | H40: ='Measure Screening'!H236 ->  | I40: ='Program Inputs'!A37 -> Measure 29 | L40: 2017 | M40: ='Program Inputs'!B71 -> 0 | AQ40: 2017 | AR40: 2017 | BC40: 0 | BD40: 0 | BE40: 0 | BF40: 0 | BG40: 0 | BO40: 0 | BY40: ='Measure Screening'!AA172 ->  | BZ40: ='Measure Screening'!X172 -> 0 | CA40: ='Measure Screening'!Y172 -> 0
A41: ='Measure Screening'!S173-IF(ISERROR('Measure Screening'!AJ110),0,'Measure Screening'!AJ110) -> 0 | B41: ='Measure Screening'!U173 -> 0 | C41: ='Measure Screening'!K173 -> 0 | D41: 0 | E41: ='Measure Screening'!C237 -> 0 | F41: =IF(ISERROR('Measure Screening'!E237),0,'Measure Screening'!E237) -> 0 | G41: ='Measure Screening'!G237 ->  | H41: ='Measure Screening'!H237 ->  | I41: ='Program Inputs'!A38 -> Measure 30 | L41: 2017 | M41: ='Program Inputs'!B72 -> 0 | AQ41: 2017 | AR41: 2017 | BC41: 0 | BD41: 0 | BE41: 0 | BF41: 0 | BG41: 0 | BO41: 0 | BY41: ='Measure Screening'!AA173 ->  | BZ41: ='Measure Screening'!X173 -> 0 | CA41: ='Measure Screening'!Y173 -> 0
A42: ='Measure Screening'!S174-IF(ISERROR('Measure Screening'!AJ111),0,'Measure Screening'!AJ111) -> 0 | B42: ='Measure Screening'!U174 -> 0 | C42: ='Measure Screening'!K174 -> 0 | D42: 0 | E42: ='Measure Screening'!C238 -> 0 | F42: =IF(ISERROR('Measure Screening'!E238),0,'Measure Screening'!E238) -> 0 | G42: ='Measure Screening'!G238 ->  | H42: ='Measure Screening'!H238 ->  | AQ42: 2017 | AR42: 2017 | BC42: 0 | BD42: 0 | BE42: 0 | BF42: 0 | BG42: 0 | BO42: 0 | BY42: ='Measure Screening'!AA174 ->  | BZ42: ='Measure Screening'!X174 -> 0 | CA42: ='Measure Screening'!Y174 -> 0
A43: ='Measure Screening'!S175-IF(ISERROR('Measure Screening'!AJ112),0,'Measure Screening'!AJ112) -> 0 | B43: ='Measure Screening'!U175 -> 0 | C43: ='Measure Screening'!K175 -> 0 | D43: 0 | E43: ='Measure Screening'!C239 -> 0 | F43: =IF(ISERROR('Measure Screening'!E239),0,'Measure Screening'!E239) -> 0 | G43: ='Measure Screening'!G239 ->  | H43: ='Measure Screening'!H239 ->  | AQ43: 2017 | AR43: 2017 | BC43: 0 | BD43: 0 | BE43: 0 | BF43: 0 | BG43: 0 | BO43: 0 | BY43: ='Measure Screening'!AA175 ->  | BZ43: ='Measure Screening'!X175 -> 0 | CA43: ='Measure Screening'!Y175 -> 0
A44: ='Measure Screening'!S176-IF(ISERROR('Measure Screening'!AJ113),0,'Measure Screening'!AJ113) -> 0 | B44: ='Measure Screening'!U176 -> 0 | C44: ='Measure Screening'!K176 -> 0 | D44: =C44+B44+A44 -> 0 | E44: ='Measure Screening'!C240 -> 0 | F44: =IF(ISERROR('Measure Screening'!E240),0,'Measure Screening'!E240) -> 0 | G44: ='Measure Screening'!G240 ->  | H44: ='Measure Screening'!H240 ->  | AQ44: 2017 | AR44: =IF(L44=0,AQ44,L44) -> 2017 | BC44: 0 | BD44: 0 | BE44: 0 | BF44: 0 | BG44: 0 | BH44: =-PMT(RDR,K44,BG44)/(1+RDR) ->  | BK44: =IF(BO44=0,AU44,AH44) ->  | BL44: =IF(BO44=0,AV44,AI44) ->  | BM44: =IF(BO44=0,AW44,AJ44) ->  | BN44: =IF(BO44=0,AX44,AK44) ->  | BO44: 0 | BW44: =AT44*(TD_Winter_Weight*BT44+TD_Summer_Weight*BU44) ->  | BY44: ='Measure Screening'!AA176 ->  | BZ44: ='Measure Screening'!X176 -> 0 | CA44: ='Measure Screening'!Y176 -> 0
A45: ='Measure Screening'!S177-IF(ISERROR('Measure Screening'!AJ114),0,'Measure Screening'!AJ114) -> 0 | B45: ='Measure Screening'!U177 -> 0 | C45: ='Measure Screening'!K177 -> 0 | D45: 0 | E45: ='Measure Screening'!C241 -> 0 | F45: =IF(ISERROR('Measure Screening'!E241),0,'Measure Screening'!E241) -> 0 | G45: ='Measure Screening'!G241 ->  | H45: ='Measure Screening'!H241 ->  | AQ45: 2017 | AR45: 2017 | BC45: 0 | BD45: 0 | BE45: 0 | BF45: 0 | BG45: 0 | BO45: =SUM(AH45:AK45) -> 0 | BY45: ='Measure Screening'!AA177 ->  | BZ45: ='Measure Screening'!X177 -> 0 | CA45: ='Measure Screening'!Y177 -> 0
A46: ='Measure Screening'!S178-IF(ISERROR('Measure Screening'!AJ115),0,'Measure Screening'!AJ115) -> 0 | B46: ='Measure Screening'!U178 -> 0 | C46: ='Measure Screening'!K178 -> 0 | D46: 0 | E46: ='Measure Screening'!C242 -> 0 | F46: =IF(ISERROR('Measure Screening'!E242),0,'Measure Screening'!E242) -> 0 | G46: ='Measure Screening'!G242 ->  | H46: ='Measure Screening'!H242 ->  | AQ46: 2017 | AR46: 2017 | BC46: 0 | BD46: 0 | BE46: 0 | BF46: 0 | BG46: 0 | BO46: 0 | BY46: ='Measure Screening'!AA178 ->  | BZ46: ='Measure Screening'!X178 -> 0 | CA46: ='Measure Screening'!Y178 -> 0
A47: ='Measure Screening'!S179-IF(ISERROR('Measure Screening'!AJ116),0,'Measure Screening'!AJ116) -> 0 | B47: ='Measure Screening'!U179 -> 0 | C47: ='Measure Screening'!K179 -> 0 | D47: 0 | E47: ='Measure Screening'!C243 -> 0 | F47: =IF(ISERROR('Measure Screening'!E243),0,'Measure Screening'!E243) -> 0 | G47: ='Measure Screening'!G243 ->  | H47: ='Measure Screening'!H243 ->  | AQ47: 2017 | AR47: 2017 | BC47: 0 | BD47: 0 | BE47: 0 | BF47: 0 | BG47: 0 | BO47: 0 | BY47: ='Measure Screening'!AA179 ->  | BZ47: ='Measure Screening'!X179 -> 0 | CA47: ='Measure Screening'!Y179 -> 0
A48: ='Measure Screening'!S180-IF(ISERROR('Measure Screening'!AJ117),0,'Measure Screening'!AJ117) -> 0 | B48: ='Measure Screening'!U180 -> 0 | C48: ='Measure Screening'!K180 -> 0 | D48: 0 | E48: ='Measure Screening'!C244 -> 0 | F48: =IF(ISERROR('Measure Screening'!E244),0,'Measure Screening'!E244) -> 0 | G48: ='Measure Screening'!G244 ->  | H48: ='Measure Screening'!H244 ->  | AQ48: 2017 | AR48: 2017 | BC48: 0 | BD48: 0 | BE48: 0 | BF48: 0 | BG48: 0 | BO48: 0 | BY48: ='Measure Screening'!AA180 ->  | BZ48: ='Measure Screening'!X180 -> 0 | CA48: ='Measure Screening'!Y180 -> 0
A49: ='Measure Screening'!S181-IF(ISERROR('Measure Screening'!AJ118),0,'Measure Screening'!AJ118) -> 0 | B49: ='Measure Screening'!U181 -> 0 | C49: ='Measure Screening'!K181 -> 0 | D49: 0 | E49: ='Measure Screening'!C245 -> 0 | F49: =IF(ISERROR('Measure Screening'!E245),0,'Measure Screening'!E245) -> 0 | G49: ='Measure Screening'!G245 ->  | H49: ='Measure Screening'!H245 ->  | AQ49: 2017 | AR49: 2017 | BC49: 0 | BD49: 0 | BE49: 0 | BF49: 0 | BG49: 0 | BO49: 0 | BY49: ='Measure Screening'!AA181 ->  | BZ49: ='Measure Screening'!X181 -> 0 | CA49: ='Measure Screening'!Y181 -> 0
A50: ='Measure Screening'!S182-IF(ISERROR('Measure Screening'!AJ119),0,'Measure Screening'!AJ119) -> 0 | B50: ='Measure Screening'!U182 -> 0 | C50: ='Measure Screening'!K182 -> 0 | D50: 0 | E50: ='Measure Screening'!C246 -> 0 | F50: =IF(ISERROR('Measure Screening'!E246),0,'Measure Screening'!E246) -> 0 | G50: ='Measure Screening'!G246 ->  | H50: ='Measure Screening'!H246 ->  | AQ50: 2017 | AR50: 2017 | BC50: 0 | BD50: 0 | BE50: 0 | BF50: 0 | BG50: 0 | BO50: 0 | BY50: ='Measure Screening'!AA182 ->  | BZ50: ='Measure Screening'!X182 -> 0 | CA50: ='Measure Screening'!Y182 -> 0
A51: ='Measure Screening'!S183-IF(ISERROR('Measure Screening'!AJ120),0,'Measure Screening'!AJ120) -> 0 | B51: ='Measure Screening'!U183 -> 0 | C51: ='Measure Screening'!K183 -> 0 | D51: 0 | E51: ='Measure Screening'!C247 -> 0 | F51: =IF(ISERROR('Measure Screening'!E247),0,'Measure Screening'!E247) -> 0 | G51: ='Measure Screening'!G247 ->  | H51: ='Measure Screening'!H247 ->  | AQ51: 2017 | AR51: 2017 | BC51: 0 | BD51: 0 | BE51: 0 | BF51: 0 | BG51: 0 | BO51: 0 | BY51: ='Measure Screening'!AA183 ->  | BZ51: ='Measure Screening'!X183 -> 0 | CA51: ='Measure Screening'!Y183 -> 0
A52: ='Measure Screening'!S184-IF(ISERROR('Measure Screening'!AJ121),0,'Measure Screening'!AJ121) -> 0 | B52: ='Measure Screening'!U184 -> 0 | C52: ='Measure Screening'!K184 -> 0 | D52: 0 | E52: ='Measure Screening'!C248 -> 0 | F52: =IF(ISERROR('Measure Screening'!E248),0,'Measure Screening'!E248) -> 0 | G52: ='Measure Screening'!G248 ->  | H52: ='Measure Screening'!H248 ->  | AQ52: 2017 | AR52: 2017 | BC52: 0 | BD52: 0 | BE52: 0 | BF52: 0 | BG52: 0 | BO52: 0 | BY52: ='Measure Screening'!AA184 ->  | BZ52: ='Measure Screening'!X184 -> 0 | CA52: ='Measure Screening'!Y184 -> 0
A53: ='Measure Screening'!S185-IF(ISERROR('Measure Screening'!AJ122),0,'Measure Screening'!AJ122) -> 0 | B53: ='Measure Screening'!U185 -> 0 | C53: ='Measure Screening'!K185 -> 0 | D53: 0 | E53: ='Measure Screening'!C249 -> 0 | F53: =IF(ISERROR('Measure Screening'!E249),0,'Measure Screening'!E249) -> 0 | G53: ='Measure Screening'!G249 ->  | H53: ='Measure Screening'!H249 ->  | AQ53: 2017 | AR53: 2017 | BC53: 0 | BD53: 0 | BE53: 0 | BF53: 0 | BG53: 0 | BO53: 0 | BY53: ='Measure Screening'!AA185 ->  | BZ53: ='Measure Screening'!X185 -> 0 | CA53: ='Measure Screening'!Y185 -> 0
A54: ='Measure Screening'!S186-IF(ISERROR('Measure Screening'!AJ123),0,'Measure Screening'!AJ123) -> 0 | B54: ='Measure Screening'!U186 -> 0 | C54: ='Measure Screening'!K186 -> 0 | D54: 0 | E54: ='Measure Screening'!C250 -> 0 | F54: =IF(ISERROR('Measure Screening'!E250),0,'Measure Screening'!E250) -> 0 | G54: ='Measure Screening'!G250 ->  | H54: ='Measure Screening'!H250 ->  | AQ54: 2017 | AR54: 2017 | BC54: 0 | BD54: 0 | BE54: 0 | BF54: 0 | BG54: 0 | BO54: 0 | BY54: ='Measure Screening'!AA186 ->  | BZ54: ='Measure Screening'!X186 -> 0 | CA54: ='Measure Screening'!Y186 -> 0
A55: ='Measure Screening'!S187-IF(ISERROR('Measure Screening'!AJ124),0,'Measure Screening'!AJ124) -> 0 | B55: ='Measure Screening'!U187 -> 0 | C55: ='Measure Screening'!K187 -> 0 | D55: 0 | E55: ='Measure Screening'!C251 -> 0 | F55: =IF(ISERROR('Measure Screening'!E251),0,'Measure Screening'!E251) -> 0 | G55: ='Measure Screening'!G251 ->  | H55: ='Measure Screening'!H251 ->  | AQ55: 2017 | AR55: 2017 | BC55: 0 | BD55: 0 | BE55: 0 | BF55: 0 | BG55: 0 | BO55: 0 | BY55: ='Measure Screening'!AA187 ->  | BZ55: ='Measure Screening'!X187 -> 0 | CA55: ='Measure Screening'!Y187 -> 0
A56: ='Measure Screening'!S188-IF(ISERROR('Measure Screening'!AJ125),0,'Measure Screening'!AJ125) -> 0 | B56: ='Measure Screening'!U188 -> 0 | C56: ='Measure Screening'!K188 -> 0 | D56: 0 | E56: ='Measure Screening'!C252 -> 0 | F56: =IF(ISERROR('Measure Screening'!E252),0,'Measure Screening'!E252) -> 0 | G56: ='Measure Screening'!G252 ->  | H56: ='Measure Screening'!H252 ->  | AQ56: 2017 | AR56: 2017 | BC56: 0 | BD56: 0 | BE56: 0 | BF56: 0 | BG56: 0 | BO56: 0 | BY56: ='Measure Screening'!AA188 ->  | BZ56: ='Measure Screening'!X188 -> 0 | CA56: ='Measure Screening'!Y188 -> 0
A57: ='Measure Screening'!S189-IF(ISERROR('Measure Screening'!AJ126),0,'Measure Screening'!AJ126) -> 0 | B57: ='Measure Screening'!U189 -> 0 | C57: ='Measure Screening'!K189 -> 0 | D57: 0 | E57: ='Measure Screening'!C253 -> 0 | F57: =IF(ISERROR('Measure Screening'!E253),0,'Measure Screening'!E253) -> 0 | G57: ='Measure Screening'!G253 ->  | H57: ='Measure Screening'!H253 ->  | AQ57: 2017 | AR57: 2017 | BC57: 0 | BD57: 0 | BE57: 0 | BF57: 0 | BG57: 0 | BO57: 0 | BY57: ='Measure Screening'!AA189 ->  | BZ57: ='Measure Screening'!X189 -> 0 | CA57: ='Measure Screening'!Y189 -> 0
A58: ='Measure Screening'!S190-IF(ISERROR('Measure Screening'!AJ127),0,'Measure Screening'!AJ127) -> 0 | B58: ='Measure Screening'!U190 -> 0 | C58: ='Measure Screening'!K190 -> 0 | D58: 0 | E58: ='Measure Screening'!C254 -> 0 | F58: =IF(ISERROR('Measure Screening'!E254),0,'Measure Screening'!E254) -> 0 | G58: ='Measure Screening'!G254 ->  | H58: ='Measure Screening'!H254 ->  | AQ58: 2017 | AR58: 2017 | BC58: 0 | BD58: 0 | BE58: 0 | BF58: 0 | BG58: 0 | BO58: 0 | BY58: ='Measure Screening'!AA190 ->  | BZ58: ='Measure Screening'!X190 -> 0 | CA58: ='Measure Screening'!Y190 -> 0
A59: ='Measure Screening'!S191-IF(ISERROR('Measure Screening'!AJ128),0,'Measure Screening'!AJ128) -> 0 | B59: ='Measure Screening'!U191 -> 0 | C59: ='Measure Screening'!K191 -> 0 | D59: 0 | E59: ='Measure Screening'!C255 -> 0 | F59: =IF(ISERROR('Measure Screening'!E255),0,'Measure Screening'!E255) -> 0 | G59: ='Measure Screening'!G255 ->  | H59: ='Measure Screening'!H255 ->  | AQ59: 2017 | AR59: 2017 | BC59: 0 | BD59: 0 | BE59: 0 | BF59: 0 | BG59: 0 | BO59: 0 | BY59: ='Measure Screening'!AA191 ->  | BZ59: ='Measure Screening'!X191 -> 0 | CA59: ='Measure Screening'!Y191 -> 0
A60: ='Measure Screening'!S192-IF(ISERROR('Measure Screening'!AJ129),0,'Measure Screening'!AJ129) -> 0 | B60: ='Measure Screening'!U192 -> 0 | C60: ='Measure Screening'!K192 -> 0 | D60: 0 | E60: ='Measure Screening'!C256 -> 0 | F60: =IF(ISERROR('Measure Screening'!E256),0,'Measure Screening'!E256) -> 0 | G60: ='Measure Screening'!G256 ->  | H60: ='Measure Screening'!H256 ->  | AQ60: 2017 | AR60: 2017 | BC60: 0 | BD60: 0 | BE60: 0 | BF60: 0 | BG60: 0 | BO60: 0 | BY60: ='Measure Screening'!AA192 ->  | BZ60: ='Measure Screening'!X192 -> 0 | CA60: ='Measure Screening'!Y192 -> 0
A61: ='Measure Screening'!S193-IF(ISERROR('Measure Screening'!AJ130),0,'Measure Screening'!AJ130) -> 0 | B61: ='Measure Screening'!U193 -> 0 | C61: ='Measure Screening'!K193 -> 0 | D61: 0 | E61: ='Measure Screening'!C257 -> 0 | F61: =IF(ISERROR('Measure Screening'!E257),0,'Measure Screening'!E257) -> 0 | G61: ='Measure Screening'!G257 ->  | H61: ='Measure Screening'!H257 ->  | AQ61: 2017 | AR61: 2017 | BC61: 0 | BD61: 0 | BE61: 0 | BF61: 0 | BG61: 0 | BO61: =SUM(AH61:AK61) -> 0 | BY61: ='Measure Screening'!AA193 ->  | BZ61: ='Measure Screening'!X193 -> 0 | CA61: ='Measure Screening'!Y193 -> 0

Sheet Title (hidden)
A1: Vermont Statewide Field Screening Tool
A2: Developed by Green Energy Economics Group, Inc. for the Vermont Dept. of Public Service
A3: Portions were previously developed by Resource Insight, Inc. and revised by Optimal Energy, Inc.
A5: Last Revision Date | B5: 2015-12-23 | C5: Erik Brown
A7: Version | B7: 2016a
A9: Select Form of Inputs from below:
A10: Simplified input for single fuel-switching measure
A11: Custom input for single measure of any type | G11: 3
A12: Custom input for multiple measures
A14: After choosing the form of inputs from the above
A15: choices, move to one of the 3 corresponding input
A16: sheets to the right of the this Title sheet.
A17: Only the Multiple Measures Input sheet has been updated.
A18: Do not try to use the other input sheets until those sheets have been updated.
A20: Version | B20: Revisions: | C20: Who:
B21: 2000-04-18 | D21: Input different inflation rate into avoided cost sheet -- consistent w/ Docket 5980 filed screening.
B22: 2001-03-08 | D22: Added error message to multi-measure sheet when entered energy profile does not total 100%.
D23: Revised so that tool recognizes custom peak coincident factor inputs of zero.
D24: Set deferral credit calculation to zero when remaining life of existing equipment is longer than the analysis period.
D25: Added kerosene water heater as an option in the fuel-switch input sheet.
D26: Prevent peak coincident factors from exceeding 100%.
D27: Disabled ability to override fuel avoided costs in measure assumption sheets. The avoided costs can only be modified in the avoided cost sheet.
D28: Added water savings input and PV of benefits in summary.
D29: Added fossil fuel benefits output in summary.
D30: Added total resource benefits output.
D31: Prevent appying risk discount to negative costs (e.g., deferral credit and O&M savings)
D32: Allow cost inputs in program year's dollars, but maintain PV outputs in 2000$ and discounted back to year 2000.
D33: Added more fuel choices: #6 fuel oil, kerosene, wood.
D34: Deleted archive and import macro buttons because they are not being used and cause possible unintended file over-writing.
B35: 2001-04-06 | D35: Remove #6 fuel oil
D36: Add kerosene avoided costs.
B37: 2001-11-14 | D37: Updated program year to 2002.
D38: Allow for zero kWh or kW inputs -- prevent interpretation as blank.
D39: Allow loadprofiles without a FLH value to prevent misuse of calculating kW from kWh or vice-versa, where not appropriate to do so, such as VFD.
D40: Revised headings for kW inputs and coincidence factors to be "calculated kW" instead of "connected load".
D41: Added new loadprofiles and revised commercial lighting and commercial and industrial HVAC coincidence factors.
D42: Added new column to load profile table for version number.
B43: 2002-02-04 | D43: Corrected FLH in "Lookup tables" sheet for controlled DHW conservation and insulation.
B44: 2002-10-02 | D44: Changed base year for discounting, year's dollars and program year to 2003.
D45: Added more field names in row 11 of Multi Measure Input sheet.
D46: Added separate electric energy and capacity benefits outputs to Multi Measure Input sheet.
D47: Fixed overstating benefits when remaining life of existing equipment is longer than the analysis period.
D48: Added lifetime kWh savings output.
B49: 2002-10-18 | D49: Fixed error in Lifetime kWh savings calculation and added more field names in row 11 of Multi Measure Input sheet
D50: Revised benefits and fuel cost formulas to handle fractional analysis periods without under- or over-stating savings.
B51: 2002-10-22 | D51: Added new loadprofiles.
D52: Revised benefits formulas to handle fractional remaining life of existing periods, without under- or over-stating savings.
B53: 2003-01-21 | D53: Removed references to external files and #REF.
B54: 2003-09-04 | D54: Changed program year to 2004.
D55: Revised inflation factors based on recent CPI data. Affected 1997 to 2003 inflation rate and 2000 to 2003 inflation factor used in the Avoided Costs sheet.
B56: 2003-09-15 | D56: Added new load profile.
B57: 2004-03-19 | D57: Added new load profiles 63-70
B58: 2004-10-14 | D58: Changed program year to 2005.
D59: Revised inflation factors based on recent CPI data. Affected 1997 to 2003 inflation rate and 2000 to 2003 inflation factor used in the Avoided Costs sheet.
D60: Added new load profile #71.
D61: Extended avoided costs out to allow screening 50 year measure lives from 2005.
B62: 2004-10-26 | D62: Lowered industrial indoor lighting default hours to 3500.
B63: 2005-10-13 | D63: Changed base year for discounting, year's dollars and program year to 2006.
D64: Added new load profile #72.
B65: 2006-10-13 | D65: Changed program year to 2007.
D66: Changed inflation factor for 1997 to 2005 based on most recent CPI data.
D67: Raised future inflation assumption from 2.5% to 3.0%. Trend shows inflation increasing steadily since 2001. Inflation was 3.4% from 2004-2005 and will likely be around 4% for 2005-2006 (based on first 8 months of 2006).
B68: 2007-04-18 | D68: Entered new avoided costs, based on AESC 2005 avoided costs and DPS developed line losses.
D69: Revised T&D weighting to 60% Summer / 40% Winter.
D70: Add new loadshapes based on new costing period definitions.
D71: Add costing period defintions.
D72: Add new discount rate and future inflation assumpions.
B73: 2007-11-30 | D73: Changed program year to 2008
B74: 2007-11-30 | D74: Entered new avoided costs, based on AESC 2007 avoided costs.
B75: 2007-12-06 | D75: Added load profiles #73-76.
D76: Added line losses to avoided costs.
B77: 2008-10-28 | D77: Removed coincidence factors adjustment for non-standard hours of use (columns BI and BS:BU on Multi Measure Input sheet).
D78: Updated program year to 2009.
D79: Changed base year for discounting to 2009.
B80: 2009-01-26 | D80: Added load profiles #77-93. Revised load profiles #12 & #44.
B81: 2009-12-22 | D81: Added Fossil fuel savings adjustment for retrofit measures.
D82: Prevented errors when no electric savings, so a fossil fuel only measure can stand alone.
D83: Added new loadshapes, up to #100.
D84: Added new AESC 2009 avoided costs as specified in PSB 11/30/09 memo.
B85: 2009-12-23 | D85: Added Wood Pellets as a fuel choice, set at twice cord wood avoided cost, as recommended by the DPS.
D86: Hid single measure and fuel-switch input sheets, since they have not been used nor updated with the most recent revisions.
B87: 2010-11-30 | D87: Changed program year to 2011.
B88: 2010-12-15 | D88: Revised discount rate using DPS recently developed value.
D89: Revised full load hours for load profiles 95 and 100. Revised Summer coincidence for load profile 100.
B90: 2011-12-07 | D90: Changed program year to 2012.
D91: Added new AESC 2011 avoided costs, including new externality values.
B92: 2011-12-21 | D92: Revise fossil fuel externality avoided costs for propane, kerosene and commercial distillate.
D93: Revise commercial distillate avoided cost based on 82%/18% weighting commercial/industrial.
B94: 2011-12-27 | D94: Modified Fuel type lookup to reflect new categories of avoided costs for natural gas
B95: 2012-01-05 | D95: Added new and revised load profiles for 2012
D96: added new named range "NEBFlag" on Multi Measure Inputwith pulldown from "NEBFlagTable" on Lookup Tables for future use.
B97: 2012-02-27 | D97: Changed real discount rate to 3.0%, per PSB order.
D98: Revised avoided costs based on emails from the DPS regarding interpretation of the PSB avoided cost order.
D99: Applied NEB and Low Income adders to Electric and Fossil Fuel benefits and to Fossil Fuel costs.
B100: 2012-12-18 | D100: AP: Changed Program Year to 2013
D101: Revised Generic $/kW T&D Costs as per Board Order EEU-2011-02 Avoided Costs
B102: 2012-12-26 | D102: EB: Updated inflation data for 2011 and 2012 from Bureau of Labor Statistics
D103: Applied line losses to new T&D avoided costs
B104: 2012-12-27 | D104: Removed pulldown selections for Customer Class on Multi Measure input sheet and hid column
D105: Changed display of Multi-measure input to frozen rows/columns instead of Split panels
D106: Corrected Electric Externalities values on Avoided Cost tab by adding inflation factor from 2011$ to 2012$
B107: 2013-01-02 | D107: Added new and revised load profiles for 2013
D108: Added BED Custom T&D avoided costs as separate option (replacing "Typical Targeted" T&D costs)
B109: 2013-01-09 | D109: Modified future inflation rate to use 2012 inflation rate
B110: 2013-01-14 | D110: Modified Residential Refrigerator load profile on Lookup tables sheet per TRM change
B111: 2013-06-13 | D111: Added Compressed Natural Gas fuel type
A112: 13f | B112: 2013-10-16 | D112: Added new load profiles 113, 114, 115
A113: 14a | B113: 2013-12-30 | D113: Updated electric and fuel avoided costs, including externalities, based on PSB order EEU-2013-07, adjusted to 2012$
D114: Updated inflation table
D115: Added formulas on Avoided Costs tab for calculation of fossil fuel externality values
D116: Added formulas for calculation of blended natural gas avoided costs on Nat Gas tab
D117: Added cell for "Avoided Costs Year", and modified adjustment formulas, to make adjustment of values to Reporting Year more consistent on Avoided Costs tab
D118: Added space for average future escalation rates for avoided costs, based on escalation rates used in final years of PSB table, to allow projection out to 50 years
A119: 14b | B119: 2014-01-02 | D119: Added separate inflation rate for adjustment of avoided costs ("inflate" on Avoided Costs tab) and updated formulas
D120: Updated Future Inflation Rate to 2% to match DRP and AESC report
D121: Added fields and modified formulas on Avoided Costs tab for calculation of fossil fuel externality values to allow for entr fo % biofuels and $/ton
D122: Restored line loss adjustment to Summer Capacity Avoided costs on Avoided Costs tab
A123: 14c | B123: 2014-01-06 | D123: Updated Natural Gas avoided costs per email from John St. Hilaire (VGS)
D124: Corrected Capacity line loss factor; added adjustment to account for line losses already included in AESC avoided costs.
A125: 14d | B125: 2014-01-09 | D125: Corrected CNG lookup to #11 instead of #7 to make it consistent with CAT
B126: 2014-01-10 | D126: Added Wood Chips as fuel type, equal to bulk Wood as placeholder, for compatibility with CAT
A127: 15a | B127: 2014-12-17 | D127: Updated values on Inflation tab and value for 'inflate'
D128: Updated line loss values, and added trigger to switch between different values for BED and EVT
D129: Modified application of line losses for externalities to use losses including PTF
D130: Added new sheet for DRIPE values from PSB order, plus table of DRIPE values in current $ and adjusted for losses
D131: Added new columns in Measure Screening for DRIPE calculation and added to calculation of PVCost and PVBenefit
D132: Updated line losses assumed to be included in avoided costs for Capacity to 9.5%
D133: Updated Base Year and Program Year to 2015
B134: 2014-12-30 | D134: Modified application of DRIPE to apply only to summer kw
B135: 2014-12-31 | C135: F Wyatt | D135: FW: Minor corrections to modifications made above
B136: 2015-01-14 | C136: EBrown | D136: EB: Added new loadsahpe 116 Cold climate heat pumps
A137: 15a-fixed | B137: 2015-05-06 | C137: EBrown | D137: EB: corrected line loss factor reference for summer capacity to use cell F25 instead of F24 (removing losses already in AESC AvCosts)
A138: 16a | B138: 2015-12-23 | C138: EBrown | D138: Updated values on Inflation tab and value for 'inflate'
C139: EBrown | D139: Updated avoided costs (including DRIPE and externalities) for 2015 per AESC 2015 and PSB order EEU-2015-04
C140: EBrown | D140: Updated Future Inflation rate to 1.78% per AESC 2015
C141: EBrown | D141: Updated Line Losses included in Capacity avoided costs to 8%
C142: EBrown | D142: Removed obsolete columns from Natural Gas sheet
C143: EBrown | D143: Removed obsolete sheet Nat Gas2
B144: 2016-01-25 | C144: EBrown | D144: Removed link on Fossil fuel sheet to AESC tables - copied as values

Sheet Calcs
A1: BPPA Zero Energy Now Calculations
A2: 2016-08-30
A4: Budget
A5: # of Projects | B5: ='[1]Program Inputs'!E9+'[1]Program Inputs'!E10 -> 40
A6: Incentives per Project | B6: 1000 | C6: $972 is average of projects below; cap at "up to $1000"
A7: Incentive Budget | B7: =B6*B5 -> 40000
A8: Admin Budget | B8: ='Program Inputs'!F9+'Program Inputs'!F10 -> 80000
A9: Total | C9: =B8+B7 -> 120000
A11: Savings | B11: Calfee | C11: Ward
A12: EVT Wx Savings (MMBtu) | B12: ='Calfee 2'!Q32 -> 19.67757 | C12: =Ward!Q32 -> 26.07687
A13: GMP Heat Pump Fuel Switch Savings (MMBtu) | B13: ='Calfee 2'!Q39 -> 24.3105 | C13: =Ward!Q39 -> 20.34147
A14: GMP Heat Pump Elec Use (kWh) | B14: ='Calfee 2'!Q19+'Calfee 2'!Q22 -> -3961.92549 | C14: =Ward!Q19+Ward!Q22 -> -1752.047998
A15: GMP PV Generation (kW) | B15: ='Calfee 2'!BA3 -> 5560 | C15: =Ward!BA3 -> 4800
A16: GMP PV Generation (kWh) | B16: ='Calfee 2'!AB25*1.1 -> 6116 | C16: =Ward!AB25*Ward!AC25 -> 5280.0358
A17: GMP PV Generation (MMBtu) | B17: ='Calfee 2'!AZ12 -> 20.8739 | C17: =[1]Ward!BB12 -> 18.0206
A18: Total MMBtu Savings | B18: =B12+B13+B17 -> 64.86197 | C18: =C12+C13+C17 -> 64.43894
A20: Allocations by Savings | B20: Calfee | C20: Ward
A21: Wx | B21: =B12/(B$13+B$17+B$12) -> 0.3033760769 | C21: =C12/(C$13+C$17+C$12) -> 0.4046756511
A22: Heat Pump | B22: =B13/(B$13+B$17+B$12) -> 0.3748036022 | C22: =C13/(C$13+C$17+C$12) -> 0.3156704626
A23: PV | B23: =B17/(B$13+B$17+B$12) -> 0.3218203209 | C23: =C17/(C$13+C$17+C$12) -> 0.2796538863
A24: Total Savings | B24: =SUM(B21:B23) -> 1 | C24: =SUM(C21:C23) -> 1
A26: Costs | B26: Calfee | C26: Ward
A27: EVT Wx | B27: ='Calfee 2'!P18 -> 9393 | C27: =Ward!P18 -> 8080
A28: Heat Pumps | B28: ='Calfee 2'!P20+'Calfee 2'!P22 -> 8560 | C28: =Ward!P20+Ward!P22 -> 13350
A29: PV | B29: ='Calfee 2'!P25 -> 19456 | C29: =+Ward!P25 -> 17266
A30: Total | B30: =SUM(B27:B29) -> 37409 | C30: =SUM(C27:C29) -> 38696
A32: Future Costs
A33: Inverter (15 years, $0.50/watt) | B33: =0.5*B15 -> 2780 | C33: =0.5*C15 -> 2400 | D33: 15 | E33: years
A35: Incentives | B35: Calfee | C35: Ward
A36: Total | B36: ='Calfee 2'!K9 -> 3243.1 | C36: =Ward!K5 -> 3221.94
A37: Allocated by Savings
A38: Wx | B38: =B$36*B21 -> 983.8789551 | C38: 1303.840667
A39: For Heat Pump | B39: 1215.525562 | C39: 1017.07129
A40: For PV | B40: 1043.695483 | C40: 901.0280424

Sheet Calfee 2
N1: 1 | O1: 2 | P1: 3 | Q1: 4 | R1: 5 | S1: 6 | T1: 7 | U1: 8 | V1: 9 | W1: 10 | X1: 11 | Y1: 12 | Z1: 13 | AA1: 14 | AB1: 15 | AC1: 16 | AD1: 17 | AE1: 18 | AF1: 19 | AG1: 20 | AH1: 21 | AI1: 22 | AJ1: 23 | AK1: 24 | AL1: 25 | AM1: 26 | AN1: 27 | AO1: 28 | AP1: 29 | AQ1: 30 | AR1: 31 | AS1: 32 | AT1: 33 | AU1: 34 | AV1: 35 | AW1: 36 | AX1: 37 | AY1: 38 | AZ1: 39 | BF1: consumption
A2: Customer Name | B2: Street | C2: Apartment / Suite number | D2: City | E2: Zip code | F2: Project type | G2: Contractor Name | H2: Contractor Company | I2: Project start date | J2: Most recent update | K2: ZEN! Rebate | L2: EVT Rebate | M2: Other Rebates | N2: Fuel | O2: Existing MMBTU | P2: Shell Scenario | Q2: Insulation Cost | R2: Insulation Consumption Existing | S2: Insulation Consumption Proposed without heating improvement | T2: Insulation Consumption Proposed with heating improvement | U2: Shell Load Existing ONLY WHAT'S MODELED NOT TOTAL | V2: Shell Load Improved ONLY WHAT'S MODELED NOT TOTAL | W2: AL/MV Cost | X2: AL/MV Consumption Existing | Y2: AL/MV Consumption Proposed without heating improvement | Z2: AL/MV Consumption Proposed with heating improvement | AA2: Heating Scenario | AB2: Heating Scenario Cost | AC2: Heating Consumption Existing | AD2: Heating Consumption Improved (with shell improvement) | AE2: Heating Eff, Avg, Existing | AF2: Heating Eff, Avg, Proposed | AG2: DHW Scenario | AH2: DHW Scenario Cost | AI2: DHW Consumption Existing | AJ2: DHW Consumption Improved | AK2: Cooling Scenario | AL2: Cooling Scenario Cost | AM2: Cooling Consumption Existing | AN2: Cooling Consumption Improved | AO2: Appliance/Lighting Scenario | AP2: Appliance Cost | AQ2: Appliance Consumption Existing | AR2: Appliance Consumption Improved | AS2: Lighting Cost | AT2: Lighting Consumption Existing | AU2: Lighting Consumption Improved | AV2: Generation Scenario | AW2: Generation Cost | AX2: Generation Existing mmbtu | AY2: Generation Existing Watts | AZ2: Generation New mmbtu | BA2: Generation New Watts | BB2: Generation Total mmbtu | BC2: Generation Total Watts | BF2: existing modeled | BG2: existing total | BH2: proposed modeled | BI2: proposed total | BJ2: saved
A3: Bill Calfee | B3: 2999 VT RT 30 | D3: Dorset | E3: 5251 | F3: Residential | G3: William Morrissey | H3: Weatherization Works | I3: 04/13/2016 - 15:50 | J3: 08/10/2016 - 09:12 | K3: 3243.1 | L3: 1907.2 | M3: 0 | N3: Electric | P3: Shell Scenario One | Q3: 8413 | R3: 0 | S3: 0 | T3: 2.53246 | U3: 27.8506 | V3: 11.7149 | W3: 980 | X3: 0 | Y3: 0 | Z3: 2.15349 | AA3: Heating Scenario One | AB3: 8060 | AC3: 0 | AD3: 12.409 | AE3: 0.82 | AF3: 2.5 | AG3: Hot Water Scenario One | AH3: 0 | AI3: 6.98982 | AJ3: =AI3 -> 6.98982 | AK3: Cooling Scenario One | AL3: 500 | AM3: 0 | AN3: 1.11293 | AQ3: 0 | AR3: 0 | AT3: 0 | AU3: 0 | AV3: PV Scenario One | AW3: 19456 | AX3: 0 | AY3: 0 | AZ3: 20.8739 | BA3: 5560 | BB3: 20.8739 | BC3: 5560 | BF3: =AC3+AI3+AM3+AQ3+AT3 -> 6.98982 | BG3: =O3 -> 0 | BH3: =AD3+AJ3+AN3+AR3+AU3 -> 20.51175 | BI3: =BG3-BF3+BH3 -> 13.52193 | BJ3: =BG3-BI3 -> -13.52193
A4: Bill Calfee | B4: 2999 VT RT 30 | D4: Dorset | E4: 5251 | F4: Residential | G4: William Morrissey | H4: Weatherization Works | I4: 04/13/2016 - 15:50 | J4: 08/10/2016 - 09:12 | K4: 3243.1 | L4: 1907.2 | M4: 0 | N4: Wood Pellets | O4: 0 | P4: Shell Scenario One | Q4: 8413 | R4: 0 | S4: 0 | T4: 0 | U4: 27.8506 | V4: 11.7149 | W4: 980 | X4: 0 | Y4: 0 | Z4: 0 | AA4: Heating Scenario One | AB4: 8060 | AC4: 0 | AD4: 0 | AE4: 0.82 | AF4: 2.5 | AG4: Hot Water Scenario One | AH4: 0 | AI4: 0 | AJ4: 0 | AK4: Cooling Scenario One | AL4: 500 | AM4: 0 | AN4: 0 | AQ4: 0 | AR4: 0 | AT4: 0 | AU4: 0 | AV4: PV Scenario One | AW4: 19456 | AX4: 0 | AY4: 0 | AZ4: 0 | BA4: 0 | BB4: 0 | BC4: 0 | BF4: =AC4+AI4+AM4+AQ4+AT4 -> 0 | BG4: =O4 -> 0 | BH4: =AD4+AJ4+AN4+AR4+AU4 -> 0 | BI4: =BG4-BF4+BH4 -> 0 | BJ4: =BG4-BI4 -> 0
A5: Bill Calfee | B5: 2999 VT RT 30 | D5: Dorset | E5: 5251 | F5: Residential | G5: William Morrissey | H5: Weatherization Works | I5: 04/13/2016 - 15:50 | J5: 08/10/2016 - 09:12 | K5: 3243.1 | L5: 1907.2 | M5: 0 | N5: Natural Gas | O5: 0 | P5: Shell Scenario One | Q5: 8413 | R5: 0 | S5: 0 | T5: 0 | U5: 27.8506 | V5: 11.7149 | W5: 980 | X5: 0 | Y5: 0 | Z5: 0 | AA5: Heating Scenario One | AB5: 8060 | AC5: 0 | AD5: 0 | AE5: 0.82 | AF5: 2.5 | AG5: Hot Water Scenario One | AH5: 0 | AI5: 0 | AJ5: 0 | AK5: Cooling Scenario One | AL5: 500 | AM5: 0 | AN5: 0 | AQ5: 0 | AR5: 0 | AT5: 0 | AU5: 0 | AV5: PV Scenario One | AW5: 19456 | AX5: 0 | AY5: 0 | AZ5: 0 | BA5: 0 | BB5: 0 | BC5: 0 | BF5: 0 | BG5: 0 | BH5: 0 | BI5: 0 | BJ5: 0
A6: Bill Calfee | B6: 2999 VT RT 30 | D6: Dorset | E6: 5251 | F6: Residential | G6: William Morrissey | H6: Weatherization Works | I6: 04/13/2016 - 15:50 | J6: 08/10/2016 - 09:12 | K6: 3243.1 | L6: 1907.2 | M6: 0 | N6: LP Gas | O6: 0 | P6: Shell Scenario One | Q6: 8413 | R6: 0 | S6: 0 | T6: 0 | U6: 27.8506 | V6: 11.7149 | W6: 980 | X6: 0 | Y6: 0 | Z6: 0 | AA6: Heating Scenario One | AB6: 8060 | AC6: 0 | AD6: 0 | AE6: 0.82 | AF6: 2.5 | AG6: Hot Water Scenario One | AH6: 0 | AI6: 0 | AJ6: 0 | AK6: Cooling Scenario One | AL6: 500 | AM6: 0 | AN6: 0 | AQ6: 0 | AR6: 0 | AT6: 0 | AU6: 0 | AV6: PV Scenario One | AW6: 19456 | AX6: 0 | AY6: 0 | AZ6: 0 | BA6: 0 | BB6: 0 | BC6: 0 | BF6: 0 | BG6: 0 | BH6: 0 | BI6: 0 | BJ6: 0
A7: Bill Calfee | B7: 2999 VT RT 30 | D7: Dorset | E7: 5251 | F7: Residential | G7: William Morrissey | H7: Weatherization Works | I7: 04/13/2016 - 15:50 | J7: 08/10/2016 - 09:12 | K7: 3243.1 | L7: 1907.2 | M7: 0 | N7: Coal | O7: 0 | BF7: 0 | BG7: 0 | BH7: 0 | BI7: 0 | BJ7: 0
A8: Bill Calfee | B8: 2999 VT RT 30 | D8: Dorset | E8: 5251 | F8: Residential | G8: William Morrissey | H8: Weatherization Works | I8: 04/13/2016 - 15:50 | J8: 08/10/2016 - 09:12 | K8: 3243.1 | L8: 1907.2 | M8: 0 | N8: Oil | O8: 0 | P8: Shell Scenario One | Q8: 8413 | R8: 0 | S8: 0 | T8: 0 | U8: 27.8506 | V8: 11.7149 | W8: 980 | X8: 0 | Y8: 0 | Z8: 0 | AA8: Heating Scenario One | AB8: 8060 | AC8: 0 | AD8: 0 | AE8: 0.82 | AF8: 2.5 | AG8: Hot Water Scenario One | AH8: 0 | AI8: 0 | AJ8: 0 | AK8: Cooling Scenario One | AL8: 500 | AM8: 0 | AN8: 0 | AQ8: 0 | AR8: 0 | AT8: 0 | AU8: 0 | AV8: PV Scenario One | AW8: 19456 | AX8: 0 | AY8: 0 | AZ8: 0 | BA8: 0 | BB8: 0 | BC8: 0 | BF8: 0 | BG8: 0 | BH8: 0 | BI8: 0 | BJ8: 0
A9: Bill Calfee | B9: 2999 VT RT 30 | D9: Dorset | E9: 5251 | F9: Residential | G9: William Morrissey | H9: Weatherization Works | I9: 04/13/2016 - 15:50 | J9: 08/10/2016 - 09:12 | K9: 3243.1 | L9: 1907.2 | M9: 0 | N9: Kerosene | O9: 57.51 | P9: Shell Scenario One | Q9: 8413 | R9: 22.8447 | S9: 7.7209 | T9: 0 | U9: 27.8506 | V9: 11.7149 | W9: 980 | X9: 11.1193 | Y9: 6.56553 | Z9: 0 | AA9: Heating Scenario One | AB9: 8060 | AC9: 57.51 | AD9: 0 | AE9: 0.82 | AF9: 2.5 | AG9: Hot Water Scenario One | AH9: 0 | AI9: 0 | AJ9: 0 | AK9: Cooling Scenario One | AL9: 500 | AM9: 0 | AN9: 0 | AQ9: 0 | AR9: 0 | AT9: 0 | AU9: 0 | AV9: PV Scenario One | AW9: 19456 | AX9: 0 | AY9: 0 | AZ9: 0 | BA9: 0 | BB9: 0 | BC9: 0 | BF9: 57.51 | BG9: 57.51 | BH9: 0 | BI9: 0 | BJ9: 57.51
A10: Bill Calfee | B10: 2999 VT RT 30 | D10: Dorset | E10: 5251 | F10: Residential | G10: William Morrissey | H10: Weatherization Works | I10: 04/13/2016 - 15:50 | J10: 08/10/2016 - 09:12 | K10: 3243.1 | L10: 1907.2 | M10: 0 | N10: Wood | O10: 0 | P10: Shell Scenario One | Q10: 8413 | R10: 0 | S10: 0 | T10: 0 | U10: 27.8506 | V10: 11.7149 | W10: 980 | X10: 0 | Y10: 0 | Z10: 0 | AA10: Heating Scenario One | AB10: 8060 | AC10: 0 | AD10: 0 | AE10: 0.82 | AF10: 2.5 | AG10: Hot Water Scenario One | AH10: 0 | AI10: 0 | AJ10: 0 | AK10: Cooling Scenario One | AL10: 500 | AM10: 0 | AN10: 0 | AQ10: 0 | AR10: 0 | AT10: 0 | AU10: 0 | AV10: PV Scenario One | AW10: 19456 | AX10: 0 | AY10: 0 | AZ10: 0 | BA10: 0 | BB10: 0 | BC10: 0 | BF10: 0 | BG10: 0 | BH10: 0 | BI10: 0 | BJ10: 0
N12: Totals | O12: =SUM(O3:O10) -> 57.51 | Q12: =Q10 -> 8413 | R12: =SUM(R3:R10) -> 22.8447 | S12: =SUM(S3:S10) -> 7.7209 | T12: =SUM(T3:T10) -> 2.53246 | U12: =U10 -> 27.8506 | V12: =V10 -> 11.7149 | W12: =W10 -> 980 | X12: =SUM(X3:X10) -> 11.1193 | Y12: =SUM(Y3:Y10) -> 6.56553 | Z12: =SUM(Z3:Z10) -> 2.15349 | AB12: =AB10 -> 8060 | AC12: =SUM(AC3:AC10) -> 57.51 | AD12: =SUM(AD3:AD10) -> 12.409 | AE12: =AE10 -> 0.82 | AF12: =AF10 -> 2.5 | AH12: =AH10 -> 0 | AI12: =SUM(AI3:AI10) -> 6.98982 | AJ12: =SUM(AJ3:AJ10) -> 6.98982 | AL12: =AL10 -> 500 | AM12: =SUM(AM3:AM10) -> 0 | AN12: =SUM(AN3:AN10) -> 1.11293 | AP12: =AP10 -> 0 | AQ12: =SUM(AQ3:AQ10) -> 0 | AR12: =SUM(AR3:AR10) -> 0 | AS12: =AS10 -> 0 | AT12: =SUM(AT3:AT10) -> 0 | AU12: =SUM(AU3:AU10) -> 0 | AW12: =AW10 -> 19456 | AX12: =SUM(AX3:AX10) -> 0 | AY12: 0 | AZ12: 20.8739 | BA12: 5560 | BB12: 20.8739 | BC12: 5560 | BF12: =SUM(BF3:BF10) -> 64.49982 | BG12: 57.51 | BH12: 20.51175 | BI12: 13.52193 | BJ12: =SUM(BJ3:BJ10) -> 43.98807
BE14: generation | BF14: =AX12 -> 0 | BG14: =BF14 -> 0 | BH14: =AZ12 -> 20.8739 | BI14: =BH14+BF14 -> 20.8739 | BJ14: =BI14 -> 20.8739
BE15: totals w/ gen | BF15: =BF12-BF14 -> 64.49982 | BG15: =BG12-BG14 -> 57.51 | BH15: =BH12-BH14 -> -0.36215 | BI15: =BI12-BI14 -> -7.35197 | BJ15: =BG15-BI15 -> 64.86197
O16: Improvement Savings by Fuel and End Use Category | R16: Annual MMBTU Savings
O17: Scenario | P17: scenario cost | Q17: Electric kWh | R17: =N3 -> Electric | S17: =N5 -> Natural Gas | T17: =N6 -> LP Gas | U17: =N7 -> Coal | V17: =N8 -> Oil | W17: =N9 -> Kerosene | X17: =N10 -> Wood | Y17: =N4 -> Wood Pellets | Z17: Total MMBTU Savings | AA17: =AZ2 -> Generation New mmbtu | AB17: =BA2 -> Generation New Watts | AC17: kWh/W | BE17: fossil + grid | BF17: =SUM(BF5:BF9)+BF3-BF14 -> 64.49982 | BG17: =SUM(BG5:BG9)+BG3-BG14 -> 57.51 | BH17: -0.36215 | BI17: -7.35197 | BJ17: 23.11417
N18: NEW Shell w/ existing heat | O18: =P6 -> Shell Scenario One | P18: =Q6+W6 -> 9393 | Q18: =R18*293 -> 0 | R18: =AC3-Y3-S3 -> 0 | S18: =AC5-Y5-S5 -> 0 | T18: =AC6-Y6-S6 -> 0 | U18: =AC7-Y7-S7 -> 0 | V18: =AC8-Y8-S8 -> 0 | W18: =AC9-Y9-S9 -> 43.22357 | X18: =AC10-Y10-S10 -> 0 | Y18: =AC4-Y4-S4 -> 0 | Z18: =SUM(R18:Y18) -> 43.22357 | AA18: <<EVT heat/shell claim | BE18: biomass | BF18: =BF4+BF10 -> 0 | BG18: =BG4+BG10 -> 0 | BH18: =BH4+BH10 -> 0 | BI18: =BI4+BI10 -> 0 | BJ18: =BJ4+BJ10 -> 0
N19: NEW Shell w/ new heat | O19: =P6 -> Shell Scenario One | P19: =Q6+W6+AB3 -> 17453 | Q19: =R19*293 -> -3635.837 | R19: =AC3-AD3 -> -12.409 | S19: =AC5-AD5 -> 0 | T19: =AC6-AD6 -> 0 | U19: =AC7-AD7 -> 0 | V19: =AC8-AD8 -> 0 | W19: =AC9-AD9 -> 57.51 | X19: =AC10-AD10 -> 0 | Y19: =AC4-AD4 -> 0 | Z19: =SUM(R19:Y19) -> 45.101 | AA19: <<heat/shell gross savings
N20: EVT ADJUSTED Heating system benefits | O20: =AA3 -> Heating Scenario One | P20: =AB6 -> 8060 | Q20: =R20*293 -> -3635.837 | R20: =R19-R18 -> -12.409 | S20: =S19-S18 -> 0 | T20: 0 | U20: 0 | V20: 0 | W20: 14.28643 | X20: 0 | Y20: 0 | Z20: =SUM(R20:Y20) -> 1.87743 | AA20: <<GMP heat/shell claim
N21: DHW | O21: =AG3 -> Hot Water Scenario One | P21: =AH3 -> 0 | Q21: =R21*293 -> 0 | R21: =AI3-AJ3 -> 0 | S21: =AI5-AJ5 -> 0 | T21: =AI6-AJ6 -> 0 | U21: =AI7-AJ7 -> 0 | V21: =AI8-AJ8 -> 0 | W21: =AI9-AJ9 -> 0 | X21: =AI10-AJ10 -> 0 | Y21: =AI4-AJ4 -> 0 | Z21: =SUM(R21:Y21) -> 0
N22: Cooling | O22: =AK3 -> Cooling Scenario One | P22: =AL3 -> 500 | Q22: =R22*293 -> -326.08849 | R22: =AM3-AN3 -> -1.11293 | S22: =AM5-AN5 -> 0 | T22: =AM6-AN6 -> 0 | U22: =AM7-AN7 -> 0 | V22: =AM8-AN8 -> 0 | W22: =AM9-AN9 -> 0 | X22: =AM10-AN10 -> 0 | Y22: =AM4-AN4 -> 0 | Z22: -1.11293 | BF22: ZEN metrics
N23: Appliance | O23: =AO3 -> 0 | P23: =AP3 -> 0 | Q23: =R23*293 -> 0 | R23: =AQ3-AR3 -> 0 | S23: =AQ5-AR5 -> 0 | T23: =AQ6-AR6 -> 0 | U23: =AQ7-AR7 -> 0 | V23: =AQ8-AR8 -> 0 | W23: =AQ9-AR9 -> 0 | X23: =AQ10-AR10 -> 0 | Y23: =AQ4-AR4 -> 0 | Z23: 0 | BF23: existing | BG23: proposed | BH23: % change
N24: Lighting | O24: =AO3 -> 0 | P24: =AS3 -> 0 | Q24: =R24*293 -> 0 | R24: =AT3-AU3 -> 0 | S24: =AT5-AU5 -> 0 | T24: =AT6-AU6 -> 0 | U24: =AT7-AU7 -> 0 | V24: =AT8-AU8 -> 0 | W24: =AT9-AU9 -> 0 | X24: =AT10-AU10 -> 0 | Y24: =AT4-AU4 -> 0 | Z24: 0 | BE24: fossil + grid MMBTU | BF24: =BG12-BF14 -> 57.51 | BG24: =BI12-BI14 -> -7.35197 | BH24: =1-(BG24/BF24) -> 1.127838115
N25: Generation | O25: =AV3 -> PV Scenario One | P25: =AW3 -> 19456 | Q25: =R25*293 -> 0 | AA25: =BB12 -> 20.8739 | AB25: =BA3 -> 5560 | AC25: =Q25/AB25 -> 0 | BE25: Renewable % of Fossil & Biomass Load + Grid Consumption | BF25: =BF14/((SUM(BF4:BF10)*AE12)+BF3) -> 0 | BG25: =BI14/((SUM(BI4:BI10)*AF12)+BI3) -> 1.543707148 | BI25: placeholder based on heat eff. NEED DHW EF TO CALC
N26: Total | P26: =SUM(P21:P25) -> 19956 | Q26: -326.08849 | R26: =SUM(R21:R25)+R19 -> -13.52193 | S26: =SUM(S21:S25)+S19 -> 0 | T26: 0 | U26: 0 | V26: 0 | W26: 57.51 | X26: 0 | Y26: 0 | Z26: =SUM(Z21:Z25)+Z19 -> 43.98807 | AA26: =Z26+AA25 -> 64.86197 | AB26: <<savings w/ PV | BE26: Shell Load | BF26: =AC12*AE12 -> 47.1582 | BG26: =AD12*AF12 -> 31.0225 | BH26: =1-(BG26/BF26) -> 0.3421610664
AA27: =AA26*50 -> 3243.0985 | AB27: <<incentive
O29: Heat/Shell interactive MMBTU/yr | T29: heat/shell savings allocation example approved by EVT per Jake Marin email 7/27
O30: Existing | P30: Proposed | Q30: Saved | V30: heating and shell model; MMBTUs
N31: Total MMBTUs, all fuels | O31: =SUM(O3:O10) -> 57.51 | P31: =O31-Z26 -> 13.52193 | Q31: =O31-P31 -> 43.98807 | V31: existing | W31: proposed | X31: saved
N32: WX upgrade w/ EXISTING heat | O32: =SUM(R3:R10)+SUM(X3:X10) -> 33.964 | P32: =SUM(S3:S10)+SUM(Y3:Y10) -> 14.28643 | Q32: =O32-P32 -> 19.67757 | R32: <<EVT claim | U32: shell load | V32: =O35 -> 27.8506 | W32: =P35 -> 11.7149 | X32: =V32-W32 -> 16.1357 | Y32: <<shell only savings
N33: WX + NEW heat | O33: =SUM(AC3:AC10) -> 57.51 | P33: =SUM(AD3:AD10) -> 12.409 | Q33: =O33-P33 -> 45.101 | R33: <<heat+shell combined savings | U33: heat eff | V33: =AE12 -> 0.82 | W33: =AF12 -> 2.5
N34: Heat Eff (average of all) | O34: =AE12 -> 0.82 | P34: =AF12 -> 2.5 | Q34: na | U34: consump | V34: =V32/V33 -> 33.96414634 | W34: =W32/W33 -> 4.68596 | X34: =V34-W34 -> 29.27818634 | Y34: <<total mmbtu available for savings claims
N35: Shell Load (modeled portion only) | O35: =U12 -> 27.8506 | P35: =V12 -> 11.7149 | Q35: =O35-P35 -> 16.1357 | U35: heating only | V35: =V34-V32 -> 6.113546341 | W35: =W34-W32 -> -7.02894 | X35: =V35-W35 -> 13.14248634
N36: NEW HEAT portion of savings with WX | O36: =O33-O35 -> 29.6594 | P36: =P33-P35 -> 0.6941 | Q36: =O36-P36 -> 28.9653
N37: adjusted heating system only savings | Q37: =(V12/AE12)-(V12/AF12) -> 9.600503415 | R37: <<GMP claim | V37: savings claims
V38: consumption | W38: savings
Q39: =Q31-Q32 -> 24.3105 | R39: Total | U39: new shell and existing heat | V39: =W32/V33 -> 14.28646341 | W39: =V34-V39 -> 19.67768293 | X39: <<what EVT claims
U40: new heating only with new shell | V40: =W35 -> -7.02894 | W40: =(W32/V33)-(W32/W33) -> 9.600503415 | X40: <<what GMP claims
W41: =W40+W39 -> 29.27818634 | X41: total savings claimed

Sheet Ward
N1: 1 | O1: 2 | P1: 3 | Q1: 4 | R1: 5 | S1: 6 | T1: 7 | U1: 8 | V1: 9 | W1: 10 | X1: 11 | Y1: 12 | Z1: 13 | AA1: 14 | AB1: 15 | AC1: 16 | AD1: 17 | AE1: 18 | AF1: 19 | AG1: 20 | AH1: 21 | AI1: 22 | AJ1: 23 | AK1: 24 | AL1: 25 | AM1: 26 | AN1: 27 | AO1: 28 | AP1: 29 | AQ1: 30 | AR1: 31 | AS1: 32 | AT1: 33 | AU1: 34 | AV1: 35 | AW1: 36 | AX1: 37 | AY1: 38 | AZ1: 39
A2: Customer Name | B2: Street | C2: Apartment / Suite number | D2: City | E2: Zip code | F2: Project type | G2: Contractor Name | H2: Contractor Company | I2: Project start date | J2: Most recent update | K2: ZEN! Rebate | L2: EVT Rebate | M2: Other Rebates | N2: Fuel | O2: Existing MMBTU | P2: Shell Scenario | Q2: Insulation Cost | R2: Insulation Consumption Existing | S2: Insulation Consumption Proposed without heating improvement | T2: Insulation Consumption Proposed with heating improvement | U2: Shell Load Existing | V2: Shell Load Improved | W2: AL/MV Cost | X2: AL/MV Consumption Existing | Y2: AL/MV Consumption Proposed without heating improvement | Z2: AL/MV Consumption Proposed with heating improvement | AA2: Heating Scenario | AB2: Heating Scenario Cost | AC2: Heating Consumption Existing | AD2: Heating Consumption Improved (with shell improvement) | AE2: Heating Eff, Avg, Existing | AF2: Heating Eff, Avg, Proposed | AG2: DHW Scenario | AH2: DHW Scenario Cost | AI2: DHW Consumption Existing | AJ2: DHW Consumption Improved | AK2: Cooling Scenario | AL2: Cooling Scenario Cost | AM2: Cooling Consumption Existing | AN2: Cooling Consumption Improved | AO2: Appliance/Lighting Scenario | AP2: Appliance Cost | AQ2: Appliance Consumption Existing | AR2: Appliance Consumption Improved | AS2: Lighting Cost | AT2: Lighting Consumption Existing | AU2: Lighting Consumption Improved | AV2: Generation Scenario | AW2: Generation Cost | AX2: Generation Existing mmbtu | AY2: Generation Existing Watts | AZ2: Generation New mmbtu | BA2: Generation New Watts | BB2: Generation Total mmbtu | BC2: Generation Total Watts
A3: David Ward | B3: 120 Lincoln Avenue | D3: Saint Albans | E3: 5478 | F3: Residential | G3: Russ Flanigan Building Energy Vt | H3: Building Energy | I3: 06/03/2016 - 11:36 | J3: 07/25/2016 - 07:55 | K3: 3221.94 | L3: 1728 | M3: 0 | N3: Electric | O3: 30.1982 | P3: Shell Scenario One | Q3: 7044 | R3: 0 | S3: 0 | T3: 0.894876 | U3: 42.4118 | V3: 18.4212 | W3: 1036 | X3: 0 | Y3: 0 | Z3: 4.26152 | AA3: Heating Scenario One | AB3: 8850 | AC3: 0 | AD3: 5.15644 | AE3: 0.92 | AF3: 1.88619 | AG3: Hot Water Scenario One | AH3: 1950 | AI3: 15.2152 | AJ3: 4.30721 | AK3: Cooling Scenario One | AL3: 4500 | AM3: 1.27105 | AN3: 2.09434 | AS3: 0 | AT3: 0 | AU3: 0 | AV3: PV Scenario One | AW3: 17266 | AX3: 0 | AY3: 0 | AZ3: 18.0206 | BA3: 4800 | BB3: 18.0206 | BC3: 4800
A4: David Ward | B4: 120 Lincoln Avenue | D4: Saint Albans | E4: 5478 | F4: Residential | G4: Russ Flanigan Building Energy Vt | H4: Building Energy | I4: 06/03/2016 - 11:36 | J4: 07/25/2016 - 07:55 | K4: 3221.94 | L4: 1728 | M4: 0 | N4: Wood Pellets | O4: 0 | P4: Shell Scenario One | Q4: 7044 | R4: 0 | S4: 0 | T4: 0 | U4: 42.4118 | V4: 18.4212 | W4: 1036 | X4: 0 | Y4: 0 | Z4: 0 | AA4: Heating Scenario One | AB4: 8850 | AC4: 0 | AD4: 0 | AE4: 0.92 | AF4: 1.88619 | AG4: Hot Water Scenario One | AH4: 1950 | AI4: 0 | AJ4: 0 | AK4: Cooling Scenario One | AL4: 4500 | AM4: 0 | AN4: 0 | AV4: PV Scenario One | AW4: 17266 | AX4: 0 | AY4: 0 | AZ4: 0 | BA4: 0 | BB4: 0 | BC4: 0
A5: David Ward | B5: 120 Lincoln Avenue | D5: Saint Albans | E5: 5478 | F5: Residential | G5: Russ Flanigan Building Energy Vt | H5: Building Energy | I5: 06/03/2016 - 11:36 | J5: 07/25/2016 - 07:55 | K5: 3221.94 | L5: 1728 | M5: 0 | N5: Natural Gas | O5: 46.1 | P5: Shell Scenario One | Q5: 7044 | R5: 20.3433 | S5: 3.47493 | T5: 0.800044 | U5: 42.4118 | V5: 18.4212 | W5: 1036 | X5: 25.7566 | Y5: 16.5481 | Z5: 3.80992 | AA5: Heating Scenario One | AB5: 8850 | AC5: 46.1 | AD5: 4.61 | AE5: 0.92 | AF5: 1.88619 | AG5: Hot Water Scenario One | AH5: 1950 | AI5: 0 | AJ5: 0 | AK5: Cooling Scenario One | AL5: 4500 | AM5: 0 | AN5: 0 | AQ5: 0 | AR5: 0 | AT5: 0 | AU5: 0 | AV5: PV Scenario One | AW5: 17266 | AX5: 0 | AY5: 0 | AZ5: 0 | BA5: 0 | BB5: 0 | BC5: 0
A6: David Ward | B6: 120 Lincoln Avenue | D6: Saint Albans | E6: 5478 | F6: Residential | G6: Russ Flanigan Building Energy Vt | H6: Building Energy | I6: 06/03/2016 - 11:36 | J6: 07/25/2016 - 07:55 | K6: 3221.94 | L6: 1728 | M6: 0 | N6: Coal | O6: 0 | P6: Shell Scenario One | Q6: 7044 | R6: 0 | S6: 0 | T6: 0 | U6: 42.4118 | V6: 18.4212 | W6: 1036 | X6: 0 | Y6: 0 | Z6: 0 | AA6: Heating Scenario One | AB6: 8850 | AC6: 0 | AD6: 0 | AE6: 0.92 | AF6: 1.88619 | AG6: Hot Water Scenario One | AH6: 1950 | AI6: 0 | AJ6: 0 | AK6: Cooling Scenario One | AL6: 4500 | AM6: 0 | AN6: 0 | AQ6: 0 | AR6: 0 | AT6: 0 | AU6: 0 | AV6: PV Scenario One | AW6: 17266 | AX6: 0 | AY6: 0 | AZ6: 0 | BA6: 0 | BB6: 0 | BC6: 0
A7: David Ward | B7: 120 Lincoln Avenue | D7: Saint Albans | E7: 5478 | F7: Residential | G7: Russ Flanigan Building Energy Vt | H7: Building Energy | I7: 06/03/2016 - 11:36 | J7: 07/25/2016 - 07:55 | K7: 3221.94 | L7: 1728 | M7: 0 | N7: LP Gas | O7: 0 | P7: Shell Scenario One | Q7: 7044 | R7: 0 | S7: 0 | T7: 0 | U7: 42.4118 | V7: 18.4212 | W7: 1036 | X7: 0 | Y7: 0 | Z7: 0 | AA7: Heating Scenario One | AB7: 8850 | AC7: 0 | AD7: 0 | AE7: 0.92 | AF7: 1.88619 | AG7: Hot Water Scenario One | AH7: 1950 | AI7: 0 | AJ7: 0 | AK7: Cooling Scenario One | AL7: 4500 | AM7: 0 | AN7: 0 | AQ7: 0 | AR7: 0 | AT7: 0 | AU7: 0 | AV7: PV Scenario One | AW7: 17266 | AX7: 0 | AY7: 0 | AZ7: 0 | BA7: 0 | BB7: 0 | BC7: 0
A8: David Ward | B8: 120 Lincoln Avenue | D8: Saint Albans | E8: 5478 | F8: Residential | G8: Russ Flanigan Building Energy Vt | H8: Building Energy | I8: 06/03/2016 - 11:36 | J8: 07/25/2016 - 07:55 | K8: 3221.94 | L8: 1728 | M8: 0 | N8: Oil | O8: 0 | P8: Shell Scenario One | Q8: 7044 | R8: 0 | S8: 0 | T8: 0 | U8: 42.4118 | V8: 18.4212 | W8: 1036 | X8: 0 | Y8: 0 | Z8: 0 | AA8: Heating Scenario One | AB8: 8850 | AC8: 0 | AD8: 0 | AE8: 0.92 | AF8: 1.88619 | AG8: Hot Water Scenario One | AH8: 1950 | AI8: 0 | AJ8: 0 | AK8: Cooling Scenario One | AL8: 4500 | AM8: 0 | AN8: 0 | AQ8: 0 | AR8: 0 | AT8: 0 | AU8: 0 | AV8: PV Scenario One | AW8: 17266 | AX8: 0 | AY8: 0 | AZ8: 0 | BA8: 0 | BB8: 0 | BC8: 0
A9: David Ward | B9: 120 Lincoln Avenue | D9: Saint Albans | E9: 5478 | F9: Residential | G9: Russ Flanigan Building Energy Vt | H9: Building Energy | I9: 06/03/2016 - 11:36 | J9: 07/25/2016 - 07:55 | K9: 3221.94 | L9: 1728 | M9: 0 | N9: Kerosene | O9: 0 | P9: Shell Scenario One | Q9: 7044 | R9: 0 | S9: 0 | T9: 0 | U9: 42.4118 | V9: 18.4212 | W9: 1036 | X9: 0 | Y9: 0 | Z9: 0 | AA9: Heating Scenario One | AB9: 8850 | AC9: 0 | AD9: 0 | AE9: 0.92 | AF9: 1.88619 | AG9: Hot Water Scenario One | AH9: 1950 | AI9: 0 | AJ9: 0 | AK9: Cooling Scenario One | AL9: 4500 | AM9: 0 | AN9: 0 | AQ9: 0 | AR9: 0 | AT9: 0 | AU9: 0 | AV9: PV Scenario One | AW9: 17266 | AX9: 0 | AY9: 0 | AZ9: 0 | BA9: 0 | BB9: 0 | BC9: 0
A10: David Ward | B10: 120 Lincoln Avenue | D10: Saint Albans | E10: 5478 | F10: Residential | G10: Russ Flanigan Building Energy Vt | H10: Building Energy | I10: 06/03/2016 - 11:36 | J10: 07/25/2016 - 07:55 | K10: 3221.94 | L10: 1728 | M10: 0 | N10: Wood | O10: 0 | P10: Shell Scenario One | Q10: 7044 | R10: 0 | S10: 0 | T10: 0 | U10: 42.4118 | V10: 18.4212 | W10: 1036 | X10: 0 | Y10: 0 | Z10: 0 | AA10: Heating Scenario One | AB10: 8850 | AC10: 0 | AD10: 0 | AE10: 0.92 | AF10: 1.88619 | AG10: Hot Water Scenario One | AH10: 1950 | AI10: 0 | AJ10: 0 | AK10: Cooling Scenario One | AL10: 4500 | AM10: 0 | AN10: 0 | AQ10: 0 | AR10: 0 | AT10: 0 | AU10: 0 | AV10: PV Scenario One | AW10: 17266 | AX10: 0 | AY10: 0 | AZ10: 0 | BA10: 0 | BB10: 0 | BC10: 0
N12: Totals | O12: 76.2982 | Q12: 7044 | R12: 20.3433 | S12: 3.47493 | T12: 1.69492 | U12: 42.4118 | V12: 18.4212 | W12: 1036 | X12: 25.7566 | Y12: 16.5481 | Z12: 8.07144 | AB12: 8850 | AC12: 46.1 | AD12: 9.76644 | AE12: 0.92 | AF12: 1.88619 | AH12: 1950 | AI12: 15.2152 | AJ12: 4.30721 | AL12: 4500 | AM12: 1.27105 | AN12: 2.09434 | AP12: 0 | AQ12: 0 | AR12: 0 | AS12: 0 | AT12: 0 | AU12: 0 | AW12: 17266 | AX12: 0 | AY12: 0 | AZ12: 18.0206 | BA12: 4800 | BB12: 18.0206 | BC12: 4800
O16: Improvement Savings by Fuel and End Use Category | R16: Annual MMBTU Savings
O17: Scenario | P17: scenario cost | Q17: Electric kWh | R17: Electric | S17: Natural Gas | T17: Coal | U17: LP Gas | V17: Oil | W17: Kerosene | X17: Wood | Y17: Wood Pellets | Z17: Total MMBTU Savings | AA17: Generation New mmbtu | AB17: Generation New Watts | AC17: kWh/W
A18: NSB Inputs | N18: NEW Shell w/ existing heat | O18: Shell Scenario One | P18: 8080 | Q18: 0 | R18: 0 | S18: 26.07697 | T18: 0 | U18: 0 | V18: 0 | W18: 0 | X18: 0 | Y18: 0 | Z18: 26.07697 | AA18: <<EVT heat/shell claim
N19: NEW Shell w/ new heat | O19: Shell Scenario One | P19: 16930 | Q19: -1510.824028 | R19: -5.156396 | S19: 41.490036 | T19: 0 | U19: 0 | V19: 0 | W19: 0 | X19: 0 | Y19: 0 | Z19: 36.33364 | AA19: <<heat/shell gross savings
N20: EVT ADJUSTED Heating system benefits | O20: Heating Scenario One | P20: 8850 | Q20: -1510.824028 | R20: -5.156396 | S20: 15.413066 | T20: 0 | U20: 0 | V20: 0 | W20: 0 | X20: 0 | Y20: 0 | Z20: 10.25667 | AA20: <<GMP heat/shell claim
C21: Savings | G21: Measure | N21: DHW | O21: Hot Water Scenario One | P21: 1950 | Q21: 3196.04107 | R21: 10.90799 | S21: 0 | T21: 0 | U21: 0 | V21: 0 | W21: 0 | X21: 0 | Y21: 0 | Z21: 10.90799
C22: kWh | D22: MMBtu | H22: Full Cost | J22: GMP Share | N22: Cooling | O22: Cooling Scenario One | P22: 4500 | Q22: -241.22397 | R22: -0.82329 | S22: 0 | T22: 0 | U22: 0 | V22: 0 | W22: 0 | X22: 0 | Y22: 0 | Z22: -0.82329
A23: Measure | B23: Lifetime | C23: Elec | D23: Oil | E23: Kero | F23: Nat Gas | G23: Life | H23: Installed Cost | I23: Replacement Cost | J23: GMP Percent | K23: Installed Cost | L23: Replacement Cost | N23: Appliance | O23: 0 | P23: 0 | Q23: 0 | R23: 0 | S23: 0 | T23: 0 | U23: 0 | V23: 0 | W23: 0 | X23: 0 | Y23: 0 | Z23: 0
A24: Heating Scenario One | F24: 10.25667 | G24: 15 | H24: 8850 | I24: 6195 | J24: 0.2822924409 | K24: 2498.288102 | L24: 1748.801672 | N24: Lighting | O24: 0 | P24: 0 | Q24: 0 | R24: 0 | S24: 0 | T24: 0 | U24: 0 | V24: 0 | W24: 0 | X24: 0 | Y24: 0 | Z24: 0
A25: Cooling Scenario One | C25: -241.22397 | G25: 15 | H25: 4500 | I25: 3150 | J25: 0.2822924409 | K25: 1270.315984 | L25: 889.221189 | N25: Generation | O25: PV Scenario One | P25: 17266 | Q25: 5280.0358 | R25: 18.0206 | AA25: 18.0206 | AB25: 4800 | AC25: 1.100007458
A26: PV Scenario One | C26: 5280.0358 | G26: 25 | H26: 17266 | I26: 12086.2 | J26: 1 | K26: 17266 | L26: 12086.2 | N26: Total | P26: 23716 | Q26: 8234.8529 | R26: 28.1053 | S26: 0 | T26: 0 | U26: 0 | V26: 0 | W26: 0 | X26: 0 | Y26: 0 | Z26: 46.41834 | AA26: 18.0206
O29: Heat/Shell interactive MMBTU/yr | T29: heat/shell savings allocation example approved by EVT per Jake Marin email 7/27
O30: Existing | P30: Proposed | Q30: Saved | V30: heating and shell model; MMBTUs
N31: Total MMBTUs, all fuels | O31: 76.2982 | P31: 29.87986 | Q31: 46.41834 | V31: existing | W31: proposed | X31: saved
N32: WX upgrade w/ EXISTING heat | O32: 46.0999 | P32: 20.02303 | Q32: 26.07687 | R32: <<EVT claim | U32: shell load | V32: 42.4118 | W32: 18.4212 | X32: 23.9906 | Y32: <<shell only savings
N33: WX + NEW heat | O33: 46.1 | P33: 9.76644 | Q33: 36.33356 | R33: <<heat+shell combined savings | U33: heat eff | V33: 0.92 | W33: 1.88619
N34: Heat Eff (average of all) | O34: 0.92 | P34: 1.88619 | Q34: na | U34: consump | V34: 46.09978261 | W34: 9.766354397 | X34: 36.33342821 | Y34: <<total mmbtu available for savings claims
N35: Shell Load | O35: 42.4118 | P35: 18.4212 | Q35: 23.9906 | U35: heating only | V35: 3.687982609 | W35: -8.654845603 | X35: 12.34282821
N36: NEW HEAT portion of savings with WX | O36: 3.6882 | P36: -8.65476 | Q36: 12.34296
N37: adjusted heating system only savings | Q37: 10.25668908 | R37: <<GMP claim | V37: savings claims
V38: consumption | W38: savings
Q39: =Q31-Q32 -> 20.34147 | U39: new shell and existing heat | V39: 20.02304348 | W39: 26.07673913 | X39: <<what EVT claims
U40: new heating only with new shell | V40: -8.654845603 | W40: 10.25668908 | X40: <<what GMP claims
W41: 36.33342821 | X41: total savings claimed

Sheet Lookup tables
B1: Lookup Tables
B3: Load Profile Table
B4: New profiles may be added by inserting rows
D5: % of annual kWh | H5: Peak as % of calculated kW savings
A6: Customer Class | B6: End Use | C6: Lookup ID | D6: Winter Peak | E6: Winter Off-Peak | F6: Summer Peak | G6: Summer Off-Peak | H6: Winter | I6: Summer | J6: Fall/Spring | K6: Full load hours | L6: Source | O6: Load profile version | T6: Sum of Energy Periods
A7: Residential | B7: Residential Indoor Lighting | C7: 1 | D7: 0.369 | E7: 0.35 | F7: 0.13 | G7: 0.151 | H7: 0.298 | I7: 0.082 | K7: 1241 | L7: RER 8760 data. See Res and Com loadshapes 1-16-09.xls. CF from RLW NE study. | O7: 1a | T7: =SUM(D7:G7) -> 1
B8: Residential Outdoor Lighting | C8: 2 | D8: 0.205 | E8: 0.506 | F8: 0.061 | G8: 0.228 | H8: 0.346 | I8: 0.018 | K8: 1643 | L8: Energy percentages same as commercial outdoor lighting. Hours consistent with TRM for EPP exterior fluorescent. Coincident factors based on commercial outdoor lighting, but adjusted by ratio of hours. | O8: 2a | T8: 1
B9: Residential Outdoor HID | C9: 3 | D9: 0.205 | E9: 0.506 | F9: 0.061 | G9: 0.228 | H9: 0.614 | I9: 0.032 | K9: 2920 | L9: Energy percentages same as commercial outdoor lighting. Hours same as original assumption -- based on 8 hrs per day average usage. Coincident factors based on commercial outdoor lighting, but adjusted by ratio of hours. | O9: 3a | T9: 1
B10: Residential Refrigerator | C10: 4 | D10: 0.308 | E10: 0.33 | F10: 0.171 | G10: 0.191 | H10: 0.796 | I10: 1 | K10: 8477 | L10: RER 8760 data for energy. See Res and Com loadshapes 1-16-09.xls. See Pf 80 for demand and hours | O10: 4b | T10: 1
B11: Residential Space heat | C11: 5 | D11: 0.455 | E11: 0.53 | F11: 0.006 | G11: 0.009 | H11: 0.454 | I11: 0 | K11: 841 | L11: RER 8760 data. See Res and Com loadshapes 1-16-09.xls | O11: 5a | T11: 1
B12: Residential DHW fuel switch | C12: 6 | D12: 0.402 | E12: 0.32 | F12: 0.151 | G12: 0.127 | H12: 0.401 | I12: 0.203 | K12: 2533.333333 | L12: RER 8760 data. See Res and Com loadshapes 1-16-09.xls | O12: 6a | T12: 1
B13: Residential DHW insulation | C13: 7 | D13: 0.317 | E13: 0.349 | F13: 0.159 | G13: 0.175 | H13: 1 | I13: 1 | K13: 8760 | L13: Flat load shape | O13: 7a | T13: 1
B14: Residential DHW conserve | C14: 8 | D14: 0.487 | E14: 0.291 | F14: 0.143 | G14: 0.079 | H14: 0.401 | I14: 0.203 | K14: 3427.058824 | L14: Assumes that this loadshape is the portion of the total DHW loadshape excluding standby losses (insulation). Assumes that standby losses represent approximately 50% of the total usage. CF same as overall DHW CF. | O14: 8a | T14: 1
B15: Residential Clothes Washer | C15: 9 | D15: 0.42 | E15: 0.288 | F15: 0.169 | G15: 0.123 | H15: 0.044 | I15: 0.033 | K15: 304 | L15: RER 8760 data. See Res and Com loadshapes 1-16-09.xls. | O15: 9a | T15: 1
B16: Residential Ventilation | C16: 10 | D16: 0.317 | E16: 0.349 | F16: 0.159 | G16: 0.175 | H16: 0.322 | I16: 0.322 | K16: 2816.666667 | L16: Flat load shape for 2817 hrs | O16: 10a | T16: 1
B17: Residential A/C | C17: 11 | D17: 0.007 | E17: 0.028 | F17: 0.533 | G17: 0.432 | H17: 0 | I17: 0.829 | K17: 375 | L17: RER 8760 data. See Res and Com loadshapes 1-16-09.xls. | O17: 11a | T17: 1
A18: Commercial | B18: Commercial Indoor Lighting - Blended | C18: 12 | D18: 0.488 | E18: 0.195 | F18: 0.222 | G18: 0.095 | H18: 0.469 | I18: 0.679 | K18: 3500 | L18: RER 8760 data for energy. KEMA 2011 study for CF | O18: 12d | T18: 1
B19: Commercial Outdoor Lighting | C19: 13 | D19: 0.205 | E19: 0.506 | F19: 0.061 | G19: 0.228 | H19: 0.702 | I19: 0.037 | K19: 3338 | L19: RER 8760 data. See Res and Com loadshapes 1-16-09.xls. | O19: 13a | T19: 1
B20: Commercial Refrigeration | C20: 14 | D20: 0.33 | E20: 0.326 | F20: 0.17 | G20: 0.174 | H20: 0.6904084148 | I20: 0.7718032081 | K20: 5857.868852 | L20: RER 8760 data. See Res and Com loadshapes 1-16-09.xls. | O20: 14a | T20: 1
B21: Commercial A/C | C21: 15 | D21: 0.18 | E21: 0.1 | F21: 0.46 | G21: 0.26 | H21: 0 | I21: 0.342 | K21: 1000 | L21: KEMA AC load shape study for unitary AC - using for other AC technologies in absence of other data | O21: 15c | T21: 1
B22: Commercial Ventilation motor | C22: 16 | D22: 0.344 | E22: 0.366 | F22: 0.149 | G22: 0.141 | H22: 0.599 | I22: 0.555 | K22: 4855.997204 | L22: RER 8760 data. See Res and Com loadshapes 1-16-09.xls. | O22: 16a | T22: 1
B23: Commercial Space heat | C23: 17 | D23: 0.387 | E23: 0.612 | F23: 0 | G23: 0.001 | H23: 0.57 | I23: 0.003 | K23: 1417 | L23: RER 8760 data. See Res and Com loadshapes 1-16-09.xls. | O23: 17a | T23: 1
A24: Industrial | B24: Industrial Indoor Lighting | C24: 18 | D24: 0.578 | E24: 0.088 | F24: 0.29 | G24: 0.044 | H24: 0.497 | I24: 0.759 | K24: 4781 | L24: RER 8760 data for energy. KEMA 2011 study for CF | O24: 18b | T24: 1
B25: Industrial Outdoor Lighting | C25: 19 | D25: 0.205 | E25: 0.506 | F25: 0.061 | G25: 0.228 | H25: 0.702 | I25: 0.037 | K25: 3338 | L25: Same as commercial outdoor lighting | O25: 19a | T25: 1
B26: Industrial A/C | C26: 20 | D26: 0.18 | E26: 0.1 | F26: 0.46 | G26: 0.26 | H26: 0 | I26: 0.342 | K26: 1000 | L26: Same as commercial A/C | O26: 20c | T26: 1
B27: Industrial Motor | C27: 21 | D27: 0.624 | E27: 0.042 | F27: 0.313 | G27: 0.021 | H27: 0.95 | I27: 0.95 | K27: 4500 | L27: Based on 2-shift. | O27: 21a | T27: 1
B28: Industrial Space heat | C28: 22 | D28: 0.387 | E28: 0.612 | F28: 0 | G28: 0.001 | H28: 0.57 | I28: 0.003 | K28: 1417 | L28: Same as commercial space heat | O28: 22a | T28: 1
B29: Industrial Process | C29: 23 | D29: 0.624 | E29: 0.042 | F29: 0.313 | G29: 0.021 | H29: 0.95 | I29: 0.95 | K29: 4160 | L29: Based on 2-shift. | O29: 23a | T29: 1
A30: Dairy Farm | B30: Dairy Farm Combined End Uses | C30: 24 | D30: 0.436 | E30: 0.232 | F30: 0.217 | G30: 0.115 | H30: 0.915 | I30: 0.341 | K30: 2679.306253 | L30: Small_Dairy_Farm_Combined_loadshape_022807 Avg Year.xls and Large_Dairy_Farm_Milking_loadshape_022807 Avg Year.xls | O30: 24a | T30: 1
A31: Any | B31: Flat (8760 hours) | C31: 25 | D31: 0.317 | E31: 0.349 | F31: 0.159 | G31: 0.175 | H31: 1 | I31: 1 | K31: 8760 | L31: Flat, full time load shape. See Flat_loadshape_022807 Avg Year.xls | O31: 25a | T31: 1
A32: Commercial | B32: HVAC Pump Motor (heating) | C32: 26 | D32: 0.476 | E32: 0.524 | F32: 0 | G32: 0 | H32: 1 | I32: 0 | K32: 3389 | L32: Assumes operating October to April, 24 hours per day. See HVAC_Pump_Motor_Heating_loadshape_022807 Avg Year.xls. | O32: 26a | T32: 1
A33: Commercial | B33: HVAC Pump Motor (cooling) | C33: 27 | D33: 0.096 | E33: 0.106 | F33: 0.38 | G33: 0.418 | H33: 0 | I33: 1 | K33: 2115 | L33: Assumes operating May to September 24 hours per day. | O33: 27a | T33: 1
A34: Commercial | B34: HVAC Pump Motor (unknown use) | C34: 28 | D34: 0.286 | E34: 0.315 | F34: 0.19 | G34: 0.209 | H34: 0.5 | I34: 0.5 | K34: 2513 | L34: Average of heating and cooling HVAC pump motor. | O34: 28a | T34: 1
A35: Commercial | B35: Traffic Signal - Red Balls, always changing or flashing | C35: 29 | D35: 0.317 | E35: 0.349 | F35: 0.159 | G35: 0.175 | H35: 0.55 | I35: 0.55 | K35: 4818 | L35: Always changing or flashing – on 55% of time | O35: 29a | T35: 1
A36: Commercial | B36: Traffic Signal - Red Balls, changing day, off night | C36: 30 | D36: 0.476 | E36: 0.19 | F36: 0.239 | G36: 0.095 | H36: 0.55 | I36: 0.55 | K36: 3011 | L36: Changing 6 am - 9 pm, off 9 pm - 6 am. See Traffic_Red_Off_Night_loadshape_022807 Avg Year.xls. | O36: 30a | T36: 1
A37: Commercial | B37: Traffic Signal - Green Balls, always changing | C37: 31 | D37: 0.317 | E37: 0.349 | F37: 0.159 | G37: 0.175 | H37: 0.42 | I37: 0.42 | K37: 3679 | L37: On 42% of time | O37: 31a | T37: 1
A38: Commercial | B38: Traffic Signal - Green Balls, changing day, off night | C38: 32 | D38: 0.476 | E38: 0.19 | F38: 0.239 | G38: 0.095 | H38: 0.42 | I38: 0.42 | K38: 2300 | L38: Changing 6 am - 9 pm, off 9 pm - 6 am | O38: 32a | T38: 1
A39: Commercial | B39: Traffic Signal - Red Arrows | C39: 33 | D39: 0.317 | E39: 0.349 | F39: 0.159 | G39: 0.175 | H39: 0.9 | I39: 0.9 | K39: 7884 | L39: On 90% of time | O39: 33a | T39: 1
A40: Commercial | B40: Traffic Signal - Green Arrows | C40: 34 | D40: 0.317 | E40: 0.349 | F40: 0.159 | G40: 0.175 | H40: 0.1 | I40: 0.1 | K40: 876 | L40: On 10% of time | O40: 34a | T40: 1
A41: Commercial | B41: Traffic Signal - Flashing Yellows | C41: 35 | D41: 0.317 | E41: 0.349 | F41: 0.159 | G41: 0.175 | H41: 0.5 | I41: 0.5 | K41: 4380 | L41: On 50% of time | O41: 35a | T41: 1
A42: Commercial | B42: Traffic Signal - “Hand” Don’t Walk Signal | C42: 36 | D42: 0.317 | E42: 0.349 | F42: 0.159 | G42: 0.175 | H42: 0.75 | I42: 0.75 | K42: 6570 | L42: On 75% of time | O42: 36a | T42: 1
A43: Commercial | B43: Traffic Signal - “Man” Walk Signal | C43: 37 | D43: 0.317 | E43: 0.349 | F43: 0.159 | G43: 0.175 | H43: 0.21 | I43: 0.21 | K43: 1840 | L43: On 21% of time | O43: 37a | T43: 1
A44: Commercial | B44: Commercial Heat Pump 0-65 kBTUh | C44: 38 | D44: 0.322 | E44: 0.438 | F44: 0.185 | G44: 0.055 | H44: 0.5856911208 | I44: 0.7543766507 | K44: 2276.627879 | L44: Weighted Cooling and Heating loadshapes. See Heatpump_loadshape_2007.xls | O44: 38b | T44: 1
A45: Commercial | B45: Commercial Heat Pump 65-375 kBTUh | C45: 39 | D45: 0.314 | E45: 0.416 | F45: 0.208 | G45: 0.062 | H45: 0.5868655838 | I45: 0.8106163619 | K45: 2400 | L45: Weighted Cooling and Heating loadshapes. See Heatpump_loadshape_2007.xls | O45: 39b | T45: 1
A46: Commercial | B46: Commercial PTHP | C46: 40 | D46: 0.313 | E46: 0.415 | F46: 0.21 | G46: 0.062 | H46: 0.5868655838 | I46: 0.8106163619 | K46: 2470 | L46: Weighted Cooling and Heating loadshapes. See Heatpump_loadshape_2007.xls | O46: 40b | T46: 1
A47: Commercial | B47: Commercial Water-Source Heat Pump | C47: 41 | D47: 0.281 | E47: 0.33 | F47: 0.3 | G47: 0.089 | H47: 0.5868655838 | I47: 0.8106163619 | K47: 4336 | L47: Weighted Cooling and Heating loadshapes. See Heatpump_loadshape_2007.xls | O47: 41b | T47: 1
A48: C/I | B48: Transformer | C48: 42 | D48: 0.5615845496 | E48: 0.09536430714 | F48: 0.2924201151 | G48: 0.05063102819 | H48: 1 | I48: 1 | K48: 8760 | L48: Weighted Commercial, Industrial and Agric. Total electric loadshape. | O48: 42a | T48: 1
A49: Commercial | B49: Vending Miser | C49: 43 | D49: 0.095 | E49: 0.571 | F49: 0.048 | G49: 0.286 | H49: 0 | I49: 0 | K49: 3650 | L49: Assumes savings occur from 8 PM to 6 AM, everyday. See Vending_Miser_loadshape_022807 Avg Year.xls | O49: 43a | T49: 1
A50: Industrial | B50: Indust. 1-shift (8/5) (e.g., comp. air) | C50: 44 | D50: 0.666 | E50: 0 | F50: 0.334 | G50: 0 | H50: 0 | I50: 0.59375 | K50: 1877.142857 | L50: Schedule based with diversity. See 1-shift_loadshape_011909.xls. | O50: 44b | T50: 1
A51: Industrial | B51: Indust. 2-shift (16/5) (e.g., comp. air) | C51: 45 | D51: 0.624 | E51: 0.042 | F51: 0.313 | G51: 0.021 | H51: 0.95 | I51: 0.95 | K51: 3962.857143 | L51: Schedule based with diversity. See 2-shift_loadshape_021607.xls | O51: 45a | T51: 1
A52: Industrial | B52: Indust. 3-shift (24/5) (e.g., comp. air) | C52: 46 | D52: 0.444 | E52: 0.222 | F52: 0.223 | G52: 0.111 | H52: 0.95 | I52: 0.95 | K52: 5944.285714 | L52: Schedule based with diversity. See 3-shift_loadshape_021607.xls | O52: 46a | T52: 1
A53: Industrial | B53: Indust. 4-shift (24/7) (e.g., comp. air) | C53: 47 | D53: 0.317 | E53: 0.349 | F53: 0.159 | G53: 0.175 | H53: 0.95 | I53: 0.95 | K53: 8322 | L53: Schedule based with diversity. See 4-shift_loadshape_021607.xls | O53: 47a | T53: 1
A54: Residential | B54: Storage ESH (Statewide) | C54: 48 | D54: 0.296 | E54: 0.687 | F54: 0.005 | G54: 0.012 | H54: 0 | I54: 0 | K54: 841 | L54: All factors are based on VEIC analysis of CVPS Rate 13 summarized in reference document: Statewide.Controlled.Ele.Space.Heat.loadshape_2-28-07.xls | O54: 48a | T54: 1
A55: Residential | B55: Controlled ESH (Statewide) | C55: 49 | D55: 0.296 | E55: 0.687 | F55: 0.005 | G55: 0.012 | H55: 0 | I55: 0 | K55: 841 | L55: All factors are based on VEIC analysis of CVPS Rate 13 summarized in reference document: Statewide.Controlled.Ele.Space.Heat.loadshape_2-28-07.xls | O55: 49a | T55: 1
A56: Residential | B56: Storage ESH (GMP) | C56: 50 | D56: 0.58 | E56: 0.403 | F56: 0.01 | G56: 0.007 | H56: 0.037 | I56: 0.003 | K56: 841 | L56: All factors are based on VEIC analysis of Green Mountain Power Screening Tool outputs summarized in referenced document: GMP.Storage.Ele.Space.Heat.loadshape_2-28-07.xls | O56: 50a | T56: 1
A57: Residential | B57: Controlled ESH (GMP) | C57: 51 | D57: 0.767 | E57: 0.215 | F57: 0.014 | G57: 0.004 | H57: 0.028 | I57: 0.002 | K57: 841 | L57: All factors are based on VEIC analysis of Green Mountain Power Screening Tool outputs summarized in referenced document: GMP.Controlled.Ele.Space.Heat.loadshape_2-28-07.xls | O57: 51a | T57: 1
A58: Residential | B58: Controlled DHW Fuel Switch | C58: 52 | D58: 0.402 | E58: 0.32 | F58: 0.151 | G58: 0.127 | H58: 0.205 | I58: 0.121 | K58: 2533.333333 | L58: Energy percentages same as uncontrolled. Coincident peak adjustments calculated in Controlled.DHW.loadshape_2-28-07.xls following same methodology used to develop original DHW control loadshapes and described in 10/30/01 memo to the DPS. | O58: 52a | T58: 1
A59: Residential | B59: Controlled DHW Insulation | C59: 53 | D59: 0.317 | E59: 0.349 | F59: 0.159 | G59: 0.175 | H59: 0.51 | I59: 0.594 | K59: 8760 | L59: Energy percentages same as uncontrolled. Coincident peak adjustments calculated in Controlled.DHW.loadshape_2-28-07.xls following same methodology used to develop original DHW control loadshapes and described in 10/30/01 memo to the DPS. | O59: 53a | T59: 1
A60: Residential | B60: Controlled DHW Conservation | C60: 54 | D60: 0.487 | E60: 0.291 | F60: 0.143 | G60: 0.079 | H60: 0.205 | I60: 0.121 | K60: 3427.058824 | L60: Energy percentages same as uncontrolled. Coincident peak adjustments calculated in Controlled.DHW.loadshape_2-28-07.xls following same methodology used to develop original DHW control loadshapes and described in 10/30/01 memo to the DPS. | O60: 54a | T60: 1
A61: Commercial | B61: VFD - Supply fans <10 HP | C61: 55 | D61: 0.39 | E61: 0.305 | F61: 0.216 | G61: 0.089 | H61: 0.198 | I61: 0.508 | L61: TRM Pf 72 | O61: 55b | T61: 1
A62: Commercial | B62: VFD - Return fans <10 HP | C62: 56 | D62: 0.39 | E62: 0.308 | F62: 0.214 | G62: 0.088 | H62: 0.285 | I62: 0.712 | L62: TRM Pf 72 | O62: 56b | T62: 1
A63: Commercial | B63: VFD - Exhaust fans <10 HP | C63: 57 | D63: 0.444 | E63: 0.222 | F63: 0.16 | G63: 0.174 | H63: 1 | I63: 0.37 | L63: Original energy loadshapes based on EVT custom analyses. Energy percentages maintain same seasonal ratio of peak to off-peak but shift total hours from Summer to Winter season relative to total seasonal hour change. See Res and Com loadshapes 1-16-09.xls. CF summer and winter from National Grid evaluations of VFD installations from 1995 to 1999. Gross kW/hp values in TRM reference table are coincident values for the winter peak for all applications except chilled water pumps, which uses a coincident value for the summer peak. Therefore, CFs for these periods are 100% because coincidence is already taken into account in the values. For other seasons, the CFs represent the percentage of the gross coincident winter or summer kW/hp. Winter chilled water pumps set to 0% based on assumption that most chillers are not operating in Vermont during the winter period. | O63: 57a | T63: 1
A64: Commercial | B64: VFD - Boiler feedwater pumps <10 HP | C64: 58 | D64: 0.536 | E64: 0.463 | F64: 0 | G64: 0.001 | H64: 1 | I64: 0.67 | L64: Original energy loadshapes based on EVT custom analyses. Energy percentages maintain same seasonal ratio of peak to off-peak but shift total heating hours from Summer to Winter season based on the heating loadshape. See Res and Com loadshapes 1-16-09.xls. CF summer and winter from National Grid evaluations of VFD installations from 1995 to 1999. Gross kW/hp values in TRM reference table are coincident values for the winter peak for all applications except chilled water pumps, which uses a coincident value for the summer peak. Therefore, CFs for these periods are 100% because coincidence is already taken into account in the values. For other seasons, the CFs represent the percentage of the gross coincident winter or summer kW/hp. Winter chilled water pumps set to 0% based on assumption that most chillers are not operating in Vermont during the winter period. | O64: 58a | T64: 1
A65: Commercial | B65: VFD - Chilled water pumps <10 HP | C65: 59 | D65: 0.309 | E65: 0.181 | F65: 0.359 | G65: 0.151 | H65: 0 | I65: 0.902 | L65: TRM Pf 72 | O65: 59b | T65: 1
A66: Commercial | B66: Economizer (AC) | C66: 60 | D66: 0.245 | E66: 0.237 | F66: 0.226 | G66: 0.292 | H66: 0 | I66: 0 | K66: 4438 | L66: Economizer_loadshape_022807.xls and BTV Hourly Bin Data with calcs 2-28-07.xls | O66: 60a | T66: 1
A67: Dairy Farm | B67: Milk Vacuum Pump | C67: 61 | D67: 0.369 | E67: 0.301 | F67: 0.182 | G67: 0.148 | H67: 0.634 | I67: 0.287 | L67: TRM Pf 77; Dairy_VFD_Analysis.xls | O67: 61b | P67: previously used loadshape #24 | T67: 1
A68: Commercial | B68: Office Computer | C68: 62 | D68: 0.289 | E68: 0.377 | F68: 0.145 | G68: 0.189 | H68: 0.579 | I68: 0.303 | L68: Loadshape for monitor power management. See <Computer Monitor Power Loadshape 2-28-07.xls> | O68: 62a | T68: =SUM(D68:G68) -> 1
A69: Commercial | B69: Commercial Indoor Lighting with cooling bonus | C69: 63 | D69: =D18 -> 0.488 | E69: 0.195 | F69: 0.222 | G69: 0.095 | H69: 0.469 | I69: 0.679 | K69: =K18 -> 3500 | L69: load shape obsolete - Same as number 12 because cooling bonus now applied separately | O69: 63a | T69: 1
A70: Industrial | B70: Industrial Indoor Lighting with cooling bonus | C70: 64 | D70: =D24 -> 0.578 | E70: 0.088 | F70: 0.29 | G70: 0.044 | H70: 0.497 | I70: 0.759 | K70: =K24 -> 4781 | L70: load shape obsolete - Same as number 18 because cooling bonus now applied separately | O70: 64a | T70: 1
A71: Commercial | B71: Continuous C&I Indoor Lighting with cooling bonus | C71: 65 | D71: =D31 -> 0.317 | E71: 0.349 | F71: 0.159 | G71: 0.175 | H71: 1 | I71: 1 | K71: =K31 -> 8760 | L71: load shape obsolete - Same as number 25 because cooling bonus now applied separately | O71: 65a | T71: 1
A72: Commercial | B72: Refrigeration Economizer | C72: 66 | D72: 0.443 | E72: 0.555 | F72: 0 | G72: 0.002 | H72: 1 | I72: 0 | K72: 2996 | L72: RefrigLoadshapes 02-28-07.xls and BTV Hourly Bin Data with calcs 2-28-07.xls | O72: 66a | T72: 1
A73: Commercial | B73: Strip Curtain | C73: 67 | D73: 0.33 | E73: 0.326 | F73: 0.17 | G73: 0.174 | H73: 1 | I73: 1 | K73: 8760 | L73: Same as Refrigeration energy loadshape. Kept same coincident factors. | O73: 67a | T73: 1
A74: Commercial | B74: Evaporator Fan Control | C74: 68 | D74: 0.291 | E74: 0.395 | F74: 0.137 | G74: 0.177 | H74: 0.459 | I74: 0.43 | K74: 4380 | L74: Combination of refrigeration and flat loadshapes. See RefrigLoadshapes 02-28-07.xls | O74: 68a | T74: 1
A75: Commercial | B75: Door Heater Control | C75: 69 | D75: 0.476 | E75: 0.524 | F75: 0 | G75: 0 | H75: 1 | I75: 0 | K75: 8760 | L75: Based on time of day and season schedule. See Door_heater_control_loadshape_022807 Avg Year.xls | O75: 69a | T75: 1
A76: Commercial | B76: Floating Head Pressure Control | C76: 70 | D76: 0.3326977908 | E76: 0.3706204411 | F76: 0.128478721 | G76: 0.1682030471 | H76: 1 | I76: 0 | K76: 7221 | L76: RefrigLoadshapes 02-28-07.xls and BTV Hourly Bin Data with calcs 2-28-07.xls | O76: 70a | T76: 1
A77: Residential | B77: Furnace Fan Heating and Cooling | C77: 71 | D77: 0.317 | E77: 0.375 | F77: 0.169 | G77: 0.139 | H77: 0.454 | I77: 0.829 | K77: 1216 | L77: Combined heating and cooling weighted by FLH heating and cooling. Winter CF equal to heating CF, Summer CF equal to A/C CF. Hours total of heating and cooling. | O77: 71a | T77: 1
A78: Commercial | B78: Traffic Signal - Bi-Modal Walk/Don’t Walk | C78: 72 | D78: 0.317 | E78: 0.349 | F78: 0.159 | G78: 0.175 | H78: 1 | I78: 1 | K78: 8760 | L78: Flat, full time load shape | O78: 72a | T78: 1
A79: Residential | B79: Residential - Dehumidifier | C79: 73 | D79: 0.159 | E79: 0.175 | F79: 0.317 | G79: 0.349 | H79: 0 | I79: 0.353 | K79: 1551 | L79: See <Dehumidifier Energy Savings.xls>. | O79: 73a | T79: 1
A80: Commercial | B80: Internal Power Supply, Commercial Desktop | C80: 74 | D80: 0.392 | E80: 0.275 | F80: 0.196 | G80: 0.137 | H80: 0.5 | I80: 0.8 | K80: 5523 | L80: TRM Pf 49. See Internal Power Supply Load Profile.xls | O80: 74a | T80: 1
A81: Residential | B81: Internal Power Supply, Residential Desktop | C81: 75 | D81: 0.338 | E81: 0.329 | F81: 0.169 | G81: 0.164 | H81: 0.522 | I81: 0.405 | K81: 3506 | L81: TRM Pf 49. See Internal Power Supply Load Profile.xls | O81: 75a | T81: 1
A82: Commercial | B82: VFD Boiler circulation pumps <10 HP | C82: 76 | D82: 0.459 | E82: 0.471 | F82: 0.046 | G82: 0.024 | H82: 0.495 | I82: 0.021 | L82: TRM Pf 72 | O82: 76b | T82: 1
A83: Commercial | B83: Refrigeration Night Covers | C83: 77 | D83: 0.06 | E83: 0.606 | F83: 0.03 | G83: 0.304 | H83: 0 | I83: 0 | K83: 2920 | L83: TRM Pf 37. Based on savings 11 pm to 7 am, Fixed energy to equal 100% | O83: 77a | T83: 1
A84: Commercial | B84: BLPM Fan Motor Commercial Heating | C84: 78 | D84: 0.344 | E84: 0.561 | F84: 0.045 | G84: 0.05 | H84: 0.502 | I84: 0.19 | K84: 2008 | L84: TRM Pf 43. See ECM fan motor.xls | O84: 78b | T84: 1
A85: Commercial | B85: BLPM Fan Motor Commercial Cooling | C85: 79 | D85: 0.183 | E85: 0.004 | F85: 0.674 | G85: 0.139 | H85: 0 | I85: 0.801 | K85: 814 | L85: TRM Pf 43. See ECM fan motor.xls | O85: 79b | T85: 1
A86: Commercial | B86: BLPM Fan Motor Commercial Heating & Cooling | C86: 80 | D86: 0.309 | E86: 0.422 | F86: 0.191 | G86: 0.078 | H86: 0.502 | I86: 0.524 | K86: 2428 | L86: TRM Pf 43. See ECM fan motor.xls | O86: 80b | T86: 1
A87: Commercial | B87: Core Performance – Office w/ Pkg VAV and Chiller | C87: 81 | D87: 0.322 | E87: 0.213 | F87: 0.307 | G87: 0.158 | H87: 0.132 | I87: 0.561 | L87: TRM Pf 53. See Enhanced Measures & Load Shapes v.2.xls | O87: 81a | T87: 1
A88: Commercial | B88: Core Performance – Office w/ Pkg RTU and HW baseboard | C88: 82 | D88: 0.418 | E88: 0.145 | F88: 0.31 | G88: 0.127 | H88: 0.187 | I88: 0.635 | L88: TRM Pf 53. See Enhanced Measures & Load Shapes v.2.xls. Fixed energy to equal 100% | O88: 82a | T88: 1
A89: Commercial | B89: Core Performance – Office w/ Pkg RTU and Furnace | C89: 83 | D89: 0.38 | E89: 0.152 | F89: 0.324 | G89: 0.144 | H89: 0.146 | I89: 0.575 | L89: TRM Pf 53. See Enhanced Measures & Load Shapes v.2.xls | O89: 83a | T89: 1
A90: Commercial | B90: Core Performance – Office w/ Water Source HP | C90: 84 | D90: 0.345 | E90: 0.217 | F90: 0.279 | G90: 0.159 | H90: 0.223 | I90: 0.74 | L90: TRM Pf 53. See Enhanced Measures & Load Shapes v.2.xls | O90: 84a | T90: 1
A91: Commercial | B91: Core Performance – School w/ Unit Vent. and Pkg units | C91: 85 | D91: 0.739 | E91: 0.082 | F91: 0.147 | G91: 0.032 | H91: 0.277 | I91: 0.088 | L91: TRM Pf 53. See Enhanced Measures & Load Shapes v.2.xls | O91: 85a | T91: 1
A92: Commercial | B92: Core Performance – Retail w/ Pkg RTU and Furnace | C92: 86 | D92: 0.357 | E92: 0.177 | F92: 0.311 | G92: 0.155 | H92: 0.16 | I92: 0.395 | L92: TRM Pf 53. See Enhanced Measures & Load Shapes v.2.xls | O92: 86a | T92: 1
A93: Commercial | B93: Grocery/Conv. Store Indoor Lighting | C93: 87 | D93: 0.397 | E93: 0.267 | F93: 0.197 | G93: 0.139 | H93: 0.847 | I93: 0.908 | K93: 6019 | L93: RER 8760 data for energy. KEMA 2011 study for CF | O93: 87b | T93: 1
A94: Commercial | B94: Hospital Indoor Lighting | C94: 88 | D94: 0.364 | E94: 0.302 | F94: 0.179 | G94: 0.155 | H94: 0.505 | I94: 0.701 | K94: 4007 | L94: RER 8760 data for energy. KEMA 2011 study for CF | O94: 88b | T94: 1
A95: Commercial | B95: Office Indoor Lighting | C95: 89 | D95: 0.547 | E95: 0.121 | F95: 0.27 | G95: 0.062 | H95: 0.427 | I95: 0.712 | K95: 3642 | L95: RER 8760 data for energy. KEMA 2011 study for CF | O95: 89b | T95: 1
A96: Commercial | B96: Restaurant Indoor Lighting | C96: 90 | D96: 0.407 | E96: 0.257 | F96: 0.202 | G96: 0.134 | H96: 0.63 | I96: 0.77 | K96: 4089 | L96: RER 8760 data for energy. KEMA 2011 study for CF | O96: 90b | T96: 1
A97: Commercial | B97: Retail Indoor Lighting | C97: 91 | D97: 0.455 | E97: 0.21 | F97: 0.226 | G97: 0.109 | H97: 0.517 | I97: 0.799 | K97: 4103 | L97: RER 8760 data for energy. KEMA 2011 study for CF | O97: 91b | T97: 1
A98: Commercial | B98: Warehouse Indoor Lighting | C98: 92 | D98: 0.509 | E98: 0.157 | F98: 0.253 | G98: 0.081 | H98: 0.449 | I98: 0.701 | K98: 4009 | L98: RER 8760 data for energy. KEMA 2011 study for CF | O98: 92b | T98: 1
A99: Commercial | B99: K-12 School Indoor Lighting | C99: 93 | D99: 0.591 | E99: 0.196 | F99: 0.146 | G99: 0.067 | H99: 0.287 | I99: 0.509 | K99: 2456 | L99: RER 8760 data for energy. KEMA 2011 study for CF | O99: 93b | T99: 1
A100: Residential | B100: Efficient Television | C100: 94 | D100: 0.48 | E100: 0.19 | F100: 0.24 | G100: 0.09 | H100: 0.22 | I100: 0.17 | K100: 1825 | L100: TRM Pf 56. See Efficient Televisions Measure Assumptions.xls | O100: 94a | T100: 1
A101: Residential | B101: Pool Pump Timer | C101: 95 | D101: 0 | E101: 0 | F101: 0.23 | G101: 0.77 | H101: 0 | I101: 0.1 | K101: 813 | L101: TRM Pf 58. See Screening Assumptions for Efficient Pool Pump & Timer TRM.xls | O101: 95a | T101: 1
A102: Residential | B102: Standby Losses - Entertainment Center | C102: 96 | D102: 0.32 | E102: 0.35 | F102: 0.16 | G102: 0.17 | H102: 0.725 | I102: 0.9 | K102: 6935 | L102: TRM Pf 57. See Loadshape_smart.xls | O102: 96a | T102: 1
A103: Residential | B103: Standby Losses - Home Office | C103: 97 | D103: 0.29 | E103: 0.38 | F103: 0.14 | G103: 0.19 | H103: 0.25 | I103: 0.763 | K103: 5250 | L103: TRM Pf 57. See Loadshape_smart.xls. Fixed energy to equal 100% | O103: 97a | T103: 1
A104: Residential | B104: Standby Losses - Commercial Office | C104: 98 | D104: 0.07 | E104: 0.6 | F104: 0.03 | G104: 0.3 | H104: 0.08 | I104: 0.01 | K104: 3199 | L104: TRM Pf 57. See Loadshape_smart.xls | O104: 98a | T104: 1
A105: Residential | B105: Room Air Conditioning | C105: 99 | D105: 0.007 | E105: 0.028 | F105: 0.533 | G105: 0.432 | H105: 0 | I105: 0.276 | K105: 166 | L105: RER 8760 data. See Res and Com loadshapes 1-16-09.xls. Updated with regional RLW study on RAC (2009) | O105: 99a | T105: 1
A106: Residential | B106: Efficient Pool Pump | C106: 100 | D106: 0 | E106: 0 | F106: 0.65 | G106: 0.35 | H106: 0 | I106: 0.831 | K106: 1498 | L106: TRM Pf 58. See Screening Assumptions for Efficient Pool Pump & Timer TRM.xls | O106: 100a | T106: 1
A107: Commercial | B107: Commercial EP Lighting | C107: 101 | D107: 0.488 | E107: 0.195 | F107: 0.222 | G107: 0.095 | H107: 0.372 | I107: 0.681 | K107: 2800 | L107: RER 8760 data for energy. KEMA 2011 study for CF | O107: 101b
A108: Commercial | B108: VFD - Boiler draft fans <10 HP | C108: 102 | D108: 0.458 | E108: 0.531 | F108: 0.007 | G108: 0.004 | H108: 0.4 | I108: 0 | L108: TRM Pf 72 | O108: 102a
A109: Commercial | B109: VFD - Cooling Tower Fans <10 HP | C109: 103 | D109: 0.101 | E109: 0.05 | F109: 0.586 | G109: 0.263 | H109: 0 | I109: 0.616 | L109: TRM Pf 72 | O109: 103a
A110: Commercial | B110: Engine Block Heater Timer | C110: 104 | D110: 0.304 | E110: 0.696 | F110: 0 | G110: 0 | H110: 0.375 | I110: 0 | K110: 1759 | L110: TRM Pf 73 | O110: 104a
A111: Commercial | B111: Lodging Indoor Lighting | C111: 105 | D111: 0.361 | E111: 0.305 | F111: 0.177 | G111: 0.157 | H111: 0.546 | I111: 0.56 | K111: 4808 | L111: RER 8760 data for energy. KEMA 2011 study for CF | O111: 105a
A112: Commercial | B112: Public Assembly Indoor Lighting | C112: 106 | D112: 0.407 | E112: 0.258 | F112: 0.201 | G112: 0.134 | H112: 0.46 | I112: 0.603 | K112: 3035 | L112: RER 8760 data for energy. KEMA 2011 study for CF | O112: 106a
A113: Commercial | B113: Public Safety Indoor Lighting | C113: 107 | D113: 0.407 | E113: 0.258 | F113: 0.201 | G113: 0.134 | H113: 0.355 | I113: 0.504 | K113: 3116 | L113: RER 8760 data for energy. KEMA 2011 study for CF | O113: 107a
A114: Commercial | B114: Religious Indoor Lighting | C114: 108 | D114: 0.332 | E114: 0.336 | F114: 0.158 | G114: 0.174 | H114: 0.514 | I114: 0.346 | K114: 2648 | L114: RER 8760 data for energy. KEMA 2011 study for CF | O114: 108a
A115: Commercial | B115: Service Indoor Lighting | C115: 109 | D115: 0.479 | E115: 0.187 | F115: 0.237 | G115: 0.097 | H115: 0.321 | I115: 0.792 | K115: 3521 | L115: RER 8760 data for energy. KEMA 2011 study for CF | O115: 109a
A116: Commercial | B116: C&I Unitary AC | C116: 110 | D116: 0.18 | E116: 0.1 | F116: 0.46 | G116: 0.26 | H116: 0 | I116: 0.342 | K116: 755 | L116: KEMA AC load shape study for unitary AC | O116: 110a
A117: Commercial | B117: Farm Plate Cooler / Heat Recovery Unit | C117: 111 | D117: 0.2897 | E117: 0.1638 | F117: 0.316 | G117: 0.2305 | H117: 0.2697 | I117: 0.1608 | L117: TRM Pf 77; | O117: 111a
A118: Commercial | B118: Maple Sap VFD | C118: 112 | D118: 0.512 | E118: 0.488 | F118: 0 | G118: 0 | H118: 0 | I118: 0 | L118: TRM Pf 77; | O118: 112a
A119: Commercial | B119: Commercial Small Exhaust-only Vent Fan | C119: 113 | D119: 0.488 | E119: 0.195 | F119: 0.222 | G119: 0.095 | H119: 0.508 | I119: 0.724 | K119: 2870 | L119: TRM PF 82 | O119: 113a
A120: Commercial | B120: PTHP, Hotel | C120: 114 | D120: 0.3997 | E120: 0.4893 | F120: 0.0536 | G120: 0.0574 | H120: 0.3415 | I120: 0.4161 | K120: 2070 | L120: TRM PF 83 | O120: 114a
A121: Commercial | B121: Streetlighting | C121: 115 | D121: 0.205 | E121: 0.506 | F121: 0.061 | G121: 0.228 | H121: 0.98 | I121: 0 | K121: 4380 | L121: TRM PF 84 | O121: 115a
A122: Commercial | B122: Prescriptive cold climate variable speed heat pump, heat pump baseline | C122: 116 | D122: 0.418 | E122: 0.488 | F122: 0.05 | G122: 0.044 | H122: 1 | I122: 0.049 | K122: 1510 | L122: TRM PF 87 | O122: 116a
A123: Any | B123: Fixed Tilt Photovoltaic | C123: 117 | D123: 0.4125244525 | E123: 0.1517303425 | F123: 0.3044388391 | G123: 0.1313063658 | H123: -7.439731224e-05 | I123: 0.7786860634 | K123: 1713.767454 | L123: GMP 8760 data | O123: 117
A124: This must always be the last row. If additional load profiles are added, then rows must be inserted somewhere above this row.
B126: Defined Customer Classes:
B127: Residential | C127: 1
B128: Commercial | C128: 2
B129: Industrial | C129: 3
B130: Dairy farm | C130: 4
B131: Other | C131: 5
B133: Fuel Type:
B134: Res. Distillate | C134: 1
B135: Res. High-Use LPG | C135: 2
B136: Space Heat Natural Gas | C136: 3
B137: Com. Distillate | C137: 4
B138: Com. LPG | C138: 5
B139: Flat/DHW Natural Gas | C139: 6
B141: Kerosene | C141: 8
B142: Wood | C142: 9
B143: Wood Pellets | C143: 10
B144: Wood Chips | C144: 11
B145: Compressed Natural Gas | C145: 12
B148: NEB Flags:
B149: Standard | C149: 1
B150: Low Income | C150: 2
C151: 3

Sheet FS Tables (hidden)
A3: Assumptions for Fuel-Switch Measures
A4: 1 | B4: 2 | C4: 3 | D4: 4 | E4: 5 | F4: 6 | G4: 7 | H4: 8 | I4: 9 | J4: 10 | K4: 11 | L4: 12 | M4: 13 | N4: 14
A5: Measures | C5: Measure Type | D5: Fuel | E5: End Use Code | F5: Annual Maintenance Cost | G5: Efficiency of New Fossil Equip. | H5: Measure Life | I5: Replaceable Component Life | J5: Elect Price | K5: BTU/gal or therm | L5: Existing Elec Life | N5: Replaceable Component
A6: 1 | B6: Stand alone oil dhw | C6: EDHW | D6: 1 | E6: ='Lookup tables'!$C$12 -> 6 | F6: 35 | G6: 0.62 | H6: 30 | I6: 10 | J6: =VLOOKUP(utilitycode,utility,3) -> 0.115 | K6: 138000 | L6: 15 | M6: 1 | N6: Hot water tank w/ burner
A7: 2 | B7: Stand alone LP dhw | C7: EDHW | D7: 2 | E7: ='Lookup tables'!$C$12 -> 6 | F7: 17 | G7: 0.62 | H7: 30 | I7: 13 | J7: 0.115 | K7: 91600 | L7: 15 | M7: 2 | N7: Hot water tank w/ burner
A8: 3 | B8: Stand alone NG dhw | C8: EDHW | D8: 3 | E8: ='Lookup tables'!$C$12 -> 6 | F8: 17 | G8: 0.62 | H8: 30 | I8: 13 | J8: 0.115 | K8: 100000 | L8: 15 | M8: 3 | N8: Hot water tank w/ burner
A9: 4 | B9: Kero Water Heater | C9: EDHW | D9: 8 | E9: 6 | F9: 35 | G9: 0.9 | H9: 30 | I9: 15 | J9: =VLOOKUP(utilitycode,utility,3) -> 0.115 | K9: 136600 | L9: 15 | M9: =A9 -> 4 | N9: Entire Unit
A10: 5 | B10: Integrated oil dhw | C10: EDHW | D10: 1 | E10: ='Lookup tables'!$C$12 -> 6 | F10: 10 | G10: 0.75 | H10: 30 | I10: 15 | J10: 0.115 | K10: 138000 | L10: 15 | M10: 4 | N10: Storage tank & circulator
A11: 6 | B11: Integrated LP dhw | C11: EDHW | D11: 2 | E11: ='Lookup tables'!$C$12 -> 6 | F11: 10 | G11: 0.75 | H11: 30 | I11: 15 | J11: 0.115 | K11: 91600 | L11: 15 | M11: 5 | N11: Storage tank & circulator
A12: 7 | B12: Integrated NG dhw | C12: EDHW | D12: 3 | E12: ='Lookup tables'!$C$12 -> 6 | F12: 10 | G12: 0.75 | H12: 30 | I12: 15 | J12: 0.115 | K12: 100000 | L12: 15 | M12: 6 | N12: Storage tank & circulator
A13: 8 | B13: Oil boiler | C13: ESH | D13: 1 | E13: ='Lookup tables'!$C$11 -> 5 | F13: 75 | G13: 0.83 | H13: 30 | I13: 25 | J13: =VLOOKUP(utilitycode,utility,4) -> 0.13 | K13: 138000 | L13: 30 | M13: 7 | N13: Boiler
A14: 9 | B14: LP Boiler | C14: ESH | D14: 2 | E14: ='Lookup tables'!$C$11 -> 5 | F14: 35 | G14: 0.83 | H14: 30 | I14: 25 | J14: =VLOOKUP(utilitycode,utility,4) -> 0.13 | K14: 91600 | L14: 30 | M14: 8 | N14: Boiler
A15: 10 | B15: NG Boiler | C15: ESH | D15: 3 | E15: ='Lookup tables'!$C$11 -> 5 | F15: 35 | G15: 0.83 | H15: 30 | I15: 25 | J15: 0.13 | K15: 100000 | L15: 30 | M15: 9 | N15: Boiler
A16: 11 | B16: Oil Furnace | C16: ESH | D16: 1 | E16: ='Lookup tables'!$C$11 -> 5 | F16: 75 | G16: 0.83 | H16: 30 | I16: 20 | J16: 0.13 | K16: 138000 | L16: 30 | M16: 10 | N16: Furnace
A17: 12 | B17: LP Furnace | C17: ESH | D17: 2 | E17: ='Lookup tables'!$C$11 -> 5 | F17: 35 | G17: 0.83 | H17: 30 | I17: 20 | J17: 0.13 | K17: 91600 | L17: 30 | M17: 11 | N17: Furnace
A18: 13 | B18: NG Furnace | C18: ESH | D18: 3 | E18: ='Lookup tables'!$C$11 -> 5 | F18: 35 | G18: 0.83 | H18: 30 | I18: 20 | J18: 0.13 | K18: 100000 | L18: 30 | M18: 12 | N18: Furnace
A19: 14 | B19: LP Space Heater | C19: ESH | D19: 2 | E19: ='Lookup tables'!$C$11 -> 5 | F19: 10 | G19: 0.8 | H19: 30 | I19: 15 | J19: 0.13 | K19: 91600 | L19: 30 | M19: 13 | N19: Space heater
A20: 15 | B20: NG Space Heater | C20: ESH | D20: 3 | E20: ='Lookup tables'!$C$11 -> 5 | F20: 10 | G20: 0.8 | H20: 30 | I20: 15 | J20: 0.13 | K20: 100000 | L20: 30 | M20: 14 | N20: Space heater
A21: 16 | B21: Kero Space heater | C21: ESH | D21: 8 | E21: ='Lookup tables'!$C$11 -> 5 | F21: 10 | G21: 0.9 | H21: 30 | I21: 15 | J21: 0.13 | K21: 136600 | L21: 30 | M21: 15 | N21: Space heater
C26: Average Electric Rate
C27: DHW | D27: SH
A28: 1 | B28: CVPS | C28: 0.115 | D28: 0.13
A29: =A28+1 -> 2 | B29: GMP | C29: 0.115 | D29: 0.13
A30: =A29+1 -> 3 | B30: CUC | C30: 0.115 | D30: 0.13
A31: =A30+1 -> 4 | B31: VEC | C31: 0.115 | D31: 0.13
A32: =A31+1 -> 5 | B32: WEC | C32: 0.115 | D32: 0.13
A33: =A32+1 -> 6 | B33: other | C33: 0.115 | D33: 0.13

Sheet Measure Screening (hidden)
A1: VERMONT UTILITIES DEMAND-SIDE MANAGEMENT
A2: MEASURE SCREENING TOOL
A4: Developed by Resource Insight, Inc. (4/8/97)
A5: Revised by Optimal Energy, Inc. (4/29/98)
A11: MEASURE INPUTS | B11: =NOW() -> 2016-10-05T09:02:55.940 | C11: =NOW() -> 42648.37704
A13: Measure Set:
A14: SAMPLE - FOR ILLUSRATION ONLY
F17: First-Year Energy Savings or Demand Reduction (at the End-Use) | O17: Add Data Only for Retrofit Measures | T17: Fuel Type
A18: Measure Name | B18: Measure ID | C18: Measure Life | D18: Year Installed | E18: ="Installation Cost ("&FIXED(BASEYR,0,TRUE)&"$)" -> Installation Cost (2015$) | F18: ='Avoided Costs'!B37&" ("&EnergyUnits&")" -> Winter Peak Energy (kWh) | G18: ='Avoided Costs'!C37&" ("&EnergyUnits&")" -> Winter Off-Peak Energy (kWh) | H18: ='Avoided Costs'!D37&" ("&EnergyUnits&")" -> Summer Peak Energy (kWh) | I18: ='Avoided Costs'!E37&" ("&EnergyUnits&")" -> Summer Off-Peak Energy (kWh) | J18: Maximum of Seasonal Load Reductions (kW) | K18: ='Avoided Costs'!F37&" (Percent)" -> Winter Capacity (Percent) | L18: ='Avoided Costs'!G37&" (Percent)" -> Summer Capacity (Percent) | M18: ='Avoided Costs'!H37&" (Percent)" -> Fall/Spring Capacity (Percent) | N18: ='Avoided Costs'!I37&" ("&DemandUnits&")" -> Generic T&D Capacity (kW) | O18: Full Baseline Equipment Life | P18: Existing Equipment Age | Q18: New Baseline Inst. Cost | R18: Electricity Savings Relative to New Baseline as % of First-Year Savings | S18: Fossil Savings Relative to New Baseline as % of First-Year Savings | T18: ="1 = "&INDEX(Fuel_Name,1)&" 2 = "&INDEX(Fuel_Name,2)&" 3 = "&INDEX(Fuel_Name,3)&" 4 = "&INDEX(Fuel_Name,4)&" 5 = "&INDEX(Fuel_Name,5)&" 6 = "&INDEX(Fuel_Name,6)&" 7 = "&INDEX(Fuel_Name,7)&" 8 = "&INDEX(Fuel_Name,8)&" 9 = "&INDEX(Fuel_Name,9)&" 10 = "&INDEX(Fuel_Name,10) -> 1 = Res. Distillate 2 = Res. High-Use LPG 3 = Space Heat Natural Gas 4 = Com. Distillate 5 = Com. LPG 6 = Baseload Natural Gas 7 = #6 Fuel Oil 8 = Kerosene 9 = Wood 10 = Wood Pellets | U18: Fossil Fuel Use (MMBtu/yr) | V18: Real Levelized Net Annual Maintenance | W18: Water Savings (CCF) | Z18: Total Annual kWh | AB18: Rounded life | AC18: Savings adjustment factor for less than 1 yr life
A19: [0] | B19: [1] | C19: [2] | D19: [3] | E19: [4] | F19: [5] | G19: [6] | H19: [7] | I19: [8] | J19: [9] | K19: [10] | L19: [11] | M19: [12] | N19: [13] | O19: [14] | P19: [15] | Q19: [16] | R19: [17] | S19: [17a] | T19: [18] | U19: [19] | V19: [20] | W19: [21] | X19: [22]
A20: =CHOOSE(Title!$G$11,'Single FS Input'!$B$5,'Single Custom Input'!$B$5,'Measure Inputs'!I12) -> Calfee PV | B20: =CHOOSE(Title!$G$11,'Single FS Input'!E4,'Single Custom Input'!E4,'Measure Inputs'!J12) -> 0 | C20: =CHOOSE(Title!$G$11,'Single FS Input'!B6,'Single Custom Input'!B6,'Measure Inputs'!K12) -> 25 | D20: =CHOOSE(Title!$G$11,'Single FS Input'!$I$5,'Single Custom Input'!$I$5,'Measure Inputs'!AR12) -> 2017 | E20: =CHOOSE(Title!$G$11,'Single FS Input'!B7,'Single Custom Input'!B7,'Measure Inputs'!M12)*(1+future_inflation)^(BASEYR-progyear) -> 18744.57875 | F20: =CHOOSE(Title!$G$11,'Single FS Input'!S9,'Single Custom Input'!S9,'Measure Inputs'!BP12) -> 2908.761402 | G20: =CHOOSE(Title!$G$11,'Single FS Input'!T9,'Single Custom Input'!T9,'Measure Inputs'!BQ12) -> 1069.869583 | H20: =CHOOSE(Title!$G$11,'Single FS Input'!U9,'Single Custom Input'!U9,'Measure Inputs'!BR12) -> 2146.636252 | I20: =CHOOSE(Title!$G$11,'Single FS Input'!V9,'Single Custom Input'!V9,'Measure Inputs'!BS12) -> 925.8575739 | J20: =CHOOSE(Title!$G$11,'Single FS Input'!B13,'Single Custom Input'!B13,'Measure Inputs'!AT12) -> 4.1144 | K20: =CHOOSE(Title!$G$11,'Single FS Input'!O12,'Single Custom Input'!O12,'Measure Inputs'!BT12) -> -7.439731224e-05 | L20: =CHOOSE(Title!$G$11,'Single FS Input'!P12,'Single Custom Input'!P12,'Measure Inputs'!BU12) -> 0.7786860634 | M20: =CHOOSE(Title!$G$11,'Single FS Input'!Q12,'Single Custom Input'!Q12,'Measure Inputs'!BV12) -> 0 | N20: =CHOOSE(Title!$G$11,'Single FS Input'!R12,'Single Custom Input'!R12,'Measure Inputs'!BW12) -> 1.922173123 | O20: =CHOOSE(Title!$G$11,'Single FS Input'!E17,'Single Custom Input'!E17,'Measure Inputs'!R12) -> 0 | P20: =CHOOSE(Title!$G$11,'Single FS Input'!E18,'Single Custom Input'!E18,'Measure Inputs'!S12) -> 0 | Q20: =CHOOSE(Title!$G$11,'Single FS Input'!E19,'Single Custom Input'!E19,'Measure Inputs'!T12)*(1+future_inflation)^(BASEYR-progyear) -> 0 | R20: =CHOOSE(Title!$G$11,'Single FS Input'!E20,'Single Custom Input'!E20,'Measure Inputs'!U12) -> 0 | S20: ='Measure Inputs'!V12 -> 0 | T20: =CHOOSE(Title!$G$11,'Single FS Input'!E22,'Single Custom Input'!E22,'Measure Inputs'!W12) -> 0 | U20: =CHOOSE(Title!$G$11,'Single FS Input'!E23,'Single Custom Input'!E23,'Measure Inputs'!X12) -> 0 | V20: =CHOOSE(Title!$G$11,'Single FS Input'!G36,'Single Custom Input'!G36,'Measure Inputs'!BH12)*(1+future_inflation)^(BASEYR-progyear) -> 69.50928193 | W20: =CHOOSE(Title!$G$11,'Single FS Input'!E24,'Single Custom Input'!E24,'Measure Inputs'!Y12) -> 0 | Z20: =SUM(F20:I20) -> 7051.124811 | AB20: =IF(AND(C20<1,C20>0),1,ROUND(C20,0)) -> 25 | AC20: =IF(C20<1,C20,1) -> 1
A21: =CHOOSE(Title!$G$11,"","",'Measure Inputs'!I13) -> Ward PV | B21: =CHOOSE(Title!$G$11,"","",'Measure Inputs'!J13) -> 0 | C21: =CHOOSE(Title!$G$11,"","",'Measure Inputs'!K13) -> 25 | D21: =CHOOSE(Title!$G$11,"","",'Measure Inputs'!AR13) -> 2017 | E21: =CHOOSE(Title!$G$11,"","",'Measure Inputs'!M13)*(1+future_inflation)^(BASEYR-progyear) -> 16634.65752 | F21: =CHOOSE(Title!$G$11,"","",'Measure Inputs'!BP13) -> 2511.160923 | G21: =CHOOSE(Title!$G$11,"","",'Measure Inputs'!BQ13) -> 923.6284168 | H21: =CHOOSE(Title!$G$11,"","",'Measure Inputs'!BR13) -> 1853.211153 | I21: =CHOOSE(Title!$G$11,"","",'Measure Inputs'!BS13) -> 799.3015027 | J21: =CHOOSE(Title!$G$11,"","",'Measure Inputs'!AT13) -> 3.552 | K21: =CHOOSE(Title!$G$11,"","",'Measure Inputs'!BT13) -> -7.439731224e-05 | L21: =CHOOSE(Title!$G$11,"","",'Measure Inputs'!BU13) -> 0.7786860634 | M21: =CHOOSE(Title!$G$11,"","",'Measure Inputs'!BV13) -> 0 | N21: =CHOOSE(Title!$G$11,"","",'Measure Inputs'!BW13) -> 1.659430035 | O21: =CHOOSE(Title!$G$11,"","",'Measure Inputs'!R13) -> 0 | P21: =CHOOSE(Title!$G$11,"","",'Measure Inputs'!S13) -> 0 | Q21: =CHOOSE(Title!$G$11,"","",'Measure Inputs'!T13)*(1+future_inflation)^(BASEYR-progyear) -> 0 | R21: =CHOOSE(Title!$G$11,"","",'Measure Inputs'!U13) -> 0 | S21: ='Measure Inputs'!V13 -> 0 | T21: =CHOOSE(Title!$G$11,"","",'Measure Inputs'!W13) -> 0 | U21: =CHOOSE(Title!$G$11,"","",'Measure Inputs'!X13) -> 0 | V21: =CHOOSE(Title!$G$11,"","",'Measure Inputs'!BH13)*(1+future_inflation)^(BASEYR-progyear) -> 60.00801318 | W21: =CHOOSE(Title!$G$11,"","",'Measure Inputs'!Y13) -> 0 | Z21: =SUM(F21:I21) -> 6087.301995 | AB21: =IF(AND(C21<1,C21>0),1,ROUND(C21,0)) -> 25 | AC21: =IF(C21<1,C21,1) -> 1
A22: =CHOOSE(Title!$G$11,"","",'Measure Inputs'!I14) -> Measure 3 | B22: =CHOOSE(Title!$G$11,"","",'Measure Inputs'!J14) -> 0 | C22: =CHOOSE(Title!$G$11,"","",'Measure Inputs'!K14) -> 0 | D22: =CHOOSE(Title!$G$11,"","",'Measure Inputs'!AR14) -> 2017 | E22: =CHOOSE(Title!$G$11,"","",'Measure Inputs'!M14)*(1+future_inflation)^(BASEYR-progyear) -> 0 | F22: =CHOOSE(Title!$G$11,"","",'Measure Inputs'!BP14) ->  | G22: =CHOOSE(Title!$G$11,"","",'Measure Inputs'!BQ14) ->  | H22: =CHOOSE(Title!$G$11,"","",'Measure Inputs'!BR14) ->  | I22: =CHOOSE(Title!$G$11,"","",'Measure Inputs'!BS14) ->  | J22: =CHOOSE(Title!$G$11,"","",'Measure Inputs'!AT14) ->  | K22: =CHOOSE(Title!$G$11,"","",'Measure Inputs'!BT14) ->  | L22: =CHOOSE(Title!$G$11,"","",'Measure Inputs'!BU14) ->  | M22: =CHOOSE(Title!$G$11,"","",'Measure Inputs'!BV14) ->  | N22: =CHOOSE(Title!$G$11,"","",'Measure Inputs'!BW14) ->  | O22: =CHOOSE(Title!$G$11,"","",'Measure Inputs'!R14) -> 0 | P22: =CHOOSE(Title!$G$11,"","",'Measure Inputs'!S14) -> 0 | Q22: =CHOOSE(Title!$G$11,"","",'Measure Inputs'!T14)*(1+future_inflation)^(BASEYR-progyear) -> 0 | R22: =CHOOSE(Title!$G$11,"","",'Measure Inputs'!U14) -> 0 | S22: ='Measure Inputs'!V14 -> 0 | T22: =CHOOSE(Title!$G$11,"","",'Measure Inputs'!W14) -> 0 | U22: =CHOOSE(Title!$G$11,"","",'Measure Inputs'!X14) -> 0 | V22: =CHOOSE(Title!$G$11,"","",'Measure Inputs'!BH14)*(1+future_inflation)^(BASEYR-progyear) ->  | W22: =CHOOSE(Title!$G$11,"","",'Measure Inputs'!Y14) -> 0 | AB22: 0 | AC22: 0
A23: =CHOOSE(Title!$G$11,"","",'Measure Inputs'!I15) -> Measure 4 | B23: =CHOOSE(Title!$G$11,"","",'Measure Inputs'!J15) -> 0 | C23: =CHOOSE(Title!$G$11,"","",'Measure Inputs'!K15) -> 0 | D23: =CHOOSE(Title!$G$11,"","",'Measure Inputs'!AR15) -> 2017 | E23: =CHOOSE(Title!$G$11,"","",'Measure Inputs'!M15)*(1+future_inflation)^(BASEYR-progyear) -> 0 | F23: =CHOOSE(Title!$G$11,"","",'Measure Inputs'!BP15) ->  | G23: =CHOOSE(Title!$G$11,"","",'Measure Inputs'!BQ15) ->  | H23: =CHOOSE(Title!$G$11,"","",'Measure Inputs'!BR15) ->  | I23: =CHOOSE(Title!$G$11,"","",'Measure Inputs'!BS15) ->  | J23: =CHOOSE(Title!$G$11,"","",'Measure Inputs'!AT15) ->  | K23: =CHOOSE(Title!$G$11,"","",'Measure Inputs'!BT15) ->  | L23: =CHOOSE(Title!$G$11,"","",'Measure Inputs'!BU15) ->  | M23: =CHOOSE(Title!$G$11,"","",'Measure Inputs'!BV15) ->  | N23: =CHOOSE(Title!$G$11,"","",'Measure Inputs'!BW15) ->  | O23: =CHOOSE(Title!$G$11,"","",'Measure Inputs'!R15) -> 0 | P23: =CHOOSE(Title!$G$11,"","",'Measure Inputs'!S15) -> 0 | Q23: =CHOOSE(Title!$G$11,"","",'Measure Inputs'!T15)*(1+future_inflation)^(BASEYR-progyear) -> 0 | R23: =CHOOSE(Title!$G$11,"","",'Measure Inputs'!U15) -> 0 | S23: ='Measure Inputs'!V15 -> 0 | T23: =CHOOSE(Title!$G$11,"","",'Measure Inputs'!W15) -> 0 | U23: =CHOOSE(Title!$G$11,"","",'Measure Inputs'!X15) -> 0 | V23: =CHOOSE(Title!$G$11,"","",'Measure Inputs'!BH15)*(1+future_inflation)^(BASEYR-progyear) ->  | W23: =CHOOSE(Title!$G$11,"","",'Measure Inputs'!Y15) -> 0 | AB23: 0 | AC23: 0
A24: =CHOOSE(Title!$G$11,"","",'Measure Inputs'!I16) -> Measure 5 | B24: =CHOOSE(Title!$G$11,"","",'Measure Inputs'!J16) -> 0 | C24: =CHOOSE(Title!$G$11,"","",'Measure Inputs'!K16) -> 0 | D24: =CHOOSE(Title!$G$11,"","",'Measure Inputs'!AR16) -> 2017 | E24: =CHOOSE(Title!$G$11,"","",'Measure Inputs'!M16)*(1+future_inflation)^(BASEYR-progyear) -> 0 | F24: =CHOOSE(Title!$G$11,"","",'Measure Inputs'!BP16) ->  | G24: =CHOOSE(Title!$G$11,"","",'Measure Inputs'!BQ16) ->  | H24: =CHOOSE(Title!$G$11,"","",'Measure Inputs'!BR16) ->  | I24: =CHOOSE(Title!$G$11,"","",'Measure Inputs'!BS16) ->  | J24: =CHOOSE(Title!$G$11,"","",'Measure Inputs'!AT16) ->  | K24: =CHOOSE(Title!$G$11,"","",'Measure Inputs'!BT16) ->  | L24: =CHOOSE(Title!$G$11,"","",'Measure Inputs'!BU16) ->  | M24: =CHOOSE(Title!$G$11,"","",'Measure Inputs'!BV16) ->  | N24: =CHOOSE(Title!$G$11,"","",'Measure Inputs'!BW16) ->  | O24: =CHOOSE(Title!$G$11,"","",'Measure Inputs'!R16) -> 0 | P24: =CHOOSE(Title!$G$11,"","",'Measure Inputs'!S16) -> 0 | Q24: =CHOOSE(Title!$G$11,"","",'Measure Inputs'!T16)*(1+future_inflation)^(BASEYR-progyear) -> 0 | R24: =CHOOSE(Title!$G$11,"","",'Measure Inputs'!U16) -> 0 | S24: ='Measure Inputs'!V16 -> 0 | T24: =CHOOSE(Title!$G$11,"","",'Measure Inputs'!W16) -> 0 | U24: =CHOOSE(Title!$G$11,"","",'Measure Inputs'!X16) -> 0 | V24: =CHOOSE(Title!$G$11,"","",'Measure Inputs'!BH16)*(1+future_inflation)^(BASEYR-progyear) ->  | W24: =CHOOSE(Title!$G$11,"","",'Measure Inputs'!Y16) -> 0 | AB24: 0 | AC24: 0
A25: =CHOOSE(Title!$G$11,"","",'Measure Inputs'!I17) -> Measure 6 | B25: =CHOOSE(Title!$G$11,"","",'Measure Inputs'!J17) -> 0 | C25: =CHOOSE(Title!$G$11,"","",'Measure Inputs'!K17) -> 0 | D25: =CHOOSE(Title!$G$11,"","",'Measure Inputs'!AR17) -> 2017 | E25: =CHOOSE(Title!$G$11,"","",'Measure Inputs'!M17)*(1+future_inflation)^(BASEYR-progyear) -> 0 | F25: =CHOOSE(Title!$G$11,"","",'Measure Inputs'!BP17) ->  | G25: =CHOOSE(Title!$G$11,"","",'Measure Inputs'!BQ17) ->  | H25: =CHOOSE(Title!$G$11,"","",'Measure Inputs'!BR17) ->  | I25: =CHOOSE(Title!$G$11,"","",'Measure Inputs'!BS17) ->  | J25: =CHOOSE(Title!$G$11,"","",'Measure Inputs'!AT17) ->  | K25: =CHOOSE(Title!$G$11,"","",'Measure Inputs'!BT17) ->  | L25: =CHOOSE(Title!$G$11,"","",'Measure Inputs'!BU17) ->  | M25: =CHOOSE(Title!$G$11,"","",'Measure Inputs'!BV17) ->  | N25: =CHOOSE(Title!$G$11,"","",'Measure Inputs'!BW17) ->  | O25: =CHOOSE(Title!$G$11,"","",'Measure Inputs'!R17) -> 0 | P25: =CHOOSE(Title!$G$11,"","",'Measure Inputs'!S17) -> 0 | Q25: =CHOOSE(Title!$G$11,"","",'Measure Inputs'!T17)*(1+future_inflation)^(BASEYR-progyear) -> 0 | R25: =CHOOSE(Title!$G$11,"","",'Measure Inputs'!U17) -> 0 | S25: ='Measure Inputs'!V17 -> 0 | T25: =CHOOSE(Title!$G$11,"","",'Measure Inputs'!W17) -> 0 | U25: =CHOOSE(Title!$G$11,"","",'Measure Inputs'!X17) -> 0 | V25: =CHOOSE(Title!$G$11,"","",'Measure Inputs'!BH17)*(1+future_inflation)^(BASEYR-progyear) ->  | W25: =CHOOSE(Title!$G$11,"","",'Measure Inputs'!Y17) -> 0 | AB25: 0 | AC25: 0
A26: =CHOOSE(Title!$G$11,"","",'Measure Inputs'!I18) -> Measure 7 | B26: =CHOOSE(Title!$G$11,"","",'Measure Inputs'!J18) -> 0 | C26: =CHOOSE(Title!$G$11,"","",'Measure Inputs'!K18) -> 0 | D26: =CHOOSE(Title!$G$11,"","",'Measure Inputs'!AR18) -> 2017 | E26: =CHOOSE(Title!$G$11,"","",'Measure Inputs'!M18)*(1+future_inflation)^(BASEYR-progyear) -> 0 | F26: =CHOOSE(Title!$G$11,"","",'Measure Inputs'!BP18) ->  | G26: =CHOOSE(Title!$G$11,"","",'Measure Inputs'!BQ18) ->  | H26: =CHOOSE(Title!$G$11,"","",'Measure Inputs'!BR18) ->  | I26: =CHOOSE(Title!$G$11,"","",'Measure Inputs'!BS18) ->  | J26: =CHOOSE(Title!$G$11,"","",'Measure Inputs'!AT18) ->  | K26: =CHOOSE(Title!$G$11,"","",'Measure Inputs'!BT18) ->  | L26: =CHOOSE(Title!$G$11,"","",'Measure Inputs'!BU18) ->  | M26: =CHOOSE(Title!$G$11,"","",'Measure Inputs'!BV18) ->  | N26: =CHOOSE(Title!$G$11,"","",'Measure Inputs'!BW18) ->  | O26: =CHOOSE(Title!$G$11,"","",'Measure Inputs'!R18) -> 0 | P26: =CHOOSE(Title!$G$11,"","",'Measure Inputs'!S18) -> 0 | Q26: =CHOOSE(Title!$G$11,"","",'Measure Inputs'!T18)*(1+future_inflation)^(BASEYR-progyear) -> 0 | R26: =CHOOSE(Title!$G$11,"","",'Measure Inputs'!U18) -> 0 | S26: ='Measure Inputs'!V18 -> 0 | T26: =CHOOSE(Title!$G$11,"","",'Measure Inputs'!W18) -> 0 | U26: =CHOOSE(Title!$G$11,"","",'Measure Inputs'!X18) -> 0 | V26: =CHOOSE(Title!$G$11,"","",'Measure Inputs'!BH18)*(1+future_inflation)^(BASEYR-progyear) ->  | W26: =CHOOSE(Title!$G$11,"","",'Measure Inputs'!Y18) -> 0 | AB26: 0 | AC26: 0
A27: =CHOOSE(Title!$G$11,"","",'Measure Inputs'!I19) -> Measure 8 | B27: =CHOOSE(Title!$G$11,"","",'Measure Inputs'!J19) -> 0 | C27: =CHOOSE(Title!$G$11,"","",'Measure Inputs'!K19) -> 0 | D27: =CHOOSE(Title!$G$11,"","",'Measure Inputs'!AR19) -> 2017 | E27: =CHOOSE(Title!$G$11,"","",'Measure Inputs'!M19)*(1+future_inflation)^(BASEYR-progyear) -> 0 | F27: =CHOOSE(Title!$G$11,"","",'Measure Inputs'!BP19) ->  | G27: =CHOOSE(Title!$G$11,"","",'Measure Inputs'!BQ19) ->  | H27: =CHOOSE(Title!$G$11,"","",'Measure Inputs'!BR19) ->  | I27: =CHOOSE(Title!$G$11,"","",'Measure Inputs'!BS19) ->  | J27: =CHOOSE(Title!$G$11,"","",'Measure Inputs'!AT19) ->  | K27: =CHOOSE(Title!$G$11,"","",'Measure Inputs'!BT19) ->  | L27: =CHOOSE(Title!$G$11,"","",'Measure Inputs'!BU19) ->  | M27: =CHOOSE(Title!$G$11,"","",'Measure Inputs'!BV19) ->  | N27: =CHOOSE(Title!$G$11,"","",'Measure Inputs'!BW19) ->  | O27: =CHOOSE(Title!$G$11,"","",'Measure Inputs'!R19) -> 0 | P27: =CHOOSE(Title!$G$11,"","",'Measure Inputs'!S19) -> 0 | Q27: =CHOOSE(Title!$G$11,"","",'Measure Inputs'!T19)*(1+future_inflation)^(BASEYR-progyear) -> 0 | R27: =CHOOSE(Title!$G$11,"","",'Measure Inputs'!U19) -> 0 | S27: ='Measure Inputs'!V19 -> 0 | T27: =CHOOSE(Title!$G$11,"","",'Measure Inputs'!W19) -> 0 | U27: =CHOOSE(Title!$G$11,"","",'Measure Inputs'!X19) -> 0 | V27: =CHOOSE(Title!$G$11,"","",'Measure Inputs'!BH19)*(1+future_inflation)^(BASEYR-progyear) ->  | W27: =CHOOSE(Title!$G$11,"","",'Measure Inputs'!Y19) -> 0 | AB27: 0 | AC27: 0
A28: =CHOOSE(Title!$G$11,"","",'Measure Inputs'!I20) -> Measure 9 | B28: =CHOOSE(Title!$G$11,"","",'Measure Inputs'!J20) -> 0 | C28: =CHOOSE(Title!$G$11,"","",'Measure Inputs'!K20) -> 0 | D28: =CHOOSE(Title!$G$11,"","",'Measure Inputs'!AR20) -> 2017 | E28: =CHOOSE(Title!$G$11,"","",'Measure Inputs'!M20)*(1+future_inflation)^(BASEYR-progyear) -> 0 | F28: =CHOOSE(Title!$G$11,"","",'Measure Inputs'!BP20) ->  | G28: =CHOOSE(Title!$G$11,"","",'Measure Inputs'!BQ20) ->  | H28: =CHOOSE(Title!$G$11,"","",'Measure Inputs'!BR20) ->  | I28: =CHOOSE(Title!$G$11,"","",'Measure Inputs'!BS20) ->  | J28: =CHOOSE(Title!$G$11,"","",'Measure Inputs'!AT20) ->  | K28: =CHOOSE(Title!$G$11,"","",'Measure Inputs'!BT20) ->  | L28: =CHOOSE(Title!$G$11,"","",'Measure Inputs'!BU20) ->  | M28: =CHOOSE(Title!$G$11,"","",'Measure Inputs'!BV20) ->  | N28: =CHOOSE(Title!$G$11,"","",'Measure Inputs'!BW20) ->  | O28: =CHOOSE(Title!$G$11,"","",'Measure Inputs'!R20) -> 0 | P28: =CHOOSE(Title!$G$11,"","",'Measure Inputs'!S20) -> 0 | Q28: =CHOOSE(Title!$G$11,"","",'Measure Inputs'!T20)*(1+future_inflation)^(BASEYR-progyear) -> 0 | R28: =CHOOSE(Title!$G$11,"","",'Measure Inputs'!U20) -> 0 | S28: ='Measure Inputs'!V20 -> 0 | T28: =CHOOSE(Title!$G$11,"","",'Measure Inputs'!W20) -> 0 | U28: =CHOOSE(Title!$G$11,"","",'Measure Inputs'!X20) -> 0 | V28: =CHOOSE(Title!$G$11,"","",'Measure Inputs'!BH20)*(1+future_inflation)^(BASEYR-progyear) ->  | W28: =CHOOSE(Title!$G$11,"","",'Measure Inputs'!Y20) -> 0 | AB28: 0 | AC28: 0
A29: =CHOOSE(Title!$G$11,"","",'Measure Inputs'!I21) -> Measure 10 | B29: =CHOOSE(Title!$G$11,"","",'Measure Inputs'!J21) -> 0 | C29: =CHOOSE(Title!$G$11,"","",'Measure Inputs'!K21) -> 0 | D29: =CHOOSE(Title!$G$11,"","",'Measure Inputs'!AR21) -> 2017 | E29: =CHOOSE(Title!$G$11,"","",'Measure Inputs'!M21)*(1+future_inflation)^(BASEYR-progyear) -> 0 | F29: =CHOOSE(Title!$G$11,"","",'Measure Inputs'!BP21) ->  | G29: =CHOOSE(Title!$G$11,"","",'Measure Inputs'!BQ21) ->  | H29: =CHOOSE(Title!$G$11,"","",'Measure Inputs'!BR21) ->  | I29: =CHOOSE(Title!$G$11,"","",'Measure Inputs'!BS21) ->  | J29: =CHOOSE(Title!$G$11,"","",'Measure Inputs'!AT21) ->  | K29: =CHOOSE(Title!$G$11,"","",'Measure Inputs'!BT21) ->  | L29: =CHOOSE(Title!$G$11,"","",'Measure Inputs'!BU21) ->  | M29: =CHOOSE(Title!$G$11,"","",'Measure Inputs'!BV21) ->  | N29: =CHOOSE(Title!$G$11,"","",'Measure Inputs'!BW21) ->  | O29: =CHOOSE(Title!$G$11,"","",'Measure Inputs'!R21) -> 0 | P29: =CHOOSE(Title!$G$11,"","",'Measure Inputs'!S21) -> 0 | Q29: =CHOOSE(Title!$G$11,"","",'Measure Inputs'!T21)*(1+future_inflation)^(BASEYR-progyear) -> 0 | R29: =CHOOSE(Title!$G$11,"","",'Measure Inputs'!U21) -> 0 | S29: ='Measure Inputs'!V21 -> 0 | T29: =CHOOSE(Title!$G$11,"","",'Measure Inputs'!W21) -> 0 | U29: =CHOOSE(Title!$G$11,"","",'Measure Inputs'!X21) -> 0 | V29: =CHOOSE(Title!$G$11,"","",'Measure Inputs'!BH21)*(1+future_inflation)^(BASEYR-progyear) ->  | W29: =CHOOSE(Title!$G$11,"","",'Measure Inputs'!Y21) -> 0 | AB29: 0 | AC29: 0
A30: =CHOOSE(Title!$G$11,"","",'Measure Inputs'!I22) -> Measure 11 | B30: =CHOOSE(Title!$G$11,"","",'Measure Inputs'!J22) -> 0 | C30: =CHOOSE(Title!$G$11,"","",'Measure Inputs'!K22) -> 0 | D30: =CHOOSE(Title!$G$11,"","",'Measure Inputs'!AR22) -> 2017 | E30: =CHOOSE(Title!$G$11,"","",'Measure Inputs'!M22)*(1+future_inflation)^(BASEYR-progyear) -> 0 | F30: =CHOOSE(Title!$G$11,"","",'Measure Inputs'!BP22) ->  | G30: =CHOOSE(Title!$G$11,"","",'Measure Inputs'!BQ22) ->  | H30: =CHOOSE(Title!$G$11,"","",'Measure Inputs'!BR22) ->  | I30: =CHOOSE(Title!$G$11,"","",'Measure Inputs'!BS22) ->  | J30: =CHOOSE(Title!$G$11,"","",'Measure Inputs'!AT22) ->  | K30: =CHOOSE(Title!$G$11,"","",'Measure Inputs'!BT22) ->  | L30: =CHOOSE(Title!$G$11,"","",'Measure Inputs'!BU22) ->  | M30: =CHOOSE(Title!$G$11,"","",'Measure Inputs'!BV22) ->  | N30: =CHOOSE(Title!$G$11,"","",'Measure Inputs'!BW22) ->  | O30: =CHOOSE(Title!$G$11,"","",'Measure Inputs'!R22) -> 0 | P30: =CHOOSE(Title!$G$11,"","",'Measure Inputs'!S22) -> 0 | Q30: =CHOOSE(Title!$G$11,"","",'Measure Inputs'!T22)*(1+future_inflation)^(BASEYR-progyear) -> 0 | R30: =CHOOSE(Title!$G$11,"","",'Measure Inputs'!U22) -> 0 | S30: ='Measure Inputs'!V22 -> 0 | T30: =CHOOSE(Title!$G$11,"","",'Measure Inputs'!W22) -> 0 | U30: =CHOOSE(Title!$G$11,"","",'Measure Inputs'!X22) -> 0 | V30: =CHOOSE(Title!$G$11,"","",'Measure Inputs'!BH22)*(1+future_inflation)^(BASEYR-progyear) ->  | W30: =CHOOSE(Title!$G$11,"","",'Measure Inputs'!Y22) -> 0 | AB30: 0 | AC30: 0
A31: =CHOOSE(Title!$G$11,"","",'Measure Inputs'!I23) -> Measure 12 | B31: =CHOOSE(Title!$G$11,"","",'Measure Inputs'!J23) -> 0 | C31: =CHOOSE(Title!$G$11,"","",'Measure Inputs'!K23) -> 0 | D31: =CHOOSE(Title!$G$11,"","",'Measure Inputs'!AR23) -> 2017 | E31: =CHOOSE(Title!$G$11,"","",'Measure Inputs'!M23)*(1+future_inflation)^(BASEYR-progyear) -> 0 | F31: =CHOOSE(Title!$G$11,"","",'Measure Inputs'!BP23) ->  | G31: =CHOOSE(Title!$G$11,"","",'Measure Inputs'!BQ23) ->  | H31: =CHOOSE(Title!$G$11,"","",'Measure Inputs'!BR23) ->  | I31: =CHOOSE(Title!$G$11,"","",'Measure Inputs'!BS23) ->  | J31: =CHOOSE(Title!$G$11,"","",'Measure Inputs'!AT23) ->  | K31: =CHOOSE(Title!$G$11,"","",'Measure Inputs'!BT23) ->  | L31: =CHOOSE(Title!$G$11,"","",'Measure Inputs'!BU23) ->  | M31: =CHOOSE(Title!$G$11,"","",'Measure Inputs'!BV23) ->  | N31: =CHOOSE(Title!$G$11,"","",'Measure Inputs'!BW23) ->  | O31: =CHOOSE(Title!$G$11,"","",'Measure Inputs'!R23) -> 0 | P31: =CHOOSE(Title!$G$11,"","",'Measure Inputs'!S23) -> 0 | Q31: =CHOOSE(Title!$G$11,"","",'Measure Inputs'!T23)*(1+future_inflation)^(BASEYR-progyear) -> 0 | R31: =CHOOSE(Title!$G$11,"","",'Measure Inputs'!U23) -> 0 | S31: ='Measure Inputs'!V23 -> 0 | T31: =CHOOSE(Title!$G$11,"","",'Measure Inputs'!W23) -> 0 | U31: =CHOOSE(Title!$G$11,"","",'Measure Inputs'!X23) -> 0 | V31: =CHOOSE(Title!$G$11,"","",'Measure Inputs'!BH23)*(1+future_inflation)^(BASEYR-progyear) ->  | W31: =CHOOSE(Title!$G$11,"","",'Measure Inputs'!Y23) -> 0 | AB31: 0 | AC31: 0
A32: =CHOOSE(Title!$G$11,"","",'Measure Inputs'!I24) -> Measure 13 | B32: =CHOOSE(Title!$G$11,"","",'Measure Inputs'!J24) -> 0 | C32: =CHOOSE(Title!$G$11,"","",'Measure Inputs'!K24) -> 0 | D32: =CHOOSE(Title!$G$11,"","",'Measure Inputs'!AR24) -> 2017 | E32: =CHOOSE(Title!$G$11,"","",'Measure Inputs'!M24)*(1+future_inflation)^(BASEYR-progyear) -> 0 | F32: =CHOOSE(Title!$G$11,"","",'Measure Inputs'!BP24) ->  | G32: =CHOOSE(Title!$G$11,"","",'Measure Inputs'!BQ24) ->  | H32: =CHOOSE(Title!$G$11,"","",'Measure Inputs'!BR24) ->  | I32: =CHOOSE(Title!$G$11,"","",'Measure Inputs'!BS24) ->  | J32: =CHOOSE(Title!$G$11,"","",'Measure Inputs'!AT24) ->  | K32: =CHOOSE(Title!$G$11,"","",'Measure Inputs'!BT24) ->  | L32: =CHOOSE(Title!$G$11,"","",'Measure Inputs'!BU24) ->  | M32: =CHOOSE(Title!$G$11,"","",'Measure Inputs'!BV24) ->  | N32: =CHOOSE(Title!$G$11,"","",'Measure Inputs'!BW24) ->  | O32: =CHOOSE(Title!$G$11,"","",'Measure Inputs'!R24) -> 0 | P32: =CHOOSE(Title!$G$11,"","",'Measure Inputs'!S24) -> 0 | Q32: =CHOOSE(Title!$G$11,"","",'Measure Inputs'!T24)*(1+future_inflation)^(BASEYR-progyear) -> 0 | R32: =CHOOSE(Title!$G$11,"","",'Measure Inputs'!U24) -> 0 | S32: ='Measure Inputs'!V24 -> 0 | T32: =CHOOSE(Title!$G$11,"","",'Measure Inputs'!W24) -> 0 | U32: =CHOOSE(Title!$G$11,"","",'Measure Inputs'!X24) -> 0 | V32: =CHOOSE(Title!$G$11,"","",'Measure Inputs'!BH24)*(1+future_inflation)^(BASEYR-progyear) ->  | W32: =CHOOSE(Title!$G$11,"","",'Measure Inputs'!Y24) -> 0 | AB32: 0 | AC32: 0
A33: =CHOOSE(Title!$G$11,"","",'Measure Inputs'!I25) -> Measure 14 | B33: =CHOOSE(Title!$G$11,"","",'Measure Inputs'!J25) -> 0 | C33: =CHOOSE(Title!$G$11,"","",'Measure Inputs'!K25) -> 0 | D33: =CHOOSE(Title!$G$11,"","",'Measure Inputs'!AR25) -> 2017 | E33: =CHOOSE(Title!$G$11,"","",'Measure Inputs'!M25)*(1+future_inflation)^(BASEYR-progyear) -> 0 | F33: =CHOOSE(Title!$G$11,"","",'Measure Inputs'!BP25) ->  | G33: =CHOOSE(Title!$G$11,"","",'Measure Inputs'!BQ25) ->  | H33: =CHOOSE(Title!$G$11,"","",'Measure Inputs'!BR25) ->  | I33: =CHOOSE(Title!$G$11,"","",'Measure Inputs'!BS25) ->  | J33: =CHOOSE(Title!$G$11,"","",'Measure Inputs'!AT25) ->  | K33: =CHOOSE(Title!$G$11,"","",'Measure Inputs'!BT25) ->  | L33: =CHOOSE(Title!$G$11,"","",'Measure Inputs'!BU25) ->  | M33: =CHOOSE(Title!$G$11,"","",'Measure Inputs'!BV25) ->  | N33: =CHOOSE(Title!$G$11,"","",'Measure Inputs'!BW25) ->  | O33: =CHOOSE(Title!$G$11,"","",'Measure Inputs'!R25) -> 0 | P33: =CHOOSE(Title!$G$11,"","",'Measure Inputs'!S25) -> 0 | Q33: =CHOOSE(Title!$G$11,"","",'Measure Inputs'!T25)*(1+future_inflation)^(BASEYR-progyear) -> 0 | R33: =CHOOSE(Title!$G$11,"","",'Measure Inputs'!U25) -> 0 | S33: ='Measure Inputs'!V25 -> 0 | T33: =CHOOSE(Title!$G$11,"","",'Measure Inputs'!W25) -> 0 | U33: =CHOOSE(Title!$G$11,"","",'Measure Inputs'!X25) -> 0 | V33: =CHOOSE(Title!$G$11,"","",'Measure Inputs'!BH25)*(1+future_inflation)^(BASEYR-progyear) ->  | W33: =CHOOSE(Title!$G$11,"","",'Measure Inputs'!Y25) -> 0 | AB33: 0 | AC33: 0
A34: =CHOOSE(Title!$G$11,"","",'Measure Inputs'!I26) -> Measure 15 | B34: =CHOOSE(Title!$G$11,"","",'Measure Inputs'!J26) -> 0 | C34: =CHOOSE(Title!$G$11,"","",'Measure Inputs'!K26) -> 0 | D34: =CHOOSE(Title!$G$11,"","",'Measure Inputs'!AR26) -> 2017 | E34: =CHOOSE(Title!$G$11,"","",'Measure Inputs'!M26)*(1+future_inflation)^(BASEYR-progyear) -> 0 | F34: =CHOOSE(Title!$G$11,"","",'Measure Inputs'!BP26) ->  | G34: =CHOOSE(Title!$G$11,"","",'Measure Inputs'!BQ26) ->  | H34: =CHOOSE(Title!$G$11,"","",'Measure Inputs'!BR26) ->  | I34: =CHOOSE(Title!$G$11,"","",'Measure Inputs'!BS26) ->  | J34: =CHOOSE(Title!$G$11,"","",'Measure Inputs'!AT26) ->  | K34: =CHOOSE(Title!$G$11,"","",'Measure Inputs'!BT26) ->  | L34: =CHOOSE(Title!$G$11,"","",'Measure Inputs'!BU26) ->  | M34: =CHOOSE(Title!$G$11,"","",'Measure Inputs'!BV26) ->  | N34: =CHOOSE(Title!$G$11,"","",'Measure Inputs'!BW26) ->  | O34: =CHOOSE(Title!$G$11,"","",'Measure Inputs'!R26) -> 0 | P34: =CHOOSE(Title!$G$11,"","",'Measure Inputs'!S26) -> 0 | Q34: =CHOOSE(Title!$G$11,"","",'Measure Inputs'!T26)*(1+future_inflation)^(BASEYR-progyear) -> 0 | R34: =CHOOSE(Title!$G$11,"","",'Measure Inputs'!U26) -> 0 | S34: ='Measure Inputs'!V26 -> 0 | T34: =CHOOSE(Title!$G$11,"","",'Measure Inputs'!W26) -> 0 | U34: =CHOOSE(Title!$G$11,"","",'Measure Inputs'!X26) -> 0 | V34: =CHOOSE(Title!$G$11,"","",'Measure Inputs'!BH26)*(1+future_inflation)^(BASEYR-progyear) ->  | W34: =CHOOSE(Title!$G$11,"","",'Measure Inputs'!Y26) -> 0 | AB34: 0 | AC34: 0
A35: =CHOOSE(Title!$G$11,"","",'Measure Inputs'!I27) -> Measure 16 | B35: =CHOOSE(Title!$G$11,"","",'Measure Inputs'!J27) -> 0 | C35: =CHOOSE(Title!$G$11,"","",'Measure Inputs'!K27) -> 0 | D35: =CHOOSE(Title!$G$11,"","",'Measure Inputs'!AR27) -> 2017 | E35: =CHOOSE(Title!$G$11,"","",'Measure Inputs'!M27)*(1+future_inflation)^(BASEYR-progyear) -> 0 | F35: =CHOOSE(Title!$G$11,"","",'Measure Inputs'!BP27) ->  | G35: =CHOOSE(Title!$G$11,"","",'Measure Inputs'!BQ27) ->  | H35: =CHOOSE(Title!$G$11,"","",'Measure Inputs'!BR27) ->  | I35: =CHOOSE(Title!$G$11,"","",'Measure Inputs'!BS27) ->  | J35: =CHOOSE(Title!$G$11,"","",'Measure Inputs'!AT27) ->  | K35: =CHOOSE(Title!$G$11,"","",'Measure Inputs'!BT27) ->  | L35: =CHOOSE(Title!$G$11,"","",'Measure Inputs'!BU27) ->  | M35: =CHOOSE(Title!$G$11,"","",'Measure Inputs'!BV27) ->  | N35: =CHOOSE(Title!$G$11,"","",'Measure Inputs'!BW27) ->  | O35: =CHOOSE(Title!$G$11,"","",'Measure Inputs'!R27) -> 0 | P35: =CHOOSE(Title!$G$11,"","",'Measure Inputs'!S27) -> 0 | Q35: =CHOOSE(Title!$G$11,"","",'Measure Inputs'!T27)*(1+future_inflation)^(BASEYR-progyear) -> 0 | R35: =CHOOSE(Title!$G$11,"","",'Measure Inputs'!U27) -> 0 | S35: ='Measure Inputs'!V27 -> 0 | T35: =CHOOSE(Title!$G$11,"","",'Measure Inputs'!W27) -> 0 | U35: =CHOOSE(Title!$G$11,"","",'Measure Inputs'!X27) -> 0 | V35: =CHOOSE(Title!$G$11,"","",'Measure Inputs'!BH27)*(1+future_inflation)^(BASEYR-progyear) ->  | W35: =CHOOSE(Title!$G$11,"","",'Measure Inputs'!Y27) -> 0 | AB35: 0 | AC35: 0
A36: =CHOOSE(Title!$G$11,"","",'Measure Inputs'!I28) -> Measure 17 | B36: =CHOOSE(Title!$G$11,"","",'Measure Inputs'!J28) -> 0 | C36: =CHOOSE(Title!$G$11,"","",'Measure Inputs'!K28) -> 0 | D36: =CHOOSE(Title!$G$11,"","",'Measure Inputs'!AR28) -> 2017 | E36: =CHOOSE(Title!$G$11,"","",'Measure Inputs'!M28)*(1+future_inflation)^(BASEYR-progyear) -> 0 | F36: =CHOOSE(Title!$G$11,"","",'Measure Inputs'!BP28) ->  | G36: =CHOOSE(Title!$G$11,"","",'Measure Inputs'!BQ28) ->  | H36: =CHOOSE(Title!$G$11,"","",'Measure Inputs'!BR28) ->  | I36: =CHOOSE(Title!$G$11,"","",'Measure Inputs'!BS28) ->  | J36: =CHOOSE(Title!$G$11,"","",'Measure Inputs'!AT28) ->  | K36: =CHOOSE(Title!$G$11,"","",'Measure Inputs'!BT28) ->  | L36: =CHOOSE(Title!$G$11,"","",'Measure Inputs'!BU28) ->  | M36: =CHOOSE(Title!$G$11,"","",'Measure Inputs'!BV28) ->  | N36: =CHOOSE(Title!$G$11,"","",'Measure Inputs'!BW28) ->  | O36: =CHOOSE(Title!$G$11,"","",'Measure Inputs'!R28) -> 0 | P36: =CHOOSE(Title!$G$11,"","",'Measure Inputs'!S28) -> 0 | Q36: =CHOOSE(Title!$G$11,"","",'Measure Inputs'!T28)*(1+future_inflation)^(BASEYR-progyear) -> 0 | R36: =CHOOSE(Title!$G$11,"","",'Measure Inputs'!U28) -> 0 | S36: ='Measure Inputs'!V28 -> 0 | T36: =CHOOSE(Title!$G$11,"","",'Measure Inputs'!W28) -> 0 | U36: =CHOOSE(Title!$G$11,"","",'Measure Inputs'!X28) -> 0 | V36: =CHOOSE(Title!$G$11,"","",'Measure Inputs'!BH28)*(1+future_inflation)^(BASEYR-progyear) ->  | W36: =CHOOSE(Title!$G$11,"","",'Measure Inputs'!Y28) -> 0 | AB36: 0 | AC36: 0
A37: =CHOOSE(Title!$G$11,"","",'Measure Inputs'!I29) -> Measure 18 | B37: =CHOOSE(Title!$G$11,"","",'Measure Inputs'!J29) -> 0 | C37: =CHOOSE(Title!$G$11,"","",'Measure Inputs'!K29) -> 0 | D37: =CHOOSE(Title!$G$11,"","",'Measure Inputs'!AR29) -> 2017 | E37: =CHOOSE(Title!$G$11,"","",'Measure Inputs'!M29)*(1+future_inflation)^(BASEYR-progyear) -> 0 | F37: =CHOOSE(Title!$G$11,"","",'Measure Inputs'!BP29) ->  | G37: =CHOOSE(Title!$G$11,"","",'Measure Inputs'!BQ29) ->  | H37: =CHOOSE(Title!$G$11,"","",'Measure Inputs'!BR29) ->  | I37: =CHOOSE(Title!$G$11,"","",'Measure Inputs'!BS29) ->  | J37: =CHOOSE(Title!$G$11,"","",'Measure Inputs'!AT29) ->  | K37: =CHOOSE(Title!$G$11,"","",'Measure Inputs'!BT29) ->  | L37: =CHOOSE(Title!$G$11,"","",'Measure Inputs'!BU29) ->  | M37: =CHOOSE(Title!$G$11,"","",'Measure Inputs'!BV29) ->  | N37: =CHOOSE(Title!$G$11,"","",'Measure Inputs'!BW29) ->  | O37: =CHOOSE(Title!$G$11,"","",'Measure Inputs'!R29) -> 0 | P37: =CHOOSE(Title!$G$11,"","",'Measure Inputs'!S29) -> 0 | Q37: =CHOOSE(Title!$G$11,"","",'Measure Inputs'!T29)*(1+future_inflation)^(BASEYR-progyear) -> 0 | R37: =CHOOSE(Title!$G$11,"","",'Measure Inputs'!U29) -> 0 | S37: ='Measure Inputs'!V29 -> 0 | T37: =CHOOSE(Title!$G$11,"","",'Measure Inputs'!W29) -> 0 | U37: =CHOOSE(Title!$G$11,"","",'Measure Inputs'!X29) -> 0 | V37: =CHOOSE(Title!$G$11,"","",'Measure Inputs'!BH29)*(1+future_inflation)^(BASEYR-progyear) ->  | W37: =CHOOSE(Title!$G$11,"","",'Measure Inputs'!Y29) -> 0 | AB37: 0 | AC37: 0
A38: =CHOOSE(Title!$G$11,"","",'Measure Inputs'!I30) -> Measure 19 | B38: =CHOOSE(Title!$G$11,"","",'Measure Inputs'!J30) -> 0 | C38: =CHOOSE(Title!$G$11,"","",'Measure Inputs'!K30) -> 0 | D38: =CHOOSE(Title!$G$11,"","",'Measure Inputs'!AR30) -> 2017 | E38: =CHOOSE(Title!$G$11,"","",'Measure Inputs'!M30)*(1+future_inflation)^(BASEYR-progyear) -> 0 | F38: =CHOOSE(Title!$G$11,"","",'Measure Inputs'!BP30) ->  | G38: =CHOOSE(Title!$G$11,"","",'Measure Inputs'!BQ30) ->  | H38: =CHOOSE(Title!$G$11,"","",'Measure Inputs'!BR30) ->  | I38: =CHOOSE(Title!$G$11,"","",'Measure Inputs'!BS30) ->  | J38: =CHOOSE(Title!$G$11,"","",'Measure Inputs'!AT30) ->  | K38: =CHOOSE(Title!$G$11,"","",'Measure Inputs'!BT30) ->  | L38: =CHOOSE(Title!$G$11,"","",'Measure Inputs'!BU30) ->  | M38: =CHOOSE(Title!$G$11,"","",'Measure Inputs'!BV30) ->  | N38: =CHOOSE(Title!$G$11,"","",'Measure Inputs'!BW30) ->  | O38: =CHOOSE(Title!$G$11,"","",'Measure Inputs'!R30) -> 0 | P38: =CHOOSE(Title!$G$11,"","",'Measure Inputs'!S30) -> 0 | Q38: =CHOOSE(Title!$G$11,"","",'Measure Inputs'!T30)*(1+future_inflation)^(BASEYR-progyear) -> 0 | R38: =CHOOSE(Title!$G$11,"","",'Measure Inputs'!U30) -> 0 | S38: ='Measure Inputs'!V30 -> 0 | T38: =CHOOSE(Title!$G$11,"","",'Measure Inputs'!W30) -> 0 | U38: =CHOOSE(Title!$G$11,"","",'Measure Inputs'!X30) -> 0 | V38: =CHOOSE(Title!$G$11,"","",'Measure Inputs'!BH30)*(1+future_inflation)^(BASEYR-progyear) ->  | W38: =CHOOSE(Title!$G$11,"","",'Measure Inputs'!Y30) -> 0 | AB38: 0 | AC38: 0
A39: =CHOOSE(Title!$G$11,"","",'Measure Inputs'!I31) -> Measure 20 | B39: =CHOOSE(Title!$G$11,"","",'Measure Inputs'!J31) -> 0 | C39: =CHOOSE(Title!$G$11,"","",'Measure Inputs'!K31) -> 0 | D39: =CHOOSE(Title!$G$11,"","",'Measure Inputs'!AR31) -> 2017 | E39: =CHOOSE(Title!$G$11,"","",'Measure Inputs'!M31)*(1+future_inflation)^(BASEYR-progyear) -> 0 | F39: =CHOOSE(Title!$G$11,"","",'Measure Inputs'!BP31) ->  | G39: =CHOOSE(Title!$G$11,"","",'Measure Inputs'!BQ31) ->  | H39: =CHOOSE(Title!$G$11,"","",'Measure Inputs'!BR31) ->  | I39: =CHOOSE(Title!$G$11,"","",'Measure Inputs'!BS31) ->  | J39: =CHOOSE(Title!$G$11,"","",'Measure Inputs'!AT31) ->  | K39: =CHOOSE(Title!$G$11,"","",'Measure Inputs'!BT31) ->  | L39: =CHOOSE(Title!$G$11,"","",'Measure Inputs'!BU31) ->  | M39: =CHOOSE(Title!$G$11,"","",'Measure Inputs'!BV31) ->  | N39: =CHOOSE(Title!$G$11,"","",'Measure Inputs'!BW31) ->  | O39: =CHOOSE(Title!$G$11,"","",'Measure Inputs'!R31) -> 0 | P39: =CHOOSE(Title!$G$11,"","",'Measure Inputs'!S31) -> 0 | Q39: =CHOOSE(Title!$G$11,"","",'Measure Inputs'!T31)*(1+future_inflation)^(BASEYR-progyear) -> 0 | R39: =CHOOSE(Title!$G$11,"","",'Measure Inputs'!U31) -> 0 | S39: ='Measure Inputs'!V31 -> 0 | T39: =CHOOSE(Title!$G$11,"","",'Measure Inputs'!W31) -> 0 | U39: =CHOOSE(Title!$G$11,"","",'Measure Inputs'!X31) -> 0 | V39: =CHOOSE(Title!$G$11,"","",'Measure Inputs'!BH31)*(1+future_inflation)^(BASEYR-progyear) ->  | W39: =CHOOSE(Title!$G$11,"","",'Measure Inputs'!Y31) -> 0 | AB39: 0 | AC39: 0
A40: =CHOOSE(Title!$G$11,"","",'Measure Inputs'!I32) -> Measure 21 | B40: =CHOOSE(Title!$G$11,"","",'Measure Inputs'!J32) -> 0 | C40: =CHOOSE(Title!$G$11,"","",'Measure Inputs'!K32) -> 0 | D40: =CHOOSE(Title!$G$11,"","",'Measure Inputs'!AR32) -> 2017 | E40: =CHOOSE(Title!$G$11,"","",'Measure Inputs'!M32)*(1+future_inflation)^(BASEYR-progyear) -> 0 | F40: =CHOOSE(Title!$G$11,"","",'Measure Inputs'!BP32) ->  | G40: =CHOOSE(Title!$G$11,"","",'Measure Inputs'!BQ32) ->  | H40: =CHOOSE(Title!$G$11,"","",'Measure Inputs'!BR32) ->  | I40: =CHOOSE(Title!$G$11,"","",'Measure Inputs'!BS32) ->  | J40: =CHOOSE(Title!$G$11,"","",'Measure Inputs'!AT32) ->  | K40: =CHOOSE(Title!$G$11,"","",'Measure Inputs'!BT32) ->  | L40: =CHOOSE(Title!$G$11,"","",'Measure Inputs'!BU32) ->  | M40: =CHOOSE(Title!$G$11,"","",'Measure Inputs'!BV32) ->  | N40: =CHOOSE(Title!$G$11,"","",'Measure Inputs'!BW32) ->  | O40: =CHOOSE(Title!$G$11,"","",'Measure Inputs'!R32) -> 0 | P40: =CHOOSE(Title!$G$11,"","",'Measure Inputs'!S32) -> 0 | Q40: =CHOOSE(Title!$G$11,"","",'Measure Inputs'!T32)*(1+future_inflation)^(BASEYR-progyear) -> 0 | R40: =CHOOSE(Title!$G$11,"","",'Measure Inputs'!U32) -> 0 | S40: ='Measure Inputs'!V32 -> 0 | T40: =CHOOSE(Title!$G$11,"","",'Measure Inputs'!W32) -> 0 | U40: =CHOOSE(Title!$G$11,"","",'Measure Inputs'!X32) -> 0 | V40: =CHOOSE(Title!$G$11,"","",'Measure Inputs'!BH32)*(1+future_inflation)^(BASEYR-progyear) ->  | W40: =CHOOSE(Title!$G$11,"","",'Measure Inputs'!Y32) -> 0 | AB40: 0 | AC40: 0
A41: =CHOOSE(Title!$G$11,"","",'Measure Inputs'!I33) -> Measure 22 | B41: =CHOOSE(Title!$G$11,"","",'Measure Inputs'!J33) -> 0 | C41: =CHOOSE(Title!$G$11,"","",'Measure Inputs'!K33) -> 0 | D41: =CHOOSE(Title!$G$11,"","",'Measure Inputs'!AR33) -> 2017 | E41: =CHOOSE(Title!$G$11,"","",'Measure Inputs'!M33)*(1+future_inflation)^(BASEYR-progyear) -> 0 | F41: =CHOOSE(Title!$G$11,"","",'Measure Inputs'!BP33) ->  | G41: =CHOOSE(Title!$G$11,"","",'Measure Inputs'!BQ33) ->  | H41: =CHOOSE(Title!$G$11,"","",'Measure Inputs'!BR33) ->  | I41: =CHOOSE(Title!$G$11,"","",'Measure Inputs'!BS33) ->  | J41: =CHOOSE(Title!$G$11,"","",'Measure Inputs'!AT33) ->  | K41: =CHOOSE(Title!$G$11,"","",'Measure Inputs'!BT33) ->  | L41: =CHOOSE(Title!$G$11,"","",'Measure Inputs'!BU33) ->  | M41: =CHOOSE(Title!$G$11,"","",'Measure Inputs'!BV33) ->  | N41: =CHOOSE(Title!$G$11,"","",'Measure Inputs'!BW33) ->  | O41: =CHOOSE(Title!$G$11,"","",'Measure Inputs'!R33) -> 0 | P41: =CHOOSE(Title!$G$11,"","",'Measure Inputs'!S33) -> 0 | Q41: =CHOOSE(Title!$G$11,"","",'Measure Inputs'!T33)*(1+future_inflation)^(BASEYR-progyear) -> 0 | R41: =CHOOSE(Title!$G$11,"","",'Measure Inputs'!U33) -> 0 | S41: ='Measure Inputs'!V33 -> 0 | T41: =CHOOSE(Title!$G$11,"","",'Measure Inputs'!W33) -> 0 | U41: =CHOOSE(Title!$G$11,"","",'Measure Inputs'!X33) -> 0 | V41: =CHOOSE(Title!$G$11,"","",'Measure Inputs'!BH33)*(1+future_inflation)^(BASEYR-progyear) ->  | W41: =CHOOSE(Title!$G$11,"","",'Measure Inputs'!Y33) -> 0 | AB41: 0 | AC41: 0
A42: =CHOOSE(Title!$G$11,"","",'Measure Inputs'!I34) -> Measure 23 | B42: =CHOOSE(Title!$G$11,"","",'Measure Inputs'!J34) -> 0 | C42: =CHOOSE(Title!$G$11,"","",'Measure Inputs'!K34) -> 0 | D42: =CHOOSE(Title!$G$11,"","",'Measure Inputs'!AR34) -> 2017 | E42: =CHOOSE(Title!$G$11,"","",'Measure Inputs'!M34)*(1+future_inflation)^(BASEYR-progyear) -> 0 | F42: =CHOOSE(Title!$G$11,"","",'Measure Inputs'!BP34) ->  | G42: =CHOOSE(Title!$G$11,"","",'Measure Inputs'!BQ34) ->  | H42: =CHOOSE(Title!$G$11,"","",'Measure Inputs'!BR34) ->  | I42: =CHOOSE(Title!$G$11,"","",'Measure Inputs'!BS34) ->  | J42: =CHOOSE(Title!$G$11,"","",'Measure Inputs'!AT34) ->  | K42: =CHOOSE(Title!$G$11,"","",'Measure Inputs'!BT34) ->  | L42: =CHOOSE(Title!$G$11,"","",'Measure Inputs'!BU34) ->  | M42: =CHOOSE(Title!$G$11,"","",'Measure Inputs'!BV34) ->  | N42: =CHOOSE(Title!$G$11,"","",'Measure Inputs'!BW34) ->  | O42: =CHOOSE(Title!$G$11,"","",'Measure Inputs'!R34) -> 0 | P42: =CHOOSE(Title!$G$11,"","",'Measure Inputs'!S34) -> 0 | Q42: =CHOOSE(Title!$G$11,"","",'Measure Inputs'!T34)*(1+future_inflation)^(BASEYR-progyear) -> 0 | R42: =CHOOSE(Title!$G$11,"","",'Measure Inputs'!U34) -> 0 | S42: ='Measure Inputs'!V34 -> 0 | T42: =CHOOSE(Title!$G$11,"","",'Measure Inputs'!W34) -> 0 | U42: =CHOOSE(Title!$G$11,"","",'Measure Inputs'!X34) -> 0 | V42: =CHOOSE(Title!$G$11,"","",'Measure Inputs'!BH34)*(1+future_inflation)^(BASEYR-progyear) ->  | W42: =CHOOSE(Title!$G$11,"","",'Measure Inputs'!Y34) -> 0 | AB42: 0 | AC42: 0
A43: =CHOOSE(Title!$G$11,"","",'Measure Inputs'!I35) -> Measure 24 | B43: =CHOOSE(Title!$G$11,"","",'Measure Inputs'!J35) -> 0 | C43: =CHOOSE(Title!$G$11,"","",'Measure Inputs'!K35) -> 0 | D43: =CHOOSE(Title!$G$11,"","",'Measure Inputs'!AR35) -> 2017 | E43: =CHOOSE(Title!$G$11,"","",'Measure Inputs'!M35)*(1+future_inflation)^(BASEYR-progyear) -> 0 | F43: =CHOOSE(Title!$G$11,"","",'Measure Inputs'!BP35) ->  | G43: =CHOOSE(Title!$G$11,"","",'Measure Inputs'!BQ35) ->  | H43: =CHOOSE(Title!$G$11,"","",'Measure Inputs'!BR35) ->  | I43: =CHOOSE(Title!$G$11,"","",'Measure Inputs'!BS35) ->  | J43: =CHOOSE(Title!$G$11,"","",'Measure Inputs'!AT35) ->  | K43: =CHOOSE(Title!$G$11,"","",'Measure Inputs'!BT35) ->  | L43: =CHOOSE(Title!$G$11,"","",'Measure Inputs'!BU35) ->  | M43: =CHOOSE(Title!$G$11,"","",'Measure Inputs'!BV35) ->  | N43: =CHOOSE(Title!$G$11,"","",'Measure Inputs'!BW35) ->  | O43: =CHOOSE(Title!$G$11,"","",'Measure Inputs'!R35) -> 0 | P43: =CHOOSE(Title!$G$11,"","",'Measure Inputs'!S35) -> 0 | Q43: =CHOOSE(Title!$G$11,"","",'Measure Inputs'!T35)*(1+future_inflation)^(BASEYR-progyear) -> 0 | R43: =CHOOSE(Title!$G$11,"","",'Measure Inputs'!U35) -> 0 | S43: ='Measure Inputs'!V35 -> 0 | T43: =CHOOSE(Title!$G$11,"","",'Measure Inputs'!W35) -> 0 | U43: =CHOOSE(Title!$G$11,"","",'Measure Inputs'!X35) -> 0 | V43: =CHOOSE(Title!$G$11,"","",'Measure Inputs'!BH35)*(1+future_inflation)^(BASEYR-progyear) ->  | W43: =CHOOSE(Title!$G$11,"","",'Measure Inputs'!Y35) -> 0 | AB43: 0 | AC43: 0
A44: =CHOOSE(Title!$G$11,"","",'Measure Inputs'!I36) -> Measure 25 | B44: =CHOOSE(Title!$G$11,"","",'Measure Inputs'!J36) -> 0 | C44: =CHOOSE(Title!$G$11,"","",'Measure Inputs'!K36) -> 0 | D44: =CHOOSE(Title!$G$11,"","",'Measure Inputs'!AR36) -> 2017 | E44: =CHOOSE(Title!$G$11,"","",'Measure Inputs'!M36)*(1+future_inflation)^(BASEYR-progyear) -> 0 | F44: =CHOOSE(Title!$G$11,"","",'Measure Inputs'!BP36) ->  | G44: =CHOOSE(Title!$G$11,"","",'Measure Inputs'!BQ36) ->  | H44: =CHOOSE(Title!$G$11,"","",'Measure Inputs'!BR36) ->  | I44: =CHOOSE(Title!$G$11,"","",'Measure Inputs'!BS36) ->  | J44: =CHOOSE(Title!$G$11,"","",'Measure Inputs'!AT36) ->  | K44: =CHOOSE(Title!$G$11,"","",'Measure Inputs'!BT36) ->  | L44: =CHOOSE(Title!$G$11,"","",'Measure Inputs'!BU36) ->  | M44: =CHOOSE(Title!$G$11,"","",'Measure Inputs'!BV36) ->  | N44: =CHOOSE(Title!$G$11,"","",'Measure Inputs'!BW36) ->  | O44: =CHOOSE(Title!$G$11,"","",'Measure Inputs'!R36) -> 0 | P44: =CHOOSE(Title!$G$11,"","",'Measure Inputs'!S36) -> 0 | Q44: =CHOOSE(Title!$G$11,"","",'Measure Inputs'!T36)*(1+future_inflation)^(BASEYR-progyear) -> 0 | R44: =CHOOSE(Title!$G$11,"","",'Measure Inputs'!U36) -> 0 | S44: ='Measure Inputs'!V36 -> 0 | T44: =CHOOSE(Title!$G$11,"","",'Measure Inputs'!W36) -> 0 | U44: =CHOOSE(Title!$G$11,"","",'Measure Inputs'!X36) -> 0 | V44: =CHOOSE(Title!$G$11,"","",'Measure Inputs'!BH36)*(1+future_inflation)^(BASEYR-progyear) ->  | W44: =CHOOSE(Title!$G$11,"","",'Measure Inputs'!Y36) -> 0 | AB44: 0 | AC44: 0
A45: =CHOOSE(Title!$G$11,"","",'Measure Inputs'!I37) -> Measure 26 | B45: =CHOOSE(Title!$G$11,"","",'Measure Inputs'!J37) -> 0 | C45: =CHOOSE(Title!$G$11,"","",'Measure Inputs'!K37) -> 0 | D45: =CHOOSE(Title!$G$11,"","",'Measure Inputs'!AR37) -> 2017 | E45: =CHOOSE(Title!$G$11,"","",'Measure Inputs'!M37)*(1+future_inflation)^(BASEYR-progyear) -> 0 | F45: =CHOOSE(Title!$G$11,"","",'Measure Inputs'!BP37) ->  | G45: =CHOOSE(Title!$G$11,"","",'Measure Inputs'!BQ37) ->  | H45: =CHOOSE(Title!$G$11,"","",'Measure Inputs'!BR37) ->  | I45: =CHOOSE(Title!$G$11,"","",'Measure Inputs'!BS37) ->  | J45: =CHOOSE(Title!$G$11,"","",'Measure Inputs'!AT37) ->  | K45: =CHOOSE(Title!$G$11,"","",'Measure Inputs'!BT37) ->  | L45: =CHOOSE(Title!$G$11,"","",'Measure Inputs'!BU37) ->  | M45: =CHOOSE(Title!$G$11,"","",'Measure Inputs'!BV37) ->  | N45: =CHOOSE(Title!$G$11,"","",'Measure Inputs'!BW37) ->  | O45: =CHOOSE(Title!$G$11,"","",'Measure Inputs'!R37) -> 0 | P45: =CHOOSE(Title!$G$11,"","",'Measure Inputs'!S37) -> 0 | Q45: =CHOOSE(Title!$G$11,"","",'Measure Inputs'!T37)*(1+future_inflation)^(BASEYR-progyear) -> 0 | R45: =CHOOSE(Title!$G$11,"","",'Measure Inputs'!U37) -> 0 | S45: ='Measure Inputs'!V37 -> 0 | T45: =CHOOSE(Title!$G$11,"","",'Measure Inputs'!W37) -> 0 | U45: =CHOOSE(Title!$G$11,"","",'Measure Inputs'!X37) -> 0 | V45: =CHOOSE(Title!$G$11,"","",'Measure Inputs'!BH37)*(1+future_inflation)^(BASEYR-progyear) ->  | W45: =CHOOSE(Title!$G$11,"","",'Measure Inputs'!Y37) -> 0 | AB45: 0 | AC45: 0
A46: =CHOOSE(Title!$G$11,"","",'Measure Inputs'!I38) -> Measure 27 | B46: =CHOOSE(Title!$G$11,"","",'Measure Inputs'!J38) -> 0 | C46: =CHOOSE(Title!$G$11,"","",'Measure Inputs'!K38) -> 0 | D46: =CHOOSE(Title!$G$11,"","",'Measure Inputs'!AR38) -> 2017 | E46: =CHOOSE(Title!$G$11,"","",'Measure Inputs'!M38)*(1+future_inflation)^(BASEYR-progyear) -> 0 | F46: =CHOOSE(Title!$G$11,"","",'Measure Inputs'!BP38) ->  | G46: =CHOOSE(Title!$G$11,"","",'Measure Inputs'!BQ38) ->  | H46: =CHOOSE(Title!$G$11,"","",'Measure Inputs'!BR38) ->  | I46: =CHOOSE(Title!$G$11,"","",'Measure Inputs'!BS38) ->  | J46: =CHOOSE(Title!$G$11,"","",'Measure Inputs'!AT38) ->  | K46: =CHOOSE(Title!$G$11,"","",'Measure Inputs'!BT38) ->  | L46: =CHOOSE(Title!$G$11,"","",'Measure Inputs'!BU38) ->  | M46: =CHOOSE(Title!$G$11,"","",'Measure Inputs'!BV38) ->  | N46: =CHOOSE(Title!$G$11,"","",'Measure Inputs'!BW38) ->  | O46: =CHOOSE(Title!$G$11,"","",'Measure Inputs'!R38) -> 0 | P46: =CHOOSE(Title!$G$11,"","",'Measure Inputs'!S38) -> 0 | Q46: =CHOOSE(Title!$G$11,"","",'Measure Inputs'!T38)*(1+future_inflation)^(BASEYR-progyear) -> 0 | R46: =CHOOSE(Title!$G$11,"","",'Measure Inputs'!U38) -> 0 | S46: ='Measure Inputs'!V38 -> 0 | T46: =CHOOSE(Title!$G$11,"","",'Measure Inputs'!W38) -> 0 | U46: =CHOOSE(Title!$G$11,"","",'Measure Inputs'!X38) -> 0 | V46: =CHOOSE(Title!$G$11,"","",'Measure Inputs'!BH38)*(1+future_inflation)^(BASEYR-progyear) ->  | W46: =CHOOSE(Title!$G$11,"","",'Measure Inputs'!Y38) -> 0 | AB46: 0 | AC46: 0
A47: =CHOOSE(Title!$G$11,"","",'Measure Inputs'!I39) -> Measure 28 | B47: =CHOOSE(Title!$G$11,"","",'Measure Inputs'!J39) -> 0 | C47: =CHOOSE(Title!$G$11,"","",'Measure Inputs'!K39) -> 0 | D47: =CHOOSE(Title!$G$11,"","",'Measure Inputs'!AR39) -> 2017 | E47: =CHOOSE(Title!$G$11,"","",'Measure Inputs'!M39)*(1+future_inflation)^(BASEYR-progyear) -> 0 | F47: =CHOOSE(Title!$G$11,"","",'Measure Inputs'!BP39) ->  | G47: =CHOOSE(Title!$G$11,"","",'Measure Inputs'!BQ39) ->  | H47: =CHOOSE(Title!$G$11,"","",'Measure Inputs'!BR39) ->  | I47: =CHOOSE(Title!$G$11,"","",'Measure Inputs'!BS39) ->  | J47: =CHOOSE(Title!$G$11,"","",'Measure Inputs'!AT39) ->  | K47: =CHOOSE(Title!$G$11,"","",'Measure Inputs'!BT39) ->  | L47: =CHOOSE(Title!$G$11,"","",'Measure Inputs'!BU39) ->  | M47: =CHOOSE(Title!$G$11,"","",'Measure Inputs'!BV39) ->  | N47: =CHOOSE(Title!$G$11,"","",'Measure Inputs'!BW39) ->  | O47: =CHOOSE(Title!$G$11,"","",'Measure Inputs'!R39) -> 0 | P47: =CHOOSE(Title!$G$11,"","",'Measure Inputs'!S39) -> 0 | Q47: =CHOOSE(Title!$G$11,"","",'Measure Inputs'!T39)*(1+future_inflation)^(BASEYR-progyear) -> 0 | R47: =CHOOSE(Title!$G$11,"","",'Measure Inputs'!U39) -> 0 | S47: ='Measure Inputs'!V39 -> 0 | T47: =CHOOSE(Title!$G$11,"","",'Measure Inputs'!W39) -> 0 | U47: =CHOOSE(Title!$G$11,"","",'Measure Inputs'!X39) -> 0 | V47: =CHOOSE(Title!$G$11,"","",'Measure Inputs'!BH39)*(1+future_inflation)^(BASEYR-progyear) ->  | W47: =CHOOSE(Title!$G$11,"","",'Measure Inputs'!Y39) -> 0 | AB47: 0 | AC47: 0
A48: =CHOOSE(Title!$G$11,"","",'Measure Inputs'!I40) -> Measure 29 | B48: =CHOOSE(Title!$G$11,"","",'Measure Inputs'!J40) -> 0 | C48: =CHOOSE(Title!$G$11,"","",'Measure Inputs'!K40) -> 0 | D48: =CHOOSE(Title!$G$11,"","",'Measure Inputs'!AR40) -> 2017 | E48: =CHOOSE(Title!$G$11,"","",'Measure Inputs'!M40)*(1+future_inflation)^(BASEYR-progyear) -> 0 | F48: =CHOOSE(Title!$G$11,"","",'Measure Inputs'!BP40) ->  | G48: =CHOOSE(Title!$G$11,"","",'Measure Inputs'!BQ40) ->  | H48: =CHOOSE(Title!$G$11,"","",'Measure Inputs'!BR40) ->  | I48: =CHOOSE(Title!$G$11,"","",'Measure Inputs'!BS40) ->  | J48: =CHOOSE(Title!$G$11,"","",'Measure Inputs'!AT40) ->  | K48: =CHOOSE(Title!$G$11,"","",'Measure Inputs'!BT40) ->  | L48: =CHOOSE(Title!$G$11,"","",'Measure Inputs'!BU40) ->  | M48: =CHOOSE(Title!$G$11,"","",'Measure Inputs'!BV40) ->  | N48: =CHOOSE(Title!$G$11,"","",'Measure Inputs'!BW40) ->  | O48: =CHOOSE(Title!$G$11,"","",'Measure Inputs'!R40) -> 0 | P48: =CHOOSE(Title!$G$11,"","",'Measure Inputs'!S40) -> 0 | Q48: =CHOOSE(Title!$G$11,"","",'Measure Inputs'!T40)*(1+future_inflation)^(BASEYR-progyear) -> 0 | R48: =CHOOSE(Title!$G$11,"","",'Measure Inputs'!U40) -> 0 | S48: ='Measure Inputs'!V40 -> 0 | T48: =CHOOSE(Title!$G$11,"","",'Measure Inputs'!W40) -> 0 | U48: =CHOOSE(Title!$G$11,"","",'Measure Inputs'!X40) -> 0 | V48: =CHOOSE(Title!$G$11,"","",'Measure Inputs'!BH40)*(1+future_inflation)^(BASEYR-progyear) ->  | W48: =CHOOSE(Title!$G$11,"","",'Measure Inputs'!Y40) -> 0 | AB48: 0 | AC48: 0
A49: =CHOOSE(Title!$G$11,"","",'Measure Inputs'!I41) -> Measure 30 | B49: =CHOOSE(Title!$G$11,"","",'Measure Inputs'!J41) -> 0 | C49: =CHOOSE(Title!$G$11,"","",'Measure Inputs'!K41) -> 0 | D49: =CHOOSE(Title!$G$11,"","",'Measure Inputs'!AR41) -> 2017 | E49: =CHOOSE(Title!$G$11,"","",'Measure Inputs'!M41)*(1+future_inflation)^(BASEYR-progyear) -> 0 | F49: =CHOOSE(Title!$G$11,"","",'Measure Inputs'!BP41) ->  | G49: =CHOOSE(Title!$G$11,"","",'Measure Inputs'!BQ41) ->  | H49: =CHOOSE(Title!$G$11,"","",'Measure Inputs'!BR41) ->  | I49: =CHOOSE(Title!$G$11,"","",'Measure Inputs'!BS41) ->  | J49: =CHOOSE(Title!$G$11,"","",'Measure Inputs'!AT41) ->  | K49: =CHOOSE(Title!$G$11,"","",'Measure Inputs'!BT41) ->  | L49: =CHOOSE(Title!$G$11,"","",'Measure Inputs'!BU41) ->  | M49: =CHOOSE(Title!$G$11,"","",'Measure Inputs'!BV41) ->  | N49: =CHOOSE(Title!$G$11,"","",'Measure Inputs'!BW41) ->  | O49: =CHOOSE(Title!$G$11,"","",'Measure Inputs'!R41) -> 0 | P49: =CHOOSE(Title!$G$11,"","",'Measure Inputs'!S41) -> 0 | Q49: =CHOOSE(Title!$G$11,"","",'Measure Inputs'!T41)*(1+future_inflation)^(BASEYR-progyear) -> 0 | R49: =CHOOSE(Title!$G$11,"","",'Measure Inputs'!U41) -> 0 | S49: ='Measure Inputs'!V41 -> 0 | T49: =CHOOSE(Title!$G$11,"","",'Measure Inputs'!W41) -> 0 | U49: =CHOOSE(Title!$G$11,"","",'Measure Inputs'!X41) -> 0 | V49: =CHOOSE(Title!$G$11,"","",'Measure Inputs'!BH41)*(1+future_inflation)^(BASEYR-progyear) ->  | W49: =CHOOSE(Title!$G$11,"","",'Measure Inputs'!Y41) -> 0 | AB49: 0 | AC49: 0
A50: =CHOOSE(Title!$G$11,"","",'Measure Inputs'!I42) -> 0 | B50: =CHOOSE(Title!$G$11,"","",'Measure Inputs'!J42) -> 0 | C50: =CHOOSE(Title!$G$11,"","",'Measure Inputs'!K42) -> 0 | D50: =CHOOSE(Title!$G$11,"","",'Measure Inputs'!AR42) -> 2017 | E50: =CHOOSE(Title!$G$11,"","",'Measure Inputs'!M42)*(1+future_inflation)^(BASEYR-progyear) -> 0 | F50: =CHOOSE(Title!$G$11,"","",'Measure Inputs'!BP42) ->  | G50: =CHOOSE(Title!$G$11,"","",'Measure Inputs'!BQ42) ->  | H50: =CHOOSE(Title!$G$11,"","",'Measure Inputs'!BR42) ->  | I50: =CHOOSE(Title!$G$11,"","",'Measure Inputs'!BS42) ->  | J50: =CHOOSE(Title!$G$11,"","",'Measure Inputs'!AT42) ->  | K50: =CHOOSE(Title!$G$11,"","",'Measure Inputs'!BT42) ->  | L50: =CHOOSE(Title!$G$11,"","",'Measure Inputs'!BU42) ->  | M50: =CHOOSE(Title!$G$11,"","",'Measure Inputs'!BV42) ->  | N50: =CHOOSE(Title!$G$11,"","",'Measure Inputs'!BW42) ->  | O50: =CHOOSE(Title!$G$11,"","",'Measure Inputs'!R42) -> 0 | P50: =CHOOSE(Title!$G$11,"","",'Measure Inputs'!S42) -> 0 | Q50: =CHOOSE(Title!$G$11,"","",'Measure Inputs'!T42)*(1+future_inflation)^(BASEYR-progyear) -> 0 | R50: =CHOOSE(Title!$G$11,"","",'Measure Inputs'!U42) -> 0 | S50: ='Measure Inputs'!V42 -> 0 | T50: =CHOOSE(Title!$G$11,"","",'Measure Inputs'!W42) -> 0 | U50: =CHOOSE(Title!$G$11,"","",'Measure Inputs'!X42) -> 0 | V50: =CHOOSE(Title!$G$11,"","",'Measure Inputs'!BH42)*(1+future_inflation)^(BASEYR-progyear) ->  | W50: =CHOOSE(Title!$G$11,"","",'Measure Inputs'!Y42) -> 0 | AB50: 0 | AC50: 0
A51: =CHOOSE(Title!$G$11,"","",'Measure Inputs'!I43) -> 0 | B51: =CHOOSE(Title!$G$11,"","",'Measure Inputs'!J43) -> 0 | C51: =CHOOSE(Title!$G$11,"","",'Measure Inputs'!K43) -> 0 | D51: =CHOOSE(Title!$G$11,"","",'Measure Inputs'!AR43) -> 2017 | E51: =CHOOSE(Title!$G$11,"","",'Measure Inputs'!M43)*(1+future_inflation)^(BASEYR-progyear) -> 0 | F51: =CHOOSE(Title!$G$11,"","",'Measure Inputs'!BP43) ->  | G51: =CHOOSE(Title!$G$11,"","",'Measure Inputs'!BQ43) ->  | H51: =CHOOSE(Title!$G$11,"","",'Measure Inputs'!BR43) ->  | I51: =CHOOSE(Title!$G$11,"","",'Measure Inputs'!BS43) ->  | J51: =CHOOSE(Title!$G$11,"","",'Measure Inputs'!AT43) ->  | K51: =CHOOSE(Title!$G$11,"","",'Measure Inputs'!BT43) ->  | L51: =CHOOSE(Title!$G$11,"","",'Measure Inputs'!BU43) ->  | M51: =CHOOSE(Title!$G$11,"","",'Measure Inputs'!BV43) ->  | N51: =CHOOSE(Title!$G$11,"","",'Measure Inputs'!BW43) ->  | O51: =CHOOSE(Title!$G$11,"","",'Measure Inputs'!R43) -> 0 | P51: =CHOOSE(Title!$G$11,"","",'Measure Inputs'!S43) -> 0 | Q51: =CHOOSE(Title!$G$11,"","",'Measure Inputs'!T43)*(1+future_inflation)^(BASEYR-progyear) -> 0 | R51: =CHOOSE(Title!$G$11,"","",'Measure Inputs'!U43) -> 0 | S51: ='Measure Inputs'!V43 -> 0 | T51: =CHOOSE(Title!$G$11,"","",'Measure Inputs'!W43) -> 0 | U51: =CHOOSE(Title!$G$11,"","",'Measure Inputs'!X43) -> 0 | V51: =CHOOSE(Title!$G$11,"","",'Measure Inputs'!BH43)*(1+future_inflation)^(BASEYR-progyear) ->  | W51: =CHOOSE(Title!$G$11,"","",'Measure Inputs'!Y43) -> 0 | AB51: 0 | AC51: 0
A52: =CHOOSE(Title!$G$11,"","",'Measure Inputs'!I44) -> 0 | B52: =CHOOSE(Title!$G$11,"","",'Measure Inputs'!J44) -> 0 | C52: =CHOOSE(Title!$G$11,"","",'Measure Inputs'!K44) -> 0 | D52: =CHOOSE(Title!$G$11,"","",'Measure Inputs'!AR44) -> 2017 | E52: =CHOOSE(Title!$G$11,"","",'Measure Inputs'!M44)*(1+future_inflation)^(BASEYR-progyear) -> 0 | F52: =CHOOSE(Title!$G$11,"","",'Measure Inputs'!BP44) ->  | G52: =CHOOSE(Title!$G$11,"","",'Measure Inputs'!BQ44) ->  | H52: =CHOOSE(Title!$G$11,"","",'Measure Inputs'!BR44) ->  | I52: =CHOOSE(Title!$G$11,"","",'Measure Inputs'!BS44) ->  | J52: =CHOOSE(Title!$G$11,"","",'Measure Inputs'!AT44) ->  | K52: =CHOOSE(Title!$G$11,"","",'Measure Inputs'!BT44) ->  | L52: =CHOOSE(Title!$G$11,"","",'Measure Inputs'!BU44) ->  | M52: =CHOOSE(Title!$G$11,"","",'Measure Inputs'!BV44) ->  | N52: =CHOOSE(Title!$G$11,"","",'Measure Inputs'!BW44) ->  | O52: =CHOOSE(Title!$G$11,"","",'Measure Inputs'!R44) -> 0 | P52: =CHOOSE(Title!$G$11,"","",'Measure Inputs'!S44) -> 0 | Q52: =CHOOSE(Title!$G$11,"","",'Measure Inputs'!T44)*(1+future_inflation)^(BASEYR-progyear) -> 0 | R52: =CHOOSE(Title!$G$11,"","",'Measure Inputs'!U44) -> 0 | S52: ='Measure Inputs'!V44 -> 0 | T52: =CHOOSE(Title!$G$11,"","",'Measure Inputs'!W44) -> 0 | U52: =CHOOSE(Title!$G$11,"","",'Measure Inputs'!X44) -> 0 | V52: =CHOOSE(Title!$G$11,"","",'Measure Inputs'!BH44)*(1+future_inflation)^(BASEYR-progyear) ->  | W52: =CHOOSE(Title!$G$11,"","",'Measure Inputs'!Y44) -> 0 | AB52: 0 | AC52: 0
A53: =CHOOSE(Title!$G$11,"","",'Measure Inputs'!I45) -> 0 | B53: =CHOOSE(Title!$G$11,"","",'Measure Inputs'!J45) -> 0 | C53: =CHOOSE(Title!$G$11,"","",'Measure Inputs'!K45) -> 0 | D53: =CHOOSE(Title!$G$11,"","",'Measure Inputs'!AR45) -> 2017 | E53: =CHOOSE(Title!$G$11,"","",'Measure Inputs'!M45)*(1+future_inflation)^(BASEYR-progyear) -> 0 | F53: =CHOOSE(Title!$G$11,"","",'Measure Inputs'!BP45) ->  | G53: =CHOOSE(Title!$G$11,"","",'Measure Inputs'!BQ45) ->  | H53: =CHOOSE(Title!$G$11,"","",'Measure Inputs'!BR45) ->  | I53: =CHOOSE(Title!$G$11,"","",'Measure Inputs'!BS45) ->  | J53: =CHOOSE(Title!$G$11,"","",'Measure Inputs'!AT45) ->  | K53: =CHOOSE(Title!$G$11,"","",'Measure Inputs'!BT45) ->  | L53: =CHOOSE(Title!$G$11,"","",'Measure Inputs'!BU45) ->  | M53: =CHOOSE(Title!$G$11,"","",'Measure Inputs'!BV45) ->  | N53: =CHOOSE(Title!$G$11,"","",'Measure Inputs'!BW45) ->  | O53: =CHOOSE(Title!$G$11,"","",'Measure Inputs'!R45) -> 0 | P53: =CHOOSE(Title!$G$11,"","",'Measure Inputs'!S45) -> 0 | Q53: =CHOOSE(Title!$G$11,"","",'Measure Inputs'!T45)*(1+future_inflation)^(BASEYR-progyear) -> 0 | R53: =CHOOSE(Title!$G$11,"","",'Measure Inputs'!U45) -> 0 | S53: ='Measure Inputs'!V45 -> 0 | T53: =CHOOSE(Title!$G$11,"","",'Measure Inputs'!W45) -> 0 | U53: =CHOOSE(Title!$G$11,"","",'Measure Inputs'!X45) -> 0 | V53: =CHOOSE(Title!$G$11,"","",'Measure Inputs'!BH45)*(1+future_inflation)^(BASEYR-progyear) ->  | W53: =CHOOSE(Title!$G$11,"","",'Measure Inputs'!Y45) -> 0 | AB53: 0 | AC53: 0
A54: =CHOOSE(Title!$G$11,"","",'Measure Inputs'!I46) -> 0 | B54: =CHOOSE(Title!$G$11,"","",'Measure Inputs'!J46) -> 0 | C54: =CHOOSE(Title!$G$11,"","",'Measure Inputs'!K46) -> 0 | D54: =CHOOSE(Title!$G$11,"","",'Measure Inputs'!AR46) -> 2017 | E54: =CHOOSE(Title!$G$11,"","",'Measure Inputs'!M46)*(1+future_inflation)^(BASEYR-progyear) -> 0 | F54: =CHOOSE(Title!$G$11,"","",'Measure Inputs'!BP46) ->  | G54: =CHOOSE(Title!$G$11,"","",'Measure Inputs'!BQ46) ->  | H54: =CHOOSE(Title!$G$11,"","",'Measure Inputs'!BR46) ->  | I54: =CHOOSE(Title!$G$11,"","",'Measure Inputs'!BS46) ->  | J54: =CHOOSE(Title!$G$11,"","",'Measure Inputs'!AT46) ->  | K54: =CHOOSE(Title!$G$11,"","",'Measure Inputs'!BT46) ->  | L54: =CHOOSE(Title!$G$11,"","",'Measure Inputs'!BU46) ->  | M54: =CHOOSE(Title!$G$11,"","",'Measure Inputs'!BV46) ->  | N54: =CHOOSE(Title!$G$11,"","",'Measure Inputs'!BW46) ->  | O54: =CHOOSE(Title!$G$11,"","",'Measure Inputs'!R46) -> 0 | P54: =CHOOSE(Title!$G$11,"","",'Measure Inputs'!S46) -> 0 | Q54: =CHOOSE(Title!$G$11,"","",'Measure Inputs'!T46)*(1+future_inflation)^(BASEYR-progyear) -> 0 | R54: =CHOOSE(Title!$G$11,"","",'Measure Inputs'!U46) -> 0 | S54: ='Measure Inputs'!V46 -> 0 | T54: =CHOOSE(Title!$G$11,"","",'Measure Inputs'!W46) -> 0 | U54: =CHOOSE(Title!$G$11,"","",'Measure Inputs'!X46) -> 0 | V54: =CHOOSE(Title!$G$11,"","",'Measure Inputs'!BH46)*(1+future_inflation)^(BASEYR-progyear) ->  | W54: =CHOOSE(Title!$G$11,"","",'Measure Inputs'!Y46) -> 0 | AB54: 0 | AC54: 0
A55: =CHOOSE(Title!$G$11,"","",'Measure Inputs'!I47) -> 0 | B55: =CHOOSE(Title!$G$11,"","",'Measure Inputs'!J47) -> 0 | C55: =CHOOSE(Title!$G$11,"","",'Measure Inputs'!K47) -> 0 | D55: =CHOOSE(Title!$G$11,"","",'Measure Inputs'!AR47) -> 2017 | E55: =CHOOSE(Title!$G$11,"","",'Measure Inputs'!M47)*(1+future_inflation)^(BASEYR-progyear) -> 0 | F55: =CHOOSE(Title!$G$11,"","",'Measure Inputs'!BP47) ->  | G55: =CHOOSE(Title!$G$11,"","",'Measure Inputs'!BQ47) ->  | H55: =CHOOSE(Title!$G$11,"","",'Measure Inputs'!BR47) ->  | I55: =CHOOSE(Title!$G$11,"","",'Measure Inputs'!BS47) ->  | J55: =CHOOSE(Title!$G$11,"","",'Measure Inputs'!AT47) ->  | K55: =CHOOSE(Title!$G$11,"","",'Measure Inputs'!BT47) ->  | L55: =CHOOSE(Title!$G$11,"","",'Measure Inputs'!BU47) ->  | M55: =CHOOSE(Title!$G$11,"","",'Measure Inputs'!BV47) ->  | N55: =CHOOSE(Title!$G$11,"","",'Measure Inputs'!BW47) ->  | O55: =CHOOSE(Title!$G$11,"","",'Measure Inputs'!R47) -> 0 | P55: =CHOOSE(Title!$G$11,"","",'Measure Inputs'!S47) -> 0 | Q55: =CHOOSE(Title!$G$11,"","",'Measure Inputs'!T47)*(1+future_inflation)^(BASEYR-progyear) -> 0 | R55: =CHOOSE(Title!$G$11,"","",'Measure Inputs'!U47) -> 0 | S55: ='Measure Inputs'!V47 -> 0 | T55: =CHOOSE(Title!$G$11,"","",'Measure Inputs'!W47) -> 0 | U55: =CHOOSE(Title!$G$11,"","",'Measure Inputs'!X47) -> 0 | V55: =CHOOSE(Title!$G$11,"","",'Measure Inputs'!BH47)*(1+future_inflation)^(BASEYR-progyear) ->  | W55: =CHOOSE(Title!$G$11,"","",'Measure Inputs'!Y47) -> 0 | AB55: 0 | AC55: 0
A56: =CHOOSE(Title!$G$11,"","",'Measure Inputs'!I48) -> 0 | B56: =CHOOSE(Title!$G$11,"","",'Measure Inputs'!J48) -> 0 | C56: =CHOOSE(Title!$G$11,"","",'Measure Inputs'!K48) -> 0 | D56: =CHOOSE(Title!$G$11,"","",'Measure Inputs'!AR48) -> 2017 | E56: =CHOOSE(Title!$G$11,"","",'Measure Inputs'!M48)*(1+future_inflation)^(BASEYR-progyear) -> 0 | F56: =CHOOSE(Title!$G$11,"","",'Measure Inputs'!BP48) ->  | G56: =CHOOSE(Title!$G$11,"","",'Measure Inputs'!BQ48) ->  | H56: =CHOOSE(Title!$G$11,"","",'Measure Inputs'!BR48) ->  | I56: =CHOOSE(Title!$G$11,"","",'Measure Inputs'!BS48) ->  | J56: =CHOOSE(Title!$G$11,"","",'Measure Inputs'!AT48) ->  | K56: =CHOOSE(Title!$G$11,"","",'Measure Inputs'!BT48) ->  | L56: =CHOOSE(Title!$G$11,"","",'Measure Inputs'!BU48) ->  | M56: =CHOOSE(Title!$G$11,"","",'Measure Inputs'!BV48) ->  | N56: =CHOOSE(Title!$G$11,"","",'Measure Inputs'!BW48) ->  | O56: =CHOOSE(Title!$G$11,"","",'Measure Inputs'!R48) -> 0 | P56: =CHOOSE(Title!$G$11,"","",'Measure Inputs'!S48) -> 0 | Q56: =CHOOSE(Title!$G$11,"","",'Measure Inputs'!T48)*(1+future_inflation)^(BASEYR-progyear) -> 0 | R56: =CHOOSE(Title!$G$11,"","",'Measure Inputs'!U48) -> 0 | S56: ='Measure Inputs'!V48 -> 0 | T56: =CHOOSE(Title!$G$11,"","",'Measure Inputs'!W48) -> 0 | U56: =CHOOSE(Title!$G$11,"","",'Measure Inputs'!X48) -> 0 | V56: =CHOOSE(Title!$G$11,"","",'Measure Inputs'!BH48)*(1+future_inflation)^(BASEYR-progyear) ->  | W56: =CHOOSE(Title!$G$11,"","",'Measure Inputs'!Y48) -> 0 | AB56: 0 | AC56: 0
A57: =CHOOSE(Title!$G$11,"","",'Measure Inputs'!I49) -> 0 | B57: =CHOOSE(Title!$G$11,"","",'Measure Inputs'!J49) -> 0 | C57: =CHOOSE(Title!$G$11,"","",'Measure Inputs'!K49) -> 0 | D57: =CHOOSE(Title!$G$11,"","",'Measure Inputs'!AR49) -> 2017 | E57: =CHOOSE(Title!$G$11,"","",'Measure Inputs'!M49)*(1+future_inflation)^(BASEYR-progyear) -> 0 | F57: =CHOOSE(Title!$G$11,"","",'Measure Inputs'!BP49) ->  | G57: =CHOOSE(Title!$G$11,"","",'Measure Inputs'!BQ49) ->  | H57: =CHOOSE(Title!$G$11,"","",'Measure Inputs'!BR49) ->  | I57: =CHOOSE(Title!$G$11,"","",'Measure Inputs'!BS49) ->  | J57: =CHOOSE(Title!$G$11,"","",'Measure Inputs'!AT49) ->  | K57: =CHOOSE(Title!$G$11,"","",'Measure Inputs'!BT49) ->  | L57: =CHOOSE(Title!$G$11,"","",'Measure Inputs'!BU49) ->  | M57: =CHOOSE(Title!$G$11,"","",'Measure Inputs'!BV49) ->  | N57: =CHOOSE(Title!$G$11,"","",'Measure Inputs'!BW49) ->  | O57: =CHOOSE(Title!$G$11,"","",'Measure Inputs'!R49) -> 0 | P57: =CHOOSE(Title!$G$11,"","",'Measure Inputs'!S49) -> 0 | Q57: =CHOOSE(Title!$G$11,"","",'Measure Inputs'!T49)*(1+future_inflation)^(BASEYR-progyear) -> 0 | R57: =CHOOSE(Title!$G$11,"","",'Measure Inputs'!U49) -> 0 | S57: ='Measure Inputs'!V49 -> 0 | T57: =CHOOSE(Title!$G$11,"","",'Measure Inputs'!W49) -> 0 | U57: =CHOOSE(Title!$G$11,"","",'Measure Inputs'!X49) -> 0 | V57: =CHOOSE(Title!$G$11,"","",'Measure Inputs'!BH49)*(1+future_inflation)^(BASEYR-progyear) ->  | W57: =CHOOSE(Title!$G$11,"","",'Measure Inputs'!Y49) -> 0 | AB57: 0 | AC57: 0
A58: =CHOOSE(Title!$G$11,"","",'Measure Inputs'!I50) -> 0 | B58: =CHOOSE(Title!$G$11,"","",'Measure Inputs'!J50) -> 0 | C58: =CHOOSE(Title!$G$11,"","",'Measure Inputs'!K50) -> 0 | D58: =CHOOSE(Title!$G$11,"","",'Measure Inputs'!AR50) -> 2017 | E58: =CHOOSE(Title!$G$11,"","",'Measure Inputs'!M50)*(1+future_inflation)^(BASEYR-progyear) -> 0 | F58: =CHOOSE(Title!$G$11,"","",'Measure Inputs'!BP50) ->  | G58: =CHOOSE(Title!$G$11,"","",'Measure Inputs'!BQ50) ->  | H58: =CHOOSE(Title!$G$11,"","",'Measure Inputs'!BR50) ->  | I58: =CHOOSE(Title!$G$11,"","",'Measure Inputs'!BS50) ->  | J58: =CHOOSE(Title!$G$11,"","",'Measure Inputs'!AT50) ->  | K58: =CHOOSE(Title!$G$11,"","",'Measure Inputs'!BT50) ->  | L58: =CHOOSE(Title!$G$11,"","",'Measure Inputs'!BU50) ->  | M58: =CHOOSE(Title!$G$11,"","",'Measure Inputs'!BV50) ->  | N58: =CHOOSE(Title!$G$11,"","",'Measure Inputs'!BW50) ->  | O58: =CHOOSE(Title!$G$11,"","",'Measure Inputs'!R50) -> 0 | P58: =CHOOSE(Title!$G$11,"","",'Measure Inputs'!S50) -> 0 | Q58: =CHOOSE(Title!$G$11,"","",'Measure Inputs'!T50)*(1+future_inflation)^(BASEYR-progyear) -> 0 | R58: =CHOOSE(Title!$G$11,"","",'Measure Inputs'!U50) -> 0 | S58: ='Measure Inputs'!V50 -> 0 | T58: =CHOOSE(Title!$G$11,"","",'Measure Inputs'!W50) -> 0 | U58: =CHOOSE(Title!$G$11,"","",'Measure Inputs'!X50) -> 0 | V58: =CHOOSE(Title!$G$11,"","",'Measure Inputs'!BH50)*(1+future_inflation)^(BASEYR-progyear) ->  | W58: =CHOOSE(Title!$G$11,"","",'Measure Inputs'!Y50) -> 0 | AB58: 0 | AC58: 0
A59: =CHOOSE(Title!$G$11,"","",'Measure Inputs'!I51) -> 0 | B59: =CHOOSE(Title!$G$11,"","",'Measure Inputs'!J51) -> 0 | C59: =CHOOSE(Title!$G$11,"","",'Measure Inputs'!K51) -> 0 | D59: =CHOOSE(Title!$G$11,"","",'Measure Inputs'!AR51) -> 2017 | E59: =CHOOSE(Title!$G$11,"","",'Measure Inputs'!M51)*(1+future_inflation)^(BASEYR-progyear) -> 0 | F59: =CHOOSE(Title!$G$11,"","",'Measure Inputs'!BP51) ->  | G59: =CHOOSE(Title!$G$11,"","",'Measure Inputs'!BQ51) ->  | H59: =CHOOSE(Title!$G$11,"","",'Measure Inputs'!BR51) ->  | I59: =CHOOSE(Title!$G$11,"","",'Measure Inputs'!BS51) ->  | J59: =CHOOSE(Title!$G$11,"","",'Measure Inputs'!AT51) ->  | K59: =CHOOSE(Title!$G$11,"","",'Measure Inputs'!BT51) ->  | L59: =CHOOSE(Title!$G$11,"","",'Measure Inputs'!BU51) ->  | M59: =CHOOSE(Title!$G$11,"","",'Measure Inputs'!BV51) ->  | N59: =CHOOSE(Title!$G$11,"","",'Measure Inputs'!BW51) ->  | O59: =CHOOSE(Title!$G$11,"","",'Measure Inputs'!R51) -> 0 | P59: =CHOOSE(Title!$G$11,"","",'Measure Inputs'!S51) -> 0 | Q59: =CHOOSE(Title!$G$11,"","",'Measure Inputs'!T51)*(1+future_inflation)^(BASEYR-progyear) -> 0 | R59: =CHOOSE(Title!$G$11,"","",'Measure Inputs'!U51) -> 0 | S59: ='Measure Inputs'!V51 -> 0 | T59: =CHOOSE(Title!$G$11,"","",'Measure Inputs'!W51) -> 0 | U59: =CHOOSE(Title!$G$11,"","",'Measure Inputs'!X51) -> 0 | V59: =CHOOSE(Title!$G$11,"","",'Measure Inputs'!BH51)*(1+future_inflation)^(BASEYR-progyear) ->  | W59: =CHOOSE(Title!$G$11,"","",'Measure Inputs'!Y51) -> 0 | AB59: 0 | AC59: 0
A60: =CHOOSE(Title!$G$11,"","",'Measure Inputs'!I52) -> 0 | B60: =CHOOSE(Title!$G$11,"","",'Measure Inputs'!J52) -> 0 | C60: =CHOOSE(Title!$G$11,"","",'Measure Inputs'!K52) -> 0 | D60: =CHOOSE(Title!$G$11,"","",'Measure Inputs'!AR52) -> 2017 | E60: =CHOOSE(Title!$G$11,"","",'Measure Inputs'!M52)*(1+future_inflation)^(BASEYR-progyear) -> 0 | F60: =CHOOSE(Title!$G$11,"","",'Measure Inputs'!BP52) ->  | G60: =CHOOSE(Title!$G$11,"","",'Measure Inputs'!BQ52) ->  | H60: =CHOOSE(Title!$G$11,"","",'Measure Inputs'!BR52) ->  | I60: =CHOOSE(Title!$G$11,"","",'Measure Inputs'!BS52) ->  | J60: =CHOOSE(Title!$G$11,"","",'Measure Inputs'!AT52) ->  | K60: =CHOOSE(Title!$G$11,"","",'Measure Inputs'!BT52) ->  | L60: =CHOOSE(Title!$G$11,"","",'Measure Inputs'!BU52) ->  | M60: =CHOOSE(Title!$G$11,"","",'Measure Inputs'!BV52) ->  | N60: =CHOOSE(Title!$G$11,"","",'Measure Inputs'!BW52) ->  | O60: =CHOOSE(Title!$G$11,"","",'Measure Inputs'!R52) -> 0 | P60: =CHOOSE(Title!$G$11,"","",'Measure Inputs'!S52) -> 0 | Q60: =CHOOSE(Title!$G$11,"","",'Measure Inputs'!T52)*(1+future_inflation)^(BASEYR-progyear) -> 0 | R60: =CHOOSE(Title!$G$11,"","",'Measure Inputs'!U52) -> 0 | S60: ='Measure Inputs'!V52 -> 0 | T60: =CHOOSE(Title!$G$11,"","",'Measure Inputs'!W52) -> 0 | U60: =CHOOSE(Title!$G$11,"","",'Measure Inputs'!X52) -> 0 | V60: =CHOOSE(Title!$G$11,"","",'Measure Inputs'!BH52)*(1+future_inflation)^(BASEYR-progyear) ->  | W60: =CHOOSE(Title!$G$11,"","",'Measure Inputs'!Y52) -> 0 | AB60: 0 | AC60: 0
A61: =CHOOSE(Title!$G$11,"","",'Measure Inputs'!I53) -> 0 | B61: =CHOOSE(Title!$G$11,"","",'Measure Inputs'!J53) -> 0 | C61: =CHOOSE(Title!$G$11,"","",'Measure Inputs'!K53) -> 0 | D61: =CHOOSE(Title!$G$11,"","",'Measure Inputs'!AR53) -> 2017 | E61: =CHOOSE(Title!$G$11,"","",'Measure Inputs'!M53)*(1+future_inflation)^(BASEYR-progyear) -> 0 | F61: =CHOOSE(Title!$G$11,"","",'Measure Inputs'!BP53) ->  | G61: =CHOOSE(Title!$G$11,"","",'Measure Inputs'!BQ53) ->  | H61: =CHOOSE(Title!$G$11,"","",'Measure Inputs'!BR53) ->  | I61: =CHOOSE(Title!$G$11,"","",'Measure Inputs'!BS53) ->  | J61: =CHOOSE(Title!$G$11,"","",'Measure Inputs'!AT53) ->  | K61: =CHOOSE(Title!$G$11,"","",'Measure Inputs'!BT53) ->  | L61: =CHOOSE(Title!$G$11,"","",'Measure Inputs'!BU53) ->  | M61: =CHOOSE(Title!$G$11,"","",'Measure Inputs'!BV53) ->  | N61: =CHOOSE(Title!$G$11,"","",'Measure Inputs'!BW53) ->  | O61: =CHOOSE(Title!$G$11,"","",'Measure Inputs'!R53) -> 0 | P61: =CHOOSE(Title!$G$11,"","",'Measure Inputs'!S53) -> 0 | Q61: =CHOOSE(Title!$G$11,"","",'Measure Inputs'!T53)*(1+future_inflation)^(BASEYR-progyear) -> 0 | R61: =CHOOSE(Title!$G$11,"","",'Measure Inputs'!U53) -> 0 | S61: ='Measure Inputs'!V53 -> 0 | T61: =CHOOSE(Title!$G$11,"","",'Measure Inputs'!W53) -> 0 | U61: =CHOOSE(Title!$G$11,"","",'Measure Inputs'!X53) -> 0 | V61: =CHOOSE(Title!$G$11,"","",'Measure Inputs'!BH53)*(1+future_inflation)^(BASEYR-progyear) ->  | W61: =CHOOSE(Title!$G$11,"","",'Measure Inputs'!Y53) -> 0 | AB61: 0 | AC61: 0
A62: =CHOOSE(Title!$G$11,"","",'Measure Inputs'!I54) -> 0 | B62: =CHOOSE(Title!$G$11,"","",'Measure Inputs'!J54) -> 0 | C62: =CHOOSE(Title!$G$11,"","",'Measure Inputs'!K54) -> 0 | D62: =CHOOSE(Title!$G$11,"","",'Measure Inputs'!AR54) -> 2017 | E62: =CHOOSE(Title!$G$11,"","",'Measure Inputs'!M54)*(1+future_inflation)^(BASEYR-progyear) -> 0 | F62: =CHOOSE(Title!$G$11,"","",'Measure Inputs'!BP54) ->  | G62: =CHOOSE(Title!$G$11,"","",'Measure Inputs'!BQ54) ->  | H62: =CHOOSE(Title!$G$11,"","",'Measure Inputs'!BR54) ->  | I62: =CHOOSE(Title!$G$11,"","",'Measure Inputs'!BS54) ->  | J62: =CHOOSE(Title!$G$11,"","",'Measure Inputs'!AT54) ->  | K62: =CHOOSE(Title!$G$11,"","",'Measure Inputs'!BT54) ->  | L62: =CHOOSE(Title!$G$11,"","",'Measure Inputs'!BU54) ->  | M62: =CHOOSE(Title!$G$11,"","",'Measure Inputs'!BV54) ->  | N62: =CHOOSE(Title!$G$11,"","",'Measure Inputs'!BW54) ->  | O62: =CHOOSE(Title!$G$11,"","",'Measure Inputs'!R54) -> 0 | P62: =CHOOSE(Title!$G$11,"","",'Measure Inputs'!S54) -> 0 | Q62: =CHOOSE(Title!$G$11,"","",'Measure Inputs'!T54)*(1+future_inflation)^(BASEYR-progyear) -> 0 | R62: =CHOOSE(Title!$G$11,"","",'Measure Inputs'!U54) -> 0 | S62: ='Measure Inputs'!V54 -> 0 | T62: =CHOOSE(Title!$G$11,"","",'Measure Inputs'!W54) -> 0 | U62: =CHOOSE(Title!$G$11,"","",'Measure Inputs'!X54) -> 0 | V62: =CHOOSE(Title!$G$11,"","",'Measure Inputs'!BH54)*(1+future_inflation)^(BASEYR-progyear) ->  | W62: =CHOOSE(Title!$G$11,"","",'Measure Inputs'!Y54) -> 0 | AB62: 0 | AC62: 0
A63: =CHOOSE(Title!$G$11,"","",'Measure Inputs'!I55) -> 0 | B63: =CHOOSE(Title!$G$11,"","",'Measure Inputs'!J55) -> 0 | C63: =CHOOSE(Title!$G$11,"","",'Measure Inputs'!K55) -> 0 | D63: =CHOOSE(Title!$G$11,"","",'Measure Inputs'!AR55) -> 2017 | E63: =CHOOSE(Title!$G$11,"","",'Measure Inputs'!M55)*(1+future_inflation)^(BASEYR-progyear) -> 0 | F63: =CHOOSE(Title!$G$11,"","",'Measure Inputs'!BP55) ->  | G63: =CHOOSE(Title!$G$11,"","",'Measure Inputs'!BQ55) ->  | H63: =CHOOSE(Title!$G$11,"","",'Measure Inputs'!BR55) ->  | I63: =CHOOSE(Title!$G$11,"","",'Measure Inputs'!BS55) ->  | J63: =CHOOSE(Title!$G$11,"","",'Measure Inputs'!AT55) ->  | K63: =CHOOSE(Title!$G$11,"","",'Measure Inputs'!BT55) ->  | L63: =CHOOSE(Title!$G$11,"","",'Measure Inputs'!BU55) ->  | M63: =CHOOSE(Title!$G$11,"","",'Measure Inputs'!BV55) ->  | N63: =CHOOSE(Title!$G$11,"","",'Measure Inputs'!BW55) ->  | O63: =CHOOSE(Title!$G$11,"","",'Measure Inputs'!R55) -> 0 | P63: =CHOOSE(Title!$G$11,"","",'Measure Inputs'!S55) -> 0 | Q63: =CHOOSE(Title!$G$11,"","",'Measure Inputs'!T55)*(1+future_inflation)^(BASEYR-progyear) -> 0 | R63: =CHOOSE(Title!$G$11,"","",'Measure Inputs'!U55) -> 0 | S63: ='Measure Inputs'!V55 -> 0 | T63: =CHOOSE(Title!$G$11,"","",'Measure Inputs'!W55) -> 0 | U63: =CHOOSE(Title!$G$11,"","",'Measure Inputs'!X55) -> 0 | V63: =CHOOSE(Title!$G$11,"","",'Measure Inputs'!BH55)*(1+future_inflation)^(BASEYR-progyear) ->  | W63: =CHOOSE(Title!$G$11,"","",'Measure Inputs'!Y55) -> 0 | AB63: 0 | AC63: 0
A64: =CHOOSE(Title!$G$11,"","",'Measure Inputs'!I56) -> 0 | B64: =CHOOSE(Title!$G$11,"","",'Measure Inputs'!J56) -> 0 | C64: =CHOOSE(Title!$G$11,"","",'Measure Inputs'!K56) -> 0 | D64: =CHOOSE(Title!$G$11,"","",'Measure Inputs'!AR56) -> 2017 | E64: =CHOOSE(Title!$G$11,"","",'Measure Inputs'!M56)*(1+future_inflation)^(BASEYR-progyear) -> 0 | F64: =CHOOSE(Title!$G$11,"","",'Measure Inputs'!BP56) ->  | G64: =CHOOSE(Title!$G$11,"","",'Measure Inputs'!BQ56) ->  | H64: =CHOOSE(Title!$G$11,"","",'Measure Inputs'!BR56) ->  | I64: =CHOOSE(Title!$G$11,"","",'Measure Inputs'!BS56) ->  | J64: =CHOOSE(Title!$G$11,"","",'Measure Inputs'!AT56) ->  | K64: =CHOOSE(Title!$G$11,"","",'Measure Inputs'!BT56) ->  | L64: =CHOOSE(Title!$G$11,"","",'Measure Inputs'!BU56) ->  | M64: =CHOOSE(Title!$G$11,"","",'Measure Inputs'!BV56) ->  | N64: =CHOOSE(Title!$G$11,"","",'Measure Inputs'!BW56) ->  | O64: =CHOOSE(Title!$G$11,"","",'Measure Inputs'!R56) -> 0 | P64: =CHOOSE(Title!$G$11,"","",'Measure Inputs'!S56) -> 0 | Q64: =CHOOSE(Title!$G$11,"","",'Measure Inputs'!T56)*(1+future_inflation)^(BASEYR-progyear) -> 0 | R64: =CHOOSE(Title!$G$11,"","",'Measure Inputs'!U56) -> 0 | S64: ='Measure Inputs'!V56 -> 0 | T64: =CHOOSE(Title!$G$11,"","",'Measure Inputs'!W56) -> 0 | U64: =CHOOSE(Title!$G$11,"","",'Measure Inputs'!X56) -> 0 | V64: =CHOOSE(Title!$G$11,"","",'Measure Inputs'!BH56)*(1+future_inflation)^(BASEYR-progyear) ->  | W64: =CHOOSE(Title!$G$11,"","",'Measure Inputs'!Y56) -> 0 | AB64: 0 | AC64: 0
A65: =CHOOSE(Title!$G$11,"","",'Measure Inputs'!I57) -> 0 | B65: =CHOOSE(Title!$G$11,"","",'Measure Inputs'!J57) -> 0 | C65: =CHOOSE(Title!$G$11,"","",'Measure Inputs'!K57) -> 0 | D65: =CHOOSE(Title!$G$11,"","",'Measure Inputs'!AR57) -> 2017 | E65: =CHOOSE(Title!$G$11,"","",'Measure Inputs'!M57)*(1+future_inflation)^(BASEYR-progyear) -> 0 | F65: =CHOOSE(Title!$G$11,"","",'Measure Inputs'!BP57) ->  | G65: =CHOOSE(Title!$G$11,"","",'Measure Inputs'!BQ57) ->  | H65: =CHOOSE(Title!$G$11,"","",'Measure Inputs'!BR57) ->  | I65: =CHOOSE(Title!$G$11,"","",'Measure Inputs'!BS57) ->  | J65: =CHOOSE(Title!$G$11,"","",'Measure Inputs'!AT57) ->  | K65: =CHOOSE(Title!$G$11,"","",'Measure Inputs'!BT57) ->  | L65: =CHOOSE(Title!$G$11,"","",'Measure Inputs'!BU57) ->  | M65: =CHOOSE(Title!$G$11,"","",'Measure Inputs'!BV57) ->  | N65: =CHOOSE(Title!$G$11,"","",'Measure Inputs'!BW57) ->  | O65: =CHOOSE(Title!$G$11,"","",'Measure Inputs'!R57) -> 0 | P65: =CHOOSE(Title!$G$11,"","",'Measure Inputs'!S57) -> 0 | Q65: =CHOOSE(Title!$G$11,"","",'Measure Inputs'!T57)*(1+future_inflation)^(BASEYR-progyear) -> 0 | R65: =CHOOSE(Title!$G$11,"","",'Measure Inputs'!U57) -> 0 | S65: ='Measure Inputs'!V57 -> 0 | T65: =CHOOSE(Title!$G$11,"","",'Measure Inputs'!W57) -> 0 | U65: =CHOOSE(Title!$G$11,"","",'Measure Inputs'!X57) -> 0 | V65: =CHOOSE(Title!$G$11,"","",'Measure Inputs'!BH57)*(1+future_inflation)^(BASEYR-progyear) ->  | W65: =CHOOSE(Title!$G$11,"","",'Measure Inputs'!Y57) -> 0 | AB65: 0 | AC65: 0
A66: =CHOOSE(Title!$G$11,"","",'Measure Inputs'!I58) -> 0 | B66: =CHOOSE(Title!$G$11,"","",'Measure Inputs'!J58) -> 0 | C66: =CHOOSE(Title!$G$11,"","",'Measure Inputs'!K58) -> 0 | D66: =CHOOSE(Title!$G$11,"","",'Measure Inputs'!AR58) -> 2017 | E66: =CHOOSE(Title!$G$11,"","",'Measure Inputs'!M58)*(1+future_inflation)^(BASEYR-progyear) -> 0 | F66: =CHOOSE(Title!$G$11,"","",'Measure Inputs'!BP58) ->  | G66: =CHOOSE(Title!$G$11,"","",'Measure Inputs'!BQ58) ->  | H66: =CHOOSE(Title!$G$11,"","",'Measure Inputs'!BR58) ->  | I66: =CHOOSE(Title!$G$11,"","",'Measure Inputs'!BS58) ->  | J66: =CHOOSE(Title!$G$11,"","",'Measure Inputs'!AT58) ->  | K66: =CHOOSE(Title!$G$11,"","",'Measure Inputs'!BT58) ->  | L66: =CHOOSE(Title!$G$11,"","",'Measure Inputs'!BU58) ->  | M66: =CHOOSE(Title!$G$11,"","",'Measure Inputs'!BV58) ->  | N66: =CHOOSE(Title!$G$11,"","",'Measure Inputs'!BW58) ->  | O66: =CHOOSE(Title!$G$11,"","",'Measure Inputs'!R58) -> 0 | P66: =CHOOSE(Title!$G$11,"","",'Measure Inputs'!S58) -> 0 | Q66: =CHOOSE(Title!$G$11,"","",'Measure Inputs'!T58)*(1+future_inflation)^(BASEYR-progyear) -> 0 | R66: =CHOOSE(Title!$G$11,"","",'Measure Inputs'!U58) -> 0 | S66: ='Measure Inputs'!V58 -> 0 | T66: =CHOOSE(Title!$G$11,"","",'Measure Inputs'!W58) -> 0 | U66: =CHOOSE(Title!$G$11,"","",'Measure Inputs'!X58) -> 0 | V66: =CHOOSE(Title!$G$11,"","",'Measure Inputs'!BH58)*(1+future_inflation)^(BASEYR-progyear) ->  | W66: =CHOOSE(Title!$G$11,"","",'Measure Inputs'!Y58) -> 0 | AB66: 0 | AC66: 0
A67: =CHOOSE(Title!$G$11,"","",'Measure Inputs'!I59) -> 0 | B67: =CHOOSE(Title!$G$11,"","",'Measure Inputs'!J59) -> 0 | C67: =CHOOSE(Title!$G$11,"","",'Measure Inputs'!K59) -> 0 | D67: =CHOOSE(Title!$G$11,"","",'Measure Inputs'!AR59) -> 2017 | E67: =CHOOSE(Title!$G$11,"","",'Measure Inputs'!M59)*(1+future_inflation)^(BASEYR-progyear) -> 0 | F67: =CHOOSE(Title!$G$11,"","",'Measure Inputs'!BP59) ->  | G67: =CHOOSE(Title!$G$11,"","",'Measure Inputs'!BQ59) ->  | H67: =CHOOSE(Title!$G$11,"","",'Measure Inputs'!BR59) ->  | I67: =CHOOSE(Title!$G$11,"","",'Measure Inputs'!BS59) ->  | J67: =CHOOSE(Title!$G$11,"","",'Measure Inputs'!AT59) ->  | K67: =CHOOSE(Title!$G$11,"","",'Measure Inputs'!BT59) ->  | L67: =CHOOSE(Title!$G$11,"","",'Measure Inputs'!BU59) ->  | M67: =CHOOSE(Title!$G$11,"","",'Measure Inputs'!BV59) ->  | N67: =CHOOSE(Title!$G$11,"","",'Measure Inputs'!BW59) ->  | O67: =CHOOSE(Title!$G$11,"","",'Measure Inputs'!R59) -> 0 | P67: =CHOOSE(Title!$G$11,"","",'Measure Inputs'!S59) -> 0 | Q67: =CHOOSE(Title!$G$11,"","",'Measure Inputs'!T59)*(1+future_inflation)^(BASEYR-progyear) -> 0 | R67: =CHOOSE(Title!$G$11,"","",'Measure Inputs'!U59) -> 0 | S67: ='Measure Inputs'!V59 -> 0 | T67: =CHOOSE(Title!$G$11,"","",'Measure Inputs'!W59) -> 0 | U67: =CHOOSE(Title!$G$11,"","",'Measure Inputs'!X59) -> 0 | V67: =CHOOSE(Title!$G$11,"","",'Measure Inputs'!BH59)*(1+future_inflation)^(BASEYR-progyear) ->  | W67: =CHOOSE(Title!$G$11,"","",'Measure Inputs'!Y59) -> 0 | AB67: 0 | AC67: 0
A68: =CHOOSE(Title!$G$11,"","",'Measure Inputs'!I60) -> 0 | B68: =CHOOSE(Title!$G$11,"","",'Measure Inputs'!J60) -> 0 | C68: =CHOOSE(Title!$G$11,"","",'Measure Inputs'!K60) -> 0 | D68: =CHOOSE(Title!$G$11,"","",'Measure Inputs'!AR60) -> 2017 | E68: =CHOOSE(Title!$G$11,"","",'Measure Inputs'!M60)*(1+future_inflation)^(BASEYR-progyear) -> 0 | F68: =CHOOSE(Title!$G$11,"","",'Measure Inputs'!BP60) ->  | G68: =CHOOSE(Title!$G$11,"","",'Measure Inputs'!BQ60) ->  | H68: =CHOOSE(Title!$G$11,"","",'Measure Inputs'!BR60) ->  | I68: =CHOOSE(Title!$G$11,"","",'Measure Inputs'!BS60) ->  | J68: =CHOOSE(Title!$G$11,"","",'Measure Inputs'!AT60) ->  | K68: =CHOOSE(Title!$G$11,"","",'Measure Inputs'!BT60) ->  | L68: =CHOOSE(Title!$G$11,"","",'Measure Inputs'!BU60) ->  | M68: =CHOOSE(Title!$G$11,"","",'Measure Inputs'!BV60) ->  | N68: =CHOOSE(Title!$G$11,"","",'Measure Inputs'!BW60) ->  | O68: =CHOOSE(Title!$G$11,"","",'Measure Inputs'!R60) -> 0 | P68: =CHOOSE(Title!$G$11,"","",'Measure Inputs'!S60) -> 0 | Q68: =CHOOSE(Title!$G$11,"","",'Measure Inputs'!T60)*(1+future_inflation)^(BASEYR-progyear) -> 0 | R68: =CHOOSE(Title!$G$11,"","",'Measure Inputs'!U60) -> 0 | S68: ='Measure Inputs'!V60 -> 0 | T68: =CHOOSE(Title!$G$11,"","",'Measure Inputs'!W60) -> 0 | U68: =CHOOSE(Title!$G$11,"","",'Measure Inputs'!X60) -> 0 | V68: =CHOOSE(Title!$G$11,"","",'Measure Inputs'!BH60)*(1+future_inflation)^(BASEYR-progyear) ->  | W68: =CHOOSE(Title!$G$11,"","",'Measure Inputs'!Y60) -> 0 | AB68: 0 | AC68: 0
A69: =CHOOSE(Title!$G$11,"","",'Measure Inputs'!I61) -> 0 | B69: =CHOOSE(Title!$G$11,"","",'Measure Inputs'!J61) -> 0 | C69: =CHOOSE(Title!$G$11,"","",'Measure Inputs'!K61) -> 0 | D69: =CHOOSE(Title!$G$11,"","",'Measure Inputs'!AR61) -> 2017 | E69: =CHOOSE(Title!$G$11,"","",'Measure Inputs'!M61)*(1+future_inflation)^(BASEYR-progyear) -> 0 | F69: =CHOOSE(Title!$G$11,"","",'Measure Inputs'!BP61) ->  | G69: =CHOOSE(Title!$G$11,"","",'Measure Inputs'!BQ61) ->  | H69: =CHOOSE(Title!$G$11,"","",'Measure Inputs'!BR61) ->  | I69: =CHOOSE(Title!$G$11,"","",'Measure Inputs'!BS61) ->  | J69: =CHOOSE(Title!$G$11,"","",'Measure Inputs'!AT61) ->  | K69: =CHOOSE(Title!$G$11,"","",'Measure Inputs'!BT61) ->  | L69: =CHOOSE(Title!$G$11,"","",'Measure Inputs'!BU61) ->  | M69: =CHOOSE(Title!$G$11,"","",'Measure Inputs'!BV61) ->  | N69: =CHOOSE(Title!$G$11,"","",'Measure Inputs'!BW61) ->  | O69: =CHOOSE(Title!$G$11,"","",'Measure Inputs'!R61) -> 0 | P69: =CHOOSE(Title!$G$11,"","",'Measure Inputs'!S61) -> 0 | Q69: =CHOOSE(Title!$G$11,"","",'Measure Inputs'!T61)*(1+future_inflation)^(BASEYR-progyear) -> 0 | R69: =CHOOSE(Title!$G$11,"","",'Measure Inputs'!U61) -> 0 | S69: ='Measure Inputs'!V61 -> 0 | T69: =CHOOSE(Title!$G$11,"","",'Measure Inputs'!W61) -> 0 | U69: =CHOOSE(Title!$G$11,"","",'Measure Inputs'!X61) -> 0 | V69: =CHOOSE(Title!$G$11,"","",'Measure Inputs'!BH61)*(1+future_inflation)^(BASEYR-progyear) ->  | W69: =CHOOSE(Title!$G$11,"","",'Measure Inputs'!Y61) -> 0 | AB69: 0 | AC69: 0
A70: NO INPUTS BEYOND THIS POINT
A74: INTERMEDIATE CALCULATION OF MEASURE COSTS
A75: ="All costs are present valued to the Base Year ("&TEXT(BASEYR,"00")&"), except as noted for use in Program Screening." -> All costs are present valued to the Base Year (2015), except as noted for use in Program Screening.
W77: Fuel Type Index | AD77: Uses Fuel? | AE77: Saves Fuel?
T78: PV to Mid-Installation Year | W78: 1 | X78: 2 | Y78: 3 | Z78: 4 | AA78: 5 | AB78: 6 | AC78: 12
A79: Measure Name | B79: Measure ID | C79: Natural Gas Penalty DRIPE | D79: End-Use Fuel Penalty Externalities | E79: PV of Fuel Cost | F79: PV of Operation & Maintenance | G79: Deferred Future ReplacementCredit | H79: PV of Installation Costs | I79: Delivered Cost SUBTOTAL | J79: Risk Discount | K79: TOTAL Delivered Cost After Risk Discount | L79: Annual O&M Costs | M79: Remaining Life of Existing Equipment | N79: TOTAL Annual Levelized Energy Savings | O79: Winter Load Reduction | P79: Summer Load Reduction | Q79: Spring/Fall Load Reduction | R79: Substitute Fuel | T79: Installation Costs | U79: Comp. Repl. + Maintenance + Def. Rep. Cdt. | W79: =INDEX(Fuel_Name,W78) -> Res. Distillate | X79: Res. High-Use LPG | Y79: Space Heat Natural Gas | Z79: Com. Distillate | AA79: Com. LPG | AB79: Baseload Natural Gas | AC79: Compressed Natural Gas | AG79: Rounded Remaining Life | AI79: End-Use Fuel Penalty Externalities | AJ79: PV of Fuel Cost | AK79: PV of Fuel Cost w/ NEB adder | AL79: PV of Fuel Cost w/ NEB and LI adders
B80: xModMeasureID2 | F80: xMaintenanceSave | L80: xAnnlOMSavings | O80: xWntrKWTot | P80: xSmrKWTot | Q80: xFallSprKWTot
A81: =A20 -> Calfee PV | B81: 0 | C81: =IF(U20>0,AS144,0) -> 0 | D81: =IF(ISERROR(AI81),0,AI81) -> 0 | E81: =IF(ISERROR(AJ81),0,CHOOSE(NEBFlag,AK81,AL81,AJ81)) -> 0 | F81: =-PV(RDR,C20,V20)/(1+RDR)^(D20-BASEYR-1) -> 1175.12174 | G81: =IF(O20-P20>=C20,0,IF(O20<>0,(Q20)*((1+RDR)^O20)/((1+RDR)^O20-1)*((1+RDR)^-C20-(1+RDR)^-M81),0)/(1+RDR)^(D20-BASEYR-0.5)) -> 0 | H81: =$E20/(1+RDR)^($D20-(BASEYR+0.5)) -> 17931.63326 | I81: =SUM(C81:H81) -> 19106.755 | J81: =SUMIF(E81:H81,">0")*RiskDiscount -> 1910.6755 | K81: =I81-J81 -> 17196.0795 | L81: =V20 -> 69.50928193 | M81: =MAX(0,O20-P20) -> 0 | N81: =IF(M81<=0,SUM(F20:I20),PMT(RDR,C20,PV(RDR,M81,SUM(F20:I20))+PV(RDR,C20-M81,R20*SUM(F20:I20))/(1+RDR)^M81)) -> 7051.124811 | O81: =$J20*K20 -> -0.0003061003015 | P81: 3.203825939 | Q81: 0 | R81: =IF(T20=0,0,INDEX(Fuel_Name,T20)) -> 0 | T81: =H81*(1+RDR)^($D20-BASEYR) -> 19023.66972 | U81: =(F81+G81)*(1+RDR)^($D20-BASEYR) -> 1246.686654 | W81: =IF($T20=W$78,1,0) -> 0 | X81: 0 | Y81: 0 | Z81: 0 | AA81: 0 | AB81: 0 | AC81: 0 | AD81: =IF($U20>0,1,0) -> 0 | AE81: =IF($U20<0,1,0) -> 0 | AG81: =ROUND(M81,0) -> 0 | AI81: =-IF(End_Use_Ext?=0,0.05*S144,IF(U20>0,IF(OR($O20=0,$AG81>0),$U20*$AC20*PV(RDR,IF(AND($AB20>=$AG81,$AG81>0),$AG81,$AB20),OFFSET(End_Use_Ext_Values,0,$T20-1,1,1))/(1+RDR)^($D20-BASEYR-1),0)+IF(AND($AB20-$AG81<>0,$O20<>0,$AB20>$AG81),$S20*$U20*PV(RDR,$AB20-$AG81,OFFSET(End_Use_Ext_Values,0,$T20-1,1,1))/(1+RDR)^($D20-BASEYR-1+$AG81),0),0)) -> 0 | AJ81: =IF(U20>0,IF(OR($O20=0,$AG81>0),$U20*$AC20*NPV(RDR,OFFSET(Fuel_Prices,$D20-ACYear1,$T20-1,IF(AND($AB20>=$AG81,$AG81>0),$AG81,$AB20),1))/(1+RDR)^($D20-BASEYR-1),0)+IF(AND($AB20-$AG81<>0,$O20<>0,$AB20>$AG81),$S20*$U20*NPV(RDR,OFFSET(Fuel_Prices,$D20-ACYear1+$AG81,$T20-1,$AB20-$AG81,1))/(1+RDR)^($D20-BASEYR-1+$AG81),0),0) -> 0 | AK81: =AJ81*(1+NEB_adder) -> 0 | AL81: =AJ81*(1+NEB_adder)*(1+Low_Income_Adder) -> 0
A82: Ward PV | B82: 0 | C82: 0 | D82: =IF(ISERROR(AI82),0,AI82) -> 0 | E82: =IF(ISERROR(AJ82),0,CHOOSE(NEBFlag,AK82,AL82,AJ82)) -> 0 | F82: 1014.493588 | G82: =IF(O21-P21>=C21,0,IF(O21<>0,(Q21)*((1+RDR)^O21)/((1+RDR)^O21-1)*((1+RDR)^-C21-(1+RDR)^-M82),0)/(1+RDR)^(D21-BASEYR-0.5)) -> 0 | H82: 15913.21853 | I82: =SUM(C82:H82) -> 16927.71212 | J82: =SUMIF(E82:H82,">0")*RiskDiscount -> 1692.771212 | K82: 15234.94091 | L82: =V21 -> 60.00801318 | M82: =MAX(0,O21-P21) -> 0 | N82: 6087.301995 | O82: -0.0002642592531 | P82: 2.765892897 | Q82: 0 | R82: 0 | T82: 16882.33354 | U82: =(F82+G82)*(1+RDR)^($D21-BASEYR) -> 1076.276248 | W82: 0 | X82: 0 | Y82: 0 | Z82: 0 | AA82: 0 | AB82: 0 | AC82: =IF($T21=AC$78,1,0) -> 0 | AD82: =IF($U21>0,1,0) -> 0 | AE82: =IF($U21<0,1,0) -> 0 | AG82: =ROUND(M82,0) -> 0 | AI82: 0 | AJ82: =IF(U21>0,IF(OR($O21=0,$AG82>0),$U21*$AC21*NPV(RDR,OFFSET(Fuel_Prices,$D21-ACYear1,$T21-1,IF(AND($AB21>=$AG82,$AG82>0),$AG82,$AB21),1))/(1+RDR)^($D21-BASEYR-1),0)+IF(AND($AB21-$AG82<>0,$O21<>0,$AB21>$AG82),$S21*$U21*NPV(RDR,OFFSET(Fuel_Prices,$D21-ACYear1+$AG82,$T21-1,$AB21-$AG82,1))/(1+RDR)^($D21-BASEYR-1+$AG82),0),0) -> 0 | AK82: =AJ82*(1+NEB_adder) -> 0 | AL82: 0
A83: Measure 3 | B83: 0 | C83: 0 | D83: 0 | E83: 0 | G83: 0 | H83: 0 | J83: 0 | M83: 0 | R83: 0 | T83: 0 | W83: 0 | X83: 0 | Y83: 0 | Z83: 0 | AA83: 0 | AB83: 0 | AC83: 0 | AD83: 0 | AE83: 0 | AG83: 0 | AI83: 0 | AJ83: 0 | AK83: 0 | AL83: 0
A84: Measure 4 | B84: 0 | C84: 0 | D84: 0 | E84: 0 | G84: 0 | H84: 0 | J84: 0 | M84: 0 | R84: 0 | T84: 0 | W84: 0 | X84: 0 | Y84: 0 | Z84: 0 | AA84: 0 | AB84: 0 | AC84: 0 | AD84: 0 | AE84: 0 | AG84: 0 | AI84: 0 | AJ84: 0 | AK84: 0 | AL84: 0
A85: Measure 5 | B85: 0 | C85: 0 | D85: 0 | E85: 0 | G85: 0 | H85: 0 | J85: 0 | M85: 0 | R85: 0 | T85: 0 | W85: 0 | X85: 0 | Y85: 0 | Z85: 0 | AA85: 0 | AB85: 0 | AC85: 0 | AD85: 0 | AE85: 0 | AG85: 0 | AI85: 0 | AJ85: 0 | AK85: 0 | AL85: 0
A86: Measure 6 | B86: 0 | C86: 0 | D86: 0 | E86: 0 | G86: 0 | H86: 0 | J86: 0 | M86: 0 | R86: 0 | T86: 0 | W86: 0 | X86: 0 | Y86: 0 | Z86: 0 | AA86: 0 | AB86: 0 | AC86: 0 | AD86: 0 | AE86: 0 | AG86: 0 | AI86: 0 | AJ86: 0 | AK86: 0 | AL86: 0
A87: Measure 7 | B87: 0 | C87: 0 | D87: 0 | E87: 0 | G87: 0 | H87: 0 | J87: 0 | M87: 0 | R87: 0 | T87: 0 | W87: 0 | X87: 0 | Y87: 0 | Z87: 0 | AA87: 0 | AB87: 0 | AC87: 0 | AD87: 0 | AE87: 0 | AG87: 0 | AI87: 0 | AJ87: 0 | AK87: 0 | AL87: 0
A88: Measure 8 | B88: 0 | C88: 0 | D88: 0 | E88: 0 | G88: 0 | H88: 0 | J88: 0 | M88: 0 | R88: 0 | T88: 0 | W88: 0 | X88: 0 | Y88: 0 | Z88: 0 | AA88: 0 | AB88: 0 | AC88: 0 | AD88: 0 | AE88: 0 | AG88: 0 | AI88: 0 | AJ88: 0 | AK88: 0 | AL88: 0
A89: Measure 9 | B89: 0 | C89: 0 | D89: 0 | E89: 0 | G89: 0 | H89: 0 | J89: 0 | M89: 0 | R89: 0 | T89: 0 | W89: 0 | X89: 0 | Y89: 0 | Z89: 0 | AA89: 0 | AB89: 0 | AC89: 0 | AD89: 0 | AE89: 0 | AG89: 0 | AI89: 0 | AJ89: 0 | AK89: 0 | AL89: 0
A90: Measure 10 | B90: 0 | C90: 0 | D90: 0 | E90: 0 | G90: 0 | H90: 0 | J90: 0 | M90: 0 | R90: 0 | T90: 0 | W90: 0 | X90: 0 | Y90: 0 | Z90: 0 | AA90: 0 | AB90: 0 | AC90: 0 | AD90: 0 | AE90: 0 | AG90: 0 | AI90: 0 | AJ90: 0 | AK90: 0 | AL90: 0
A91: Measure 11 | B91: 0 | C91: 0 | D91: 0 | E91: 0 | G91: 0 | H91: 0 | J91: 0 | M91: 0 | R91: 0 | T91: 0 | W91: =IF($T30=W$78,1,0) -> 0 | X91: 0 | Y91: 0 | Z91: 0 | AA91: 0 | AB91: 0 | AC91: 0 | AD91: 0 | AE91: 0 | AG91: 0 | AI91: 0 | AJ91: 0 | AK91: 0 | AL91: 0
A92: Measure 12 | B92: 0 | C92: 0 | D92: 0 | E92: 0 | G92: 0 | H92: 0 | J92: 0 | M92: 0 | R92: 0 | T92: 0 | W92: 0 | X92: 0 | Y92: 0 | Z92: 0 | AA92: 0 | AB92: 0 | AC92: 0 | AD92: 0 | AE92: 0 | AG92: 0 | AI92: 0 | AJ92: 0 | AK92: 0 | AL92: 0
A93: Measure 13 | B93: 0 | C93: 0 | D93: 0 | E93: 0 | G93: 0 | H93: 0 | J93: 0 | M93: 0 | R93: 0 | T93: 0 | W93: 0 | X93: 0 | Y93: 0 | Z93: 0 | AA93: 0 | AB93: 0 | AC93: 0 | AD93: 0 | AE93: 0 | AG93: 0 | AI93: 0 | AJ93: 0 | AK93: 0 | AL93: 0
A94: Measure 14 | B94: 0 | C94: 0 | D94: 0 | E94: 0 | G94: 0 | H94: 0 | J94: 0 | M94: 0 | R94: 0 | T94: 0 | W94: 0 | X94: 0 | Y94: 0 | Z94: 0 | AA94: 0 | AB94: 0 | AC94: 0 | AD94: 0 | AE94: 0 | AG94: 0 | AI94: 0 | AJ94: 0 | AK94: 0 | AL94: 0
A95: Measure 15 | B95: 0 | C95: 0 | D95: 0 | E95: 0 | G95: 0 | H95: 0 | J95: 0 | M95: 0 | R95: 0 | T95: 0 | W95: 0 | X95: 0 | Y95: 0 | Z95: 0 | AA95: 0 | AB95: 0 | AC95: 0 | AD95: 0 | AE95: 0 | AG95: 0 | AI95: 0 | AJ95: 0 | AK95: 0 | AL95: 0
A96: Measure 16 | B96: 0 | C96: 0 | D96: 0 | E96: 0 | G96: 0 | H96: 0 | J96: 0 | M96: 0 | R96: 0 | T96: 0 | W96: 0 | X96: 0 | Y96: 0 | Z96: 0 | AA96: 0 | AB96: 0 | AC96: 0 | AD96: 0 | AE96: 0 | AG96: 0 | AI96: 0 | AJ96: 0 | AK96: 0 | AL96: 0
A97: Measure 17 | B97: 0 | C97: 0 | D97: 0 | E97: 0 | G97: 0 | H97: 0 | J97: 0 | K97: =I97-J97 ->  | M97: 0 | R97: 0 | T97: 0 | W97: 0 | X97: 0 | Y97: 0 | Z97: 0 | AA97: 0 | AB97: 0 | AC97: 0 | AD97: 0 | AE97: 0 | AG97: 0 | AI97: 0 | AJ97: 0 | AK97: 0 | AL97: 0
A98: Measure 18 | B98: 0 | C98: 0 | D98: 0 | E98: 0 | G98: 0 | H98: 0 | J98: 0 | M98: 0 | R98: 0 | T98: 0 | W98: 0 | X98: 0 | Y98: 0 | Z98: 0 | AA98: 0 | AB98: 0 | AC98: 0 | AD98: 0 | AE98: 0 | AG98: 0 | AI98: 0 | AJ98: 0 | AK98: 0 | AL98: 0
A99: Measure 19 | B99: 0 | C99: 0 | D99: 0 | E99: 0 | G99: 0 | H99: 0 | J99: 0 | M99: 0 | R99: 0 | T99: 0 | W99: 0 | X99: 0 | Y99: 0 | Z99: 0 | AA99: 0 | AB99: 0 | AC99: 0 | AD99: 0 | AE99: 0 | AG99: 0 | AI99: 0 | AJ99: 0 | AK99: 0 | AL99: 0
A100: Measure 20 | B100: 0 | C100: 0 | D100: 0 | E100: 0 | G100: 0 | H100: 0 | J100: 0 | M100: 0 | R100: 0 | T100: 0 | W100: 0 | X100: 0 | Y100: 0 | Z100: 0 | AA100: 0 | AB100: 0 | AC100: 0 | AD100: 0 | AE100: 0 | AG100: 0 | AI100: 0 | AJ100: 0 | AK100: 0 | AL100: 0
A101: =A40 -> Measure 21 | B101: 0 | C101: 0 | D101: 0 | E101: 0 | G101: 0 | H101: 0 | J101: 0 | M101: 0 | O101: =$J40*K40 ->  | R101: 0 | T101: 0 | W101: =IF($T40=W$78,1,0) -> 0 | X101: 0 | Y101: 0 | Z101: 0 | AA101: 0 | AB101: 0 | AC101: 0 | AD101: 0 | AE101: 0 | AG101: 0 | AI101: 0 | AJ101: 0 | AK101: 0 | AL101: 0
A102: Measure 22 | B102: 0 | C102: 0 | D102: 0 | E102: 0 | G102: 0 | H102: 0 | J102: 0 | M102: 0 | R102: 0 | T102: 0 | W102: 0 | X102: 0 | Y102: 0 | Z102: 0 | AA102: 0 | AB102: 0 | AC102: 0 | AD102: 0 | AE102: 0 | AG102: 0 | AI102: 0 | AJ102: 0 | AK102: 0 | AL102: 0
A103: Measure 23 | B103: 0 | C103: 0 | D103: 0 | E103: 0 | G103: 0 | H103: 0 | J103: 0 | M103: 0 | R103: 0 | T103: 0 | W103: 0 | X103: 0 | Y103: 0 | Z103: 0 | AA103: 0 | AB103: 0 | AC103: 0 | AD103: 0 | AE103: 0 | AG103: 0 | AI103: 0 | AJ103: 0 | AK103: 0 | AL103: 0
A104: Measure 24 | B104: 0 | C104: 0 | D104: 0 | E104: 0 | G104: 0 | H104: 0 | J104: 0 | M104: 0 | R104: 0 | T104: 0 | W104: 0 | X104: 0 | Y104: 0 | Z104: 0 | AA104: 0 | AB104: 0 | AC104: 0 | AD104: 0 | AE104: 0 | AG104: 0 | AI104: 0 | AJ104: 0 | AK104: 0 | AL104: 0
A105: Measure 25 | B105: 0 | C105: 0 | D105: 0 | E105: 0 | G105: 0 | H105: 0 | J105: 0 | M105: 0 | R105: 0 | T105: 0 | W105: 0 | X105: 0 | Y105: 0 | Z105: 0 | AA105: 0 | AB105: 0 | AC105: 0 | AD105: 0 | AE105: 0 | AG105: 0 | AI105: 0 | AJ105: 0 | AK105: 0 | AL105: 0
A106: Measure 26 | B106: 0 | C106: 0 | D106: 0 | E106: 0 | G106: 0 | H106: 0 | J106: 0 | M106: 0 | R106: 0 | T106: 0 | W106: 0 | X106: 0 | Y106: 0 | Z106: 0 | AA106: 0 | AB106: 0 | AC106: 0 | AD106: 0 | AE106: 0 | AG106: 0 | AI106: 0 | AJ106: 0 | AK106: 0 | AL106: 0
A107: Measure 27 | B107: 0 | C107: 0 | D107: 0 | E107: 0 | G107: 0 | H107: 0 | J107: 0 | M107: 0 | R107: 0 | T107: 0 | W107: 0 | X107: 0 | Y107: 0 | Z107: 0 | AA107: 0 | AB107: 0 | AC107: 0 | AD107: 0 | AE107: 0 | AG107: 0 | AI107: 0 | AJ107: 0 | AK107: 0 | AL107: 0
A108: Measure 28 | B108: 0 | C108: 0 | D108: 0 | E108: 0 | G108: 0 | H108: 0 | J108: 0 | M108: 0 | R108: 0 | T108: 0 | W108: 0 | X108: 0 | Y108: 0 | Z108: 0 | AA108: 0 | AB108: 0 | AC108: 0 | AD108: 0 | AE108: 0 | AG108: 0 | AI108: 0 | AJ108: 0 | AK108: 0 | AL108: 0
A109: Measure 29 | B109: 0 | C109: 0 | D109: 0 | E109: 0 | G109: 0 | H109: 0 | J109: 0 | M109: 0 | R109: 0 | T109: 0 | W109: 0 | X109: 0 | Y109: 0 | Z109: 0 | AA109: 0 | AB109: 0 | AC109: 0 | AD109: 0 | AE109: 0 | AG109: 0 | AI109: 0 | AJ109: 0 | AK109: 0 | AL109: 0
A110: Measure 30 | B110: 0 | C110: 0 | D110: 0 | E110: 0 | G110: 0 | H110: 0 | J110: 0 | M110: 0 | R110: 0 | T110: 0 | W110: 0 | X110: 0 | Y110: 0 | Z110: 0 | AA110: 0 | AB110: 0 | AC110: 0 | AD110: 0 | AE110: 0 | AG110: 0 | AI110: 0 | AJ110: 0 | AK110: 0 | AL110: 0
A111: 0 | B111: 0 | C111: 0 | D111: 0 | E111: 0 | G111: 0 | H111: 0 | J111: 0 | M111: 0 | R111: 0 | T111: 0 | W111: =IF($T50=W$78,1,0) -> 0 | X111: 0 | Y111: 0 | Z111: 0 | AA111: 0 | AB111: 0 | AC111: 0 | AD111: 0 | AE111: 0 | AG111: 0 | AI111: 0 | AJ111: 0 | AK111: 0 | AL111: 0
A112: 0 | B112: 0 | C112: 0 | D112: 0 | E112: 0 | G112: 0 | H112: 0 | J112: 0 | M112: 0 | R112: 0 | T112: 0 | W112: 0 | X112: 0 | Y112: 0 | Z112: 0 | AA112: 0 | AB112: 0 | AC112: 0 | AD112: 0 | AE112: 0 | AG112: 0 | AI112: 0 | AJ112: 0 | AK112: 0 | AL112: 0
A113: 0 | B113: 0 | C113: =IF(U52>0,AS176,0) -> 0 | D113: 0 | E113: =IF(ISERROR(AJ113),0,CHOOSE(NEBFlag,AK113,AL113,AJ113)) -> 0 | F113: =-PV(RDR,C52,V52)/(1+RDR)^(D52-BASEYR-1) ->  | G113: 0 | H113: =$E52/(1+RDR)^($D52-(BASEYR+0.5)) -> 0 | J113: 0 | K113: =I113-J113 ->  | M113: 0 | N113: =IF(M113<=0,SUM(F52:I52),PMT(RDR,C52,PV(RDR,M113,SUM(F52:I52))+PV(RDR,C52-M113,R52*SUM(F52:I52))/(1+RDR)^M113)) ->  | R113: =IF(T52=0,0,INDEX(Fuel_Name,T52)) -> 0 | T113: =H113*(1+RDR)^($D52-BASEYR) -> 0 | U113: =(F113+G113)*(1+RDR)^($D52-BASEYR) ->  | W113: 0 | X113: 0 | Y113: 0 | Z113: 0 | AA113: 0 | AB113: 0 | AC113: 0 | AD113: =IF($U52>0,1,0) -> 0 | AE113: =IF($U52<0,1,0) -> 0 | AG113: 0 | AI113: =-IF(End_Use_Ext?=0,0.05*S176,IF(U52>0,IF(OR($O52=0,$AG113>0),$U52*$AC52*PV(RDR,IF(AND($AB52>=$AG113,$AG113>0),$AG113,$AB52),OFFSET(End_Use_Ext_Values,0,$T52-1,1,1))/(1+RDR)^($D52-BASEYR-1),0)+IF(AND($AB52-$AG113<>0,$O52<>0,$AB52>$AG113),$S52*$U52*PV(RDR,$AB52-$AG113,OFFSET(End_Use_Ext_Values,0,$T52-1,1,1))/(1+RDR)^($D52-BASEYR-1+$AG113),0),0)) -> 0 | AJ113: =IF(U52>0,IF(OR($O52=0,$AG113>0),$U52*$AC52*NPV(RDR,OFFSET(Fuel_Prices,$D52-ACYear1,$T52-1,IF(AND($AB52>=$AG113,$AG113>0),$AG113,$AB52),1))/(1+RDR)^($D52-BASEYR-1),0)+IF(AND($AB52-$AG113<>0,$O52<>0,$AB52>$AG113),$S52*$U52*NPV(RDR,OFFSET(Fuel_Prices,$D52-ACYear1+$AG113,$T52-1,$AB52-$AG113,1))/(1+RDR)^($D52-BASEYR-1+$AG113),0),0) -> 0 | AK113: =AJ113*(1+NEB_adder) -> 0 | AL113: =AJ113*(1+NEB_adder)*(1+Low_Income_Adder) -> 0
A114: 0 | B114: 0 | C114: 0 | D114: 0 | E114: 0 | G114: 0 | H114: 0 | J114: 0 | M114: 0 | R114: 0 | T114: 0 | W114: 0 | X114: 0 | Y114: 0 | Z114: 0 | AA114: 0 | AB114: 0 | AC114: 0 | AD114: 0 | AE114: 0 | AG114: 0 | AI114: 0 | AJ114: 0 | AK114: 0 | AL114: 0
A115: 0 | B115: 0 | C115: 0 | D115: 0 | E115: 0 | G115: 0 | H115: 0 | J115: 0 | M115: 0 | R115: 0 | T115: 0 | W115: 0 | X115: 0 | Y115: 0 | Z115: 0 | AA115: 0 | AB115: 0 | AC115: 0 | AD115: 0 | AE115: 0 | AG115: 0 | AI115: 0 | AJ115: 0 | AK115: 0 | AL115: 0
A116: 0 | B116: 0 | C116: 0 | D116: 0 | E116: 0 | G116: 0 | H116: 0 | J116: 0 | M116: 0 | R116: 0 | T116: 0 | W116: 0 | X116: 0 | Y116: 0 | Z116: 0 | AA116: 0 | AB116: 0 | AC116: 0 | AD116: 0 | AE116: 0 | AG116: 0 | AI116: 0 | AJ116: 0 | AK116: 0 | AL116: 0
A117: 0 | B117: 0 | C117: 0 | D117: 0 | E117: 0 | G117: 0 | H117: 0 | J117: 0 | M117: 0 | R117: 0 | T117: 0 | W117: 0 | X117: 0 | Y117: 0 | Z117: 0 | AA117: 0 | AB117: 0 | AC117: 0 | AD117: 0 | AE117: 0 | AG117: 0 | AI117: 0 | AJ117: 0 | AK117: 0 | AL117: 0
A118: 0 | B118: 0 | C118: 0 | D118: 0 | E118: 0 | G118: 0 | H118: 0 | J118: 0 | M118: 0 | R118: 0 | T118: 0 | W118: 0 | X118: 0 | Y118: 0 | Z118: 0 | AA118: 0 | AB118: 0 | AC118: 0 | AD118: 0 | AE118: 0 | AG118: 0 | AI118: 0 | AJ118: 0 | AK118: 0 | AL118: 0
A119: 0 | B119: 0 | C119: 0 | D119: 0 | E119: 0 | G119: 0 | H119: 0 | J119: 0 | M119: 0 | R119: 0 | T119: 0 | W119: 0 | X119: 0 | Y119: 0 | Z119: 0 | AA119: 0 | AB119: 0 | AC119: 0 | AD119: 0 | AE119: 0 | AG119: 0 | AI119: 0 | AJ119: 0 | AK119: 0 | AL119: 0
A120: 0 | B120: 0 | C120: 0 | D120: 0 | E120: 0 | G120: 0 | H120: 0 | J120: 0 | M120: 0 | R120: 0 | T120: 0 | W120: 0 | X120: 0 | Y120: 0 | Z120: 0 | AA120: 0 | AB120: 0 | AC120: 0 | AD120: 0 | AE120: 0 | AG120: 0 | AI120: 0 | AJ120: 0 | AK120: 0 | AL120: 0
A121: =A60 -> 0 | B121: 0 | C121: 0 | D121: 0 | E121: 0 | G121: 0 | H121: 0 | J121: 0 | M121: 0 | O121: =$J60*K60 ->  | R121: 0 | T121: 0 | W121: =IF($T60=W$78,1,0) -> 0 | X121: 0 | Y121: 0 | Z121: 0 | AA121: 0 | AB121: 0 | AC121: 0 | AD121: 0 | AE121: 0 | AG121: 0 | AI121: 0 | AJ121: 0 | AK121: 0 | AL121: 0
A122: 0 | B122: 0 | C122: 0 | D122: 0 | E122: 0 | G122: 0 | H122: 0 | J122: 0 | M122: 0 | R122: 0 | T122: 0 | W122: 0 | X122: 0 | Y122: 0 | Z122: 0 | AA122: 0 | AB122: 0 | AC122: 0 | AD122: 0 | AE122: 0 | AG122: 0 | AI122: 0 | AJ122: 0 | AK122: 0 | AL122: 0
A123: 0 | B123: 0 | C123: 0 | D123: 0 | E123: 0 | G123: 0 | H123: 0 | J123: 0 | M123: 0 | R123: 0 | T123: 0 | W123: 0 | X123: 0 | Y123: 0 | Z123: 0 | AA123: 0 | AB123: 0 | AC123: 0 | AD123: 0 | AE123: 0 | AG123: 0 | AI123: 0 | AJ123: 0 | AK123: 0 | AL123: 0
A124: 0 | B124: 0 | C124: 0 | D124: 0 | E124: 0 | G124: 0 | H124: 0 | J124: 0 | M124: 0 | R124: 0 | T124: 0 | W124: 0 | X124: 0 | Y124: 0 | Z124: 0 | AA124: 0 | AB124: 0 | AC124: 0 | AD124: 0 | AE124: 0 | AG124: 0 | AI124: 0 | AJ124: 0 | AK124: 0 | AL124: 0
A125: 0 | B125: 0 | C125: 0 | D125: 0 | E125: 0 | G125: 0 | H125: 0 | J125: 0 | M125: 0 | R125: 0 | T125: 0 | W125: 0 | X125: 0 | Y125: 0 | Z125: 0 | AA125: 0 | AB125: 0 | AC125: 0 | AD125: 0 | AE125: 0 | AG125: 0 | AI125: 0 | AJ125: 0 | AK125: 0 | AL125: 0
A126: 0 | B126: 0 | C126: 0 | D126: 0 | E126: 0 | G126: 0 | H126: 0 | J126: 0 | M126: 0 | R126: 0 | T126: 0 | W126: 0 | X126: 0 | Y126: 0 | Z126: 0 | AA126: 0 | AB126: 0 | AC126: 0 | AD126: 0 | AE126: 0 | AG126: 0 | AI126: 0 | AJ126: 0 | AK126: 0 | AL126: 0
A127: 0 | B127: 0 | C127: 0 | D127: 0 | E127: 0 | G127: 0 | H127: 0 | J127: 0 | M127: 0 | R127: 0 | T127: 0 | W127: 0 | X127: 0 | Y127: 0 | Z127: 0 | AA127: 0 | AB127: 0 | AC127: 0 | AD127: 0 | AE127: 0 | AG127: 0 | AI127: 0 | AJ127: 0 | AK127: 0 | AL127: 0
A128: 0 | B128: 0 | C128: 0 | D128: 0 | E128: 0 | G128: 0 | H128: 0 | J128: 0 | M128: 0 | R128: 0 | T128: 0 | W128: 0 | X128: 0 | Y128: 0 | Z128: 0 | AA128: 0 | AB128: 0 | AC128: 0 | AD128: 0 | AE128: 0 | AG128: 0 | AI128: 0 | AJ128: 0 | AK128: 0 | AL128: 0
A129: 0 | B129: 0 | C129: 0 | D129: 0 | E129: 0 | G129: 0 | H129: 0 | J129: 0 | K129: =I129-J129 ->  | M129: 0 | R129: 0 | T129: 0 | W129: 0 | X129: 0 | Y129: 0 | Z129: 0 | AA129: 0 | AB129: 0 | AC129: 0 | AD129: 0 | AE129: 0 | AG129: 0 | AI129: 0 | AJ129: 0 | AK129: 0 | AL129: 0
A130: 0 | B130: 0 | C130: 0 | D130: 0 | E130: 0 | G130: 0 | H130: 0 | J130: 0 | K130: =I130-J130 ->  | M130: 0 | R130: 0 | T130: 0 | W130: 0 | X130: 0 | Y130: 0 | Z130: 0 | AA130: 0 | AB130: 0 | AC130: 0 | AD130: 0 | AE130: 0 | AG130: 0 | AI130: 0 | AJ130: 0 | AK130: 0 | AL130: 0
A139: INTERMEDIATE CALCULATION OF MEASURE BENEFITS (AVOIDED COSTS)
A140: ="All costs are present valued to the Base Year ("&TEXT(BASEYR,"00")&")." -> All costs are present valued to the Base Year (2015).
B141: Column: | C141: 0 | D141: 1 | E141: 2 | F141: 3 | G141: 4 | H141: 5 | I141: 6 | J141: 7 | M141: 0 | N141: 1 | O141: 2 | P141: 3 | AK141: 0 | AL141: 1 | AM141: 2 | AN141: 3 | AO141: 4 | AP141: 5 | AS141: 6
C142: ='Avoided Costs'!B37 -> Winter Peak Energy | D142: ='Avoided Costs'!C37 -> Winter Off-Peak Energy | E142: ='Avoided Costs'!D37 -> Summer Peak Energy | F142: ='Avoided Costs'!E37 -> Summer Off-Peak Energy | G142: ='Avoided Costs'!F37 -> Winter Capacity | H142: ='Avoided Costs'!G37 -> Summer Capacity | I142: ='Avoided Costs'!H37 -> Fall/Spring Capacity | J142: ='Avoided Costs'!I37 -> Generic T&D Capacity | K142: TOTAL Energy & Capacity | M142: ='Avoided Costs'!AA37&" Externalities" -> Winter Peak Energy Externalities | N142: ='Avoided Costs'!AB37&" Externalities" -> Winter Off-Peak Energy Externalities | O142: ='Avoided Costs'!AC37&" Externalities" -> Summer Peak Energy Externalities | P142: ='Avoided Costs'!AD37&" Externalities" -> Summer Off-Peak Energy Externalities | Q142: TOTAL Electric Externalities | S142: End-Use Fuel-Savings Benefits | T142: Avoided End-Use Externalities | U142: Water Savings Benefits | V142: TOTAL Avoided Costs | X142: Electric Energy Benefits | Y142: Electric Capacity Benefits | AA142: Lifetime kWh Savings | AC142: End-Use Fuel-Savings Benefits | AD142: Avoided End-Use Fuel Externalities | AE142: Avoided Natural Gas DRIPE | AF142: Electric Benefits w/ NEB adder | AG142: Electric Benefits w/ NEB and LI adders | AH142: End-Use Fuel-Savings Benefits w/ NEB adder | AI142: End-Use Fuel-Savings Benefits w/ NEB and LI adders | AK142: ='Avoided Costs'!AH37&" DRIPE" -> Winter Peak Energy DRIPE | AL142: ='Avoided Costs'!AI37&" DRIPE" -> Winter Off-Peak Energy DRIPE | AM142: ='Avoided Costs'!AJ37&" DRIPE" -> Summer Peak Energy DRIPE | AN142: ='Avoided Costs'!AK37&" DRIPE" -> Summer Off-Peak Energy DRIPE | AO142: ='Avoided Costs'!AL37&" DRIPE" -> Winter Capacity DRIPE | AP142: ='Avoided Costs'!AM37&" DRIPE" -> Summer Capacity DRIPE | AQ142: TOTAL Electric DRIPE | AR142: NG Penalty (Savings) | AS142: ='Avoided Costs'!AN37&" DRIPE" -> Natural Gas DRIPE
A144: =A20 -> Calfee PV | B144: 0 | C144: =IF(OR($O20=0,$AG81>0),F20*$AC20*NPV(RDR,OFFSET(AnnualAC,$D20-ACYear1,Column,IF(AND($AB20>=$AG81,$AG81>0),$AG81,$AB20),1))/(1+RDR)^($D20-BASEYR-1),0)+IF(AND($AB20-$AG81<>0,$O20<>0,$AB20>$AG81),$R20*F20*NPV(RDR,OFFSET(AnnualAC,$D20-ACYear1+$AG81,Column,$AB20-$AG81,1))/(1+RDR)^($D20-BASEYR-1+$AG81),0) -> 4323.487284 | D144: =IF(OR($O20=0,$AG81>0),G20*$AC20*NPV(RDR,OFFSET(AnnualAC,$D20-ACYear1,Column,IF(AND($AB20>=$AG81,$AG81>0),$AG81,$AB20),1))/(1+RDR)^($D20-BASEYR-1),0)+IF(AND($AB20-$AG81<>0,$O20<>0,$AB20>$AG81),$R20*G20*NPV(RDR,OFFSET(AnnualAC,$D20-ACYear1+$AG81,Column,$AB20-$AG81,1))/(1+RDR)^($D20-BASEYR-1+$AG81),0) -> 1437.422844 | E144: =IF(OR($O20=0,$AG81>0),H20*$AC20*NPV(RDR,OFFSET(AnnualAC,$D20-ACYear1,Column,IF(AND($AB20>=$AG81,$AG81>0),$AG81,$AB20),1))/(1+RDR)^($D20-BASEYR-1),0)+IF(AND($AB20-$AG81<>0,$O20<>0,$AB20>$AG81),$R20*H20*NPV(RDR,OFFSET(AnnualAC,$D20-ACYear1+$AG81,Column,$AB20-$AG81,1))/(1+RDR)^($D20-BASEYR-1+$AG81),0) -> 3352.278381 | F144: =IF(OR($O20=0,$AG81>0),I20*$AC20*NPV(RDR,OFFSET(AnnualAC,$D20-ACYear1,Column,IF(AND($AB20>=$AG81,$AG81>0),$AG81,$AB20),1))/(1+RDR)^($D20-BASEYR-1),0)+IF(AND($AB20-$AG81<>0,$O20<>0,$AB20>$AG81),$R20*I20*NPV(RDR,OFFSET(AnnualAC,$D20-ACYear1+$AG81,Column,$AB20-$AG81,1))/(1+RDR)^($D20-BASEYR-1+$AG81),0) -> 1083.029816 | G144: =IF(OR($O20=0,$AG81>0),$J20*K20*$AC20*NPV(RDR,OFFSET(AnnualAC,$D20-ACYear1,Column,IF(AND($AB20>=$AG81,$AG81>0),$AG81,$AB20),1))/(1+RDR)^($D20-BASEYR-1),0)+IF(AND($AB20-$AG81<>0,$O20<>0,$AB20>$AG81),$R20*$J20*K20*NPV(RDR,OFFSET(AnnualAC,$D20-ACYear1+$AG81,Column,$AB20-$AG81,1))/(1+RDR)^($D20-BASEYR-1+$AG81),0) -> 0 | H144: =IF(OR($O20=0,$AG81>0),$J20*L20*$AC20*NPV(RDR,OFFSET(AnnualAC,$D20-ACYear1,Column,IF(AND($AB20>=$AG81,$AG81>0),$AG81,$AB20),1))/(1+RDR)^($D20-BASEYR-1),0)+IF(AND($AB20-$AG81<>0,$O20<>0,$AB20>$AG81),$R20*$J20*L20*NPV(RDR,OFFSET(AnnualAC,$D20-ACYear1+$AG81,Column,$AB20-$AG81,1))/(1+RDR)^($D20-BASEYR-1+$AG81),0) -> 8496.684649 | I144: =IF(OR($O20=0,$AG81>0),$J20*M20*$AC20*NPV(RDR,OFFSET(AnnualAC,$D20-ACYear1,Column,IF(AND($AB20>=$AG81,$AG81>0),$AG81,$AB20),1))/(1+RDR)^($D20-BASEYR-1),0)+IF(AND($AB20-$AG81<>0,$O20<>0,$AB20>$AG81),$R20*$J20*M20*NPV(RDR,OFFSET(AnnualAC,$D20-ACYear1+$AG81,Column,$AB20-$AG81,1))/(1+RDR)^($D20-BASEYR-1+$AG81),0) -> 0 | J144: =IF(OR($O20=0,$AG81>0),N20*$AC20*NPV(RDR,OFFSET(AnnualAC,$D20-ACYear1,Column,IF(AND($AB20>=$AG81,$AG81>0),$AG81,$AB20),1))/(1+RDR)^($D20-BASEYR-1),0)+IF(AND($AB20-$AG81<>0,$O20<>0,$AB20>$AG81),$R20*N20*NPV(RDR,OFFSET(AnnualAC,$D20-ACYear1+$AG81,Column,$AB20-$AG81,1))/(1+RDR)^($D20-BASEYR-1+$AG81),0) -> 5297.063526 | K144: =IF(ISERROR(SUM(C144:J144)),0,SUM(C144:J144)) -> 23989.9665 | M144: =IF(Electric_Ext?=0,0,IF(OR($O20=0,$AG81>0),F20*$AC20*NPV(RDR,OFFSET(Electric_Ext_Values,$D20-ACYear1,Column,IF(AND($AB20>=$AG81,$AG81>0),$AG81,$AB20),1))/(1+RDR)^($D20-BASEYR-1),0)+IF(AND($AB20-$AG81<>0,$O20<>0,$AB20>$AG81),$R20*F20*NPV(RDR,OFFSET(Electric_Ext_Values,$D20-ACYear1+$AG81,Column,$AB20-$AG81,1))/(1+RDR)^($D20-BASEYR-1+$AG81),0)) -> 2052.975744 | N144: =IF(Electric_Ext?=0,0,IF(OR($O20=0,$AG81>0),G20*$AC20*NPV(RDR,OFFSET(Electric_Ext_Values,$D20-ACYear1,Column,IF(AND($AB20>=$AG81,$AG81>0),$AG81,$AB20),1))/(1+RDR)^($D20-BASEYR-1),0)+IF(AND($AB20-$AG81<>0,$O20<>0,$AB20>$AG81),$R20*G20*NPV(RDR,OFFSET(Electric_Ext_Values,$D20-ACYear1+$AG81,Column,$AB20-$AG81,1))/(1+RDR)^($D20-BASEYR-1+$AG81),0)) -> 734.0486517 | O144: =IF(Electric_Ext?=0,0,IF(OR($O20=0,$AG81>0),H20*$AC20*NPV(RDR,OFFSET(Electric_Ext_Values,$D20-ACYear1,Column,IF(AND($AB20>=$AG81,$AG81>0),$AG81,$AB20),1))/(1+RDR)^($D20-BASEYR-1),0)+IF(AND($AB20-$AG81<>0,$O20<>0,$AB20>$AG81),$R20*H20*NPV(RDR,OFFSET(Electric_Ext_Values,$D20-ACYear1+$AG81,Column,$AB20-$AG81,1))/(1+RDR)^($D20-BASEYR-1+$AG81),0)) -> 1619.953802 | P144: =IF(Electric_Ext?=0,0,IF(OR($O20=0,$AG81>0),I20*$AC20*NPV(RDR,OFFSET(Electric_Ext_Values,$D20-ACYear1,Column,IF(AND($AB20>=$AG81,$AG81>0),$AG81,$AB20),1))/(1+RDR)^($D20-BASEYR-1),0)+IF(AND($AB20-$AG81<>0,$O20<>0,$AB20>$AG81),$R20*I20*NPV(RDR,OFFSET(Electric_Ext_Values,$D20-ACYear1+$AG81,Column,$AB20-$AG81,1))/(1+RDR)^($D20-BASEYR-1+$AG81),0)) -> 652.2351803 | Q144: =IF(ISERROR(IF(Electric_Ext?=0,0.05*K144,SUM(M144:P144))),0,IF(Electric_Ext?=0,0.05*K144,SUM(M144:P144))) -> 5059.213379 | S144: =IF(ISERROR(AC144),0,AC144) -> 0 | T144: =IF(ISERROR(AD144),0,AD144) -> 0 | U144: =-W20*PV(RDR,C20,Water_AC)/(1+RDR)^(D20-BASEYR-1) -> 0 | V144: =CHOOSE(NEBFlag,AF144,AG144,K144)+Q144+CHOOSE(NEBFlag,AH144,AI144,S144)+T144+U144+AE144+AQ144 -> 32653.12687 | X144: =IF(ISERROR(SUM(C144:F144)),0,SUM(C144:F144)) -> 10196.21833 | Y144: =IF(ISERROR(SUM(G144:J144)),0,SUM(G144:J144)) -> 13793.74817 | AA144: =IF(OR($O20=0,$M81>0),Z20*IF(AND($C20>=$M81,$M81>0),$M81,$C20),0)+IF(AND($C20-$M81<>0,$O20<>0,$C20>$M81),$R20*Z20*($C20-$M81),0) -> 176278.1203 | AC144: =IF(U20<0,IF(OR($O20=0,$AG81>0),-$U20*$AC20*NPV(RDR,OFFSET(Fuel_Prices,$D20-ACYear1,$T20-1,IF(AND($AB20>=$AG81,$AG81>0),$AG81,$AB20),1))/(1+RDR)^($D20-BASEYR-1),0)+IF(AND($AB20-$AG81<>0,$O20<>0,$AB20>$AG81),$S20*-$U20*NPV(RDR,OFFSET(Fuel_Prices,$D20-ACYear1+$AG81,$T20-1,$AB20-$AG81,1))/(1+RDR)^($D20-BASEYR-1+$AG81),0),0) -> 0 | AD144: =-IF(End_Use_Ext?=0,0.05*S144,IF(U20<0,IF(OR($O20=0,$AG81>0),-$U20*$AC20*PV(RDR,IF(AND($AB20>=$AG81,$AG81>0),$AG81,$AB20),OFFSET(End_Use_Ext_Values,0,$T20-1,1,1))/(1+RDR)^($D20-BASEYR-1),0)+IF(AND($AB20-$AG81<>0,$O20<>0,$AB20>$AG81),$S20*-$U20*PV(RDR,$AB20-$AG81,OFFSET(End_Use_Ext_Values,0,$T20-1,1,1))/(1+RDR)^($D20-BASEYR-1+$AG81),0),0)) -> 0 | AE144: =IF(U20<0,-AS144,0) -> 0 | AF144: =$K144*(1+NEB_adder) -> 27588.46147 | AG144: =$K144*(1+NEB_adder)*(1+Low_Income_Adder) -> 31726.7307 | AH144: =$S144*(1+NEB_adder) -> 0 | AI144: =$S144*(1+NEB_adder)*(1+Low_Income_Adder) -> 0 | AK144: =IF(OR($O20=0,$AG81>0),F20*$AC20*NPV(RDR,OFFSET(DRIPE_values,$D20-ACYear1,Column,IF(AND($AB20>=$AG81,$AG81>0),$AG81,$AB20),1))/(1+RDR)^($D20-BASEYR-1),0)+IF(AND($AB20-$AG81<>0,$O20<>0,$AB20>$AG81),$R20*F20*NPV(RDR,OFFSET(DRIPE_values,$D20-ACYear1+$AG81,Column,$AB20-$AG81,1))/(1+RDR)^($D20-BASEYR-1+$AG81),0) -> 9.106671161 | AL144: =IF(OR($O20=0,$AG81>0),G20*$AC20*NPV(RDR,OFFSET(DRIPE_values,$D20-ACYear1,Column,IF(AND($AB20>=$AG81,$AG81>0),$AG81,$AB20),1))/(1+RDR)^($D20-BASEYR-1),0)+IF(AND($AB20-$AG81<>0,$O20<>0,$AB20>$AG81),$R20*G20*NPV(RDR,OFFSET(DRIPE_values,$D20-ACYear1+$AG81,Column,$AB20-$AG81,1))/(1+RDR)^($D20-BASEYR-1+$AG81),0) -> 2.182315535 | AM144: =IF(OR($O20=0,$AG81>0),H20*$AC20*NPV(RDR,OFFSET(DRIPE_values,$D20-ACYear1,Column,IF(AND($AB20>=$AG81,$AG81>0),$AG81,$AB20),1))/(1+RDR)^($D20-BASEYR-1),0)+IF(AND($AB20-$AG81<>0,$O20<>0,$AB20>$AG81),$R20*H20*NPV(RDR,OFFSET(DRIPE_values,$D20-ACYear1+$AG81,Column,$AB20-$AG81,1))/(1+RDR)^($D20-BASEYR-1+$AG81),0) -> -6.792589215 | AN144: =IF(OR($O20=0,$AG81>0),I20*$AC20*NPV(RDR,OFFSET(DRIPE_values,$D20-ACYear1,Column,IF(AND($AB20>=$AG81,$AG81>0),$AG81,$AB20),1))/(1+RDR)^($D20-BASEYR-1),0)+IF(AND($AB20-$AG81<>0,$O20<>0,$AB20>$AG81),$R20*I20*NPV(RDR,OFFSET(DRIPE_values,$D20-ACYear1+$AG81,Column,$AB20-$AG81,1))/(1+RDR)^($D20-BASEYR-1+$AG81),0) -> 0.95561697 | AO144: =IF(OR($O20=0,$AG81>0),O81*$AC20*NPV(RDR,OFFSET(DRIPE_values,$D20-ACYear1,Column,IF(AND($AB20>=$AG81,$AG81>0),$AG81,$AB20),1))/(1+RDR)^($D20-BASEYR-1),0)+IF(AND($AB20-$AG81<>0,$O20<>0,$AB20>$AG81),$R20*O81*NPV(RDR,OFFSET(DRIPE_values,$D20-ACYear1+$AG81,Column,$AB20-$AG81,1))/(1+RDR)^($D20-BASEYR-1+$AG81),0) -> 0 | AP144: =IF(OR($O20=0,$AG81>0),P81*$AC20*NPV(RDR,OFFSET(DRIPE_values,$D20-ACYear1,Column,IF(AND($AB20>=$AG81,$AG81>0),$AG81,$AB20),1))/(1+RDR)^($D20-BASEYR-1),0)+IF(AND($AB20-$AG81<>0,$O20<>0,$AB20>$AG81),$R20*P81*NPV(RDR,OFFSET(DRIPE_values,$D20-ACYear1+$AG81,Column,$AB20-$AG81,1))/(1+RDR)^($D20-BASEYR-1+$AG81),0) -> 0 | AQ144: =IFERROR(SUM(AK144:AP144),0) -> 5.452014452 | AR144: =IF(OR(Y81=1,AB81=1,AC81=1),U20,0) -> 0 | AS144: =IF(OR($O20=0,$AG81>0),AR144*$AC20*NPV(RDR,OFFSET(DRIPE_values,$D20-ACYear1,Column,IF(AND($AB20>=$AG81,$AG81>0),$AG81,$AB20),1))/(1+RDR)^($D20-BASEYR-1),0)+IF(AND($AB20-$AG81<>0,$O20<>0,$AB20>$AG81),$S20*AR144*NPV(RDR,OFFSET(DRIPE_values,$D20-ACYear1+$AG81,Column,$AB20-$AG81,1))/(1+RDR)^($D20-BASEYR-1+$AG81),0) -> 0
A145: Ward PV | B145: 0 | C145: 3732.507008 | D145: 1240.940585 | E145: 2894.053279 | F145: 934.989769 | G145: 0 | H145: 7335.267323 | I145: 0 | J145: 4573.004483 | K145: =IF(ISERROR(SUM(C145:J145)),0,SUM(C145:J145)) -> 20710.76245 | M145: =IF(Electric_Ext?=0,0,IF(OR($O21=0,$AG82>0),F21*$AC21*NPV(RDR,OFFSET(Electric_Ext_Values,$D21-ACYear1,Column,IF(AND($AB21>=$AG82,$AG82>0),$AG82,$AB21),1))/(1+RDR)^($D21-BASEYR-1),0)+IF(AND($AB21-$AG82<>0,$O21<>0,$AB21>$AG82),$R21*F21*NPV(RDR,OFFSET(Electric_Ext_Values,$D21-ACYear1+$AG82,Column,$AB21-$AG82,1))/(1+RDR)^($D21-BASEYR-1+$AG82),0)) -> 1772.35316 | N145: 633.7110663 | O145: 1398.521268 | P145: 563.0807312 | Q145: 4367.666226 | S145: =IF(ISERROR(AC145),0,AC145) -> 0 | T145: =IF(ISERROR(AD145),0,AD145) -> 0 | U145: 0 | V145: 28189.74981 | X145: =IF(ISERROR(SUM(C145:F145)),0,SUM(C145:F145)) -> 8802.49064 | Y145: =IF(ISERROR(SUM(G145:J145)),0,SUM(G145:J145)) -> 11908.27181 | AA145: 152182.5499 | AC145: =IF(U21<0,IF(OR($O21=0,$AG82>0),-$U21*$AC21*NPV(RDR,OFFSET(Fuel_Prices,$D21-ACYear1,$T21-1,IF(AND($AB21>=$AG82,$AG82>0),$AG82,$AB21),1))/(1+RDR)^($D21-BASEYR-1),0)+IF(AND($AB21-$AG82<>0,$O21<>0,$AB21>$AG82),$S21*-$U21*NPV(RDR,OFFSET(Fuel_Prices,$D21-ACYear1+$AG82,$T21-1,$AB21-$AG82,1))/(1+RDR)^($D21-BASEYR-1+$AG82),0),0) -> 0 | AD145: 0 | AE145: =IF(U21<0,-AS145,0) -> 0 | AF145: 23817.37681 | AG145: 27389.98333 | AH145: 0 | AI145: 0 | AK145: 7.861874384 | AL145: 1.884013412 | AM145: -5.864105797 | AN145: 0.8249930676 | AO145: 0 | AP145: 0 | AQ145: =IFERROR(SUM(AK145:AP145),0) -> 4.706775066 | AR145: =IF(OR(Y82=1,AB82=1,AC82=1),U21,0) -> 0 | AS145: 0
A146: Measure 3 | B146: 0 | K146: 0 | Q146: 0 | S146: 0 | T146: 0 | U146: 0 | V146: 0 | X146: 0 | Y146: 0 | AC146: 0 | AD146: 0 | AE146: 0 | AF146: 0 | AG146: 0 | AH146: 0 | AI146: 0 | AQ146: 0 | AR146: 0
A147: Measure 4 | B147: 0 | K147: 0 | Q147: 0 | S147: 0 | T147: 0 | U147: 0 | V147: 0 | X147: 0 | Y147: 0 | AC147: 0 | AD147: 0 | AE147: 0 | AF147: 0 | AG147: 0 | AH147: 0 | AI147: 0 | AQ147: 0 | AR147: 0
A148: Measure 5 | B148: 0 | K148: 0 | Q148: 0 | S148: 0 | T148: 0 | U148: 0 | V148: 0 | X148: 0 | Y148: 0 | AC148: 0 | AD148: 0 | AE148: 0 | AF148: 0 | AG148: 0 | AH148: 0 | AI148: 0 | AQ148: 0 | AR148: 0
A149: Measure 6 | B149: 0 | K149: 0 | Q149: 0 | S149: 0 | T149: 0 | U149: 0 | V149: 0 | X149: 0 | Y149: 0 | AC149: 0 | AD149: 0 | AE149: 0 | AF149: 0 | AG149: 0 | AH149: 0 | AI149: 0 | AQ149: 0 | AR149: 0
A150: Measure 7 | B150: 0 | K150: 0 | Q150: 0 | S150: 0 | T150: 0 | U150: 0 | V150: 0 | X150: 0 | Y150: 0 | AC150: 0 | AD150: 0 | AE150: 0 | AF150: 0 | AG150: 0 | AH150: 0 | AI150: 0 | AQ150: 0 | AR150: 0
A151: Measure 8 | B151: 0 | K151: 0 | Q151: 0 | S151: 0 | T151: 0 | U151: 0 | V151: 0 | X151: 0 | Y151: 0 | AC151: 0 | AD151: 0 | AE151: 0 | AF151: 0 | AG151: 0 | AH151: 0 | AI151: 0 | AQ151: 0 | AR151: 0
A152: Measure 9 | B152: 0 | K152: 0 | Q152: 0 | S152: 0 | T152: 0 | U152: 0 | V152: 0 | X152: 0 | Y152: 0 | AC152: 0 | AD152: 0 | AE152: 0 | AF152: 0 | AG152: 0 | AH152: 0 | AI152: 0 | AQ152: 0 | AR152: 0
A153: Measure 10 | B153: 0 | K153: 0 | Q153: 0 | S153: 0 | T153: 0 | U153: 0 | V153: 0 | X153: 0 | Y153: 0 | AC153: 0 | AD153: 0 | AE153: 0 | AF153: 0 | AG153: 0 | AH153: 0 | AI153: 0 | AQ153: 0 | AR153: 0
A154: Measure 11 | B154: 0 | K154: 0 | Q154: 0 | S154: 0 | T154: 0 | U154: 0 | V154: 0 | X154: 0 | Y154: 0 | AC154: 0 | AD154: 0 | AE154: 0 | AF154: 0 | AG154: 0 | AH154: 0 | AI154: 0 | AQ154: 0 | AR154: 0
A155: Measure 12 | B155: 0 | K155: 0 | Q155: 0 | S155: 0 | T155: 0 | U155: 0 | V155: 0 | X155: 0 | Y155: 0 | AC155: 0 | AD155: 0 | AE155: 0 | AF155: 0 | AG155: 0 | AH155: 0 | AI155: 0 | AQ155: 0 | AR155: 0
A156: Measure 13 | B156: 0 | K156: 0 | Q156: 0 | S156: 0 | T156: 0 | U156: 0 | V156: 0 | X156: 0 | Y156: 0 | AC156: 0 | AD156: 0 | AE156: 0 | AF156: 0 | AG156: 0 | AH156: 0 | AI156: 0 | AQ156: 0 | AR156: 0
A157: Measure 14 | B157: 0 | K157: 0 | Q157: 0 | S157: 0 | T157: 0 | U157: 0 | V157: 0 | X157: 0 | Y157: 0 | AC157: 0 | AD157: 0 | AE157: 0 | AF157: 0 | AG157: 0 | AH157: 0 | AI157: 0 | AQ157: 0 | AR157: 0
A158: Measure 15 | B158: 0 | K158: 0 | Q158: 0 | S158: 0 | T158: 0 | U158: 0 | V158: 0 | X158: 0 | Y158: 0 | AC158: 0 | AD158: 0 | AE158: 0 | AF158: 0 | AG158: 0 | AH158: 0 | AI158: 0 | AQ158: 0 | AR158: 0
A159: Measure 16 | B159: 0 | K159: 0 | Q159: 0 | S159: 0 | T159: 0 | U159: 0 | V159: 0 | X159: 0 | Y159: 0 | AC159: 0 | AD159: 0 | AE159: 0 | AF159: 0 | AG159: 0 | AH159: 0 | AI159: 0 | AQ159: 0 | AR159: 0
A160: Measure 17 | B160: 0 | K160: 0 | Q160: 0 | S160: 0 | T160: 0 | U160: 0 | V160: 0 | X160: 0 | Y160: 0 | AC160: 0 | AD160: 0 | AE160: 0 | AF160: 0 | AG160: 0 | AH160: 0 | AI160: 0 | AQ160: 0 | AR160: 0
A161: Measure 18 | B161: 0 | K161: 0 | Q161: 0 | S161: 0 | T161: 0 | U161: 0 | V161: 0 | X161: 0 | Y161: 0 | AC161: 0 | AD161: 0 | AE161: 0 | AF161: 0 | AG161: 0 | AH161: 0 | AI161: 0 | AQ161: 0 | AR161: 0
A162: Measure 19 | B162: 0 | K162: 0 | Q162: 0 | S162: 0 | T162: 0 | U162: 0 | V162: 0 | X162: 0 | Y162: 0 | AC162: 0 | AD162: 0 | AE162: 0 | AF162: 0 | AG162: 0 | AH162: 0 | AI162: 0 | AQ162: 0 | AR162: 0
A163: Measure 20 | B163: 0 | K163: 0 | Q163: 0 | S163: 0 | T163: 0 | U163: 0 | V163: 0 | X163: 0 | Y163: 0 | AC163: 0 | AD163: 0 | AE163: 0 | AF163: 0 | AG163: 0 | AH163: 0 | AI163: 0 | AQ163: 0 | AR163: 0
A164: =A40 -> Measure 21 | B164: 0 | K164: 0 | Q164: 0 | S164: 0 | T164: 0 | U164: 0 | V164: 0 | X164: 0 | Y164: 0 | AC164: 0 | AD164: 0 | AE164: 0 | AF164: 0 | AG164: 0 | AH164: 0 | AI164: 0 | AQ164: 0 | AR164: 0
A165: Measure 22 | B165: 0 | K165: 0 | Q165: 0 | S165: 0 | T165: 0 | U165: 0 | V165: 0 | X165: 0 | Y165: 0 | AC165: 0 | AD165: 0 | AE165: 0 | AF165: 0 | AG165: 0 | AH165: 0 | AI165: 0 | AQ165: 0 | AR165: 0
A166: Measure 23 | B166: 0 | K166: 0 | Q166: 0 | S166: 0 | T166: 0 | U166: 0 | V166: 0 | X166: 0 | Y166: 0 | AC166: 0 | AD166: 0 | AE166: 0 | AF166: 0 | AG166: 0 | AH166: 0 | AI166: 0 | AQ166: 0 | AR166: 0
A167: Measure 24 | B167: 0 | K167: 0 | Q167: 0 | S167: 0 | T167: 0 | U167: 0 | V167: 0 | X167: 0 | Y167: 0 | AC167: 0 | AD167: 0 | AE167: 0 | AF167: 0 | AG167: 0 | AH167: 0 | AI167: 0 | AQ167: 0 | AR167: 0
A168: Measure 25 | B168: 0 | K168: 0 | Q168: 0 | S168: 0 | T168: 0 | U168: 0 | V168: 0 | X168: 0 | Y168: 0 | AC168: 0 | AD168: 0 | AE168: 0 | AF168: 0 | AG168: 0 | AH168: 0 | AI168: 0 | AQ168: 0 | AR168: 0
A169: Measure 26 | B169: 0 | K169: 0 | Q169: 0 | S169: 0 | T169: 0 | U169: 0 | V169: 0 | X169: 0 | Y169: 0 | AC169: 0 | AD169: 0 | AE169: 0 | AF169: 0 | AG169: 0 | AH169: 0 | AI169: 0 | AQ169: 0 | AR169: 0
A170: Measure 27 | B170: 0 | K170: 0 | Q170: 0 | S170: 0 | T170: 0 | U170: 0 | V170: 0 | X170: 0 | Y170: 0 | AC170: 0 | AD170: 0 | AE170: 0 | AF170: 0 | AG170: 0 | AH170: 0 | AI170: 0 | AQ170: 0 | AR170: 0
A171: Measure 28 | B171: 0 | K171: 0 | Q171: 0 | S171: 0 | T171: 0 | U171: 0 | V171: 0 | X171: 0 | Y171: 0 | AC171: 0 | AD171: 0 | AE171: 0 | AF171: 0 | AG171: 0 | AH171: 0 | AI171: 0 | AQ171: 0 | AR171: 0
A172: Measure 29 | B172: 0 | K172: 0 | Q172: 0 | S172: 0 | T172: 0 | U172: 0 | V172: 0 | X172: 0 | Y172: 0 | AC172: 0 | AD172: 0 | AE172: 0 | AF172: 0 | AG172: 0 | AH172: 0 | AI172: 0 | AQ172: 0 | AR172: 0
A173: Measure 30 | B173: 0 | K173: 0 | Q173: 0 | S173: 0 | T173: 0 | U173: 0 | V173: 0 | X173: 0 | Y173: 0 | AC173: 0 | AD173: 0 | AE173: 0 | AF173: 0 | AG173: 0 | AH173: 0 | AI173: 0 | AQ173: 0 | AR173: 0
A174: 0 | B174: 0 | K174: 0 | Q174: 0 | S174: 0 | T174: 0 | U174: 0 | V174: 0 | X174: 0 | Y174: 0 | AC174: 0 | AD174: 0 | AE174: 0 | AF174: 0 | AG174: 0 | AH174: 0 | AI174: 0 | AQ174: 0 | AR174: 0
A175: 0 | B175: 0 | K175: 0 | Q175: 0 | S175: 0 | T175: 0 | U175: 0 | V175: 0 | X175: 0 | Y175: 0 | AC175: 0 | AD175: 0 | AE175: 0 | AF175: 0 | AG175: 0 | AH175: 0 | AI175: 0 | AQ175: 0 | AR175: 0
A176: 0 | B176: 0 | C176: =IF(OR($O52=0,$AG113>0),F52*$AC52*NPV(RDR,OFFSET(AnnualAC,$D52-ACYear1,Column,IF(AND($AB52>=$AG113,$AG113>0),$AG113,$AB52),1))/(1+RDR)^($D52-BASEYR-1),0)+IF(AND($AB52-$AG113<>0,$O52<>0,$AB52>$AG113),$R52*F52*NPV(RDR,OFFSET(AnnualAC,$D52-ACYear1+$AG113,Column,$AB52-$AG113,1))/(1+RDR)^($D52-BASEYR-1+$AG113),0) ->  | D176: =IF(OR($O52=0,$AG113>0),G52*$AC52*NPV(RDR,OFFSET(AnnualAC,$D52-ACYear1,Column,IF(AND($AB52>=$AG113,$AG113>0),$AG113,$AB52),1))/(1+RDR)^($D52-BASEYR-1),0)+IF(AND($AB52-$AG113<>0,$O52<>0,$AB52>$AG113),$R52*G52*NPV(RDR,OFFSET(AnnualAC,$D52-ACYear1+$AG113,Column,$AB52-$AG113,1))/(1+RDR)^($D52-BASEYR-1+$AG113),0) ->  | E176: =IF(OR($O52=0,$AG113>0),H52*$AC52*NPV(RDR,OFFSET(AnnualAC,$D52-ACYear1,Column,IF(AND($AB52>=$AG113,$AG113>0),$AG113,$AB52),1))/(1+RDR)^($D52-BASEYR-1),0)+IF(AND($AB52-$AG113<>0,$O52<>0,$AB52>$AG113),$R52*H52*NPV(RDR,OFFSET(AnnualAC,$D52-ACYear1+$AG113,Column,$AB52-$AG113,1))/(1+RDR)^($D52-BASEYR-1+$AG113),0) ->  | F176: =IF(OR($O52=0,$AG113>0),I52*$AC52*NPV(RDR,OFFSET(AnnualAC,$D52-ACYear1,Column,IF(AND($AB52>=$AG113,$AG113>0),$AG113,$AB52),1))/(1+RDR)^($D52-BASEYR-1),0)+IF(AND($AB52-$AG113<>0,$O52<>0,$AB52>$AG113),$R52*I52*NPV(RDR,OFFSET(AnnualAC,$D52-ACYear1+$AG113,Column,$AB52-$AG113,1))/(1+RDR)^($D52-BASEYR-1+$AG113),0) ->  | G176: =IF(OR($O52=0,$AG113>0),$J52*K52*$AC52*NPV(RDR,OFFSET(AnnualAC,$D52-ACYear1,Column,IF(AND($AB52>=$AG113,$AG113>0),$AG113,$AB52),1))/(1+RDR)^($D52-BASEYR-1),0)+IF(AND($AB52-$AG113<>0,$O52<>0,$AB52>$AG113),$R52*$J52*K52*NPV(RDR,OFFSET(AnnualAC,$D52-ACYear1+$AG113,Column,$AB52-$AG113,1))/(1+RDR)^($D52-BASEYR-1+$AG113),0) ->  | H176: =IF(OR($O52=0,$AG113>0),$J52*L52*$AC52*NPV(RDR,OFFSET(AnnualAC,$D52-ACYear1,Column,IF(AND($AB52>=$AG113,$AG113>0),$AG113,$AB52),1))/(1+RDR)^($D52-BASEYR-1),0)+IF(AND($AB52-$AG113<>0,$O52<>0,$AB52>$AG113),$R52*$J52*L52*NPV(RDR,OFFSET(AnnualAC,$D52-ACYear1+$AG113,Column,$AB52-$AG113,1))/(1+RDR)^($D52-BASEYR-1+$AG113),0) ->  | I176: =IF(OR($O52=0,$AG113>0),$J52*M52*$AC52*NPV(RDR,OFFSET(AnnualAC,$D52-ACYear1,Column,IF(AND($AB52>=$AG113,$AG113>0),$AG113,$AB52),1))/(1+RDR)^($D52-BASEYR-1),0)+IF(AND($AB52-$AG113<>0,$O52<>0,$AB52>$AG113),$R52*$J52*M52*NPV(RDR,OFFSET(AnnualAC,$D52-ACYear1+$AG113,Column,$AB52-$AG113,1))/(1+RDR)^($D52-BASEYR-1+$AG113),0) ->  | J176: =IF(OR($O52=0,$AG113>0),N52*$AC52*NPV(RDR,OFFSET(AnnualAC,$D52-ACYear1,Column,IF(AND($AB52>=$AG113,$AG113>0),$AG113,$AB52),1))/(1+RDR)^($D52-BASEYR-1),0)+IF(AND($AB52-$AG113<>0,$O52<>0,$AB52>$AG113),$R52*N52*NPV(RDR,OFFSET(AnnualAC,$D52-ACYear1+$AG113,Column,$AB52-$AG113,1))/(1+RDR)^($D52-BASEYR-1+$AG113),0) ->  | K176: 0 | M176: =IF(Electric_Ext?=0,0,IF(OR($O52=0,$AG113>0),F52*$AC52*NPV(RDR,OFFSET(Electric_Ext_Values,$D52-ACYear1,Column,IF(AND($AB52>=$AG113,$AG113>0),$AG113,$AB52),1))/(1+RDR)^($D52-BASEYR-1),0)+IF(AND($AB52-$AG113<>0,$O52<>0,$AB52>$AG113),$R52*F52*NPV(RDR,OFFSET(Electric_Ext_Values,$D52-ACYear1+$AG113,Column,$AB52-$AG113,1))/(1+RDR)^($D52-BASEYR-1+$AG113),0)) ->  | N176: =IF(Electric_Ext?=0,0,IF(OR($O52=0,$AG113>0),G52*$AC52*NPV(RDR,OFFSET(Electric_Ext_Values,$D52-ACYear1,Column,IF(AND($AB52>=$AG113,$AG113>0),$AG113,$AB52),1))/(1+RDR)^($D52-BASEYR-1),0)+IF(AND($AB52-$AG113<>0,$O52<>0,$AB52>$AG113),$R52*G52*NPV(RDR,OFFSET(Electric_Ext_Values,$D52-ACYear1+$AG113,Column,$AB52-$AG113,1))/(1+RDR)^($D52-BASEYR-1+$AG113),0)) ->  | O176: =IF(Electric_Ext?=0,0,IF(OR($O52=0,$AG113>0),H52*$AC52*NPV(RDR,OFFSET(Electric_Ext_Values,$D52-ACYear1,Column,IF(AND($AB52>=$AG113,$AG113>0),$AG113,$AB52),1))/(1+RDR)^($D52-BASEYR-1),0)+IF(AND($AB52-$AG113<>0,$O52<>0,$AB52>$AG113),$R52*H52*NPV(RDR,OFFSET(Electric_Ext_Values,$D52-ACYear1+$AG113,Column,$AB52-$AG113,1))/(1+RDR)^($D52-BASEYR-1+$AG113),0)) ->  | P176: =IF(Electric_Ext?=0,0,IF(OR($O52=0,$AG113>0),I52*$AC52*NPV(RDR,OFFSET(Electric_Ext_Values,$D52-ACYear1,Column,IF(AND($AB52>=$AG113,$AG113>0),$AG113,$AB52),1))/(1+RDR)^($D52-BASEYR-1),0)+IF(AND($AB52-$AG113<>0,$O52<>0,$AB52>$AG113),$R52*I52*NPV(RDR,OFFSET(Electric_Ext_Values,$D52-ACYear1+$AG113,Column,$AB52-$AG113,1))/(1+RDR)^($D52-BASEYR-1+$AG113),0)) ->  | Q176: =IF(ISERROR(IF(Electric_Ext?=0,0.05*K176,SUM(M176:P176))),0,IF(Electric_Ext?=0,0.05*K176,SUM(M176:P176))) -> 0 | S176: 0 | T176: 0 | U176: =-W52*PV(RDR,C52,Water_AC)/(1+RDR)^(D52-BASEYR-1) -> 0 | V176: =CHOOSE(NEBFlag,AF176,AG176,K176)+Q176+CHOOSE(NEBFlag,AH176,AI176,S176)+T176+U176+AE176+AQ176 -> 0 | X176: 0 | Y176: 0 | AA176: =IF(OR($O52=0,$M113>0),Z52*IF(AND($C52>=$M113,$M113>0),$M113,$C52),0)+IF(AND($C52-$M113<>0,$O52<>0,$C52>$M113),$R52*Z52*($C52-$M113),0) ->  | AC176: =IF(U52<0,IF(OR($O52=0,$AG113>0),-$U52*$AC52*NPV(RDR,OFFSET(Fuel_Prices,$D52-ACYear1,$T52-1,IF(AND($AB52>=$AG113,$AG113>0),$AG113,$AB52),1))/(1+RDR)^($D52-BASEYR-1),0)+IF(AND($AB52-$AG113<>0,$O52<>0,$AB52>$AG113),$S52*-$U52*NPV(RDR,OFFSET(Fuel_Prices,$D52-ACYear1+$AG113,$T52-1,$AB52-$AG113,1))/(1+RDR)^($D52-BASEYR-1+$AG113),0),0) -> 0 | AD176: =-IF(End_Use_Ext?=0,0.05*S176,IF(U52<0,IF(OR($O52=0,$AG113>0),-$U52*$AC52*PV(RDR,IF(AND($AB52>=$AG113,$AG113>0),$AG113,$AB52),OFFSET(End_Use_Ext_Values,0,$T52-1,1,1))/(1+RDR)^($D52-BASEYR-1),0)+IF(AND($AB52-$AG113<>0,$O52<>0,$AB52>$AG113),$S52*-$U52*PV(RDR,$AB52-$AG113,OFFSET(End_Use_Ext_Values,0,$T52-1,1,1))/(1+RDR)^($D52-BASEYR-1+$AG113),0),0)) -> 0 | AE176: 0 | AF176: =$K176*(1+NEB_adder) -> 0 | AG176: =$K176*(1+NEB_adder)*(1+Low_Income_Adder) -> 0 | AH176: =$S176*(1+NEB_adder) -> 0 | AI176: =$S176*(1+NEB_adder)*(1+Low_Income_Adder) -> 0 | AK176: =IF(OR($O52=0,$AG113>0),F52*$AC52*NPV(RDR,OFFSET(DRIPE_values,$D52-ACYear1,Column,IF(AND($AB52>=$AG113,$AG113>0),$AG113,$AB52),1))/(1+RDR)^($D52-BASEYR-1),0)+IF(AND($AB52-$AG113<>0,$O52<>0,$AB52>$AG113),$R52*F52*NPV(RDR,OFFSET(DRIPE_values,$D52-ACYear1+$AG113,Column,$AB52-$AG113,1))/(1+RDR)^($D52-BASEYR-1+$AG113),0) ->  | AL176: =IF(OR($O52=0,$AG113>0),G52*$AC52*NPV(RDR,OFFSET(DRIPE_values,$D52-ACYear1,Column,IF(AND($AB52>=$AG113,$AG113>0),$AG113,$AB52),1))/(1+RDR)^($D52-BASEYR-1),0)+IF(AND($AB52-$AG113<>0,$O52<>0,$AB52>$AG113),$R52*G52*NPV(RDR,OFFSET(DRIPE_values,$D52-ACYear1+$AG113,Column,$AB52-$AG113,1))/(1+RDR)^($D52-BASEYR-1+$AG113),0) ->  | AM176: =IF(OR($O52=0,$AG113>0),H52*$AC52*NPV(RDR,OFFSET(DRIPE_values,$D52-ACYear1,Column,IF(AND($AB52>=$AG113,$AG113>0),$AG113,$AB52),1))/(1+RDR)^($D52-BASEYR-1),0)+IF(AND($AB52-$AG113<>0,$O52<>0,$AB52>$AG113),$R52*H52*NPV(RDR,OFFSET(DRIPE_values,$D52-ACYear1+$AG113,Column,$AB52-$AG113,1))/(1+RDR)^($D52-BASEYR-1+$AG113),0) ->  | AN176: =IF(OR($O52=0,$AG113>0),I52*$AC52*NPV(RDR,OFFSET(DRIPE_values,$D52-ACYear1,Column,IF(AND($AB52>=$AG113,$AG113>0),$AG113,$AB52),1))/(1+RDR)^($D52-BASEYR-1),0)+IF(AND($AB52-$AG113<>0,$O52<>0,$AB52>$AG113),$R52*I52*NPV(RDR,OFFSET(DRIPE_values,$D52-ACYear1+$AG113,Column,$AB52-$AG113,1))/(1+RDR)^($D52-BASEYR-1+$AG113),0) ->  | AO176: =IF(OR($O52=0,$AG113>0),O113*$AC52*NPV(RDR,OFFSET(DRIPE_values,$D52-ACYear1,Column,IF(AND($AB52>=$AG113,$AG113>0),$AG113,$AB52),1))/(1+RDR)^($D52-BASEYR-1),0)+IF(AND($AB52-$AG113<>0,$O52<>0,$AB52>$AG113),$R52*O113*NPV(RDR,OFFSET(DRIPE_values,$D52-ACYear1+$AG113,Column,$AB52-$AG113,1))/(1+RDR)^($D52-BASEYR-1+$AG113),0) ->  | AP176: =IF(OR($O52=0,$AG113>0),P113*$AC52*NPV(RDR,OFFSET(DRIPE_values,$D52-ACYear1,Column,IF(AND($AB52>=$AG113,$AG113>0),$AG113,$AB52),1))/(1+RDR)^($D52-BASEYR-1),0)+IF(AND($AB52-$AG113<>0,$O52<>0,$AB52>$AG113),$R52*P113*NPV(RDR,OFFSET(DRIPE_values,$D52-ACYear1+$AG113,Column,$AB52-$AG113,1))/(1+RDR)^($D52-BASEYR-1+$AG113),0) ->  | AQ176: 0 | AR176: 0 | AS176: =IF(OR($O52=0,$AG113>0),AR176*$AC52*NPV(RDR,OFFSET(DRIPE_values,$D52-ACYear1,Column,IF(AND($AB52>=$AG113,$AG113>0),$AG113,$AB52),1))/(1+RDR)^($D52-BASEYR-1),0)+IF(AND($AB52-$AG113<>0,$O52<>0,$AB52>$AG113),$S52*AR176*NPV(RDR,OFFSET(DRIPE_values,$D52-ACYear1+$AG113,Column,$AB52-$AG113,1))/(1+RDR)^($D52-BASEYR-1+$AG113),0) -> 
A177: 0 | B177: 0 | K177: 0 | Q177: 0 | S177: 0 | T177: 0 | U177: 0 | V177: 0 | X177: 0 | Y177: 0 | AC177: 0 | AD177: 0 | AE177: 0 | AF177: 0 | AG177: 0 | AH177: 0 | AI177: 0 | AQ177: 0 | AR177: 0
A178: 0 | B178: 0 | K178: 0 | Q178: 0 | S178: 0 | T178: 0 | U178: 0 | V178: 0 | X178: 0 | Y178: 0 | AC178: 0 | AD178: 0 | AE178: 0 | AF178: 0 | AG178: 0 | AH178: 0 | AI178: 0 | AQ178: 0 | AR178: 0
A179: 0 | B179: 0 | K179: 0 | Q179: 0 | S179: 0 | T179: 0 | U179: 0 | V179: 0 | X179: 0 | Y179: 0 | AC179: 0 | AD179: 0 | AE179: 0 | AF179: 0 | AG179: 0 | AH179: 0 | AI179: 0 | AQ179: 0 | AR179: 0
A180: 0 | B180: 0 | K180: 0 | Q180: 0 | S180: 0 | T180: 0 | U180: 0 | V180: 0 | X180: 0 | Y180: 0 | AC180: 0 | AD180: 0 | AE180: 0 | AF180: 0 | AG180: 0 | AH180: 0 | AI180: 0 | AQ180: 0 | AR180: 0
A181: 0 | B181: 0 | K181: 0 | Q181: 0 | S181: 0 | T181: 0 | U181: 0 | V181: 0 | X181: 0 | Y181: 0 | AC181: 0 | AD181: 0 | AE181: 0 | AF181: 0 | AG181: 0 | AH181: 0 | AI181: 0 | AQ181: 0 | AR181: 0
A182: 0 | B182: 0 | K182: 0 | Q182: 0 | S182: 0 | T182: 0 | U182: 0 | V182: 0 | X182: 0 | Y182: 0 | AC182: 0 | AD182: 0 | AE182: 0 | AF182: 0 | AG182: 0 | AH182: 0 | AI182: 0 | AQ182: 0 | AR182: 0
A183: 0 | B183: 0 | K183: 0 | Q183: 0 | S183: 0 | T183: 0 | U183: 0 | V183: 0 | X183: 0 | Y183: 0 | AC183: 0 | AD183: 0 | AE183: 0 | AF183: 0 | AG183: 0 | AH183: 0 | AI183: 0 | AQ183: 0 | AR183: 0
A184: =A60 -> 0 | B184: 0 | K184: 0 | Q184: 0 | S184: 0 | T184: 0 | U184: 0 | V184: 0 | X184: 0 | Y184: 0 | AC184: 0 | AD184: 0 | AE184: 0 | AF184: 0 | AG184: 0 | AH184: 0 | AI184: 0 | AQ184: 0 | AR184: 0
A185: 0 | B185: 0 | K185: 0 | Q185: 0 | S185: 0 | T185: 0 | U185: 0 | V185: 0 | X185: 0 | Y185: 0 | AC185: 0 | AD185: 0 | AE185: 0 | AF185: 0 | AG185: 0 | AH185: 0 | AI185: 0 | AQ185: 0 | AR185: 0
A186: 0 | B186: 0 | K186: 0 | Q186: 0 | S186: 0 | T186: 0 | U186: 0 | V186: 0 | X186: 0 | Y186: 0 | AC186: 0 | AD186: 0 | AE186: 0 | AF186: 0 | AG186: 0 | AH186: 0 | AI186: 0 | AQ186: 0 | AR186: 0
A187: 0 | B187: 0 | K187: 0 | Q187: 0 | S187: 0 | T187: 0 | U187: 0 | V187: 0 | X187: 0 | Y187: 0 | AC187: 0 | AD187: 0 | AE187: 0 | AF187: 0 | AG187: 0 | AH187: 0 | AI187: 0 | AQ187: 0 | AR187: 0
A188: 0 | B188: 0 | K188: 0 | Q188: 0 | S188: 0 | T188: 0 | U188: 0 | V188: 0 | X188: 0 | Y188: 0 | AC188: 0 | AD188: 0 | AE188: 0 | AF188: 0 | AG188: 0 | AH188: 0 | AI188: 0 | AQ188: 0 | AR188: 0
A189: 0 | B189: 0 | K189: 0 | Q189: 0 | S189: 0 | T189: 0 | U189: 0 | V189: 0 | X189: 0 | Y189: 0 | AC189: 0 | AD189: 0 | AE189: 0 | AF189: 0 | AG189: 0 | AH189: 0 | AI189: 0 | AQ189: 0 | AR189: 0
A190: 0 | B190: 0 | K190: 0 | Q190: 0 | S190: 0 | T190: 0 | U190: 0 | V190: 0 | X190: 0 | Y190: 0 | AC190: 0 | AD190: 0 | AE190: 0 | AF190: 0 | AG190: 0 | AH190: 0 | AI190: 0 | AQ190: 0 | AR190: 0
A191: 0 | B191: 0 | K191: 0 | Q191: 0 | S191: 0 | T191: 0 | U191: 0 | V191: 0 | X191: 0 | Y191: 0 | AC191: 0 | AD191: 0 | AE191: 0 | AF191: 0 | AG191: 0 | AH191: 0 | AI191: 0 | AQ191: 0 | AR191: 0
A192: 0 | B192: 0 | K192: 0 | Q192: 0 | S192: 0 | T192: 0 | U192: 0 | V192: 0 | X192: 0 | Y192: 0 | AC192: 0 | AD192: 0 | AE192: 0 | AF192: 0 | AG192: 0 | AH192: 0 | AI192: 0 | AQ192: 0 | AR192: 0
A193: 0 | B193: 0 | K193: 0 | Q193: 0 | S193: 0 | T193: 0 | U193: 0 | V193: 0 | X193: 0 | Y193: 0 | AC193: 0 | AD193: 0 | AE193: 0 | AF193: 0 | AG193: 0 | AH193: 0 | AI193: 0 | AQ193: 0 | AR193: 0
A199: MEASURE OUTPUTS
A200: =NOW() -> 2016-10-05T09:02:55.940 | B200: =NOW() -> 42648.37704
B201: =IF(ACSource=0,'Avoided Costs'!K37,'Avoided Costs'!L37)&" T&D Avoided Costs" -> Generic T&D Avoided Costs
A202: =IF($A$14=0,"",$A$14) -> SAMPLE - FOR ILLUSRATION ONLY | C202: Measure Benefit | E202: Measure Cost | G202: Benefit- | H202: PV of
B203: Measure | G203: Cost | H203: Net
A204: Measure Name | B204: ID | C204: PV | D204: ¢/kWh | E204: PV | F204: ¢/kWh | G204: Ratio | H204: Benefits | I204: PASS/fail
B206: [1] | C206: [2] | D206: [3] | E206: [5] | F206: [6] | G206: [7] | H206: [8] | I206: [9]
A208: =A20 -> Calfee PV | B208: 0 | C208: =V144 -> 32653.12687 | D208: =PMT(RDR,C20,-C208)/N81*100 -> 26.59433224 | E208: =$K81 -> 17196.0795 | F208: =PMT(RDR,$C20,-E208)/$N81*100 -> 14.00534329 | G208: =C208/E208 -> 1.89887043 | H208: =C208-E208 -> 15457.04737 | I208: =IF(H208>0," PASS",IF(H208<0," Fail"," NB=0")) -> PASS
A209: Ward PV | B209: 0 | C209: 28189.74981 | D209: 26.59433224 | E209: 15234.94091 | F209: 14.37270933 | G209: 1.850335356 | H209: 12954.8089 | I209: PASS
A210: Measure 3 | B210: 0 | C210: 0
A211: Measure 4 | B211: 0 | C211: 0
A212: Measure 5 | B212: 0 | C212: 0
A213: Measure 6 | B213: 0 | C213: 0
A214: Measure 7 | B214: 0 | C214: 0
A215: Measure 8 | B215: 0 | C215: 0
A216: Measure 9 | B216: 0 | C216: 0
A217: Measure 10 | B217: 0 | C217: 0
A218: Measure 11 | B218: 0 | C218: 0
A219: Measure 12 | B219: 0 | C219: 0
A220: Measure 13 | B220: 0 | C220: 0
A221: Measure 14 | B221: 0 | C221: 0
A222: Measure 15 | B222: 0 | C222: 0
A223: Measure 16 | B223: 0 | C223: 0
A224: Measure 17 | B224: 0 | C224: 0 | G224: =C224/E224 ->  | H224: =C224-E224 ->  | I224: =IF(H224>0," PASS",IF(H224<0," Fail"," NB=0")) -> 
A225: Measure 18 | B225: 0 | C225: 0
A226: Measure 19 | B226: 0 | C226: 0
A227: Measure 20 | B227: 0 | C227: 0
A228: =A40 -> Measure 21 | B228: 0 | C228: 0
A229: Measure 22 | B229: 0 | C229: 0
... 28 more rows

Sheet Avoided Costs (hidden)
A1: Annual Avoided Costs & Fuel Prices
AA2: fuel reference | AB2: Natural Gas - Weighted National Average | AC2: Natural Gas - Weighted National Average | AD2: Propane | AE2: Propane | AF2: Middle Distillate Fuels | AG2: Weighted average of Middle Distillate Fuels and Heavy Fuel Oil | AH2: Kerosene
I3: 1 | J3: 0, if 5% adder; 1 if user defined | AA3: $/ton CO2e | AB3: 100 | AC3: 100 | AD3: 100 | AE3: 100 | AF3: 98 | AG3: 98 | AH3: 100
I4: User-defined values ($/MMBtu) | AA4: kg CO2/MMBtu | AB4: 53.06 | AC4: 53.06 | AD4: 63.07 | AE4: 63.07 | AF4: 73.15 | AG4: =73.15*AG7+78.8*AG6 -> 74.2574 | AH4: 72.31
B5: FINANCIAL ASSUMPTIONS | I5: =+N37 -> Res. Distillate | J5: Res. High-Use LPG | K5: Space Heat Natural Gas | L5: Com. Distillate | M5: Com. LPG | N5: Baseload Natural Gas | O5: =+Y37 -> Compressed Natural Gas | P5: Kerosene | Q5: Wood | R5: =+W37 -> Wood Pellets | T5: Percent Biofuels | U5: $/ton CO2e | AA5: kg/ton | AB5: =2.205/2000 -> 0.0011025 | AC5: =2.205/2000 -> 0.0011025 | AD5: 0.0011025 | AE5: 0.0011025 | AF5: 0.0011025 | AG5: 0.0011025 | AH5: 0.0011025
H6: ="$/MMBtu ("&BASEYR&"$)" -> $/MMBtu (2015$) | I6: =I10*(1+inflate)^(BASEYR-AvCostYear) -> 8 | J6: =J10*(1+inflate)^(BASEYR-2013) -> 7.061295878 | K6: 5.984752838 | L6: 8.132342717 | M6: 7.061295878 | N6: 5.984752838 | O6: 5.984752838 | P6: 8.095803154 | Q6: 0 | R6: 0 | T6: 0.02 | U6: 100 | AG6: =0.18*0.36+0.82*0.16 -> 0.196
B7: Real Discount Rate (RDR) | F7: 0.03 | H7: $/ton CO2e | I7: 98 | J7: =Dollars_per_ton -> 100 | K7: =Dollars_per_ton -> 100 | L7: =I7 -> 98 | M7: =J7 -> 100 | N7: =K7 -> 100 | O7: =K7 -> 100 | P7: =Dollars_per_ton -> 100 | AG7: =0.18*0.64+0.82*0.84 -> 0.804
B8: Inflation Rate to Base Year | F8: =Inflation!N48-1 -> 0.00886823146 | H8: kg CO2/MMBtu | I8: 73.15 | J8: 63.07 | K8: 53.06 | L8: =73.15*0.804+78.8*0.196 -> 74.2574 | M8: =J8 -> 63.07 | N8: =K8 -> 53.06 | O8: =K8 -> 53.06 | P8: 72.31
B9: Future Inflation Rate | F9: 0.0188 | H9: kg/ton | I9: =2.2/2000 -> 0.0011 | J9: =$I9 -> 0.0011 | K9: =$I9 -> 0.0011 | L9: 0.0011 | M9: 0.0011 | N9: 0.0011 | O9: 0.0011 | P9: 0.0011
B10: Base Year for Discounting (BASEYR) | F10: 2015 | H10: ="$/MMBtu ("&AvCostYear&"$)" -> $/MMBtu (2015$) | I10: 8 | J10: =J7*J8*J9 -> 6.9377 | K10: 5.88 | L10: 7.99 | M10: 6.9377 | N10: =K10 -> 5.88 | O10: =K10 -> 5.88 | P10: 7.9541
B11: Avoided Costs Year | F11: 2015
B12: Program year | F12: 2017 | I12: ELECTRIC EXTERNALITIES
B13: Length of Evaluation Period in Years | F13: 50 | I13: 1 | J13: 0, if 5% adder; 1 if user defined | P13: Non-Energy Benefits adder | Q13: 0.15
B14: T&D Avoided Cost Source | F14: 0 | J14: (user-defined values below) | P14: Low Income Adder | Q14: 0.15
B15: ="(Enter 0 for '"&K37&"' or 1 for '"&L37&"' T&D)" -> (Enter 0 for 'Generic' or 1 for 'BED Custom' T&D)
I16: RISK DISCOUNT ON COSTS
B17: Energy Units | F17: kWh | I17: 0.1 | J17: Discount on Societal Cost of DSM
B18: Demand Units | F18: kW
B19: Avoided Costs Source | F19: AESC 2015/ | I19: WATER AVOIDED COST | L19: 2000$ | M19: =BASEYR&"$" -> 2015$
F20: PSB Order EEU-2015-04 | L20: $/gal | M20: $/CCF
L21: 0.01 | M21: =L21*7.481*100*Inflation!$N$37 -> 10.24563399 | AA21: Line Losses from PSB Order in EEU-2013-07 entered 10/24/2014 "ORDER RE: DEMAND REDUCTION INDUCED PRICE EFFECT AND DISTRIBUTION LINE LOSS VALUES"
B22: Winter Peak Period | C22: Winter Off-Peak Period | D22: Summer Peak Period | E22: Summer Off-Peak Period | F22: Winter Peak | G22: Summer Peak | H22: Spring/Fall Peak | I22: T&D Capacity | AA22: Winter Peak Period | AB22: Winter Off-Peak Period | AC22: Summer Peak Period | AD22: Summer Off-Peak Period | AE22: Winter Peak | AF22: Summer Peak | AG22: Spring/Fall Peak | AH22: T&D Capacity
B23: =IF(ACSource=1,AA24,AA23) -> 0.148 | C23: 0.123 | D23: 0.15 | E23: 0.119 | F23: 0.113 | G23: 0.112 | J23: Line losses to express savings at generation (including PTF). | AA23: 0.148 | AB23: 0.123 | AC23: 0.15 | AD23: 0.119 | AE23: 0.113 | AF23: 0.112 | AI23: Statewide Line losses to express savings at generation (including PTF).
B24: =IF(ACSource=1,AA26,AA25) -> 0.118 | C24: 0.098 | D24: 0.119 | E24: 0.095 | F24: 0.09 | G24: 0.089 | I24: =IF(ACSource=1,AH26,AH25) -> 0.0894 | J24: Line losses from ISO distribution point at which avoided costs are calculated ("not including PTF"); to be added to savings. | AA24: 0.064 | AB24: 0.051 | AC24: 0.073 | AD24: 0.057 | AE24: 0.05 | AF24: 0.053 | AI24: BED Line losses to express savings at generation (including PTF).
F25: =(1+F23)/(1+F26)-1 -> 0.03055555556 | G25: =(1+G23)/(1+G26)-1 -> 0.02962962963 | J25: Line losses used for Capacity, adjusted to remove losses already included in AESC Capacity avoided costs | AA25: 0.118 | AB25: 0.098 | AC25: 0.119 | AD25: 0.095 | AE25: 0.09 | AF25: 0.089 | AH25: =AE25*TD_Winter_Weight+AF25*TD_Summer_Weight -> 0.0894 | AI25: Statewide Line losses from ISO distribution point at which avoided costs are calculated ("not including PTF"); to be added to savings.
B26: 0 | C26: 0 | D26: 0 | E26: 0 | F26: 0.08 | G26: 0.08 | I26: 0 | J26: Line losses already included in AESC Capacity avoided costs | AA26: 0.038 | AB26: 0.03 | AC26: 0.043 | AD26: 0.034 | AE26: 0.03 | AF26: 0.032 | AH26: =AE26*TD_Winter_Weight+AF26*TD_Summer_Weight -> 0.0312 | AI26: BED Line losses from ISO distribution point at which avoided costs are calculated ("not including PTF"); to be added to savings.
I27: Weighting
I28: 0.4 | J28: Winter
I29: =1-I28 -> 0.6 | J29: Summer
A33: =BASEYR&"$" -> 2015$
B34: ELECTRIC AVOIDED COSTS including losses (AnnualAC) | K34: T&D AVOIDED COSTS | N34: END USE FUEL COSTS ($/MMBtu) | AA34: ELECTRIC EXTERNALITIES including losses | AH34: DRIPE values including losses
B35: ="Including "&I37&" Costs" -> Including Generic T&D Capacity Costs | AA35: =A33 -> 2015$ | AH35: =A33 -> 2015$
A37: Period: | B37: Winter Peak Energy | C37: Winter Off-Peak Energy | D37: Summer Peak Energy | E37: Summer Off-Peak Energy | F37: Winter Capacity | G37: Summer Capacity | H37: Fall/Spring Capacity | I37: =IF(ACSource=0,K37,L37)&" T&D Capacity" -> Generic T&D Capacity | K37: Generic | L37: BED Custom | N37: Res. Distillate | O37: Res. High-Use LPG | P37: Space Heat Natural Gas | Q37: Com. Distillate | R37: Com. LPG | S37: Baseload Natural Gas | T37: #6 Fuel Oil | U37: Kerosene | V37: Wood | W37: Wood Pellets | X37: Wood Chips | Y37: Compressed Natural Gas | AA37: =B37 -> Winter Peak Energy | AB37: Winter Off-Peak Energy | AC37: Summer Peak Energy | AD37: Summer Off-Peak Energy | AH37: Winter Peak Energy | AI37: Winter Off-Peak Energy | AJ37: Summer Peak Energy | AK37: Summer Off-Peak Energy | AL37: Winter Capacity | AM37: Summer Capacity | AN37: Natural Gas
A38: Units: | B38: ="$/"&EnergyUnits -> $/kWh | C38: ="$/"&EnergyUnits -> $/kWh | D38: ="$/"&EnergyUnits -> $/kWh | E38: ="$/"&EnergyUnits -> $/kWh | F38: ="$/"&DemandUnits -> $/kW | G38: ="$/"&DemandUnits -> $/kW | H38: ="$/"&DemandUnits -> $/kW | I38: ="$/"&DemandUnits -> $/kW | K38: $/kW | L38: $/kW | N38: $/MMBtu | O38: $/MMBtu | P38: $/MMBtu | Q38: $/MMBtu | R38: $/MMBtu | S38: $/MMBtu | U38: $/MMBtu | V38: $/MMBtu | W38: $/MMBtu | X38: $/MMBtu | Y38: $/MMBtu | AA38: $/kWh | AB38: $/kWh | AC38: $/kWh | AD38: $/kWh | AG38: year | AH38: $/kWh | AI38: $/kWh | AJ38: $/kWh | AK38: $/kWh | AL38: $/kW‐month | AM38: $/kW‐month | AN38: $/MMBtu
A40: 2012
A41: =A40+1 -> 2013 | B41: =(1+B$24)*'AESC Elect'!C16*(1+inflate)^(BASEYR-AvCostYear) -> 0 | C41: =(1+C$24)*'AESC Elect'!D16*(1+inflate)^(BASEYR-AvCostYear) -> 0 | D41: =(1+D$24)*'AESC Elect'!E16*(1+inflate)^(BASEYR-AvCostYear) -> 0 | E41: =(1+E$24)*'AESC Elect'!F16*(1+inflate)^(BASEYR-AvCostYear) -> 0 | G41: ='AESC Elect'!I16*(1+inflate)^(BASEYR-AvCostYear) -> 0 | I41: =IF(ACSource=1,L41,K41) -> 0 | K41: 0 | L41: 0 | N41: ='AESC Fossil Fuel'!C10*(1+inflate)^(BASEYR-AvCostYear) -> 0 | O41: ='AESC Fossil Fuel'!M10*(1+inflate)^(BASEYR-AvCostYear) -> 0 | P41: ='Nat Gas'!N8*(1+inflate)^(BASEYR-AvCostYear) -> 0 | Q41: =('AESC Fossil Fuel'!F10*82%+'AESC Fossil Fuel'!I10*18%)*(1+inflate)^(BASEYR-AvCostYear) -> 0 | R41: ='AESC Fossil Fuel'!M10*(1+inflate)^(BASEYR-AvCostYear) -> 0 | S41: ='Nat Gas'!M8*(1+inflate)^(BASEYR-AvCostYear) -> 0 | U41: ='AESC Fossil Fuel'!L10*(1+inflate)^(BASEYR-AvCostYear) -> 0 | V41: ='AESC Fossil Fuel'!J10*(1+inflate)^(BASEYR-AvCostYear) -> 0 | W41: ='AESC Fossil Fuel'!K10*(1+inflate)^(BASEYR-AvCostYear) -> 0 | X41: =V41 -> 0 | Y41: =Q41*0.75 -> 0 | AA41: =(1+B$23)*'AESC Elect'!T16*(1+inflate)^(BASEYR-AvCostYear) -> 0 | AB41: =(1+C$23)*'AESC Elect'!U16*(1+inflate)^(BASEYR-AvCostYear) -> 0 | AC41: =(1+D$23)*'AESC Elect'!V16*(1+inflate)^(BASEYR-AvCostYear) -> 0 | AD41: =(1+E$23)*'AESC Elect'!W16*(1+inflate)^(BASEYR-AvCostYear) -> 0 | AG41: =AG40+1 -> 1 | AH41: =(1+B$24)*DRIPE!B11*(1+inflate)^(BASEYR-AvCostYear) -> 0 | AI41: =(1+C$24)*DRIPE!C11*(1+inflate)^(BASEYR-AvCostYear) -> 0 | AJ41: =(1+D$24)*DRIPE!D11*(1+inflate)^(BASEYR-AvCostYear) -> 0 | AK41: =(1+E$24)*DRIPE!E11*(1+inflate)^(BASEYR-AvCostYear) -> 0 | AL41: 0 | AM41: =(1+G$24)*DRIPE!F11*(1+inflate)^(BASEYR-AvCostYear) -> 0 | AN41: =DRIPE!G11*(1+inflate)^(BASEYR-AvCostYear) -> 0
A42: 2014 | B42: 0 | C42: =(1+C$24)*'AESC Elect'!D17*(1+inflate)^(BASEYR-AvCostYear) -> 0 | D42: =(1+D$24)*'AESC Elect'!E17*(1+inflate)^(BASEYR-AvCostYear) -> 0 | E42: =(1+E$24)*'AESC Elect'!F17*(1+inflate)^(BASEYR-AvCostYear) -> 0 | G42: ='AESC Elect'!I17*(1+$G$25)*(1+inflate)^(BASEYR-AvCostYear) -> 0 | I42: 175.6266281 | K42: =K108*(1+$AH$25)*(1+inflate)^(BASEYR-$K$102) -> 175.6266281 | L42: =L108*(1+$AH$26)*(1+inflate)^(BASEYR-$K$102) -> 50.82618134 | N42: ='AESC Fossil Fuel'!C11*(1+inflate)^(BASEYR-AvCostYear) -> 0 | O42: ='AESC Fossil Fuel'!M11*(1+inflate)^(BASEYR-AvCostYear) -> 0 | P42: ='Nat Gas'!N9*(1+inflate)^(BASEYR-AvCostYear) -> 0 | Q42: =('AESC Fossil Fuel'!F11*82%+'AESC Fossil Fuel'!I11*18%)*(1+inflate)^(BASEYR-AvCostYear) -> 0 | R42: ='AESC Fossil Fuel'!M11*(1+inflate)^(BASEYR-AvCostYear) -> 0 | S42: ='Nat Gas'!M9*(1+inflate)^(BASEYR-AvCostYear) -> 0 | U42: ='AESC Fossil Fuel'!L11*(1+inflate)^(BASEYR-AvCostYear) -> 0 | V42: ='AESC Fossil Fuel'!J11*(1+inflate)^(BASEYR-AvCostYear) -> 0 | W42: ='AESC Fossil Fuel'!K11*(1+inflate)^(BASEYR-AvCostYear) -> 0 | X42: 0 | Y42: 0 | AA42: 0 | AB42: =(1+C$23)*'AESC Elect'!U17*(1+inflate)^(BASEYR-AvCostYear) -> 0 | AC42: =(1+D$23)*'AESC Elect'!V17*(1+inflate)^(BASEYR-AvCostYear) -> 0 | AD42: =(1+E$23)*'AESC Elect'!W17*(1+inflate)^(BASEYR-AvCostYear) -> 0 | AG42: 2014 | AH42: =(1+B$24)*DRIPE!B12*(1+inflate)^(BASEYR-AvCostYear) -> 0 | AI42: =(1+C$24)*DRIPE!C12*(1+inflate)^(BASEYR-AvCostYear) -> 0 | AJ42: =(1+D$24)*DRIPE!D12*(1+inflate)^(BASEYR-AvCostYear) -> 0 | AK42: =(1+E$24)*DRIPE!E12*(1+inflate)^(BASEYR-AvCostYear) -> 0 | AL42: 0 | AM42: =(1+G$24)*DRIPE!F12*(1+inflate)^(BASEYR-AvCostYear) -> 0 | AN42: =DRIPE!G12*(1+inflate)^(BASEYR-AvCostYear) -> 0
A43: 2015 | B43: =(1+B$24)*'AESC Elect'!C18*(1+inflate)^(BASEYR-AvCostYear) -> 0.081614 | C43: =(1+C$24)*'AESC Elect'!D18*(1+inflate)^(BASEYR-AvCostYear) -> 0.07137 | D43: =(1+D$24)*'AESC Elect'!E18*(1+inflate)^(BASEYR-AvCostYear) -> 0.04476 | E43: =(1+E$24)*'AESC Elect'!F18*(1+inflate)^(BASEYR-AvCostYear) -> 0.033945 | G43: ='AESC Elect'!I18*(1+$G$25)*(1+inflate)^(BASEYR-AvCostYear) -> 0 | I43: 174.5079871 | K43: 174.5079871 | L43: 50.82618134 | N43: ='AESC Fossil Fuel'!C12*(1+inflate)^(BASEYR-AvCostYear) -> 15.35088246 | O43: ='AESC Fossil Fuel'!M12*(1+inflate)^(BASEYR-AvCostYear) -> 14.10073624 | P43: ='Nat Gas'!N10*(1+inflate)^(BASEYR-AvCostYear) -> 13.01141317 | Q43: =('AESC Fossil Fuel'!F12*82%+'AESC Fossil Fuel'!I12*18%)*(1+inflate)^(BASEYR-AvCostYear) -> 14.04293222 | R43: ='AESC Fossil Fuel'!M12*(1+inflate)^(BASEYR-AvCostYear) -> 14.10073624 | S43: ='Nat Gas'!M10*(1+inflate)^(BASEYR-AvCostYear) -> 6.889724458 | U43: ='AESC Fossil Fuel'!L12*(1+inflate)^(BASEYR-AvCostYear) -> 16.74579271 | V43: ='AESC Fossil Fuel'!J12*(1+inflate)^(BASEYR-AvCostYear) -> 5.437538278 | W43: ='AESC Fossil Fuel'!K12*(1+inflate)^(BASEYR-AvCostYear) -> 6.186682993 | X43: 5.437538278 | Y43: 10.53219917 | AA43: =(1+B$23)*'AESC Elect'!T18*(1+inflate)^(BASEYR-AvCostYear) -> 0.055104 | AB43: =(1+C$23)*'AESC Elect'!U18*(1+inflate)^(BASEYR-AvCostYear) -> 0.052781 | AC43: =(1+D$23)*'AESC Elect'!V18*(1+inflate)^(BASEYR-AvCostYear) -> 0.05865 | AD43: =(1+E$23)*'AESC Elect'!W18*(1+inflate)^(BASEYR-AvCostYear) -> 0.054831 | AG43: 2015 | AH43: =(1+B$24)*DRIPE!B13*(1+inflate)^(BASEYR-AvCostYear) -> 0 | AI43: =(1+C$24)*DRIPE!C13*(1+inflate)^(BASEYR-AvCostYear) -> 0 | AJ43: =(1+D$24)*DRIPE!D13*(1+inflate)^(BASEYR-AvCostYear) -> 0 | AK43: =(1+E$24)*DRIPE!E13*(1+inflate)^(BASEYR-AvCostYear) -> 0 | AL43: 0 | AM43: =(1+G$24)*DRIPE!F13*(1+inflate)^(BASEYR-AvCostYear) -> 0 | AN43: =DRIPE!G13*(1+inflate)^(BASEYR-AvCostYear) -> 0
A44: 2016 | B44: =(1+B$24)*'AESC Elect'!C19*(1+inflate)^(BASEYR-AvCostYear) -> 0.073788 | C44: =(1+C$24)*'AESC Elect'!D19*(1+inflate)^(BASEYR-AvCostYear) -> 0.068076 | D44: =(1+D$24)*'AESC Elect'!E19*(1+inflate)^(BASEYR-AvCostYear) -> 0.052593 | E44: =(1+E$24)*'AESC Elect'!F19*(1+inflate)^(BASEYR-AvCostYear) -> 0.033945 | G44: ='AESC Elect'!I19*(1+$G$25)*(1+inflate)^(BASEYR-AvCostYear) -> 42.42987232 | I44: 173.3893462 | K44: 173.3893462 | L44: 50.82618134 | N44: ='AESC Fossil Fuel'!C13*(1+inflate)^(BASEYR-AvCostYear) -> 16.16877644 | O44: ='AESC Fossil Fuel'!M13*(1+inflate)^(BASEYR-AvCostYear) -> 15.29334499 | P44: ='Nat Gas'!N11*(1+inflate)^(BASEYR-AvCostYear) -> 13.34675196 | Q44: =('AESC Fossil Fuel'!F13*82%+'AESC Fossil Fuel'!I13*18%)*(1+inflate)^(BASEYR-AvCostYear) -> 14.63619571 | R44: ='AESC Fossil Fuel'!M13*(1+inflate)^(BASEYR-AvCostYear) -> 15.29334499 | S44: ='Nat Gas'!M11*(1+inflate)^(BASEYR-AvCostYear) -> 7.139291594 | U44: ='AESC Fossil Fuel'!L13*(1+inflate)^(BASEYR-AvCostYear) -> 17.63800742 | V44: ='AESC Fossil Fuel'!J13*(1+inflate)^(BASEYR-AvCostYear) -> 5.727249951 | W44: ='AESC Fossil Fuel'!K13*(1+inflate)^(BASEYR-AvCostYear) -> 6.516309045 | X44: 5.727249951 | Y44: 10.97714678 | AA44: =(1+B$23)*'AESC Elect'!T19*(1+inflate)^(BASEYR-AvCostYear) -> 0.053956 | AB44: =(1+C$23)*'AESC Elect'!U19*(1+inflate)^(BASEYR-AvCostYear) -> 0.052781 | AC44: =(1+D$23)*'AESC Elect'!V19*(1+inflate)^(BASEYR-AvCostYear) -> 0.0575 | AD44: =(1+E$23)*'AESC Elect'!W19*(1+inflate)^(BASEYR-AvCostYear) -> 0.053712 | AG44: 2016 | AH44: =(1+B$24)*DRIPE!B14*(1+inflate)^(BASEYR-AvCostYear) -> 0 | AI44: =(1+C$24)*DRIPE!C14*(1+inflate)^(BASEYR-AvCostYear) -> 0 | AJ44: =(1+D$24)*DRIPE!D14*(1+inflate)^(BASEYR-AvCostYear) -> 0 | AK44: =(1+E$24)*DRIPE!E14*(1+inflate)^(BASEYR-AvCostYear) -> 0 | AL44: 0 | AM44: =(1+G$24)*DRIPE!F14*(1+inflate)^(BASEYR-AvCostYear) -> 0 | AN44: =DRIPE!G14*(1+inflate)^(BASEYR-AvCostYear) -> 0
A45: 2017 | B45: =(1+B$24)*'AESC Elect'!C20*(1+inflate)^(BASEYR-AvCostYear) -> 0.073788 | C45: =(1+C$24)*'AESC Elect'!D20*(1+inflate)^(BASEYR-AvCostYear) -> 0.066978 | D45: =(1+D$24)*'AESC Elect'!E20*(1+inflate)^(BASEYR-AvCostYear) -> 0.057069 | E45: =(1+E$24)*'AESC Elect'!F20*(1+inflate)^(BASEYR-AvCostYear) -> 0.042705 | G45: ='AESC Elect'!I20*(1+$G$25)*(1+inflate)^(BASEYR-AvCostYear) -> 127.35597 | I45: 173.3893462 | K45: 173.3893462 | L45: 50.82618134 | N45: ='AESC Fossil Fuel'!C14*(1+inflate)^(BASEYR-AvCostYear) -> 17.50807236 | O45: ='AESC Fossil Fuel'!M14*(1+inflate)^(BASEYR-AvCostYear) -> 17.14428967 | P45: ='Nat Gas'!N12*(1+inflate)^(BASEYR-AvCostYear) -> 14.31289836 | Q45: =('AESC Fossil Fuel'!F14*82%+'AESC Fossil Fuel'!I14*18%)*(1+inflate)^(BASEYR-AvCostYear) -> 15.9264176 | R45: ='AESC Fossil Fuel'!M14*(1+inflate)^(BASEYR-AvCostYear) -> 17.14428967 | S45: ='Nat Gas'!M12*(1+inflate)^(BASEYR-AvCostYear) -> 8.066343343 | U45: ='AESC Fossil Fuel'!L14*(1+inflate)^(BASEYR-AvCostYear) -> 19.09900303 | V45: ='AESC Fossil Fuel'!J14*(1+inflate)^(BASEYR-AvCostYear) -> 6.201650877 | W45: ='AESC Fossil Fuel'!K14*(1+inflate)^(BASEYR-AvCostYear) -> 7.056069502 | X45: 6.201650877 | Y45: 11.9448132 | AA45: =(1+B$23)*'AESC Elect'!T20*(1+inflate)^(BASEYR-AvCostYear) -> 0.052808 | AB45: =(1+C$23)*'AESC Elect'!U20*(1+inflate)^(BASEYR-AvCostYear) -> 0.051658 | AC45: =(1+D$23)*'AESC Elect'!V20*(1+inflate)^(BASEYR-AvCostYear) -> 0.0575 | AD45: =(1+E$23)*'AESC Elect'!W20*(1+inflate)^(BASEYR-AvCostYear) -> 0.052593 | AG45: 2017 | AH45: =(1+B$24)*DRIPE!B15*(1+inflate)^(BASEYR-AvCostYear) -> 0.002236 | AI45: =(1+C$24)*DRIPE!C15*(1+inflate)^(BASEYR-AvCostYear) -> 0.001098 | AJ45: =(1+D$24)*DRIPE!D15*(1+inflate)^(BASEYR-AvCostYear) -> -0.003357 | AK45: =(1+E$24)*DRIPE!E15*(1+inflate)^(BASEYR-AvCostYear) -> 0.001095 | AL45: 0 | AM45: =(1+G$24)*DRIPE!F15*(1+inflate)^(BASEYR-AvCostYear) -> 0 | AN45: =DRIPE!G15*(1+inflate)^(BASEYR-AvCostYear) -> 0.0025
A46: 2018 | B46: =(1+B$24)*'AESC Elect'!C21*(1+inflate)^(BASEYR-AvCostYear) -> 0.062608 | C46: =(1+C$24)*'AESC Elect'!D21*(1+inflate)^(BASEYR-AvCostYear) -> 0.057096 | D46: =(1+D$24)*'AESC Elect'!E21*(1+inflate)^(BASEYR-AvCostYear) -> 0.05595 | E46: =(1+E$24)*'AESC Elect'!F21*(1+inflate)^(BASEYR-AvCostYear) -> 0.04599 | G46: ='AESC Elect'!I21*(1+$G$25)*(1+inflate)^(BASEYR-AvCostYear) -> 147.8142002 | I46: 170.0334234 | K46: 170.0334234 | L46: 50.82618134 | N46: ='AESC Fossil Fuel'!C15*(1+inflate)^(BASEYR-AvCostYear) -> 18.60749335 | O46: ='AESC Fossil Fuel'!M15*(1+inflate)^(BASEYR-AvCostYear) -> 18.38299265 | P46: ='Nat Gas'!N13*(1+inflate)^(BASEYR-AvCostYear) -> 14.35913369 | Q46: =('AESC Fossil Fuel'!F15*82%+'AESC Fossil Fuel'!I15*18%)*(1+inflate)^(BASEYR-AvCostYear) -> 16.94892862 | R46: ='AESC Fossil Fuel'!M15*(1+inflate)^(BASEYR-AvCostYear) -> 18.38299265 | S46: ='Nat Gas'!M13*(1+inflate)^(BASEYR-AvCostYear) -> 8.265925826 | U46: ='AESC Fossil Fuel'!L15*(1+inflate)^(BASEYR-AvCostYear) -> 20.29832665 | V46: ='AESC Fossil Fuel'!J15*(1+inflate)^(BASEYR-AvCostYear) -> 6.591084104 | W46: ='AESC Fossil Fuel'!K15*(1+inflate)^(BASEYR-AvCostYear) -> 7.499156022 | X46: 6.591084104 | Y46: 12.71169646 | AA46: =(1+B$23)*'AESC Elect'!T21*(1+inflate)^(BASEYR-AvCostYear) -> 0.052808 | AB46: =(1+C$23)*'AESC Elect'!U21*(1+inflate)^(BASEYR-AvCostYear) -> 0.050535 | AC46: =(1+D$23)*'AESC Elect'!V21*(1+inflate)^(BASEYR-AvCostYear) -> 0.05635 | AD46: =(1+E$23)*'AESC Elect'!W21*(1+inflate)^(BASEYR-AvCostYear) -> 0.052593 | AG46: 2018 | AH46: =(1+B$24)*DRIPE!B16*(1+inflate)^(BASEYR-AvCostYear) -> 0.001118 | AI46: =(1+C$24)*DRIPE!C16*(1+inflate)^(BASEYR-AvCostYear) -> 0.001098 | AJ46: =(1+D$24)*DRIPE!D16*(1+inflate)^(BASEYR-AvCostYear) -> 0 | AK46: =(1+E$24)*DRIPE!E16*(1+inflate)^(BASEYR-AvCostYear) -> 0 | AL46: 0 | AM46: =(1+G$24)*DRIPE!F16*(1+inflate)^(BASEYR-AvCostYear) -> 0 | AN46: =DRIPE!G16*(1+inflate)^(BASEYR-AvCostYear) -> 0.0025
A47: 2019 | B47: =(1+B$24)*'AESC Elect'!C22*(1+inflate)^(BASEYR-AvCostYear) -> 0.062608 | C47: =(1+C$24)*'AESC Elect'!D22*(1+inflate)^(BASEYR-AvCostYear) -> 0.055998 | D47: =(1+D$24)*'AESC Elect'!E22*(1+inflate)^(BASEYR-AvCostYear) -> 0.05595 | E47: =(1+E$24)*'AESC Elect'!F22*(1+inflate)^(BASEYR-AvCostYear) -> 0.044895 | G47: ='AESC Elect'!I22*(1+$G$25)*(1+inflate)^(BASEYR-AvCostYear) -> 137.1025221 | I47: 170.0334234 | K47: 170.0334234 | L47: 50.82618134 | N47: ='AESC Fossil Fuel'!C16*(1+inflate)^(BASEYR-AvCostYear) -> 18.99405272 | O47: ='AESC Fossil Fuel'!M16*(1+inflate)^(BASEYR-AvCostYear) -> 18.57444281 | P47: ='Nat Gas'!N14*(1+inflate)^(BASEYR-AvCostYear) -> 14.75557284 | Q47: =('AESC Fossil Fuel'!F16*82%+'AESC Fossil Fuel'!I16*18%)*(1+inflate)^(BASEYR-AvCostYear) -> 17.33172877 | R47: ='AESC Fossil Fuel'!M16*(1+inflate)^(BASEYR-AvCostYear) -> 18.57444281 | S47: ='Nat Gas'!M14*(1+inflate)^(BASEYR-AvCostYear) -> 8.408262962 | U47: ='AESC Fossil Fuel'!L16*(1+inflate)^(BASEYR-AvCostYear) -> 20.72001206 | V47: ='AESC Fossil Fuel'!J16*(1+inflate)^(BASEYR-AvCostYear) -> 6.728009874 | W47: ='AESC Fossil Fuel'!K16*(1+inflate)^(BASEYR-AvCostYear) -> 7.654946436 | X47: 6.728009874 | Y47: 12.99879657 | AA47: =(1+B$23)*'AESC Elect'!T22*(1+inflate)^(BASEYR-AvCostYear) -> 0.05166 | AB47: =(1+C$23)*'AESC Elect'!U22*(1+inflate)^(BASEYR-AvCostYear) -> 0.050535 | AC47: =(1+D$23)*'AESC Elect'!V22*(1+inflate)^(BASEYR-AvCostYear) -> 0.0552 | AD47: =(1+E$23)*'AESC Elect'!W22*(1+inflate)^(BASEYR-AvCostYear) -> 0.051474 | AG47: 2019 | AH47: =(1+B$24)*DRIPE!B17*(1+inflate)^(BASEYR-AvCostYear) -> 0 | AI47: =(1+C$24)*DRIPE!C17*(1+inflate)^(BASEYR-AvCostYear) -> 0 | AJ47: =(1+D$24)*DRIPE!D17*(1+inflate)^(BASEYR-AvCostYear) -> 0 | AK47: =(1+E$24)*DRIPE!E17*(1+inflate)^(BASEYR-AvCostYear) -> 0 | AL47: 0 | AM47: =(1+G$24)*DRIPE!F17*(1+inflate)^(BASEYR-AvCostYear) -> 0 | AN47: =DRIPE!G17*(1+inflate)^(BASEYR-AvCostYear) -> 0.0025
A48: =A47+1 -> 2020 | B48: =(1+B$24)*'AESC Elect'!C23*(1+inflate)^(BASEYR-AvCostYear) -> 0.06149 | C48: =(1+C$24)*'AESC Elect'!D23*(1+inflate)^(BASEYR-AvCostYear) -> 0.0549 | D48: =(1+D$24)*'AESC Elect'!E23*(1+inflate)^(BASEYR-AvCostYear) -> 0.057069 | E48: =(1+E$24)*'AESC Elect'!F23*(1+inflate)^(BASEYR-AvCostYear) -> 0.0438 | G48: ='AESC Elect'!I23*(1+$G$25)*(1+inflate)^(BASEYR-AvCostYear) -> 150.9583553 | I48: 170.0334234 | K48: 170.0334234 | L48: 50.82618134 | N48: ='AESC Fossil Fuel'!C17*(1+inflate)^(BASEYR-AvCostYear) -> 19.36156168 | O48: ='AESC Fossil Fuel'!M17*(1+inflate)^(BASEYR-AvCostYear) -> 18.70303871 | P48: ='Nat Gas'!N15*(1+inflate)^(BASEYR-AvCostYear) -> 14.46393971 | Q48: =('AESC Fossil Fuel'!F17*82%+'AESC Fossil Fuel'!I17*18%)*(1+inflate)^(BASEYR-AvCostYear) -> 17.67998689 | R48: ='AESC Fossil Fuel'!M17*(1+inflate)^(BASEYR-AvCostYear) -> 18.70303871 | S48: ='Nat Gas'!M15*(1+inflate)^(BASEYR-AvCostYear) -> 8.101185293 | U48: ='AESC Fossil Fuel'!L17*(1+inflate)^(BASEYR-AvCostYear) -> 21.12091597 | V48: ='AESC Fossil Fuel'!J17*(1+inflate)^(BASEYR-AvCostYear) -> 6.858187666 | W48: ='AESC Fossil Fuel'!K17*(1+inflate)^(BASEYR-AvCostYear) -> 7.803059183 | X48: 6.858187666 | Y48: 13.25999017 | AA48: =(1+B$23)*'AESC Elect'!T23*(1+inflate)^(BASEYR-AvCostYear) -> 0.050512 | AB48: =(1+C$23)*'AESC Elect'!U23*(1+inflate)^(BASEYR-AvCostYear) -> 0.049412 | AC48: =(1+D$23)*'AESC Elect'!V23*(1+inflate)^(BASEYR-AvCostYear) -> 0.05405 | AD48: =(1+E$23)*'AESC Elect'!W23*(1+inflate)^(BASEYR-AvCostYear) -> 0.050355 | AG48: 2020 | AH48: =(1+B$24)*DRIPE!B18*(1+inflate)^(BASEYR-AvCostYear) -> 0 | AI48: =(1+C$24)*DRIPE!C18*(1+inflate)^(BASEYR-AvCostYear) -> 0 | AJ48: =(1+D$24)*DRIPE!D18*(1+inflate)^(BASEYR-AvCostYear) -> 0 | AK48: =(1+E$24)*DRIPE!E18*(1+inflate)^(BASEYR-AvCostYear) -> 0 | AL48: 0 | AM48: =(1+G$24)*DRIPE!F18*(1+inflate)^(BASEYR-AvCostYear) -> 0 | AN48: =DRIPE!G18*(1+inflate)^(BASEYR-AvCostYear) -> 0.0025
A49: 2021 | B49: =(1+B$24)*'AESC Elect'!C24*(1+inflate)^(BASEYR-AvCostYear) -> 0.063726 | C49: =(1+C$24)*'AESC Elect'!D24*(1+inflate)^(BASEYR-AvCostYear) -> 0.057096 | D49: =(1+D$24)*'AESC Elect'!E24*(1+inflate)^(BASEYR-AvCostYear) -> 0.060426 | E49: =(1+E$24)*'AESC Elect'!F24*(1+inflate)^(BASEYR-AvCostYear) -> 0.04818 | G49: ='AESC Elect'!I24*(1+$G$25)*(1+inflate)^(BASEYR-AvCostYear) -> 154.123478 | I49: 170.0334234 | K49: 170.0334234 | L49: 50.82618134 | N49: ='AESC Fossil Fuel'!C18*(1+inflate)^(BASEYR-AvCostYear) -> 19.73643367 | O49: ='AESC Fossil Fuel'!M18*(1+inflate)^(BASEYR-AvCostYear) -> 18.91701863 | P49: ='Nat Gas'!N16*(1+inflate)^(BASEYR-AvCostYear) -> 14.84881372 | Q49: =('AESC Fossil Fuel'!F18*82%+'AESC Fossil Fuel'!I18*18%)*(1+inflate)^(BASEYR-AvCostYear) -> 18.04809976 | R49: ='AESC Fossil Fuel'!M18*(1+inflate)^(BASEYR-AvCostYear) -> 18.91701863 | S49: ='Nat Gas'!M16*(1+inflate)^(BASEYR-AvCostYear) -> 8.446264051 | U49: ='AESC Fossil Fuel'!L18*(1+inflate)^(BASEYR-AvCostYear) -> 21.52985198 | V49: ='AESC Fossil Fuel'!J18*(1+inflate)^(BASEYR-AvCostYear) -> 6.990973571 | W49: ='AESC Fossil Fuel'!K18*(1+inflate)^(BASEYR-AvCostYear) -> 7.95413937 | X49: 6.990973571 | Y49: 13.53607482 | AA49: =(1+B$23)*'AESC Elect'!T24*(1+inflate)^(BASEYR-AvCostYear) -> 0.049364 | AB49: =(1+C$23)*'AESC Elect'!U24*(1+inflate)^(BASEYR-AvCostYear) -> 0.048289 | AC49: =(1+D$23)*'AESC Elect'!V24*(1+inflate)^(BASEYR-AvCostYear) -> 0.0529 | AD49: =(1+E$23)*'AESC Elect'!W24*(1+inflate)^(BASEYR-AvCostYear) -> 0.049236 | AG49: 2021 | AH49: =(1+B$24)*DRIPE!B19*(1+inflate)^(BASEYR-AvCostYear) -> 0 | AI49: =(1+C$24)*DRIPE!C19*(1+inflate)^(BASEYR-AvCostYear) -> 0 | AJ49: =(1+D$24)*DRIPE!D19*(1+inflate)^(BASEYR-AvCostYear) -> 0 | AK49: =(1+E$24)*DRIPE!E19*(1+inflate)^(BASEYR-AvCostYear) -> 0 | AL49: 0 | AM49: =(1+G$24)*DRIPE!F19*(1+inflate)^(BASEYR-AvCostYear) -> 0 | AN49: =DRIPE!G19*(1+inflate)^(BASEYR-AvCostYear) -> 0.0025
